Workbook

Sheet graficos (hidden)
A1: portada | B1: Producto Interior Bruto a precios de mercado 2006(1ªe) | E1: Producto Interior Bruto a precios de mercado 2006(1ªe)
B2: Precios corrientes | E2: Indices de volumen
B3: Ramas | C3: Millones de € | E3: Ramas | F3: Indice
B4: ='4'!$C$8 -> Agricultura, ganadería, silvicultura y pesca | C4: =('4'!J8)/1000 -> 69.08177157 | E4: ='4'!$C$8 -> Agricultura, ganadería, silvicultura y pesca | F4: =('5'!J8) -> 200.8601516
B5: ='4'!#REF! ->  | C5: =('4'!#REF!)/1000 ->  | E5: ='4'!#REF! ->  | F5: =('5'!#REF!) -> 
B6: ='4'!#REF! ->  | C6: =('4'!#REF!)/1000 ->  | E6: ='4'!#REF! ->  | F6: =('5'!#REF!) -> 
B7: ='4'!$C$22 -> Construcción | C7: =('4'!J22)/1000 -> 11094.7852 | E7: ='4'!$C$22 -> Construcción | F7: =('5'!J22) -> 217.5220971
B8: ='4'!$C$28 -> Transporte y almacenamiento | C8: =('4'!J28)/1000 -> 5580.994758 | E8: ='4'!$C$28 -> Transporte y almacenamiento | F8: =('5'!J28) -> 84.71551103
B9: ='4'!$C$33 -> Actividades profesionales, científicas y técnicas; actividades administrativas y servicios auxiliares | C9: =('4'!J33)/1000 -> 12654.20984 | E9: ='4'!$C$33 -> Actividades profesionales, científicas y técnicas; actividades administrativas y servicios auxiliares | F9: =('5'!J33) -> 78.91287697
B10: VAB precios básicos | C10: =(SUM(C4:C9)) ->  | E10: VAB precios básicos | F10: =('5'!J41) -> 82.0866021
B11: Impuestos netos sobre los productos | C11: =('4'!J42)/1000 -> 2175.105187 | E11: Impuestos netos sobre los productos | F11: =('5'!J42) -> 106.2437251
B12: PIB precios de mercado | C12: =('4'!#REF!)/1000 ->  | E12: PIB precios de mercado | F12: =('5'!J44) -> 95.00498641
B15: Productividad aparente 2006 (1ªe) | E15: Coste laboral medio 2006 (1ªe)
B16: Ramas | C16: € | E16: Ramas | F16: €
B17: Total | C17: ='4'!$J$41*1000/'9'!$J$41 -> 36592.13376 | E17: Total | F17: ='6'!$J$41*1000/'10'!$J$41 -> 34910.3072
B18: ='4'!$C$8 -> Agricultura, ganadería, silvicultura y pesca | C18: ='4'!$J$8*1000/'9'!$J$8 -> 13070.0748 | E18: ='4'!$C$8 -> Agricultura, ganadería, silvicultura y pesca | F18: ='6'!$J$8*1000/'10'!$J$8 -> 10698.76614
B19: ='4'!#REF! ->  | C19: ='4'!#REF!*1000/'9'!#REF! ->  | E19: ='4'!#REF! ->  | F19: ='6'!#REF!*1000/'10'!#REF! -> 
B20: ='4'!#REF! ->  | C20: ='4'!#REF!*1000/'9'!#REF! ->  | E20: ='4'!#REF! ->  | F20: ='6'!#REF!*1000/'10'!#REF! -> 
B21: ='4'!$C$22 -> Construcción | C21: ='4'!$J$22*1000/'9'!$J$22 -> 50731.69583 | E21: ='4'!$C$22 -> Construcción | F21: ='6'!$J$22*1000/'10'!$J$22 -> 30892.86774
B22: ='4'!$C$28 -> Transporte y almacenamiento | C22: ='4'!$J$28*1000/'9'!$J$28 -> 43561.689 | E22: ='4'!$C$28 -> Transporte y almacenamiento | F22: ='6'!$J$28*1000/'10'!$J$28 -> 35625.63791
B23: ='4'!$C$33 -> Actividades profesionales, científicas y técnicas; actividades administrativas y servicios auxiliares | C23: ='4'!$J$33*1000/'9'!$J$33 -> 35558.79695 | E23: ='4'!$C$33 -> Actividades profesionales, científicas y técnicas; actividades administrativas y servicios auxiliares | F23: ='6'!$J$33*1000/'10'!$J$33 -> 28479.81844
A25: gráfico aporta | B25: Datos de simulacion en ctes del libro RESULTADOS
C26: 2006 | D26: 2005 | E26: dif 2006-2005
B27: ='5'!$C$8 -> Agricultura, ganadería, silvicultura y pesca | C27: 90190.62426 | D27: 88614.07232 | E27: =D27-C27 -> -1576.551944 | F27: =E27/$E$33 -> 0.000391159386 | G27: =F27*100 -> 0.0391159386
B28: ='5'!#REF! ->  | C28: 8291139.293 | D28: 7816538.365 | E28: -474600.9272 | F28: 0.1177535621 | G28: 11.77535621
B29: ='5'!#REF! ->  | C29: 7217375.219 | D29: 6911719.321 | E29: -305655.8985 | F29: 0.07583649497 | G29: 7.583649497
B30: ='5'!$C$22 -> Construcción | C30: 26299898.6 | D30: 24591900.43 | E30: -1707998.176 | F30: 0.4237726008 | G30: 42.37726008
B31: ='5'!$C$28 -> Transporte y almacenamiento | C31: 31242607.23 | D31: 29793880.53 | E31: -1448726.697 | F31: 0.3594445761 | G31: 35.94445761
B32: ='5'!$C$33 -> Actividades profesionales, científicas y técnicas; actividades administrativas y servicios auxiliares | C32: 15529448.88 | D32: 15437547.93 | E32: -91900.94496 | F32: 0.02280160659 | G32: 2.280160659
B33: VAB | C33: 88670659.84 | D33: 84640200.65 | E33: -4030459.195 | F33: =SUM(F27:F32) -> 1
A35: pagina2 | B35: ='2'!A2 -> Producción (precios corrientes) | C35: 2003 | D35: 2004p | E35: 2005p | F35: 2006 (1ªe) | H35: 2006 (1ªe) | I35: Estructura | K35: Para rotulos de graficos
B36: ='2'!C$8 -> Agricultura, ganadería, silvicultura y pesca | C36: ='2'!G$8/'2'!F$8-1 -> -0.01401341706 | D36: ='2'!H$8/'2'!G$8-1 -> -0.1265537626 | E36: ='2'!I$8/'2'!H$8-1 -> 0.0532927139 | F36: ='2'!J$8/'2'!I$8-1 -> 0.002553491663 | H36: ='2'!$J$8 -> 100344.084 | I36: =H36*100/$H$42 -> 0.1232569587
B37: ='2'!C$9 -> Industrias extractivas; industria manufacturera; suministro de energía eléctrica, gas, vapor y aire acondicionado; suministro de agua, actividades de saneamiento, gestión de residuos y descontaminación | C37: ='2'!G$9/'2'!F$9-1 -> 0.02884974403 | D37: ='2'!H$9/'2'!G$9-1 -> 0.02609172579 | E37: ='2'!I$9/'2'!H$9-1 -> 0.02090105278 | F37: ='2'!J$9/'2'!I$9-1 -> 0.08001828531 | H37: ='2'!$J$9 -> 27543649.53 | I37: 33.83305064
B38: ='2'!C$28 -> Transporte y almacenamiento | C38: ='2'!G$28/'2'!F$28-1 -> 0.03354094382 | D38: ='2'!H$28/'2'!G$28-1 -> -0.174643317 | E38: ='2'!I$28/'2'!H$28-1 -> 0.3349517861 | F38: ='2'!J$28/'2'!I$28-1 -> 0.1984811693 | H38: ='2'!$J$28 -> 14922834.06 | I38: 18.33035959
B39: ='2'!C$29 -> Hostelería | C39: ='2'!G$29/'2'!F$29-1 -> 0.07667257926 | D39: ='2'!H$29/'2'!G$29-1 -> 0.07314889939 | E39: ='2'!I$29/'2'!H$29-1 -> 0.05941050061 | F39: ='2'!J$29/'2'!I$29-1 -> 0.1078568027 | H39: ='2'!$J$29 -> 8732822.844 | I39: 10.7269023
B40: ='2'!C$36 -> Administración pública y defensa; seguridad social obligatoria; educación; actividades sanitarias y de servicios sociales | C40: ='2'!G$36/'2'!F$36-1 -> 0.05262450603 | D40: ='2'!H$36/'2'!G$36-1 -> 0.07490462163 | E40: ='2'!I$36/'2'!H$36-1 -> 0.08952287613 | F40: ='2'!J$36/'2'!I$36-1 -> 0.07451815605 | H40: ='2'!$J$36 -> 21154286.87 | I40: 25.98472139
B41: ='2'!C$40 -> Actividades artísticas, recreativas y de entretenimiento; reparación de artículos de uso doméstico y otros servicios | C41: ='2'!G$40/'2'!F$40-1 -> 0.05558226523 | D41: ='2'!H$40/'2'!G$40-1 -> 0.05402588945 | E41: ='2'!I$40/'2'!H$40-1 -> 0.04247496582 | F41: ='2'!J$40/'2'!I$40-1 -> 0.1382186004 | H41: ='2'!$J$40 -> 8956544.401 | I41: 11.00170912
H42: =SUM(H36:H41) -> 81410481.8
A43: pagina3 | B43: ='3'!A2 -> Consumos Intermedios (precios corrientes) | C43: 2003 | D43: 2004 | E43: 2005 | F43: 2006
B44: ='3'!C$8 -> Agricultura, ganadería, silvicultura y pesca | C44: ='3'!G$8/'3'!F$8-1 -> -0.1289355494 | D44: ='3'!H$8/'3'!G$8-1 -> -0.1327468462 | E44: ='3'!I$8/'3'!H$8-1 -> 0.1105011739 | F44: ='3'!J$8/'3'!I$8-1 -> 0.005704965628
B45: ='3'!#REF! ->  | C45: ='3'!#REF!/'3'!#REF!-1 ->  | D45: ='3'!#REF!/'3'!#REF!-1 ->  | E45: ='3'!#REF!/'3'!#REF!-1 ->  | F45: ='3'!#REF!/'3'!#REF!-1 -> 
B46: ='3'!#REF! ->  | C46: ='3'!#REF!/'3'!#REF!-1 ->  | D46: ='3'!#REF!/'3'!#REF!-1 ->  | E46: ='3'!#REF!/'3'!#REF!-1 ->  | F46: ='3'!#REF!/'3'!#REF!-1 -> 
B47: ='3'!C$22 -> Construcción | C47: ='3'!G$22/'3'!F$22-1 -> 0.1010125623 | D47: ='3'!H$22/'3'!G$22-1 -> 0.1019164098 | E47: ='3'!I$22/'3'!H$22-1 -> 0.1949767218 | F47: ='3'!J$22/'3'!I$22-1 -> 0.1328164177
B48: ='3'!C$28 -> Transporte y almacenamiento | C48: ='3'!G$28/'3'!F$28-1 -> 0.05159013287 | D48: ='3'!H$28/'3'!G$28-1 -> -0.2470817594 | E48: ='3'!I$28/'3'!H$28-1 -> 0.5411625047 | F48: ='3'!J$28/'3'!I$28-1 -> 0.2656656473
B49: ='3'!C$33 -> Actividades profesionales, científicas y técnicas; actividades administrativas y servicios auxiliares | C49: ='3'!G$33/'3'!F$33-1 -> -0.06348262013 | D49: ='3'!H$33/'3'!G$33-1 -> 0.1228802084 | E49: ='3'!I$33/'3'!H$33-1 -> 0.1176419798 | F49: ='3'!J$33/'3'!I$33-1 -> 0.2746502898
A51: pagina4 | B51: ='4'!A2 -> Producto Interior Bruto a precios de mercado (precios corrientes) | C51: 2003 | D51: 2004 | E51: 2005 | F51: 2006
B52: ='4'!C$8 -> Agricultura, ganadería, silvicultura y pesca | C52: ='4'!G$8/'4'!F$8-1 -> 0.04409320523 | D52: ='4'!H$8/'4'!G$8-1 -> -0.1239413612 | E52: ='4'!I$8/'4'!H$8-1 -> 0.02940327528 | F52: ='4'!J$8/'4'!I$8-1 -> 0.001133803743
B53: ='4'!#REF! ->  | C53: ='4'!#REF!/'4'!#REF!-1 ->  | D53: ='4'!#REF!/'4'!#REF!-1 ->  | E53: ='4'!#REF!/'4'!#REF!-1 ->  | F53: ='4'!#REF!/'4'!#REF!-1 -> 
B54: ='4'!#REF! ->  | C54: ='4'!#REF!/'4'!#REF!-1 ->  | D54: ='4'!#REF!/'4'!#REF!-1 ->  | E54: ='4'!#REF!/'4'!#REF!-1 ->  | F54: ='4'!#REF!/'4'!#REF!-1 -> 
B55: ='4'!C$22 -> Construcción | C55: ='4'!G$22/'4'!F$22-1 -> 0.1401806672 | D55: ='4'!H$22/'4'!G$22-1 -> 0.1178823956 | E55: ='4'!I$22/'4'!H$22-1 -> 0.1848375395 | F55: ='4'!J$22/'4'!I$22-1 -> 0.05575885075
B56: ='4'!C$28 -> Transporte y almacenamiento | C56: ='4'!G$28/'4'!F$28-1 -> 0.01119317738 | D56: ='4'!H$28/'4'!G$28-1 -> -0.08136989601 | E56: ='4'!I$28/'4'!H$28-1 -> 0.1173275886 | F56: ='4'!J$28/'4'!I$28-1 -> 0.1006825312
B57: ='4'!C$33 -> Actividades profesionales, científicas y técnicas; actividades administrativas y servicios auxiliares | C57: ='4'!G$33/'4'!F$33-1 -> 0.06430863131 | D57: ='4'!H$33/'4'!G$33-1 -> 0.1251573477 | E57: ='4'!I$33/'4'!H$33-1 -> 0.1295727191 | F57: ='4'!J$33/'4'!I$33-1 -> 0.1223283771
A59: pagina5 | B59: ="PIB "&'5'!A3 -> PIB Indices de volumen encadenados | C59: 2003 | D59: 2004 | E59: 2005 | F59: 2006
B60: ='5'!C$8 -> Agricultura, ganadería, silvicultura y pesca | C60: ='5'!G$8/'5'!F$8-1 -> -0.01018385176 | D60: ='5'!H$8/'5'!G$8-1 -> -0.1222645742 | E60: ='5'!I$8/'5'!H$8-1 -> -0.002356898364 | F60: ='5'!J$8/'5'!I$8-1 -> 0.01844740971
B61: ='5'!#REF! ->  | C61: ='5'!#REF!/'5'!#REF!-1 ->  | D61: ='5'!#REF!/'5'!#REF!-1 ->  | E61: ='5'!#REF!/'5'!#REF!-1 ->  | F61: ='5'!#REF!/'5'!#REF!-1 -> 
B62: ='5'!#REF! ->  | C62: ='5'!#REF!/'5'!#REF!-1 ->  | D62: ='5'!#REF!/'5'!#REF!-1 ->  | E62: ='5'!#REF!/'5'!#REF!-1 ->  | F62: ='5'!#REF!/'5'!#REF!-1 -> 
B63: ='5'!C$22 -> Construcción | C63: ='5'!G$22/'5'!F$22-1 -> 0.03486347061 | D63: ='5'!H$22/'5'!G$22-1 -> 0.0124353782 | E63: ='5'!I$22/'5'!H$22-1 -> 0.09559907845 | F63: ='5'!J$22/'5'!I$22-1 -> -0.0156098854
B64: ='5'!C$28 -> Transporte y almacenamiento | C64: ='5'!G$28/'5'!F$28-1 -> -0.01866093877 | D64: ='5'!H$28/'5'!G$28-1 -> -0.1205904636 | E64: ='5'!I$28/'5'!H$28-1 -> 0.08387691735 | F64: ='5'!J$28/'5'!I$28-1 -> 0.05198463146
B65: ='5'!C$33 -> Actividades profesionales, científicas y técnicas; actividades administrativas y servicios auxiliares | C65: ='5'!G$33/'5'!F$33-1 -> -0.007612164711 | D65: ='5'!H$33/'5'!G$33-1 -> 0.07675114974 | E65: ='5'!I$33/'5'!H$33-1 -> 0.1021962834 | F65: ='5'!J$33/'5'!I$33-1 -> 0.0859914241
A67: pagina6 | B67: ='6'!A2 -> Remuneración de Asalariados (precios corrientes) | C67: 2003 | D67: 2004 | E67: 2005 | F67: 2006
B68: ='6'!C$8 -> Agricultura, ganadería, silvicultura y pesca | C68: ='6'!G$8/'6'!F$8-1 -> 0.03363297361 | D68: ='6'!H$8/'6'!G$8-1 -> 0.111453239 | E68: ='6'!I$8/'6'!H$8-1 -> 0.07908243539 | F68: ='6'!J$8/'6'!I$8-1 -> 0.06497750215
B69: ='6'!#REF! ->  | C69: ='6'!#REF!/'6'!#REF!-1 ->  | D69: ='6'!#REF!/'6'!#REF!-1 ->  | E69: ='6'!#REF!/'6'!#REF!-1 ->  | F69: ='6'!#REF!/'6'!#REF!-1 -> 
B70: ='6'!#REF! ->  | C70: ='6'!#REF!/'6'!#REF!-1 ->  | D70: ='6'!#REF!/'6'!#REF!-1 ->  | E70: ='6'!#REF!/'6'!#REF!-1 ->  | F70: ='6'!#REF!/'6'!#REF!-1 -> 
B71: ='6'!C$22 -> Construcción | C71: ='6'!G$22/'6'!F$22-1 -> 0.1529519301 | D71: ='6'!H$22/'6'!G$22-1 -> 0.1226166392 | E71: ='6'!I$22/'6'!H$22-1 -> 0.1559451401 | F71: ='6'!J$22/'6'!I$22-1 -> 0.0433085012
B72: ='6'!C$28 -> Transporte y almacenamiento | C72: ='6'!G$28/'6'!F$28-1 -> 0.0310665889 | D72: ='6'!H$28/'6'!G$28-1 -> -0.08899427142 | E72: ='6'!I$28/'6'!H$28-1 -> 0.138817804 | F72: ='6'!J$28/'6'!I$28-1 -> 0.113214899
B73: ='6'!C$33 -> Actividades profesionales, científicas y técnicas; actividades administrativas y servicios auxiliares | C73: ='6'!G$33/'6'!F$33-1 -> 0.06318004988 | D73: ='6'!H$33/'6'!G$33-1 -> 0.09426476031 | E73: ='6'!I$33/'6'!H$33-1 -> 0.09992988366 | F73: ='6'!J$33/'6'!I$33-1 -> 0.1399077805
A75: pagina7 | B75: ='7'!$A$2 -> Otros impuestos netos sobre la producción (precios corrientes) | C75: 2003 | D75: 2004 | E75: 2005 | F75: 2006
B76: ='7'!C$8 -> Agricultura, ganadería, silvicultura y pesca | C76: ='7'!G$8/'7'!F$8-1 -> 0.2075083694 | D76: ='7'!H$8/'7'!G$8-1 -> -0.0873338637 | E76: ='7'!I$8/'7'!H$8-1 -> 0.1654125713 | F76: ='7'!J$8/'7'!I$8-1 -> -0.09677320611
B77: ='7'!#REF! ->  | C77: ='7'!#REF!/'7'!#REF!-1 ->  | D77: ='7'!#REF!/'7'!#REF!-1 ->  | E77: ='7'!#REF!/'7'!#REF!-1 ->  | F77: ='7'!#REF!/'7'!#REF!-1 -> 
B78: ='7'!#REF! ->  | C78: ='7'!#REF!/'7'!#REF!-1 ->  | D78: ='7'!#REF!/'7'!#REF!-1 ->  | E78: ='7'!#REF!/'7'!#REF!-1 ->  | F78: ='7'!#REF!/'7'!#REF!-1 -> 
B79: ='7'!C$22 -> Construcción | C79: ='7'!G$22/'7'!F$22-1 -> 0.057354798 | D79: ='7'!H$22/'7'!G$22-1 -> 0.1040689154 | E79: ='7'!I$22/'7'!H$22-1 -> 0.2555018625 | F79: ='7'!J$22/'7'!I$22-1 -> 0.02562090262
B80: ='7'!C$28 -> Transporte y almacenamiento | C80: ='7'!G$28/'7'!F$28-1 -> 0.05320994639 | D80: ='7'!H$28/'7'!G$28-1 -> -0.1584174413 | E80: ='7'!I$28/'7'!H$28-1 -> -0.4197949775 | F80: ='7'!J$28/'7'!I$28-1 -> 0.05406909128
B81: ='7'!C$33 -> Actividades profesionales, científicas y técnicas; actividades administrativas y servicios auxiliares | C81: ='7'!G$33/'7'!F$33-1 -> 0.1376149331 | D81: ='7'!H$33/'7'!G$33-1 -> 2.227853529 | E81: ='7'!I$33/'7'!H$33-1 -> -0.3498986892 | F81: ='7'!J$33/'7'!I$33-1 -> 0.02876189439
A83: pagina8 | B83: ='8'!$A$2 -> Excedente de Explotación Bruto / Renta Mixta Bruta (precios corrientes) | C83: 2003 | D83: 2004 | E83: 2005 | F83: 2006
B84: ='8'!C$8 -> Agricultura, ganadería, silvicultura y pesca | C84: ='8'!G$8/'8'!F$8-1 -> 0.057605874 | D84: ='8'!H$8/'8'!G$8-1 -> -0.2621661569 | E84: ='8'!I$8/'8'!H$8-1 -> -0.006723127711 | F84: ='8'!J$8/'8'!I$8-1 -> -0.06812188786
B85: ='8'!#REF! ->  | C85: ='8'!#REF!/'8'!#REF!-1 ->  | D85: ='8'!#REF!/'8'!#REF!-1 ->  | E85: ='8'!#REF!/'8'!#REF!-1 ->  | F85: ='8'!#REF!/'8'!#REF!-1 -> 
B86: ='8'!#REF! ->  | C86: ='8'!#REF!/'8'!#REF!-1 ->  | D86: ='8'!#REF!/'8'!#REF!-1 ->  | E86: ='8'!#REF!/'8'!#REF!-1 ->  | F86: ='8'!#REF!/'8'!#REF!-1 -> 
B87: ='8'!C$22 -> Construcción | C87: ='8'!G$22/'8'!F$22-1 -> 0.1269707502 | D87: ='8'!H$22/'8'!G$22-1 -> 0.1120432774 | E87: ='8'!I$22/'8'!H$22-1 -> 0.2214419662 | F87: ='8'!J$22/'8'!I$22-1 -> 0.07319041762
B88: ='8'!C$28 -> Transporte y almacenamiento | C88: ='8'!G$28/'8'!F$28-1 -> -0.0068448767 | D88: ='8'!H$28/'8'!G$28-1 -> -0.09307652771 | E88: ='8'!I$28/'8'!H$28-1 -> -0.07047477078 | F88: ='8'!J$28/'8'!I$28-1 -> 0.0679811477
B89: ='8'!C$33 -> Actividades profesionales, científicas y técnicas; actividades administrativas y servicios auxiliares | C89: ='8'!G$33/'8'!F$33-1 -> 0.06869660787 | D89: ='8'!H$33/'8'!G$33-1 -> 0.2482402733 | E89: ='8'!I$33/'8'!H$33-1 -> 0.1855912017 | F89: ='8'!J$33/'8'!I$33-1 -> 0.07863825723
A91: pagina9 | B91: ='9'!$A$2 -> Ocupados | C91: 2003 | D91: 2004 | E91: 2005 | F91: 2006
B92: ='9'!C$8 -> Agricultura, ganadería, silvicultura y pesca | C92: ='9'!G$8/'9'!F$8-1 -> 0.009483506525 | D92: ='9'!H$8/'9'!G$8-1 -> 0.07833143493 | E92: ='9'!I$8/'9'!H$8-1 -> 0.05578166148 | F92: ='9'!J$8/'9'!I$8-1 -> -0.005623582766
B93: ='9'!#REF! ->  | C93: ='9'!#REF!/'9'!#REF!-1 ->  | D93: ='9'!#REF!/'9'!#REF!-1 ->  | E93: ='9'!#REF!/'9'!#REF!-1 ->  | F93: ='9'!#REF!/'9'!#REF!-1 -> 
B94: ='9'!#REF! ->  | C94: ='9'!#REF!/'9'!#REF!-1 ->  | D94: ='9'!#REF!/'9'!#REF!-1 ->  | E94: ='9'!#REF!/'9'!#REF!-1 ->  | F94: ='9'!#REF!/'9'!#REF!-1 -> 
B95: ='9'!C$22 -> Construcción | C95: ='9'!G$22/'9'!F$22-1 -> 0.1066491571 | D95: ='9'!H$22/'9'!G$22-1 -> 0.09709176452 | E95: ='9'!I$22/'9'!H$22-1 -> 0.07398469371 | F95: ='9'!J$22/'9'!I$22-1 -> 0.09525244531
B96: ='9'!C$28 -> Transporte y almacenamiento | C96: ='9'!G$28/'9'!F$28-1 -> 0.02268819582 | D96: ='9'!H$28/'9'!G$28-1 -> -0.02902490899 | E96: ='9'!I$28/'9'!H$28-1 -> 0.07443941836 | F96: ='9'!J$28/'9'!I$28-1 -> 0.07238162118
B97: ='9'!C$33 -> Actividades profesionales, científicas y técnicas; actividades administrativas y servicios auxiliares | C97: ='9'!G$33/'9'!F$33-1 -> 0.03246839569 | D97: ='9'!H$33/'9'!G$33-1 -> 0.07315908547 | E97: ='9'!I$33/'9'!H$33-1 -> 0.03870703786 | F97: ='9'!J$33/'9'!I$33-1 -> 0.06858748585
A99: pagina10 | B99: ='10'!$A$2 -> Asalariados | C99: 2003 | D99: 2004 | E99: 2005 | F99: 2006
B100: ='10'!C$8 -> Agricultura, ganadería, silvicultura y pesca | C100: ='10'!G$8/'10'!F$8-1 -> -0.04105210714 | D100: ='10'!H$8/'10'!G$8-1 -> 0.08908796921 | E100: ='10'!I$8/'10'!H$8-1 -> 0.04673822426 | F100: ='10'!J$8/'10'!I$8-1 -> 0.006676573627
B101: ='10'!#REF! ->  | C101: ='10'!#REF!/'10'!#REF!-1 ->  | D101: ='10'!#REF!/'10'!#REF!-1 ->  | E101: ='10'!#REF!/'10'!#REF!-1 ->  | F101: ='10'!#REF!/'10'!#REF!-1 -> 
B102: ='10'!#REF! ->  | C102: ='10'!#REF!/'10'!#REF!-1 ->  | D102: ='10'!#REF!/'10'!#REF!-1 ->  | E102: ='10'!#REF!/'10'!#REF!-1 ->  | F102: ='10'!#REF!/'10'!#REF!-1 -> 
B103: ='10'!C$22 -> Construcción | C103: ='10'!G$22/'10'!F$22-1 -> 0.1023232519 | D103: ='10'!H$22/'10'!G$22-1 -> 0.08734561893 | E103: ='10'!I$22/'10'!H$22-1 -> 0.08183817606 | F103: ='10'!J$22/'10'!I$22-1 -> 0.09395833158
B104: ='10'!C$28 -> Transporte y almacenamiento | C104: ='10'!G$28/'10'!F$28-1 -> 0.01897481036 | D104: ='10'!H$28/'10'!G$28-1 -> -0.04264296326 | E104: ='10'!I$28/'10'!H$28-1 -> 0.09328633348 | F104: ='10'!J$28/'10'!I$28-1 -> 0.07337584064
B105: ='10'!C$33 -> Actividades profesionales, científicas y técnicas; actividades administrativas y servicios auxiliares | C105: ='10'!G$33/'10'!F$33-1 -> 0.02872112747 | D105: ='10'!H$33/'10'!G$33-1 -> 0.07750669932 | E105: ='10'!I$33/'10'!H$33-1 -> 0.03416250816 | F105: ='10'!J$33/'10'!I$33-1 -> 0.07256616213
A107: página11-14 | B107: VAB per cápita | D107: VAB | F107: VAB per cápita | H107: RA | J107: Productividad | K107: EBE
C108: Promedio 1.1.05/1.1.06 | D108: 2005p | E108: € per cápita de VAB | F108: Madrid =100 | G108: Empleo 2005(p) | H108: 2005(p) | I108: Gastos personal por ocupado | J108: VAB por trabajador | K108: 2005(p) | L108: EBE / VAB
B109: MADRID | C109: 3186379 | D109: ='11'!G8 -> 94875689.46 | E109: =D109*1000/C109 -> 29775.39378 | F109: =E109*100/$E$109 -> 100 | G109: ='14'!G8 -> 1967450.521 | H109: ='12'!G8 -> 54719958.92 | I109: =H109*1000/G109 -> 27812.62264 | J109: =D109*1000/G109 -> 48222.65588 | K109: ='13'!$G8 -> 40155730.54 | L109: =K109*100/D109 -> 42.3245731
B111: 01. CENTRO | C111: 149216 | D111: ='11'!G9 -> 6347073.91 | E111: =D111*1000/C111 -> 42536.14834 | F111: =E111*100/$E$109 -> 142.8567113 | G111: ='14'!G9 -> 143440.4598 | H111: ='12'!#REF! ->  | I111: =H111*1000/G111 ->  | J111: =D111*1000/G111 -> 44248.83969 | K111: ='13'!$E9 -> 2328600.348 | L111: =K111*100/D111 -> 36.6877774
B112: 02. ARGANZUELA | C112: 147815 | D112: ='11'!G10 -> 4209930.352 | E112: 28481.0767 | F112: 95.65306476 | G112: ='14'!G10 -> 85890.66969 | H112: ='12'!#REF! ->  | J112: 49014.99041 | K112: ='13'!$E10 -> 1313355.62 | L112: 31.1966116
B113: 03. RETIRO | C113: 126018 | D113: ='11'!G11 -> 4418040.487 | E113: 35058.80499 | F113: 117.7442194 | G113: ='14'!G11 -> 95915.9424 | H113: ='12'!#REF! ->  | J113: 46061.5866 | K113: ='13'!$E11 -> 1550928.947 | L113: 35.10445301
B114: 04. SALAMANCA | C114: 151014.5 | D114: ='11'!G12 -> 10577082.58 | E114: 70040.17876 | F114: 235.2283878 | G114: ='14'!G12 -> 190506.7039 | H114: ='12'!#REF! ->  | J114: 55520.78935 | K114: ='13'!$E12 -> 4099754.665 | L114: 38.76073232
B115: 05. CHAMARTIN | C115: 141673.5 | D115: ='11'!G13 -> 9472423.612 | E115: 66860.94162 | F115: 224.5509904 | G115: ='14'!G13 -> 171916.6957 | H115: ='12'!#REF! ->  | J115: 55098.91622 | K115: ='13'!$E13 -> 3384610.542 | L115: 35.73119912
B116: 06. TETUAN | C116: 151497 | D116: ='11'!G14 -> 7969932.419 | E116: 52607.85639 | F116: 176.6823196 | G116: ='14'!G14 -> 159043.3836 | H116: ='12'!#REF! ->  | J116: 50111.68801 | K116: ='13'!$E14 -> 2880049.296 | L116: 36.13643309
B117: 07. CHAMBERI | C117: 150720.5 | D117: ='11'!G15 -> 6624572.359 | E117: 43952.69627 | F117: 147.6141562 | G117: ='14'!G15 -> 142721.9406 | H117: ='12'!#REF! ->  | J117: 46415.93528 | K117: ='13'!$E15 -> 2603221.885 | L117: 39.29645182
B118: 08. FUENCARRAL-EL PARDO | C118: 207971.5 | D118: ='11'!G16 -> 6012487.576 | E118: 28910.15151 | F118: 97.09410303 | G118: ='14'!G16 -> 119587.3919 | H118: ='12'!#REF! ->  | J118: 50276.9354 | K118: ='13'!$E16 -> 2356704.476 | L118: 39.19682903
B119: 09. MONCLOA-ARAVACA | C119: 119068.5 | D119: ='11'!G17 -> 5559912.325 | E119: 46695.07321 | F119: 156.8243683 | G119: ='14'!G17 -> 110414.5721 | H119: ='12'!#REF! ->  | J119: 50354.87813 | K119: ='13'!$E17 -> 1622696.996 | L119: 29.185658
B120: 10. LATINA | C120: 258096 | D120: ='11'!G18 -> 1916224.297 | E120: 7424.463367 | F120: 24.93489564 | G120: ='14'!G18 -> 62710.55231 | H120: ='12'!#REF! ->  | J120: 30556.64839 | K120: ='13'!$E18 -> 508477.8027 | L120: 26.53540107
B121: 11. CARABANCHEL | C121: 242929 | D121: ='11'!G19 -> 2211839.17 | E121: 9104.879081 | F121: 30.57853457 | G121: ='14'!G19 -> 76776.55203 | H121: ='12'!#REF! ->  | J121: 28808.78487 | K121: ='13'!$E19 -> 559024.682 | L121: 25.27420119
B122: 12. USERA | C122: 134010.5 | D122: ='11'!G20 -> 1679539.458 | E122: 12532.8945 | F122: 42.09144837 | G122: ='14'!G20 -> 50034.24616 | H122: ='12'!#REF! ->  | J122: 33567.7978 | K122: ='13'!$E20 -> 354158.3649 | L122: 21.08663558
B123: 13. PUENTE DE VALLECAS | C123: 242567.5 | D123: ='11'!G21 -> 1999892.416 | E123: 8244.684123 | F123: 27.68958887 | G123: ='14'!G21 -> 69315.90619 | H123: ='12'!#REF! ->  | J123: 28851.85415 | K123: ='13'!$E21 -> 509456.6016 | L123: 25.47420039
B124: 14. MORATALAZ | C124: 106601 | D124: ='11'!G22 -> 706185.5608 | E124: 6624.567882 | F124: 22.24846439 | G124: ='14'!G22 -> 23998.74657 | H124: ='12'!#REF! ->  | J124: 29425.93517 | K124: ='13'!$E22 -> 160936.9959 | L124: 22.7896186
B125: 15. CIUDAD LINEAL | C125: 231196.5 | D125: ='11'!G23 -> 7017617.794 | E125: 30353.47764 | F125: 101.9414818 | G125: ='14'!G23 -> 113908.9325 | H125: ='12'!#REF! ->  | J125: 61607.26504 | K125: ='13'!$E23 -> 3111632.962 | L125: 44.34030255
B126: 16. HORTALEZA | C126: 156034.5 | D126: ='11'!G24 -> 3985087.416 | E126: 25539.78393 | F126: 85.77479821 | G126: ='14'!G24 -> 73450.05542 | H126: ='12'!#REF! ->  | J126: 54255.74417 | K126: ='13'!$E24 -> 1203101.846 | L126: 30.19009925
B127: 17. VILLAVERDE | C127: 145123.5 | D127: ='11'!G25 -> 2112631.271 | E127: 14557.47188 | F127: 48.89094663 | G127: ='14'!G25 -> 58705.63208 | H127: ='12'!#REF! ->  | J127: 35986.85843 | K127: ='13'!$E25 -> 590912.1955 | L127: 27.97043685
B128: 18. VILLA DE VALLECAS | C128: 66344 | D128: ='11'!G26 -> 1761418.904 | E128: 26549.78451 | F128: 89.16686277 | G128: ='14'!G26 -> 30749.15248 | H128: ='12'!#REF! ->  | J128: 57283.49438 | K128: ='13'!$E26 -> 840320.062 | L128: 47.70699691
B129: 19. VICALVARO | C129: 65222 | D129: ='11'!G27 -> 545435.0641 | E129: 8362.746683 | F129: 28.08609936 | G129: ='14'!G27 -> 16807.61028 | H129: ='12'!#REF! ->  | J129: 32451.67248 | K129: ='13'!$E27 -> 139904.2786 | L129: 25.65003385
B130: 20. SAN BLAS | C130: 150448.5 | D130: ='11'!G28 -> 5266382.231 | E130: 35004.55127 | F130: 117.5620095 | G130: ='14'!G28 -> 106329.7671 | H130: ='12'!#REF! ->  | J130: 49528.76675 | K130: ='13'!$E28 -> 1800014.524 | L130: 34.17933688
B131: 21. BARAJAS | C131: 42811.5 | D131: ='11'!G29 -> 4481980.261 | E131: 104691.0354 | F131: 351.6025217 | G131: ='14'!G29 -> 65225.60862 | H131: ='12'!#REF! ->  | J131: 68715.03932 | K131: ='13'!$E29 -> 1357068.556 | L131: 30.27832514
A133: pagina 15 | C133: 2005(P)
A134: Esquema | B134: Produccion | C134: =SUM('2'!$J$8:$J$40)/1000 -> 533424.2471
B135: CI | C135: =SUM('3'!$J$8:$J$33)/1000 -> 239341.0319
B136: VAB | C136: =SUM('4'!$J$8:$J$33)/1000 -> 215919.3387 | D136: Impuestos s/productos | F136: ='4'!J42/1000 -> 2175.105187 | G136: PIB | H136: =C136+F136 -> 218094.4439
D137: Otros impuestos | F137: =C136-F138-F139 -> 460.1458209
D138: RA | F138: =SUM('6'!$J$8:$J$33)/1000 -> 121220.0959
B139: VABcf | C139: =SUM(F138:F139) -> 215459.1929 | D139: ebe | F139: =SUM('8'!$J$8:$J$33)/1000 -> 94239.09701

Sheet Portada datos
B16: Indice
B18: Producción (precios corrientes)
B19: Consumos Intermedios (precios corrientes)
B20: Producto Interior Bruto a precios de mercado (precios corrientes)
B21: Producto Interior Bruto a precios de mercado. Indices de volumen encadenados
B22: Remuneración de Asalariados (precios corrientes)
B23: Remuneración de Asalariados por asalariado (precios corrientes)
B24: Sueldos y Salarios (precios corrientes)
B25: Cotizaciones Sociales (precios corrientes)
B26: Otros impuestos netos sobre la producción (precios corrientes)
B27: Excedente de Explotación Bruto / Renta Mixta Bruta (precios corrientes)
B28: Excedente de Explotación Bruto / Renta Mixta Bruta por ocupado (precios corrientes)
B29: Ocupados
B30: Asalariados
B31: Distritos : Valor Añadido Bruto a precios básicos
B32: Distritos : Remuneración de Asalariados (precios corrientes)
B33: Distritos: Excedente de Explotación Bruto y Otros Impuestos netos sobre la producción (precios corrientes)
B34: Distritos: Ocupados
B35: Notas metodológicas

Sheet 2
A1: Contabilidad Municipal de la Ciudad de Madrid. Serie 2000 - 2021(a) | Y1: Indice
A2: Producción (precios corrientes)
A3: Unidad: miles de euros
A5: CÓDIGOS | C5: RAMAS | D5: 2000 | E5: 2001 | F5: 2002 | G5: 2003 | H5: 2004 | I5: 2005 | J5: 2006 | K5: 2007 | L5: 2008 | M5: 2009 | N5: 2010 | O5: 2011 | P5: 2012 | Q5: 2013 | R5: 2014 | S5: 2015 | T5: 2016 | U5: 2017 | V5: 2018 | W5: 2019 | X5: 2020p | Y5: 2021a
A6: (A11) | B6: Divisiones
A8: A | B8: 2024-01-03 | C8: Agricultura, ganadería, silvicultura y pesca | D8: 107485.7111 | E8: 117509.314 | F8: 110338.7235 | G8: 108792.5009 | H8: 95024.40059 | I8: 100088.5088 | J8: 100344.084 | K8: 101129.8425 | L8: 95041.7039 | M8: 69595.88474 | N8: 64215.23946 | O8: 66703.00424 | P8: 59237.13903 | Q8: 55672.06191 | R8: 60916.89143 | S8: 56500.2608 | T8: 65728.26147 | U8: 71285.59922 | V8: 79984.55871 | W8: 68151.43476 | X8: 67782.94218 | Y8: 69299.88342
A9: B_E | B9: 1939-05-01 | C9: Industrias extractivas; industria manufacturera; suministro de energía eléctrica, gas, vapor y aire acondicionado; suministro de agua, actividades de saneamiento, gestión de residuos y descontaminación | D9: 22591221.05 | E9: 23241173.72 | F9: 23662933.56 | G9: 24345603.13 | H9: 24980821.93 | I9: 25502947.41 | J9: 27543649.53 | K9: 29217966.06 | L9: 30360893.17 | M9: 26573555.12 | N9: 26584248.74 | O9: 27058758.02 | P9: 26065429.39 | Q9: 25709603.42 | R9: 25848333.27 | S9: 26715734.16 | T9: 27280446.18 | U9: 27699060.64 | V9: 28526849.26 | W9: 29347800.48 | X9: 26773124.71 | Y9: 29388147.33
A10: C | B10: 1933-10-01 | C10: Industria Manufacturera | D10: 17232485.84 | E10: 17735099.3 | F10: 18231244.99 | G10: 18787790.17 | H10: 19142039.84 | I10: 18889866.55 | J10: 20185877.83 | K10: 21088621.89 | L10: 21293319.34 | M10: 18868304.54 | N10: 18160191.65 | O10: 18108417.94 | P10: 16913193.51 | Q10: 17014665.18 | R10: 17595997.42 | S10: 18675518.38 | T10: 18635841.04 | U10: 18867146.28 | V10: 18979835.33 | W10: 19412401.55 | X10: 17620594.38 | Y10: 18905012.8
B11: 2024-10-12 | C11: Industria de la alimentación, fabricación de bebidas e industria del tabaco | D11: 1855148.362 | E11: 1823560.947 | F11: 2082413.136 | G11: 2141894.191 | H11: 2222374.08 | I11: 2026075.688 | J11: 2242220.71 | K11: 2362289.793 | L11: 2513488.067 | M11: 2443242.463 | N11: 2409168.98 | O11: 2110113.971 | P11: 2026035.082 | Q11: 2154634.228 | R11: 2363978.643 | S11: 2102775.688 | T11: 2079618.058 | U11: 2137386.612 | V11: 2262189.596 | W11: 2459241.578 | X11: 2249409.2 | Y11: 2421967.493
B12: 13-15 | C12: Industria textil, confección de prendas de vestir e industria del cuero y del calzado | D12: 1055973.944 | E12: 1065206.576 | F12: 1084547.586 | G12: 1093531.08 | H12: 1059016.253 | I12: 995501.5064 | J12: 969668.8198 | K12: 954487.0788 | L12: 1024873.12 | M12: 907588.6319 | N12: 793763.0113 | O12: 716589.6478 | P12: 568943.9395 | Q12: 484104.1978 | R12: 473115.389 | S12: 477899.8884 | T12: 444734.628 | U12: 494789.1034 | V12: 485030.3825 | W12: 495310.6831 | X12: 441071.9184 | Y12: 460428.8706
B13: 16-18 | C13: Industria de la madera y del corcho, industria del papel y artes gráficas | D13: 2595387.734 | E13: 2665506.951 | F13: 2781365.103 | G13: 2691421.158 | H13: 2690121.915 | I13: 2671935.386 | J13: 2469844.052 | K13: 2530186.542 | L13: 2614632.374 | M13: 2443110.887 | N13: 2200116.786 | O13: 2235304.463 | P13: 2091179.142 | Q13: 1817899.279 | R13: 1655515.082 | S13: 1692286.466 | T13: 2008078.785 | U13: 1985025.021 | V13: 1993294.376 | W13: 1929005.95 | X13: 1649674.142 | Y13: 1717937.94
B14: 19-21 | C14: Coquerías y refino de petróleo; industria química; fabricación de productos farmacéuticos | D14: 2349152.469 | E14: 2351009.615 | F14: 2527047.73 | G14: 2810113.177 | H14: 2794647.177 | I14: 2555496.897 | J14: 2518346.111 | K14: 2635238.01 | L14: 3149309.961 | M14: 2834061.556 | N14: 3089647.028 | O14: 3334000.506 | P14: 3168700.958 | Q14: 3207604.719 | R14: 3298945.832 | S14: 3189689.002 | T14: 3431063.487 | U14: 3692926.438 | V14: 3802101.817 | W14: 3727412.243 | X14: 3145981.48 | Y14: 3551303.167
B15: 22-23 | C15: Fabricación de productos de caucho y plásticos y de otros productos minerales no metálicos | D15: 1075275.263 | E15: 1246005.709 | F15: 1231987.397 | G15: 1258461.98 | H15: 1201106.34 | I15: 1235268.999 | J15: 1435525.521 | K15: 1345286.968 | L15: 1195403.758 | M15: 890809.3832 | N15: 866207.3147 | O15: 687321.0735 | P15: 598542.4927 | Q15: 553581.9627 | R15: 524666.6166 | S15: 536568.6486 | T15: 462661.4752 | U15: 519652.0234 | V15: 519378.351 | W15: 510540.4335 | X15: 468828.3143 | Y15: 543103.4628
B16: 24-25 | C16: Metalurgia y fabricación de productos metálicos, excepto maquinaria y equipo | D16: 985800.3805 | E16: 959870.6592 | F16: 949036.347 | G16: 976713.71 | H16: 1026290.69 | I16: 1060385.124 | J16: 1139467.092 | K16: 1254626.784 | L16: 1226119.796 | M16: 999441.5791 | N16: 923569.9889 | O16: 885033.7607 | P16: 766691.9077 | Q16: 593243.5977 | R16: 631262.0871 | S16: 660602.7719 | T16: 775374.1449 | U16: 736888.9633 | V16: 759840.596 | W16: 832372.3649 | X16: 721145.4656 | Y16: 682352.3758
B17: 26-28 | C17: Fabricación de productos informáticos, electrónicos y ópticos; fabricación de material y equipo eléctrico; fabricación de maquinaria y equipo n.c.o.p. | D17: 2077794.658 | E17: 2270216.943 | F17: 2302604.516 | G17: 2406465.706 | H17: 2599313.949 | I17: 2628491.394 | J17: 2831250.353 | K17: 2927746.566 | L17: 2902295.955 | M17: 2226909.677 | N17: 2164755.204 | O17: 2062589.867 | P17: 2007029.594 | Q17: 1924014.087 | R17: 2001464.824 | S17: 1977845.634 | T17: 2002014.758 | U17: 2061217.217 | V17: 2071524.253 | W17: 2127222.705 | X17: 2065355.976 | Y17: 2236695.971
B18: 26-27 | C18: - Fabricación de productos informáticos, electrónicos y ópticos; fabricación de material y equipo eléctrico; | D18: 1182570.838 | E18: 1292338.404 | F18: 1259695.134 | G18: 1322499.827 | H18: 1480218.235 | I18: 1494113.997 | J18: 1562450.605 | K18: 1573275.191 | L18: 1568740.477 | M18: 1149786.94 | N18: 1154349.548 | O18: 1059908.5 | P18: 1056025.687 | Q18: 976558.2261 | R18: 994171.4854 | S18: 1101995.611 | T18: 1040923.781 | U18: 1109478.024 | V18: 1115494.98 | W18: 1290301.313 | X18: 1297727.522 | Y18: 1418190.049
B19: 1900-01-28 | C19: - Fabricación de maquinaria y equipo n.c.o.p. | D19: 895223.8192 | E19: 977878.5398 | F19: 1042909.383 | G19: 1083965.88 | H19: 1119095.714 | I19: 1134377.397 | J19: 1268799.748 | K19: 1354471.375 | L19: 1333555.477 | M19: 1077122.737 | N19: 1010405.657 | O19: 1002681.368 | P19: 951003.9061 | Q19: 947455.8607 | R19: 1007293.338 | S19: 875850.0237 | T19: 961090.9778 | U19: 951739.1928 | V19: 956029.2728 | W19: 836921.3919 | X19: 767628.4543 | Y19: 818505.9215
B20: 29-30 | C20: Fabricación de material de transporte | D20: 3806913.662 | E20: 3730386.919 | F20: 3678604.395 | G20: 3782415.622 | H20: 3851455.965 | I20: 4058670.542 | J20: 4850824.64 | K20: 5345845.941 | L20: 4996194.608 | M20: 4667177.395 | N20: 4309394.367 | O20: 4535259.917 | P20: 4364635.123 | Q20: 5020996.85 | R20: 5304299.857 | S20: 6498727.508 | T20: 5954135.122 | U20: 5621591.098 | V20: 5251055.088 | W20: 5390118.197 | X20: 5224924.79 | Y20: 5486259.545
B21: 31-33 | C21: Fabricación de muebles; otras industrias manufactureras y reparación e instalación de maquinaria y equipo | D21: 1431039.364 | E21: 1623334.984 | F21: 1593638.785 | G21: 1626773.545 | H21: 1697713.469 | I21: 1658041.015 | J21: 1728730.532 | K21: 1732914.208 | L21: 1671001.703 | M21: 1455962.973 | N21: 1403568.972 | O21: 1542204.731 | P21: 1321435.266 | Q21: 1258586.262 | R21: 1342749.085 | S21: 1539122.772 | T21: 1478160.585 | U21: 1617669.801 | V21: 1835420.875 | W21: 1941177.392 | X21: 1654203.092 | Y21: 1804963.974
A22: F | B22: 41-43 | C22: Construcción | D22: 14913331.08 | E22: 15898570.11 | F22: 18252195.4 | G22: 20368453.92 | H22: 22571009.81 | I22: 26881902.61 | J22: 29642476.12 | K22: 31395105.84 | L22: 27267575.29 | M22: 24459290.57 | N22: 16768870.71 | O22: 15306482.01 | P22: 11015982.27 | Q22: 9031073.377 | R22: 9539863.906 | S22: 9648403.571 | T22: 9046590.475 | U22: 9374833.385 | V22: 9971591.949 | W22: 11053373.39 | X22: 9768804.748 | Y22: 9752164.125
A23: G_T | B23: 45-98 | C23: Servicios | D23: 102112406.1 | E23: 110528819.1 | F23: 112853555.8 | G23: 119731343.2 | H23: 127884657.5 | I23: 140861652.3 | J23: 156880681.3 | K23: 170320788.4 | L23: 183227161.2 | M23: 180542843.3 | N23: 179727808.9 | O23: 181564228.1 | P23: 180130442 | Q23: 174091401.2 | R23: 179391797.2 | S23: 176579988.7 | T23: 182611371.6 | U23: 194273351.5 | V23: 202353986.6 | W23: 213721215.9 | X23: 188528306.6 | Y23: 207457381.2
A24: G_I | B24: 45-56 | C24: Comercio al por mayor y al por menor; reparación de vehículos de motor y motocicletas; transporte y almacenamiento; hostelería | D24: 36476232.01 | E24: 37487487.39 | F24: 34810908.19 | G24: 36978701.48 | H24: 37021045.92 | I24: 42046647.81 | J24: 47388010.2 | K24: 49524292.24 | L24: 52408364 | M24: 50955109.21 | N24: 53168124.03 | O24: 53630745.14 | P24: 52375429.03 | Q24: 49772718.84 | R24: 51233805.47 | S24: 52697648.69 | T24: 54051085.37 | U24: 57700564.61 | V24: 60189815.99 | W24: 62691400.31 | X24: 48608602.96 | Y24: 55951642.73
A25: G | B25: 45-47 | C25: Comercio al por mayor y al por menor; reparación de vehículos de motor y motocicletas | D25: 18635210.94 | E25: 18022114.22 | F25: 17437092.39 | G25: 18744398.32 | H25: 20253197.39 | I25: 21712565.23 | J25: 23732353.29 | K25: 24302379.63 | L25: 24479390.27 | M25: 23847210.34 | N25: 25346202.38 | O25: 25540055.73 | P25: 25105006.16 | Q25: 22777454.58 | R25: 23333161.42 | S25: 23626416.17 | T25: 24658196.37 | U25: 25519111.59 | V25: 27294896.93 | W25: 29199454.31 | X25: 26459528.14 | Y25: 30346910.51
B26: 46 | C26: - Comercio al por mayor e intermediarios del comercio, excepto de vehículos de motor y motocicletas | D26: 10438960.22 | E26: 9785159.618 | F26: 8711535.105 | G26: 9462287.161 | H26: 10376302.61 | I26: 11019590.58 | J26: 11389929.21 | K26: 11610764.21 | L26: 11494914.43 | M26: 11009581.66 | N26: 11811976.27 | O26: 11546933.72 | P26: 11454980.82 | Q26: 10295569.62 | R26: 10642316.47 | S26: 10588691.64 | T26: 11224292.44 | U26: 11870948.01 | V26: 12468221.11 | W26: 13660478.15 | X26: 13001056.34 | Y26: 14978116.69
B27: 45 y 47 | C27: - Comercio minorista; venta y reparación de vehículos de motor y motocicletas | D27: 8196250.716 | E27: 8236954.604 | F27: 8725557.284 | G27: 9282111.157 | H27: 9876894.777 | I27: 10692974.65 | J27: 12342424.08 | K27: 12691615.42 | L27: 12984475.84 | M27: 12837628.68 | N27: 13534226.11 | O27: 13993122.01 | P27: 13650025.34 | Q27: 12481884.96 | R27: 12690844.95 | S27: 13037724.53 | T27: 13433903.93 | U27: 13648163.58 | V27: 14826675.82 | W27: 15538976.16 | X27: 13458471.8 | Y27: 15368793.81
A28: H | B28: 49-53 | C28: Transporte y almacenamiento | D28: 12323375.94 | E28: 13322340.17 | F28: 10934153.24 | G28: 11300895.06 | H28: 9327269.263 | I28: 12451454.76 | J28: 14922834.06 | K28: 15701245.59 | L28: 18179829.14 | M28: 16976022.23 | N28: 17554658.6 | O28: 17744877.38 | P28: 16928994.33 | Q28: 17304480.65 | R28: 18019133.91 | S28: 18908478.53 | T28: 18379038.62 | U28: 20598555 | V28: 21041636.4 | W28: 20897831 | X28: 15433753.53 | Y28: 17261887.13
A29: I | B29: 55-56 | C29: Hostelería | D29: 5517645.121 | E29: 6143032.996 | F29: 6439662.562 | G29: 6933408.101 | H29: 7440579.272 | I29: 7882627.811 | J29: 8732822.844 | K29: 9520667.026 | L29: 9749144.579 | M29: 10131876.64 | N29: 10267263.05 | O29: 10345812.03 | P29: 10341428.54 | Q29: 9690783.608 | R29: 9881510.136 | S29: 10162753.99 | T29: 11013850.37 | U29: 11582898.02 | V29: 11853282.66 | W29: 12594115 | X29: 6715321.295 | Y29: 8342845.095
A30: J | B30: 58-63 | C30: Información y comunicaciones | D30: 16012643.44 | E30: 18272737.63 | F30: 18328120.34 | G30: 20000571.51 | H30: 23605077.59 | I30: 26117639.46 | J30: 27610626.32 | K30: 31322065.01 | L30: 31178664.42 | M30: 30557939.24 | N30: 30483746.83 | O30: 29883688.38 | P30: 29273167.53 | Q30: 29454471.4 | R30: 30404886.72 | S30: 26198120.06 | T30: 27650745.55 | U30: 31916073.46 | V30: 32850069.97 | W30: 34890895.06 | X30: 29564647.47 | Y30: 32767187.78
A31: K | B31: 64-66 | C31: Actividades financieras y de seguros | D31: 8477804.353 | E31: 10468000.9 | F31: 10595333.39 | G31: 11386808.4 | H31: 11176626.83 | I31: 11780618.6 | J31: 12753552.6 | K31: 14767973.98 | L31: 15264725.61 | M31: 15607598.93 | N31: 12560222.68 | O31: 11950136.33 | P31: 12489714.59 | Q31: 10973085.77 | R31: 12034358.49 | S31: 12287842.57 | T31: 13067366.92 | U31: 13344718.9 | V31: 13899069.14 | W31: 14012779.98 | X31: 14269247.89 | Y31: 14493968.84
A32: L | B32: 1900-03-08 | C32: Actividades inmobiliarias | D32: 7339641.529 | E32: 7829296.391 | F32: 8521245.342 | G32: 9617397.927 | H32: 10483438.51 | I32: 10910379.42 | J32: 12118902.5 | K32: 12734167.86 | L32: 13773689.26 | M32: 13944349.77 | N32: 13742877.16 | O32: 14628776.84 | P32: 14951358.31 | Q32: 14939015.09 | R32: 14819699.96 | S32: 14967164.04 | T32: 15159554.55 | U32: 15506362.73 | V32: 16327834.51 | W32: 17367808.31 | X32: 17058046.58 | Y32: 17504321.92
A33: M_N | B33: 69-82 | C33: Actividades profesionales, científicas y técnicas; actividades administrativas y servicios auxiliares | D33: 14513383.65 | E33: 15783735.2 | F33: 17843638.32 | G33: 17776052.91 | H33: 19980579.2 | I33: 22450222.16 | J33: 26898758.4 | K33: 29297733.09 | L33: 33399390.36 | M33: 31503317.55 | N33: 31782064.54 | O33: 33266937.65 | P33: 33342479.74 | Q33: 32040295.91 | R33: 33984350.56 | S33: 31908681.2 | T33: 33023186.35 | U33: 34529181.1 | V33: 36484271.26 | W33: 40025250.74 | X33: 35327331.68 | Y33: 39384309.09
A34: M | B34: 69-75 | C34: Actividades profesionales, científicas y técnicas | D34: 10251642.88 | E34: 11142131.07 | F34: 12791285.62 | G34: 12664818.64 | H34: 14431589.35 | I34: 16104491.2 | J34: 19713449.12 | K34: 21802121.13 | L34: 24896745.61 | M34: 23096252.66 | N34: 23442038.2 | O34: 24761741.02 | P34: 24988590.41 | Q34: 24118300.45 | R34: 24971225.74 | S34: 23712443.69 | T34: 25017837.75 | U34: 25887664.86 | V34: 27314162.61 | W34: 30217638.91 | X34: 26948316.62 | Y34: 30108155.69
A35: N | B35: 77-82 | C35: Actividades administrativas y servicios auxiliares | D35: 4261740.775 | E35: 4641604.128 | F35: 5052352.696 | G35: 5111234.273 | H35: 5548989.847 | I35: 6345730.967 | J35: 7185309.285 | K35: 7495611.963 | L35: 8502644.749 | M35: 8407064.889 | N35: 8340026.338 | O35: 8505196.631 | P35: 8353889.338 | Q35: 7921995.458 | R35: 9013124.819 | S35: 8196237.51 | T35: 8005348.604 | U35: 8641516.243 | V35: 9170108.651 | W35: 9807611.831 | X35: 8379015.062 | Y35: 9276153.399
A36: O_Q | B36: 84-88 | C36: Administración pública y defensa; seguridad social obligatoria; educación; actividades sanitarias y de servicios sociales | D36: 13554069.41 | E36: 14420719.51 | F36: 15969998.35 | G36: 16810411.63 | H36: 18069589.15 | I36: 19687230.74 | J36: 21154286.87 | K36: 23697849.84 | L36: 27073546.69 | M36: 27877081.65 | N36: 27799834.98 | O36: 27880662.9 | P36: 27780936.07 | Q36: 27505496.45 | R36: 27557100.65 | S36: 28765495.16 | T36: 29743889.77 | U36: 30951977.03 | V36: 31528185.3 | W36: 32810175.99 | X36: 33959115.27 | Y36: 36398605.16
A37: O | B37: 84 | C37: Administración pública y defensa; seguridad social obligatoria | D37: 5657381.209 | E37: 5879734.927 | F37: 6795604.653 | G37: 6873981.063 | H37: 7212118.755 | I37: 7701864.801 | J37: 8122789.22 | K37: 9061189.981 | L37: 10686070.68 | M37: 11389121.59 | N37: 11203900.88 | O37: 11173627.1 | P37: 11343522.6 | Q37: 11546268.71 | R37: 11161915.34 | S37: 11128044.16 | T37: 11434539.74 | U37: 11854207.31 | V37: 11681695.11 | W37: 12321448.85 | X37: 12827577.45 | Y37: 13305117.17
A38: P | B38: 85 | C38: Educación | D38: 3776284.757 | E38: 4013608.544 | F38: 4260324.52 | G38: 4540113.502 | H38: 4825001.815 | I38: 5144590.938 | J38: 5378444.934 | K38: 5938383.319 | L38: 6372596.515 | M38: 6549136.629 | N38: 6566845.554 | O38: 6508734.584 | P38: 6289795.467 | Q38: 6192869.369 | R38: 6457058.974 | S38: 7050770.366 | T38: 7316305.759 | U38: 7654123.997 | V38: 7770648.734 | W38: 7790174.647 | X38: 7813146.89 | Y38: 8715320.353
A39: Q | B39: 86-88 | C39: Actividades sanitarias y de servicios sociales | D39: 4120403.442 | E39: 4527376.037 | F39: 4914069.181 | G39: 5396317.063 | H39: 6032468.58 | I39: 6840775.003 | J39: 7653052.721 | K39: 8698276.543 | L39: 10014879.5 | M39: 9938823.432 | N39: 10029088.54 | O39: 10198301.21 | P39: 10147618 | Q39: 9766358.369 | R39: 9938126.341 | S39: 10586680.63 | T39: 10993044.27 | U39: 11443645.72 | V39: 12075841.46 | W39: 12698552.49 | X39: 13318390.93 | Y39: 14378167.64
A40: R_T | B40: 90-98 | C40: Actividades artísticas, recreativas y de entretenimiento; reparación de artículos de uso doméstico y otros servicios | D40: 5738631.667 | E40: 6266842.071 | F40: 6784311.916 | G40: 7161399.34 | H40: 7548300.309 | I40: 7868914.107 | J40: 8956544.401 | K40: 8976706.354 | L40: 10128780.82 | M40: 10097446.94 | N40: 10190938.65 | O40: 10323280.91 | P40: 9917356.716 | Q40: 9406317.707 | R40: 9357595.387 | S40: 9755036.959 | T40: 9915543.093 | U40: 10324473.64 | V40: 11074740.4 | W40: 11922905.5 | X40: 9741314.704 | Y40: 10957345.7
A41: R | B41: 90-93 | C41: Actividades artísticas, recreativas y de entretenimiento | D41: 2320359.829 | E41: 2552279.084 | F41: 2674965.073 | G41: 2815056.198 | H41: 2995484.313 | I41: 3170004.478 | J41: 3707288.52 | K41: 3977187.371 | L41: 4651827.142 | M41: 4420636.861 | N41: 4374619.783 | O41: 4418118.575 | P41: 4090018.894 | Q41: 3976944.895 | R41: 3798745.909 | S41: 4072816.451 | T41: 4139896.269 | U41: 4463742.802 | V41: 5034659.567 | W41: 5565206.998 | X41: 3951132.788 | Y41: 4886647.873
A42: S | B42: 94-96 | C42: Reparación de artículos de uso doméstico y otros servicios | D42: 2501576.2 | E42: 2670534.474 | F42: 2889874.069 | G42: 3017639.194 | H42: 3138342.437 | I42: 3174696.766 | J42: 3507414.106 | K42: 3287648.652 | L42: 3654716.738 | M42: 3648809.822 | N42: 3698644.399 | O42: 3698721.949 | P42: 3863639.611 | Q42: 3430087.822 | R42: 3496161.425 | S42: 3563941.284 | T42: 3572822.985 | U42: 3638194.774 | V42: 3772216.881 | W42: 4103696.542 | X42: 3577459.906 | Y42: 3756896.392
A43: T | B43: 97-98 | C43: Actividades de los hogares como empleadores de personal doméstico; Actividades de los hogares como productores de bienes y servicios para uso propio | D43: 916695.6382 | E43: 1044028.513 | F43: 1219472.774 | G43: 1328703.948 | H43: 1414473.56 | I43: 1524212.863 | J43: 1741841.775 | K43: 1711870.331 | L43: 1822236.941 | M43: 2028000.257 | N43: 2117674.467 | O43: 2206440.388 | P43: 1963698.211 | Q43: 1999284.989 | R43: 2062688.053 | S43: 2118279.223 | T43: 2202823.838 | U43: 2222536.063 | V43: 2267863.954 | W43: 2254001.959 | X43: 2212722.01 | Y43: 2313801.434
A44: Total Producción | D44: 139724443.9 | E44: 149786072.2 | F44: 154879023.5 | G44: 164554192.8 | H44: 175531513.7 | I44: 193346590.8 | J44: 214167151 | K44: 231034990.1 | L44: 240950671.3 | M44: 231645284.8 | N44: 223145143.6 | O44: 223996171.2 | P44: 217271090.8 | Q44: 208887750 | R44: 214840911.3 | S44: 213000626.7 | T44: 219004136.5 | U44: 231418531.1 | V44: 240932412.3 | W44: 254190541.2 | X44: 225138018.9 | Y44: 246666992.6

Sheet 3
A1: Contabilidad Municipal de la Ciudad de Madrid. Serie 2000 - 2021(a) | Y1: Indice
A2: Consumos Intermedios (precios corrientes)
A3: Unidad: miles de euros
A5: CÓDIGOS | C5: RAMAS | D5: 2000 | E5: 2001 | F5: 2002 | G5: 2003 | H5: 2004 | I5: 2005 | J5: 2006 | K5: 2007 | L5: 2008 | M5: 2009 | N5: 2010 | O5: 2011 | P5: 2012 | Q5: 2013 | R5: 2014 | S5: 2015 | T5: 2016 | U5: 2017 | V5: 2018 | W5: 2019 | X5: 2020p | Y5: 2021a
A6: (A11) | B6: Divisiones
A8: A | B8: 2024-01-03 | C8: Agricultura, ganadería, silvicultura y pesca | D8: 34246.30068 | E8: 35825.90319 | F8: 37054.01766 | G8: 32276.43753 | H8: 27991.84224 | I8: 31084.97367 | J8: 31262.31238 | K8: 31908.42486 | L8: 29955.08547 | M8: 22016.82357 | N8: 20327.81641 | O8: 22397.22217 | P8: 19895.5061 | Q8: 18519.04166 | R8: 20439.06463 | S8: 18909.17854 | T8: 22244.176 | U8: 24312.39109 | V8: 27203.69057 | W8: 23020.35095 | X8: 22000.29259 | Y8: 22701.57913
A9: B_E | B9: 1939-05-01 | C9: Industrias extractivas; industria manufacturera; suministro de energía eléctrica, gas, vapor y aire acondicionado; suministro de agua, actividades de saneamiento, gestión de residuos y descontaminación | D9: 15890929.65 | E9: 16274306.83 | F9: 16813274.54 | G9: 17289207.43 | H9: 17613343.84 | I9: 17747040.74 | J9: 19266089.83 | K9: 20145632.59 | L9: 20881778.77 | M9: 17705708 | N9: 17669566.98 | O9: 17609568.21 | P9: 16689589.8 | Q9: 16540038.09 | R9: 16860731.2 | S9: 17394388.63 | T9: 17760166.32 | U9: 17855980.91 | V9: 18233307.44 | W9: 18584709.87 | X9: 16763561.82 | Y9: 18446636.21
A10: C | B10: 1933-10-01 | C10: Industria Manufacturera | D10: 12421441.91 | E10: 12761263.36 | F10: 13341203.5 | G10: 13795613.53 | H10: 13937791.24 | I10: 13591178.76 | J10: 14705095.33 | K10: 15324856.58 | L10: 15417703.94 | M10: 13440953.72 | N10: 12875387.24 | O10: 12589692.32 | P10: 11556176.72 | Q10: 11657284.32 | R10: 12197030.99 | S10: 13080778.17 | T10: 13013743.34 | U10: 13209982.19 | V10: 13246042.15 | W10: 13495211.64 | X10: 12136921.76 | Y10: 13066460.9
B11: 2024-10-12 | C11: Industria de la alimentación, fabricación de bebidas e industria del tabaco | D11: 1411677.717 | E11: 1379568.395 | F11: 1626985.171 | G11: 1657197.783 | H11: 1707319.359 | I11: 1526962.109 | J11: 1705185.785 | K11: 1773375.646 | L11: 1917564.666 | M11: 1822120.327 | N11: 1798968.321 | O11: 1511853.497 | P11: 1474209.51 | Q11: 1598172.917 | R11: 1790175.93 | S11: 1535237.961 | T11: 1531245.638 | U11: 1578238.459 | V11: 1684810.077 | W11: 1821335.323 | X11: 1643181.175 | Y11: 1772431.338
B12: 13-15 | C12: Industria textil, confección de prendas de vestir e industria del cuero y del calzado | D12: 755207.5548 | E12: 771085.702 | F12: 795714.3971 | G12: 795489.7499 | H12: 760236.3577 | I12: 697984.6787 | J12: 667495.5584 | K12: 658046.9506 | L12: 712379.0818 | M12: 623227.0447 | N12: 537758.7583 | O12: 477564.9399 | P12: 260385.8906 | Q12: 203922.1655 | R12: 205493.0213 | S12: 201718.9625 | T12: 173487.1698 | U12: 213519.0164 | V12: 208637.7797 | W12: 212053.0473 | X12: 192240.9256 | Y12: 204328.2796
B13: 16-18 | C13: Industria de la madera y del corcho, industria del papel y artes gráficas | D13: 1744315.107 | E13: 1745799.295 | F13: 1825574.607 | G13: 1788426.629 | H13: 1761947.088 | I13: 1763884.439 | J13: 1536751.995 | K13: 1627384.137 | L13: 1735158.225 | M13: 1679715.44 | N13: 1536495.374 | O13: 1515885.886 | P13: 1458818.375 | Q13: 1231078.099 | R13: 1118297.911 | S13: 1178196.878 | T13: 1492228.009 | U13: 1444238.686 | V13: 1432838.851 | W13: 1349300.858 | X13: 1140201.074 | Y13: 1192232.143
B14: 19-21 | C14: Coquerías y refino de petróleo; industria química; fabricación de productos farmacéuticos | D14: 1646062.323 | E14: 1613046.814 | F14: 1734340.51 | G14: 1982993.791 | H14: 1922350.904 | I14: 1681417.128 | J14: 1678853.834 | K14: 1720494.91 | L14: 2122180.547 | M14: 1924288.747 | N14: 2104909.416 | O14: 2132164.487 | P14: 2010719.091 | Q14: 2056743.099 | R14: 2126781.148 | S14: 1917268.125 | T14: 2118364.896 | U14: 2301166.556 | V14: 2408443.79 | W14: 2326601.449 | X14: 1947259.3 | Y14: 2221380.035
B15: 22-23 | C15: Fabricación de productos de caucho y plásticos y de otros productos minerales no metálicos | D15: 774300.0315 | E15: 881870.2985 | F15: 878772.8405 | G15: 898332.3992 | H15: 861300.1263 | I15: 887994.3656 | J15: 1073315.308 | K15: 1018698.692 | L15: 890487.5086 | M15: 664080.7425 | N15: 655178.5897 | O15: 513444.7535 | P15: 441131.7162 | Q15: 402234.4421 | R15: 367044.1215 | S15: 370713.1162 | T15: 297026.7579 | U15: 349094.2677 | V15: 361767.8731 | W15: 334222.4454 | X15: 287698.3266 | Y15: 352979.1062
B16: 24-25 | C16: Metalurgia y fabricación de productos metálicos, excepto maquinaria y equipo | D16: 715111.9906 | E16: 688095.8968 | F16: 682391.753 | G16: 700164.5159 | H16: 720013.7728 | I16: 752474.1261 | J16: 812061.3383 | K16: 893906.9824 | L16: 858157.7516 | M16: 682466.4321 | N16: 612100.1903 | O16: 600518.2699 | P16: 522146.2002 | Q16: 371262.8254 | R16: 402582.9315 | S16: 432041.8402 | T16: 517596.038 | U16: 496933.2054 | V16: 510663.9847 | W16: 565105.4142 | X16: 479781.6174 | Y16: 429086.0371
B17: 26-28 | C17: Fabricación de productos informáticos, electrónicos y ópticos; fabricación de material y equipo eléctrico; fabricación de maquinaria y equipo n.c.o.p. | D17: 1345955.812 | E17: 1466835.802 | F17: 1583714.887 | G17: 1674625.212 | H17: 1842347.777 | I17: 1858007.746 | J17: 2007988.859 | K17: 2081062.174 | L17: 2009278.782 | M17: 1453361.389 | N17: 1451476.767 | O17: 1423295.227 | P17: 1390061.675 | Q17: 1316460.463 | R17: 1400423.988 | S17: 1393373.778 | T17: 1428320.067 | U17: 1497733.764 | V17: 1501584.338 | W17: 1563804.965 | X17: 1470473.911 | Y17: 1632746.996
B18: 26-27 | C18: - Fabricación de productos informáticos, electrónicos y ópticos; fabricación de material y equipo eléctrico; | D18: 786347.0539 | E18: 855729.903 | F18: 906083.9829 | G18: 968570.0345 | H18: 1108990.353 | I18: 1106198.287 | J18: 1162971.126 | K18: 1156751.615 | L18: 1126803.309 | M18: 813035.4515 | N18: 830940.7149 | O18: 763587.0378 | P18: 772580.2073 | Q18: 698394.8763 | R18: 730118.6325 | S18: 817148.8025 | T18: 779937.9277 | U18: 857063.9553 | V18: 851906.6595 | W18: 997138.6733 | X18: 966644.7363 | Y18: 1088611.481
B19: 1900-01-28 | C19: - Fabricación de maquinaria y equipo n.c.o.p. | D19: 559608.7578 | E19: 611105.8986 | F19: 677630.9041 | G19: 706055.1773 | H19: 733357.424 | I19: 751809.459 | J19: 845017.7328 | K19: 924310.5592 | L19: 882475.4724 | M19: 640325.9379 | N19: 620536.0523 | O19: 659708.1895 | P19: 617481.4673 | Q19: 618065.5862 | R19: 670305.356 | S19: 576224.9752 | T19: 648382.1396 | U19: 640669.8084 | V19: 649677.678 | W19: 566666.2917 | X19: 503829.1746 | Y19: 544135.5152
B20: 29-30 | C20: Fabricación de material de transporte | D20: 3057121.435 | E20: 3103803.964 | F20: 3112658.715 | G20: 3186741.759 | H20: 3202642.532 | I20: 3315748.104 | J20: 4054265.277 | K20: 4397530.105 | L20: 4092590.179 | M20: 3744153.843 | N20: 3367338.869 | O20: 3514220.23 | P20: 3244245.101 | Q20: 3785120.048 | R20: 4038529.012 | S20: 5153737.156 | T20: 4586348.928 | U20: 4359670.76 | V20: 3999334.645 | W20: 4148038.415 | X20: 4029257.589 | Y20: 4207551.314
B21: 31-33 | C21: Fabricación de muebles; otras industrias manufactureras y reparación e instalación de maquinaria y equipo | D21: 971689.9368 | E21: 1111157.191 | F21: 1101050.618 | G21: 1111641.687 | H21: 1159633.328 | I21: 1106706.067 | J21: 1169177.378 | K21: 1154356.978 | L21: 1079907.204 | M21: 847539.7546 | N21: 811160.9575 | O21: 900745.0332 | P21: 754459.1669 | Q21: 692290.2611 | R21: 747702.9219 | S21: 898490.3486 | T21: 869125.8334 | U21: 969387.4731 | V21: 1137960.816 | W21: 1174749.726 | X21: 946827.8376 | Y21: 1053725.646
A22: F | B22: 41-43 | C22: Construcción | D22: 9356514.395 | E22: 9799029.116 | F22: 11293536.13 | G22: 12434325.15 | H22: 13701586.93 | I22: 16373077.43 | J22: 18547690.92 | K22: 20232575.47 | L22: 16753527.76 | M22: 14763862.44 | N22: 9486159.167 | O22: 8662298.608 | P22: 5762823.461 | Q22: 4609603.49 | R22: 5130775.559 | S22: 4983855.53 | T22: 4274641.571 | U22: 4341854.192 | V22: 4744332.213 | W22: 5336521.583 | X22: 4661111.365 | Y22: 4526635.709
A23: G_T | B23: 45-98 | C23: Servicios | D23: 50604808.77 | E23: 52963215.38 | F23: 50703584.08 | G23: 53319334.43 | H23: 56908088.84 | I23: 64319698.23 | J23: 72969491.73 | K23: 78948026.41 | L23: 84740601.83 | M23: 81225756.81 | N23: 81198879.72 | O23: 81314358.8 | P23: 80572035.06 | Q23: 76512071.75 | R23: 80453444.6 | S23: 73875166.27 | T23: 74897712.99 | U23: 80924645.41 | V23: 83830970.35 | W23: 90042732.76 | X23: 76788996.09 | Y23: 86910113.94
A24: G_I | B24: 45-56 | C24: Comercio al por mayor y al por menor; reparación de vehículos de motor y motocicletas; transporte y almacenamiento; hostelería | D24: 20649707.92 | E24: 20246755.07 | F24: 16725875.54 | G24: 17741933.84 | H24: 17160678.49 | I24: 20713468.73 | J24: 24214989.96 | K24: 25108717.52 | L24: 26981451.95 | M24: 25522899.46 | N24: 26407870.64 | O24: 26728228.68 | P24: 25896593.1 | Q24: 23894961.2 | R24: 25057075.03 | S24: 25007543.36 | T24: 24858105.87 | U24: 27044040.24 | V24: 27935457.58 | W24: 29725988.41 | X24: 22965298.7 | Y24: 25778947.4
A25: G | B25: 45-47 | C25: Comercio al por mayor y al por menor; reparación de vehículos de motor y motocicletas | D25: 10045602 | E25: 8761412.107 | F25: 7772363.982 | G25: 8265581.882 | H25: 9045095.913 | I25: 9825069.318 | J25: 11008456.56 | K25: 11114440.64 | L25: 10722639.54 | M25: 10223825.11 | N25: 11323072.14 | O25: 11542687.28 | P25: 11360393.78 | Q25: 9773827.41 | R25: 10058894.77 | S25: 9691327.258 | T25: 9792955.609 | U25: 10188595.68 | V25: 10898536.92 | W25: 11722573.71 | X25: 10579353.98 | Y25: 11481602.32
B26: 46 | C26: - Comercio al por mayor e intermediarios del comercio, excepto de vehículos de motor y motocicletas | D26: 6036638.631 | E26: 5170455.433 | F26: 4053571.061 | G26: 4461522.96 | H26: 5113304.389 | I26: 5539485.943 | J26: 5783865.317 | K26: 5843757.827 | L26: 5667803.328 | M26: 5431950.669 | N26: 6153189.959 | O26: 6179235.615 | P26: 5837309.541 | Q26: 4779306.321 | R26: 5072141.769 | S26: 4773444.088 | T26: 4973904.303 | U26: 5106205.431 | V26: 5402511.648 | W26: 5913786.369 | X26: 5475819.986 | Y26: 6042049.496
B27: 45 y 47 | C27: - Comercio minorista; venta y reparación de vehículos de motor y motocicletas | D27: 4008963.369 | E27: 3590956.674 | F27: 3718792.921 | G27: 3804058.923 | H27: 3931791.524 | I27: 4285583.375 | J27: 5224591.244 | K27: 5270682.815 | L27: 5054836.208 | M27: 4791874.446 | N27: 5169882.18 | O27: 5363451.662 | P27: 5523084.24 | Q27: 4994521.088 | R27: 4986752.999 | S27: 4917883.17 | T27: 4819051.306 | U27: 5082390.247 | V27: 5496025.268 | W27: 5808787.338 | X27: 5103533.994 | Y27: 5439552.825
A28: H | B28: 49-53 | C28: Transporte y almacenamiento | D28: 8108508.078 | E28: 8739278.827 | F28: 6048819.765 | G28: 6360879.181 | H28: 4789221.961 | I28: 7380969.313 | J28: 9341839.304 | K28: 9677685.606 | L28: 11877235.83 | M28: 10719799.52 | N28: 10480746.85 | O28: 10401697.92 | P28: 9855188.098 | Q28: 9822954.709 | R28: 10536591.49 | S28: 10807105.73 | T28: 10069191.95 | U28: 11736710.55 | V28: 11813401.15 | W28: 12457612.74 | X28: 9355650.663 | Y28: 10549765.35
A29: I | B29: 55-56 | C29: Hostelería | D29: 2495597.841 | E29: 2746064.135 | F29: 2904691.794 | G29: 3115472.779 | H29: 3326360.616 | I29: 3507430.101 | J29: 3864694.093 | K29: 4316591.277 | L29: 4381576.587 | M29: 4579274.826 | N29: 4604051.652 | O29: 4783843.482 | P29: 4681011.225 | Q29: 4298179.081 | R29: 4461588.772 | S29: 4509110.374 | T29: 4995958.306 | U29: 5118734.013 | V29: 5223519.511 | W29: 5545801.971 | X29: 3030294.061 | Y29: 3747579.728
A30: J | B30: 58-63 | C30: Información y comunicaciones | D30: 10322221.73 | E30: 11450949.87 | F30: 10707930.64 | G30: 11703247.32 | H30: 14485891.33 | I30: 16098245.02 | J30: 16923403.86 | K30: 19574457.24 | L30: 18964233.05 | M30: 18106153.79 | N30: 18295817.14 | O30: 17619480.15 | P30: 16914283.43 | Q30: 17060284.59 | R30: 17874676.62 | S30: 13639410.38 | T30: 14652985.8 | U30: 18080866.19 | V30: 18467552.36 | W30: 19748370.69 | X30: 16016537.9 | Y30: 18052470.3
A31: K | B31: 64-66 | C31: Actividades financieras y de seguros | D31: 2775786.196 | E31: 3686870.291 | F31: 3407384.631 | G31: 3833011.702 | H31: 3395081.498 | I31: 3703020.963 | J31: 3748629.907 | K31: 4067314.575 | L31: 3824588.094 | M31: 3646403.023 | N31: 3519476.396 | O31: 3501869.124 | P31: 3624419.967 | Q31: 3649311.845 | R31: 4042390.759 | S31: 4129670.048 | T31: 4009577.702 | U31: 4060419.06 | V31: 4172784.842 | W31: 4370754.223 | X31: 4357853.512 | Y31: 4571505.997
A32: L | B32: 1900-03-08 | C32: Actividades inmobiliarias | D32: 2074041.079 | E32: 2062834.267 | F32: 2428634.358 | G32: 2673483.888 | H32: 2823057.707 | I32: 2747071.776 | J32: 2753298.754 | K32: 2772597.164 | L32: 3114477.612 | M32: 3810462.973 | N32: 2538272.454 | O32: 2366585.695 | P32: 2486188.727 | Q32: 2165856.798 | R32: 2142066.562 | S32: 2146799.119 | T32: 2082701.672 | U32: 2133555.989 | V32: 2256255.439 | W32: 2422435.525 | X32: 2265290.326 | Y32: 2472079.907
A33: M_N | B33: 69-82 | C33: Actividades profesionales, científicas y técnicas; actividades administrativas y servicios auxiliares | D33: 8081775.556 | E33: 8401300.355 | F33: 9508361.098 | G33: 8904745.423 | H33: 9998962.396 | I33: 11175260.13 | J33: 14244548.56 | K33: 15246218.94 | L33: 17456604.22 | M33: 15980162.13 | N33: 16420767.74 | O33: 16917557.2 | P33: 17113437.09 | Q33: 16162181.15 | R33: 17600380.03 | S33: 14609608.61 | T33: 14415582.81 | U33: 14101165.04 | V33: 14706670.87 | W33: 16691943.9 | X33: 14240892.91 | Y33: 16231896.49
A34: M | B34: 69-75 | C34: Actividades profesionales, científicas y técnicas | D34: 5974119.889 | E34: 6230847.383 | F34: 7131271.503 | G34: 6652734.595 | H34: 7555704.115 | I34: 8676989.668 | J34: 11176142 | K34: 12264956.45 | L34: 14163525 | M34: 12455743.03 | N34: 12945368.9 | O34: 13428083.48 | P34: 13511111.59 | Q34: 12741817.95 | R34: 13546049.44 | S34: 11495893.47 | T34: 11574329.58 | U34: 10999652.7 | V34: 11491999.75 | W34: 13107889.28 | X34: 11385737.47 | Y34: 12931013.14
A35: N | B35: 77-82 | C35: Actividades administrativas y servicios auxiliares | D35: 2107655.668 | E35: 2170452.971 | F35: 2377089.596 | G35: 2252010.828 | H35: 2443258.281 | I35: 2498270.46 | J35: 3068406.56 | K35: 2981262.489 | L35: 3293079.214 | M35: 3524419.099 | N35: 3475398.84 | O35: 3489473.713 | P35: 3602325.504 | Q35: 3420363.207 | R35: 4054330.599 | S35: 3113715.143 | T35: 2841253.23 | U35: 3101512.34 | V35: 3214671.12 | W35: 3584054.619 | X35: 2855155.437 | Y35: 3300883.352
A36: O_Q | B36: 84-88 | C36: Administración pública y defensa; seguridad social obligatoria; educación; actividades sanitarias y de servicios sociales | D36: 4470766.104 | E36: 4741861.841 | F36: 5410973.254 | G36: 5759505.145 | H36: 6194984.498 | I36: 6869253.725 | J36: 7586154.295 | K36: 8576280.934 | L36: 10093502.61 | M36: 10137456.73 | N36: 10173019.58 | O36: 10304421.81 | P36: 10926500.9 | Q36: 10326141.58 | R36: 10518501.89 | S36: 11088322.61 | T36: 11638302.61 | U36: 12130353.93 | V36: 12441848.53 | W36: 12795805.44 | X36: 13642678.31 | Y36: 15429114.26
A37: O | B37: 84 | C37: Administración pública y defensa; seguridad social obligatoria | D37: 1156993.137 | E37: 1175711.818 | F37: 1499320.634 | G37: 1527987.041 | H37: 1604850.421 | I37: 1781562.871 | J37: 1995782.379 | K37: 2235702.222 | L37: 2918437.193 | M37: 3027971.689 | N37: 3034849.647 | O37: 3094186.162 | P37: 3639049.866 | Q37: 3383086.567 | R37: 3346552.077 | S37: 3397473.343 | T37: 3464580.429 | U37: 3533573.479 | V37: 3499493.889 | W37: 3693671.307 | X37: 3941354.945 | Y37: 4122610.525
A38: P | B38: 85 | C38: Educación | D38: 1395737.158 | E38: 1461508.64 | F38: 1557098.993 | G38: 1640385.874 | H38: 1701488.704 | I38: 1762023.198 | J38: 1893444.242 | K38: 2177265.547 | L38: 2387463.454 | M38: 2389323.867 | N38: 2400750.023 | O38: 2365847.138 | P38: 2292055.597 | Q38: 2217717.144 | R38: 2379450.041 | S38: 2604034.843 | T38: 2722029.897 | U38: 2917872.505 | V38: 2910190.089 | W38: 2747627.743 | X38: 2788078.688 | Y38: 3557234.615
A39: Q | B39: 86-88 | C39: Actividades sanitarias y de servicios sociales | D39: 1918035.809 | E39: 2104641.383 | F39: 2354553.627 | G39: 2591132.229 | H39: 2888645.372 | I39: 3325667.655 | J39: 3696927.674 | K39: 4163313.165 | L39: 4787601.965 | M39: 4720161.174 | N39: 4737419.911 | O39: 4844388.507 | P39: 4995395.438 | Q39: 4725337.871 | R39: 4792499.773 | S39: 5086814.422 | T39: 5451692.284 | U39: 5678907.95 | V39: 6032164.548 | W39: 6354506.386 | X39: 6913244.672 | Y39: 7749269.118
A40: R_T | B40: 90-98 | C40: Actividades artísticas, recreativas y de entretenimiento; reparación de artículos de uso doméstico y otros servicios | D40: 2230510.189 | E40: 2372643.694 | F40: 2514424.557 | G40: 2703407.111 | H40: 2849432.913 | I40: 3013377.889 | J40: 3498466.398 | K40: 3602440.034 | L40: 4305744.292 | M40: 4022218.703 | N40: 3843655.773 | O40: 3876216.146 | P40: 3610611.846 | Q40: 3253334.579 | R40: 3218353.704 | S40: 3253812.147 | T40: 3240456.53 | U40: 3374244.957 | V40: 3850400.738 | W40: 4287434.576 | X40: 3300444.426 | Y40: 4374099.582
A41: R | B41: 90-93 | C41: Actividades artísticas, recreativas y de entretenimiento | D41: 1167300.315 | E41: 1269688.839 | F41: 1343461.469 | G41: 1473753.295 | H41: 1607261.903 | I41: 1786989.491 | J41: 2166157.479 | K41: 2332231.406 | L41: 2912942.994 | M41: 2690595.155 | N41: 2513069.816 | O41: 2556203.289 | P41: 2340981.599 | Q41: 2176122.696 | R41: 2116957.471 | S41: 2172871.103 | T41: 2184364.214 | U41: 2324134.404 | V41: 2799855.958 | W41: 3121437.057 | X41: 2285445.181 | Y41: 2989702.385
A42: S | B42: 94-96 | C42: Reparación de artículos de uso doméstico y otros servicios | D42: 1063209.874 | E42: 1102954.855 | F42: 1170963.087 | G42: 1229653.816 | H42: 1242171.01 | I42: 1226388.398 | J42: 1332308.919 | K42: 1270208.628 | L42: 1392801.298 | M42: 1331623.548 | N42: 1330585.957 | O42: 1320012.857 | P42: 1269630.247 | Q42: 1077211.883 | R42: 1101396.233 | S42: 1080941.044 | T42: 1056092.317 | U42: 1050110.553 | V42: 1050544.78 | W42: 1165997.519 | X42: 1014999.245 | Y42: 1384397.197
A43: T | B43: 97-98 | C43: Actividades de los hogares como empleadores de personal doméstico; Actividades de los hogares como productores de bienes y servicios para uso propio | D43: 0 | E43: 0 | F43: 0 | G43: 0 | H43: 0 | I43: 0 | J43: 0 | K43: 0 | L43: 0 | M43: 0 | N43: 0 | O43: 0 | P43: 0 | Q43: 0 | R43: 0 | S43: 0 | T43: 0 | U43: 0 | V43: 0 | W43: 0 | X43: 0 | Y43: 0
A44: Total Consumos Intermedios | D44: 75886499.12 | E44: 79072377.23 | F44: 78847448.76 | G44: 83075143.45 | H44: 88251011.45 | I44: 98470901.37 | J44: 110814534.8 | K44: 119358142.9 | L44: 122405863.4 | M44: 113717344.1 | N44: 108374933.7 | O44: 107608622.8 | P44: 103044343.8 | Q44: 97680232.37 | R44: 102465390.4 | S44: 96272319.61 | T44: 96954765.05 | U44: 103146792.9 | V44: 106835813.7 | W44: 113986984.6 | X44: 98235669.57 | Y44: 109906087.4

Sheet 4
A1: Contabilidad Municipal de la Ciudad de Madrid. Serie 2000 - 2021(a) | Y1: Indice
A2: Producto Interior Bruto a precios de mercado (precios corrientes)
A3: Unidad: miles de euros
A5: CÓDIGOS | C5: RAMAS | D5: 2000 | E5: 2001 | F5: 2002 | G5: 2003 | H5: 2004 | I5: 2005 | J5: 2006 | K5: 2007 | L5: 2008 | M5: 2009 | N5: 2010 | O5: 2011 | P5: 2012 | Q5: 2013 | R5: 2014 | S5: 2015 | T5: 2016 | U5: 2017 | V5: 2018 | W5: 2019 | X5: 2020p | Y5: 2021a
A6: (A11) | B6: Divisiones
A8: A | B8: 2024-01-03 | C8: Agricultura, ganadería, silvicultura y pesca | D8: 73239.41043 | E8: 81683.41085 | F8: 73284.70582 | G8: 76516.06339 | H8: 67032.55834 | I8: 69003.53511 | J8: 69081.77157 | K8: 69221.41766 | L8: 65086.61843 | M8: 47579.06117 | N8: 43887.42304 | O8: 44305.78208 | P8: 39341.63293 | Q8: 37153.02024 | R8: 40477.8268 | S8: 37591.08226 | T8: 43484.08547 | U8: 46973.20813 | V8: 52780.86814 | W8: 45131.08381 | X8: 45782.64958 | Y8: 46598.30429
A9: B_E | B9: 1939-05-01 | C9: Industrias extractivas; industria manufacturera; suministro de energía eléctrica, gas, vapor y aire acondicionado; suministro de agua, actividades de saneamiento, gestión de residuos y descontaminación | D9: 6700291.4 | E9: 6966866.885 | F9: 6849659.015 | G9: 7056395.698 | H9: 7367478.093 | I9: 7755906.673 | J9: 8277559.699 | K9: 9072333.473 | L9: 9479114.408 | M9: 8867847.122 | N9: 8914681.764 | O9: 9449189.806 | P9: 9375839.593 | Q9: 9169565.329 | R9: 8987602.071 | S9: 9321345.538 | T9: 9520279.854 | U9: 9843079.724 | V9: 10293541.82 | W9: 10763090.61 | X9: 10009562.88 | Y9: 10941511.12
A10: C | B10: 1933-10-01 | C10: Industria Manufacturera | D10: 4811043.93 | E10: 4973835.948 | F10: 4890041.497 | G10: 4992176.643 | H10: 5204248.594 | I10: 5298687.788 | J10: 5480782.5 | K10: 5763765.315 | L10: 5875615.396 | M10: 5427350.825 | N10: 5284804.408 | O10: 5518725.612 | P10: 5357016.78 | Q10: 5357380.864 | R10: 5398966.43 | S10: 5594740.213 | T10: 5622097.706 | U10: 5657164.089 | V10: 5733793.18 | W10: 5917189.903 | X10: 5483672.623 | Y10: 5838551.904
B11: 2024-10-12 | C11: Industria de la alimentación, fabricación de bebidas e industria del tabaco | D11: 443470.6453 | E11: 443992.5527 | F11: 455427.9651 | G11: 484696.4082 | H11: 515054.7212 | I11: 499113.5798 | J11: 537034.9258 | K11: 588914.1465 | L11: 595923.4004 | M11: 621122.1358 | N11: 610200.6587 | O11: 598260.4731 | P11: 551825.5722 | Q11: 556461.3109 | R11: 573802.7131 | S11: 567537.7269 | T11: 548372.4198 | U11: 559148.1532 | V11: 577379.5189 | W11: 637906.2542 | X11: 606228.0255 | Y11: 649536.1545
B12: 13-15 | C12: Industria textil, confección de prendas de vestir e industria del cuero y del calzado | D12: 300766.3891 | E12: 294120.8739 | F12: 288833.1887 | G12: 298041.3304 | H12: 298779.8957 | I12: 297516.8276 | J12: 302173.2613 | K12: 296440.1282 | L12: 312494.0386 | M12: 284361.5872 | N12: 256004.253 | O12: 239024.7078 | P12: 308558.0489 | Q12: 280182.0323 | R12: 267622.3677 | S12: 276180.9259 | T12: 271247.4582 | U12: 281270.087 | V12: 276392.6027 | W12: 283257.6359 | X12: 248830.9928 | Y12: 256100.591
B13: 16-18 | C13: Industria de la madera y del corcho, industria del papel y artes gráficas | D13: 851072.6272 | E13: 919707.6566 | F13: 955790.4964 | G13: 902994.5291 | H13: 928174.8269 | I13: 908050.9464 | J13: 933092.0573 | K13: 902802.4053 | L13: 879474.1488 | M13: 763395.4473 | N13: 663621.4111 | O13: 719418.5765 | P13: 632360.7677 | Q13: 586821.1802 | R13: 537217.171 | S13: 514089.5873 | T13: 515850.7758 | U13: 540786.3344 | V13: 560455.525 | W13: 579705.0921 | X13: 509473.0678 | Y13: 525705.7976
B14: 19-21 | C14: Coquerías y refino de petróleo; industria química; fabricación de productos farmacéuticos | D14: 703090.1459 | E14: 737962.8014 | F14: 792707.2196 | G14: 827119.3861 | H14: 872296.2733 | I14: 874079.7687 | J14: 839492.2767 | K14: 914743.1001 | L14: 1027129.414 | M14: 909772.8093 | N14: 984737.612 | O14: 1201836.019 | P14: 1157981.867 | Q14: 1150861.62 | R14: 1172164.684 | S14: 1272420.878 | T14: 1312698.591 | U14: 1391759.881 | V14: 1393658.026 | W14: 1400810.794 | X14: 1198722.18 | Y14: 1329923.132
B15: 22-23 | C15: Fabricación de productos de caucho y plásticos y de otros productos minerales no metálicos | D15: 300975.2314 | E15: 364135.4105 | F15: 353214.5566 | G15: 360129.5807 | H15: 339806.2141 | I15: 347274.6336 | J15: 362210.2129 | K15: 326588.2752 | L15: 304916.2493 | M15: 226728.6407 | N15: 211028.725 | O15: 173876.32 | P15: 157410.7765 | Q15: 151347.5206 | R15: 157622.4951 | S15: 165855.5324 | T15: 165634.7173 | U15: 170557.7557 | V15: 157610.4779 | W15: 176317.9881 | X15: 181129.9876 | Y15: 190124.3566
B16: 24-25 | C16: Metalurgia y fabricación de productos metálicos, excepto maquinaria y equipo | D16: 270688.39 | E16: 271774.7624 | F16: 266644.594 | G16: 276549.1942 | H16: 306276.9172 | I16: 307910.9983 | J16: 327405.7541 | K16: 360719.802 | L16: 367962.0444 | M16: 316975.1469 | N16: 311469.7986 | O16: 284515.4907 | P16: 244545.7076 | Q16: 221980.7724 | R16: 228679.1556 | S16: 228560.9317 | T16: 257778.107 | U16: 239955.758 | V16: 249176.6113 | W16: 267266.9507 | X16: 241363.8482 | Y16: 253266.3387
B17: 26-28 | C17: Fabricación de productos informáticos, electrónicos y ópticos; fabricación de material y equipo eléctrico; fabricación de maquinaria y equipo n.c.o.p. | D17: 731838.8459 | E17: 803381.1417 | F17: 718889.6294 | G17: 731840.4946 | H17: 756966.1723 | I17: 770483.6482 | J17: 823261.4946 | K17: 846684.3918 | L17: 893017.1728 | M17: 773548.2875 | N17: 713278.4369 | O17: 639294.6399 | P17: 616967.9189 | Q17: 607553.6243 | R17: 601040.8353 | S17: 584471.8566 | T17: 573694.6911 | U17: 563483.4533 | V17: 569939.9151 | W17: 563417.7401 | X17: 594882.0651 | Y17: 603948.9747
B18: 26-27 | C18: - Fabricación de productos informáticos, electrónicos y ópticos; fabricación de material y equipo eléctrico; | D18: 396223.7845 | E18: 436608.5005 | F18: 353611.1507 | G18: 353929.7921 | H18: 371227.8827 | I18: 387915.7097 | J18: 399479.479 | K18: 416523.5763 | L18: 441937.1681 | M18: 336751.4881 | N18: 323408.8326 | O18: 296321.4618 | P18: 283445.4801 | Q18: 278163.3497 | R18: 264052.8529 | S18: 284846.8081 | T18: 260985.8529 | U18: 252414.0689 | V18: 263588.3203 | W18: 293162.6399 | X18: 331082.7854 | Y18: 329578.5684
B19: 1900-01-28 | C19: - Fabricación de maquinaria y equipo n.c.o.p. | D19: 335615.0614 | E19: 366772.6412 | F19: 365278.4787 | G19: 377910.7025 | H19: 385738.2895 | I19: 382567.9385 | J19: 423782.0156 | K19: 430160.8155 | L19: 451080.0047 | M19: 436796.7994 | N19: 389869.6043 | O19: 342973.1781 | P19: 333522.4388 | Q19: 329390.2745 | R19: 336987.9824 | S19: 299625.0485 | T19: 312708.8382 | U19: 311069.3844 | V19: 306351.5948 | W19: 270255.1002 | X19: 263799.2797 | Y19: 274370.4063
B20: 29-30 | C20: Fabricación de material de transporte | D20: 749792.2279 | E20: 626582.9555 | F20: 565945.6806 | G20: 595673.8622 | H20: 648813.4328 | I20: 742922.4378 | J20: 796559.3629 | K20: 948315.8357 | L20: 903604.4293 | M20: 923023.5513 | N20: 942055.4982 | O20: 1021039.687 | P20: 1120390.022 | Q20: 1235876.802 | R20: 1265770.844 | S20: 1344990.352 | T20: 1367786.195 | U20: 1261920.337 | V20: 1251720.443 | W20: 1242079.782 | X20: 1195667.201 | Y20: 1278708.231
B21: 31-33 | C21: Fabricación de muebles; otras industrias manufactureras y reparación e instalación de maquinaria y equipo | D21: 459349.4276 | E21: 512177.7932 | F21: 492588.1668 | G21: 515131.8577 | H21: 538080.1409 | I21: 551334.9479 | J21: 559553.1543 | K21: 578557.2301 | L21: 591094.4989 | M21: 608423.2187 | N21: 592408.0147 | O21: 641459.6974 | P21: 566976.0994 | Q21: 566296.0008 | R21: 595046.1634 | S21: 640632.4231 | T21: 609034.7513 | U21: 648282.3284 | V21: 697460.0597 | W21: 766427.6656 | X21: 707375.2548 | Y21: 751238.328
A22: F | B22: 41-43 | C22: Construcción | D22: 5556816.683 | E22: 6099540.992 | F22: 6958659.276 | G22: 7934128.776 | H22: 8869422.883 | I22: 10508825.19 | J22: 11094785.2 | K22: 11162530.37 | L22: 10514047.53 | M22: 9695428.127 | N22: 7282711.546 | O22: 6644183.399 | P22: 5253158.805 | Q22: 4421469.887 | R22: 4409088.347 | S22: 4664548.041 | T22: 4771948.905 | U22: 5032979.193 | V22: 5227259.736 | W22: 5716851.81 | X22: 5107693.383 | Y22: 5225528.416
A23: G_T | B23: 45-98 | C23: Servicios | D23: 51507597.28 | E23: 57565603.72 | F23: 62149971.77 | G23: 66412008.76 | H23: 70976568.68 | I23: 76541954.06 | J23: 83911189.57 | K23: 91372761.96 | L23: 98486559.33 | M23: 99317086.47 | N23: 98528929.16 | O23: 100249869.4 | P23: 99558406.94 | Q23: 97579329.42 | R23: 98938352.64 | S23: 102704822.4 | T23: 107713658.6 | U23: 113348706.1 | V23: 118523016.2 | W23: 123678483.1 | X23: 111739310.5 | Y23: 120547267.3
A24: G_I | B24: 45-56 | C24: Comercio al por mayor y al por menor; reparación de vehículos de motor y motocicletas; transporte y almacenamiento; hostelería | D24: 15826524.09 | E24: 17240732.32 | F24: 18085032.65 | G24: 19236767.64 | H24: 19860367.43 | I24: 21333179.08 | J24: 23173020.24 | K24: 24415574.72 | L24: 25426912.05 | M24: 25432209.75 | N24: 26760253.39 | O24: 26902516.46 | P24: 26478835.93 | Q24: 25877757.64 | R24: 26176730.44 | S24: 27690105.34 | T24: 29192979.5 | U24: 30656524.37 | V24: 32254358.41 | W24: 32965411.9 | X24: 25643304.26 | Y24: 30172695.33
A25: G | B25: 45-47 | C25: Comercio al por mayor y al por menor; reparación de vehículos de motor y motocicletas | D25: 8589608.94 | E25: 9260702.115 | F25: 9664728.407 | G25: 10478816.44 | H25: 11208101.47 | I25: 11887495.92 | J25: 12723896.73 | K25: 13187938.99 | L25: 13756750.74 | M25: 13623385.22 | N25: 14023130.24 | O25: 13997368.45 | P25: 13744612.38 | Q25: 13003627.17 | R25: 13274266.66 | S25: 13935088.91 | T25: 14865240.76 | U25: 15330515.91 | V25: 16396360.01 | W25: 17476880.61 | X25: 15880174.16 | Y25: 18865308.18
B26: 46 | C26: - Comercio al por mayor e intermediarios del comercio, excepto de vehículos de motor y motocicletas | D26: 4402321.593 | E26: 4614704.184 | F26: 4657964.045 | G26: 5000764.202 | H26: 5262998.219 | I26: 5480104.641 | J26: 5606063.898 | K26: 5767006.384 | L26: 5827111.104 | M26: 5577630.991 | N26: 5658786.315 | O26: 5367698.104 | P26: 5617671.279 | Q26: 5516263.301 | R26: 5570174.702 | S26: 5815247.553 | T26: 6250388.135 | U26: 6764742.576 | V26: 7065709.457 | W26: 7746691.782 | X26: 7525236.353 | Y26: 8936067.199
B27: 45 y 47 | C27: - Comercio minorista; venta y reparación de vehículos de motor y motocicletas | D27: 4187287.347 | E27: 4645997.93 | F27: 5006764.363 | G27: 5478052.235 | H27: 5945103.253 | I27: 6407391.275 | J27: 7117832.832 | K27: 7420932.604 | L27: 7929639.633 | M27: 8045754.23 | N27: 8364343.927 | O27: 8629670.344 | P27: 8126941.102 | Q27: 7487363.869 | R27: 7704091.955 | S27: 8119841.359 | T27: 8614852.628 | U27: 8565773.338 | V27: 9330650.556 | W27: 9730188.826 | X27: 8354937.806 | Y27: 9929240.986
A28: H | B28: 49-53 | C28: Transporte y almacenamiento | D28: 4214867.867 | E28: 4583061.347 | F28: 4885333.476 | G28: 4940015.88 | H28: 4538047.301 | I28: 5070485.448 | J28: 5580994.758 | K28: 6023559.981 | L28: 6302593.316 | M28: 6256222.709 | N28: 7073911.753 | O28: 7343179.461 | P28: 7073806.231 | Q28: 7481525.94 | R28: 7482542.418 | S28: 8101372.804 | T28: 8309846.669 | U28: 8861844.457 | V28: 9228235.256 | W28: 8440218.263 | X28: 6078102.867 | Y28: 6712121.777
A29: I | B29: 55-56 | C29: Hostelería | D29: 3022047.28 | E29: 3396968.861 | F29: 3534970.768 | G29: 3817935.322 | H29: 4114218.656 | I29: 4375197.711 | J29: 4868128.751 | K29: 5204075.75 | L29: 5367567.992 | M29: 5552601.818 | N29: 5663211.397 | O29: 5561968.552 | P29: 5660417.315 | Q29: 5392604.527 | R29: 5419921.364 | S29: 5653643.62 | T29: 6017892.069 | U29: 6464164.003 | V29: 6629763.146 | W29: 7048313.028 | X29: 3685027.234 | Y29: 4595265.367
A30: J | B30: 58-63 | C30: Información y comunicaciones | D30: 5690421.708 | E30: 6821787.769 | F30: 7620189.699 | G30: 8297324.188 | H30: 9119186.26 | I30: 10019394.44 | J30: 10687222.46 | K30: 11747607.77 | L30: 12214431.37 | M30: 12451785.45 | N30: 12187929.7 | O30: 12264208.22 | P30: 12358884.11 | Q30: 12394186.81 | R30: 12530210.1 | S30: 12558709.68 | T30: 12997759.75 | U30: 13835207.27 | V30: 14382517.61 | W30: 15142524.36 | X30: 13548109.56 | Y30: 14714717.47
A31: K | B31: 64-66 | C31: Actividades financieras y de seguros | D31: 5702018.157 | E31: 6781130.613 | F31: 7187948.755 | G31: 7553796.697 | H31: 7781545.332 | I31: 8077597.642 | J31: 9004922.696 | K31: 10700659.4 | L31: 11440137.52 | M31: 11961195.9 | N31: 9040746.282 | O31: 8448267.21 | P31: 8865294.626 | Q31: 7323773.928 | R31: 7991967.727 | S31: 8158172.523 | T31: 9057789.219 | U31: 9284299.845 | V31: 9726284.297 | W31: 9642025.761 | X31: 9911394.374 | Y31: 9922462.844
A32: L | B32: 1900-03-08 | C32: Actividades inmobiliarias | D32: 5265600.451 | E32: 5766462.124 | F32: 6092610.985 | G32: 6943914.039 | H32: 7660380.799 | I32: 8163307.641 | J32: 9365603.743 | K32: 9961570.695 | L32: 10659211.65 | M32: 10133886.79 | N32: 11204604.71 | O32: 12262191.14 | P32: 12465169.58 | Q32: 12773158.29 | R32: 12677633.4 | S32: 12820364.92 | T32: 13076852.88 | U32: 13372806.74 | V32: 14071579.07 | W32: 14945372.79 | X32: 14792756.25 | Y32: 15032242.01
A33: M_N | B33: 69-82 | C33: Actividades profesionales, científicas y técnicas; actividades administrativas y servicios auxiliares | D33: 6431608.094 | E33: 7382434.848 | F33: 8335277.22 | G33: 8871307.49 | H33: 9981616.806 | I33: 11274962.04 | J33: 12654209.84 | K33: 14051514.15 | L33: 15942786.14 | M33: 15523155.42 | N33: 15361296.8 | O33: 16349380.46 | P33: 16229042.65 | Q33: 15878114.76 | R33: 16383970.53 | S33: 17299072.59 | T33: 18607603.55 | U33: 20428016.06 | V33: 21777600.39 | W33: 23333306.84 | X33: 21086438.78 | Y33: 23152412.6
A34: M | B34: 69-75 | C34: Actividades profesionales, científicas y técnicas | D34: 4277522.987 | E34: 4911283.692 | F34: 5660014.12 | G34: 6012084.045 | H34: 6875885.24 | I34: 7427501.529 | J34: 8537307.119 | K34: 9537164.676 | L34: 10733220.61 | M34: 10640509.63 | N34: 10496669.3 | O34: 11333657.54 | P34: 11477478.82 | Q34: 11376482.51 | R34: 11425176.31 | S34: 12216550.22 | T34: 13443508.17 | U34: 14888012.16 | V34: 15822162.86 | W34: 17109749.63 | X34: 15562579.15 | Y34: 17177142.55
A35: N | B35: 77-82 | C35: Actividades administrativas y servicios auxiliares | D35: 2154085.107 | E35: 2471151.157 | F35: 2675263.1 | G35: 2859223.445 | H35: 3105731.566 | I35: 3847460.507 | J35: 4116902.725 | K35: 4514349.474 | L35: 5209565.536 | M35: 4882645.79 | N35: 4864627.498 | O35: 5015722.918 | P35: 4751563.833 | Q35: 4501632.252 | R35: 4958794.22 | S35: 5082522.367 | T35: 5164095.374 | U35: 5540003.903 | V35: 5955437.531 | W35: 6223557.212 | X35: 5523859.625 | Y35: 5975270.047
A36: O_Q | B36: 84-88 | C36: Administración pública y defensa; seguridad social obligatoria; educación; actividades sanitarias y de servicios sociales | D36: 9083303.304 | E36: 9678857.667 | F36: 10559025.1 | G36: 11050906.48 | H36: 11874604.65 | I36: 12817977.02 | J36: 13568132.58 | K36: 15121568.91 | L36: 16980044.08 | M36: 17739624.92 | N36: 17626815.4 | O36: 17576241.09 | P36: 16854435.17 | Q36: 17179354.87 | R36: 17038598.76 | S36: 17677172.55 | T36: 18105587.16 | U36: 18821623.09 | V36: 19086336.77 | W36: 20014370.55 | X36: 20316436.96 | Y36: 20969490.9
A37: O | B37: 84 | C37: Administración pública y defensa; seguridad social obligatoria | D37: 4500388.072 | E37: 4704023.109 | F37: 5296284.019 | G37: 5345994.022 | H37: 5607268.334 | I37: 5920301.929 | J37: 6127006.842 | K37: 6825487.758 | L37: 7767633.484 | M37: 8361149.9 | N37: 8169051.236 | O37: 8079440.94 | P37: 7704472.737 | Q37: 8163182.142 | R37: 7815363.263 | S37: 7730570.818 | T37: 7969959.311 | U37: 8320633.834 | V37: 8182201.22 | W37: 8627777.545 | X37: 8886222.507 | Y37: 9182506.647
A38: P | B38: 85 | C38: Educación | D38: 2380547.6 | E38: 2552099.904 | F38: 2703225.527 | G38: 2899727.628 | H38: 3123513.111 | I38: 3382567.74 | J38: 3485000.691 | K38: 3761117.772 | L38: 3985133.061 | M38: 4159812.763 | N38: 4166095.532 | O38: 4142887.447 | P38: 3997739.87 | Q38: 3975152.225 | R38: 4077608.933 | S38: 4446735.523 | T38: 4594275.862 | U38: 4736251.492 | V38: 4860458.644 | W38: 5042546.905 | X38: 5025068.201 | Y38: 5158085.737
A39: Q | B39: 86-88 | C39: Actividades sanitarias y de servicios sociales | D39: 2202367.633 | E39: 2422734.655 | F39: 2559515.553 | G39: 2805184.833 | H39: 3143823.208 | I39: 3515107.348 | J39: 3956125.047 | K39: 4534963.378 | L39: 5227277.531 | M39: 5218662.258 | N39: 5291668.632 | O39: 5353912.707 | P39: 5152222.561 | Q39: 5041020.499 | R39: 5145626.568 | S39: 5499866.212 | T39: 5541351.983 | U39: 5764737.765 | V39: 6043676.907 | W39: 6344046.104 | X39: 6405146.256 | Y39: 6628898.519
A40: R_T | B40: 90-98 | C40: Actividades artísticas, recreativas y de entretenimiento; reparación de artículos de uso doméstico y otros servicios | D40: 3508121.478 | E40: 3894198.377 | F40: 4269887.359 | G40: 4457992.229 | H40: 4698867.396 | I40: 4855536.218 | J40: 5458078.003 | K40: 5374266.319 | L40: 5823036.528 | M40: 6075228.237 | N40: 6347282.876 | O40: 6447064.766 | P40: 6306744.87 | Q40: 6152983.127 | R40: 6139241.683 | S40: 6501224.812 | T40: 6675086.562 | U40: 6950228.682 | V40: 7224339.664 | W40: 7635470.923 | X40: 6440870.278 | Y40: 6583246.118
A41: R | B41: 90-93 | C41: Actividades artísticas, recreativas y de entretenimiento | D41: 1153059.514 | E41: 1282590.245 | F41: 1331503.603 | G41: 1341302.902 | H41: 1388222.41 | I41: 1383014.987 | J41: 1541131.041 | K41: 1644955.965 | L41: 1738884.148 | M41: 1730041.706 | N41: 1861549.967 | O41: 1861915.286 | P41: 1749037.295 | Q41: 1800822.199 | R41: 1681788.437 | S41: 1899945.348 | T41: 1955532.056 | U41: 2139608.398 | V41: 2234803.61 | W41: 2443769.941 | X41: 1665687.607 | Y41: 1896945.488
A42: S | B42: 94-96 | C42: Reparación de artículos de uso doméstico y otros servicios | D42: 1438366.326 | E42: 1567579.619 | F42: 1718910.982 | G42: 1787985.378 | H42: 1896171.426 | I42: 1948308.368 | J42: 2175105.187 | K42: 2017440.024 | L42: 2261915.439 | M42: 2317186.274 | N42: 2368058.441 | O42: 2378709.092 | P42: 2594009.364 | Q42: 2352875.939 | R42: 2394765.193 | S42: 2483000.241 | T42: 2516730.668 | U42: 2588084.221 | V42: 2721672.101 | W42: 2937699.022 | X42: 2562460.661 | Y42: 2372499.195
A43: T | B43: 97-98 | C43: Actividades de los hogares como empleadores de personal doméstico; Actividades de los hogares como productores de bienes y servicios para uso propio | D43: 916695.6382 | E43: 1044028.513 | F43: 1219472.774 | G43: 1328703.948 | H43: 1414473.56 | I43: 1524212.863 | J43: 1741841.775 | K43: 1711870.331 | L43: 1822236.941 | M43: 2028000.257 | N43: 2117674.467 | O43: 2206440.388 | P43: 1963698.211 | Q43: 1999284.989 | R43: 2062688.053 | S43: 2118279.223 | T43: 2202823.838 | U43: 2222536.063 | V43: 2267863.954 | W43: 2254001.959 | X43: 2212722.01 | Y43: 2313801.434
A44: Valor Añadido Bruto | D44: 63837944.77 | E44: 70713695.01 | F44: 76031574.76 | G44: 81479049.3 | H44: 87280502.21 | I44: 94875689.46 | J44: 103352616.2 | K44: 111676847.2 | L44: 118544807.9 | M44: 117927940.8 | N44: 114770209.9 | O44: 116387548.3 | P44: 114226747 | Q44: 111207517.7 | R44: 112375520.9 | S44: 116728307.1 | T44: 122049371.5 | U44: 128271738.2 | V44: 134096598.6 | W44: 140203556.6 | X44: 126902349.4 | Y44: 136760905.1
A45: Impuestos netos sobre los productos | D45: 7346961.529 | E45: 7962100.593 | F45: 8660198.508 | G45: 9684810.026 | H45: 10536707.24 | I45: 11790924.23 | J45: 12605313.09 | K45: 12698340.57 | L45: 10832137.35 | M45: 8614251.61 | N45: 10568543.85 | O45: 10230406.07 | P45: 10272756.42 | Q45: 10842186.47 | R45: 11412922.4 | S45: 12237968.64 | T45: 12796911.07 | U45: 13645066.17 | V45: 14307811.62 | W45: 14677486.16 | X45: 12687464.15 | Y45: 14901095.15
A46: Producto Interior Bruto (precios de mercado) | D46: 71184906.3 | E46: 78675795.6 | F46: 84691773.27 | G46: 91163859.33 | H46: 97817209.45 | I46: 106666613.7 | J46: 115957929.3 | K46: 124375187.8 | L46: 129376945.2 | M46: 126542192.4 | N46: 125338753.7 | O46: 126617954.4 | P46: 124499503.4 | Q46: 122049704.1 | R46: 123788443.3 | S46: 128966275.7 | T46: 134846282.5 | U46: 141916804.4 | V46: 148404410.3 | W46: 154881042.8 | X46: 139589813.5 | Y46: 151662000.3

Sheet 5
A1: Contabilidad Municipal de la Ciudad de Madrid. Serie 2000 - 2021(a) | Y1: Indice
A2: Producto Interior Bruto a precios de mercado
A3: Indices de volumen encadenados
A5: CÓDIGOS | C5: RAMAS | D5: 2000 | E5: 2001 | F5: 2002 | G5: 2003 | H5: 2004 | I5: 2005 | J5: 2006 | K5: 2007 | L5: 2008 | M5: 2009 | N5: 2010 | O5: 2011 | P5: 2012 | Q5: 2013 | R5: 2014 | S5: 2015 | T5: 2016 | U5: 2017 | V5: 2018 | W5: 2019 | X5: 2020p | Y5: 2021a
A6: (A11) | B6: Divisiones
A8: A | B8: 2024-01-03 | C8: Agricultura, ganadería, silvicultura y pesca | D8: 228.0836931 | E8: 246.9710433 | F8: 227.5421265 | G8: 225.2248713 | H8: 197.6878483 | I8: 197.2219181 | J8: 200.8601516 | K8: 190.4183421 | L8: 173.7724675 | M8: 143.2815288 | N8: 124.440146 | O8: 124.7721135 | P8: 100.7717177 | Q8: 100.571895 | R8: 117.9468283 | S8: 100 | T8: 120.0961368 | U8: 120.7677413 | V8: 136.4774013 | W8: 121.7626297 | X8: 123.2829997 | Y8: 123.1900182
A9: B_E | B9: 1939-05-01 | C9: Industrias extractivas; industria manufacturera; suministro de energía eléctrica, gas, vapor y aire acondicionado; suministro de agua, actividades de saneamiento, gestión de residuos y descontaminación | D9: 103.5465971 | E9: 105.4140873 | F9: 100.4691056 | G9: 101.9650694 | H9: 104.2738012 | I9: 104.9704668 | J9: 108.1497922 | K9: 113.3439225 | L9: 112.5528702 | M9: 102.6200234 | N9: 105.6791441 | O9: 111.3617809 | P9: 107.2725434 | Q9: 99.93571225 | R9: 99.02318909 | S9: 100 | T9: 104.2427323 | U9: 105.0355554 | V9: 107.7372998 | W9: 113.01233 | X9: 105.0478224 | Y9: 102.1914923
A10: C | B10: 1933-10-01 | C10: Industria Manufacturera | D10: 109.3854519 | E10: 110.7375831 | F10: 106.5248353 | G10: 107.3513983 | H10: 109.9356889 | I10: 109.5314024 | J10: 110.0098852 | K10: 112.8669211 | L10: 110.9868148 | M10: 101.9033297 | N10: 98.97070876 | O10: 101.9007281 | P10: 97.62939932 | Q10: 97.69171499 | R10: 97.70892477 | S10: 100 | T10: 98.97327221 | U10: 98.966645 | V10: 99.17325883 | W10: 100.5885434 | X10: 89.59127894 | Y10: 98.60226376
B11: 2024-10-12 | C11: Industria de la alimentación, fabricación de bebidas e industria del tabaco | D11: 108.9463972 | E11: 103.9905068 | F11: 104.2725795 | G11: 107.08681 | H11: 110.6054692 | I11: 105.2909713 | J11: 110.0687218 | K11: 116.4508189 | L11: 115.9598785 | M11: 119.2932842 | N11: 117.9084545 | O11: 112.0952433 | P11: 100.4149983 | Q11: 100.3633525 | R11: 102.3558604 | S11: 100 | T11: 95.56048867 | U11: 91.93890176 | V11: 92.24294672 | W11: 98.64253428 | X11: 83.71377657 | Y11: 94.8720438
B12: 13-15 | C12: Industria textil, confección de prendas de vestir e industria del cuero y del calzado | D12: 119.9159102 | E12: 115.6290023 | F12: 111.2574626 | G12: 113.7030203 | H12: 114.2803981 | I12: 114.2105947 | J12: 115.4226333 | K12: 112.5499893 | L12: 113.3139376 | M12: 102.7306109 | N12: 93.68053364 | O12: 87.46380365 | P12: 113.0283153 | Q12: 100.893705 | R12: 97.42513846 | S12: 100 | T12: 98.59626491 | U12: 102.9540652 | V12: 101.2433991 | W12: 104.1928928 | X12: 90.33153932 | Y12: 92.34544871
B13: 16-18 | C13: Industria de la madera y del corcho, industria del papel y artes gráficas | D13: 217.6446635 | E13: 227.2659584 | F13: 232.2075819 | G13: 217.2493091 | H13: 218.9377382 | I13: 208.2566741 | J13: 210.6239642 | K13: 196.7083748 | L13: 182.6201916 | M13: 159.5542393 | N13: 139.1772211 | O13: 146.803407 | P13: 126.5683852 | Q13: 118.6728919 | R13: 107.5854205 | S13: 100 | T13: 98.48667025 | U13: 105.1014727 | V13: 106.8132283 | W13: 106.8079534 | X13: 89.72008246 | Y13: 91.7580682
B14: 19-21 | C14: Coquerías y refino de petróleo; industria química; fabricación de productos farmacéuticos | D14: 71.14636136 | E14: 73.34764816 | F14: 77.98852215 | G14: 81.04583072 | H14: 84.71976904 | I14: 82.58130111 | J14: 75.91144994 | K14: 82.49605857 | L14: 86.47588422 | M14: 74.89976577 | N14: 80.59977135 | O14: 97.42940675 | P14: 93.00005109 | Q14: 93.03508109 | R14: 93.21508099 | S14: 100 | T14: 101.3771017 | U14: 106.4319819 | V14: 104.6619001 | W14: 103.5631749 | X14: 92.67964811 | Y14: 100.7905357
B15: 22-23 | C15: Fabricación de productos de caucho y plásticos y de otros productos minerales no metálicos | D15: 246.8695133 | E15: 290.8938201 | F15: 275.9144862 | G15: 272.405323 | H15: 250.0487869 | I15: 244.8060303 | J15: 247.6778776 | K15: 213.3762424 | L15: 195.102204 | M15: 148.7540878 | N15: 135.4214323 | O15: 107.274818 | P15: 95.34409424 | Q15: 91.24777346 | R15: 94.16156979 | S15: 100 | T15: 100.9933266 | U15: 104.113877 | V15: 97.86458833 | W15: 109.6385468 | X15: 105.657817 | Y15: 119.7563791
B16: 24-25 | C16: Metalurgia y fabricación de productos metálicos, excepto maquinaria y equipo | D16: 161.6590572 | E16: 164.647309 | F16: 165.8265992 | G16: 177.9884062 | H16: 181.9208096 | I16: 181.5061981 | J16: 178.0143828 | K16: 182.862199 | L16: 174.1172718 | M16: 155.0077388 | N16: 143.6044322 | O16: 124.6115702 | P16: 106.0126775 | Q16: 98.25915784 | R16: 101.5191824 | S16: 100 | T16: 113.0551956 | U16: 104.2037146 | V16: 106.394825 | W16: 113.3087392 | X16: 99.3741328 | Y16: 97.61384073
B17: 26-28 | C17: Fabricación de productos informáticos, electrónicos y ópticos; fabricación de material y equipo eléctrico; fabricación de maquinaria y equipo n.c.o.p. | D17: 139.3543797 | E17: 151.457572 | F17: 130.4887007 | G17: 132.1971439 | H17: 135.8331016 | I17: 138.933576 | J17: 146.8950676 | K17: 148.0302015 | L17: 154.3312086 | M17: 134.0675813 | N17: 123.5318469 | O17: 110.3478665 | P17: 105.3982363 | Q17: 103.9807288 | R17: 102.8263 | S17: 100 | T17: 97.3202002 | U17: 95.01538326 | V17: 96.16137517 | W17: 89.87393376 | X17: 89.89966259 | Y17: 101.3135156
B18: 26-27 | C18: - Fabricación de productos informáticos, electrónicos y ópticos; fabricación de material y equipo eléctrico; | D18: 134.1888257 | E18: 147.6875077 | F18: 117.7472177 | G18: 118.7582544 | H18: 125.1039679 | I18: 133.9167849 | J18: 137.9775596 | K18: 142.6334455 | L18: 151.2991175 | M18: 116.7242983 | N18: 112.7976828 | O18: 103.7290692 | P18: 98.55870343 | Q18: 97.7041738 | R18: 92.58947362 | S18: 100 | T18: 90.77258638 | U18: 86.81683703 | V18: 91.02862271 | W18: 97.314417 | X18: 103.4828158 | Y18: 115.2794186
B19: 1900-01-28 | C19: - Fabricación de maquinaria y equipo n.c.o.p. | D19: 143.0543398 | E19: 153.1578825 | F19: 143.6731706 | G19: 146.1809676 | H19: 146.65162 | I19: 143.2784216 | J19: 155.4087517 | K19: 152.7983804 | L19: 156.6111856 | M19: 150.9653347 | N19: 133.8706193 | O19: 116.6594891 | P19: 111.9297128 | Q19: 109.9697845 | R19: 112.5793121 | S19: 100 | T19: 103.5448697 | U19: 102.8119999 | V19: 101.0109635 | W19: 82.72236843 | X19: 77.08382572 | Y19: 88.12497746
B20: 29-30 | C20: Fabricación de material de transporte | D20: 66.37237047 | E20: 54.84023647 | F20: 47.08190781 | G20: 49.43458523 | H20: 53.64445587 | I20: 59.44748021 | J20: 62.04630982 | K20: 72.88349377 | L20: 68.50042214 | M20: 69.184658 | N20: 71.58789246 | O20: 77.98196484 | P20: 83.84095975 | Q20: 92.85678899 | R20: 94.43123858 | S20: 100 | T20: 98.76910303 | U20: 91.59988576 | V20: 90.90800776 | W20: 90.16959546 | X20: 80.98289347 | Y20: 93.63630894
B21: 31-33 | C21: Fabricación de muebles; otras industrias manufactureras y reparación e instalación de maquinaria y equipo | D21: 105.1633156 | E21: 114.1048227 | F21: 107.5729877 | G21: 106.9268209 | H21: 109.1717456 | I21: 107.8429291 | J21: 104.4856499 | K21: 105.1032951 | L21: 103.5044086 | M21: 103.6452347 | N21: 99.67554083 | O21: 106.1679083 | P21: 94.36949569 | Q21: 92.42309625 | R21: 96.62081944 | S21: 100 | T21: 94.16496847 | U21: 99.76958865 | V21: 105.4486069 | W21: 114.6186897 | X21: 98.60434949 | Y21: 107.869643
A22: F | B22: 41-43 | C22: Construcción | D22: 172.3941252 | E22: 181.0657542 | F22: 192.5014964 | G22: 199.2127666 | H22: 201.6900527 | I22: 220.9714359 | J22: 217.5220971 | K22: 211.1329502 | L22: 194.357106 | M22: 183.1534616 | N22: 139.9260662 | O22: 131.6823453 | P22: 109.6206565 | Q22: 96.61325549 | R22: 95.17372103 | S22: 100 | T22: 101.0656217 | U22: 103.833789 | V22: 106.6256781 | W22: 110.9573941 | X22: 98.47484286 | Y22: 97.65203082
A23: G_T | B23: 45-98 | C23: Servicios | D23: 66.12278234 | E23: 70.70197713 | F23: 73.20662556 | G23: 75.43121714 | H23: 78.33215487 | I23: 82.42869113 | J23: 87.62697556 | K23: 92.09064965 | L23: 95.76046547 | M23: 94.79048596 | N23: 96.06321213 | O23: 97.36400661 | P23: 96.45689214 | Q23: 95.30641758 | R23: 96.89143001 | S23: 100 | T23: 104.5796389 | U23: 109.1471433 | V23: 113.1508901 | W23: 116.2572367 | X23: 102.6142587 | Y23: 110.1634155
A24: G_I | B24: 45-56 | C24: Comercio al por mayor y al por menor; reparación de vehículos de motor y motocicletas; transporte y almacenamiento; hostelería | D24: 84.35212543 | E24: 87.56910278 | F24: 88.16789373 | G24: 90.75521006 | H24: 90.5505075 | I24: 94.16352784 | J24: 98.22706024 | K24: 100.7744491 | L24: 100.6115355 | M24: 99.35286339 | N24: 102.8270098 | O24: 100.6400003 | P24: 96.54839965 | Q24: 93.43247933 | R24: 94.7688673 | S24: 100 | T24: 104.9472414 | U24: 108.5146722 | V24: 113.1504048 | W24: 113.6262947 | X24: 80.57132126 | Y24: 93.4244735
A25: G | B25: 45-47 | C25: Comercio al por mayor y al por menor; reparación de vehículos de motor y motocicletas | D25: 86.06564303 | E25: 89.6047907 | F25: 90.57800744 | G25: 95.33513078 | H25: 99.00451477 | I25: 101.8155283 | J25: 104.9684075 | K25: 106.2879171 | L25: 106.7301115 | M25: 105.7641252 | N25: 106.8947504 | O25: 103.4944893 | P25: 99.26741871 | Q25: 92.71954797 | R25: 94.81395051 | S25: 100 | T25: 106.7933985 | U25: 108.1962934 | V25: 113.8007015 | W25: 119.9518292 | X25: 98.62607319 | Y25: 114.0460614
B26: 46 | C26: - Comercio al por mayor e intermediarios del comercio, excepto de vehículos de motor y motocicletas | D26: 105.5838959 | E26: 106.8785798 | F26: 104.2967054 | G26: 108.697226 | H26: 111.0701909 | I26: 112.1382668 | J26: 110.7888911 | K26: 111.3778772 | L26: 108.3342873 | M26: 103.7635114 | N26: 103.3656503 | O26: 95.10436495 | P26: 97.22368813 | Q26: 94.25259602 | R26: 95.33932173 | S26: 100 | T26: 108.067065 | U26: 114.9002033 | V26: 118.0231438 | W26: 128.0861471 | X26: 112.9330875 | Y26: 130.5351248
B27: 45 y 47 | C27: - Comercio minorista; venta y reparación de vehículos de motor y motocicletas | D27: 72.04708085 | E27: 77.19577394 | F27: 80.71926969 | G27: 85.7341539 | H27: 90.33775846 | I27: 94.40431536 | J27: 100.799578 | K27: 102.6426023 | L27: 105.581237 | M27: 107.1969198 | N27: 109.4222124 | O27: 109.5033075 | P27: 100.7310925 | Q27: 91.62161347 | R27: 94.43769146 | S27: 100 | T27: 105.8812273 | U27: 103.4238844 | V27: 110.791916 | W27: 114.1618534 | X27: 88.45912489 | Y27: 102.3282094
A28: H | B28: 49-53 | C28: Transporte y almacenamiento | D28: 83.98720473 | E28: 85.1437552 | F28: 86.0921028 | G28: 84.48554334 | H28: 74.2973925 | I28: 80.52922875 | J28: 84.71551103 | K28: 89.58428346 | L28: 89.41249717 | M28: 85.33875056 | N28: 94.72779855 | O28: 95.73106914 | P28: 88.09541024 | Q28: 92.29515615 | R28: 93.26792662 | S28: 100 | T28: 101.6821234 | U28: 107.4094059 | V28: 112.3388076 | W28: 99.38785821 | X28: 66.24138678 | Y28: 74.18715667
A29: I | B29: 55-56 | C29: Hostelería | D29: 81.87953116 | E29: 87.09039927 | F29: 86.22541856 | G29: 89.01315184 | H29: 92.48716953 | I29: 94.59070585 | J29: 100.8368573 | K29: 103.3279726 | L29: 101.6842349 | M29: 103.4567805 | N29: 104.4881992 | O29: 100.8348144 | P29: 101.9889363 | Q29: 96.85091971 | R29: 96.80689908 | S29: 100 | T29: 105.0755789 | U29: 110.8203159 | V29: 112.6862964 | W29: 118.0111018 | X29: 56.59811453 | Y29: 70.09616085
A30: J | B30: 58-63 | C30: Información y comunicaciones | D30: 37.58646609 | E30: 44.38509434 | F30: 47.58200478 | G30: 51.02502875 | H30: 55.65559681 | I30: 61.16828316 | J30: 64.52439086 | K30: 70.26691683 | L30: 72.61748771 | M30: 73.9220544 | N30: 77.42409177 | O30: 79.32370572 | P30: 83.17341039 | Q30: 87.57979095 | R30: 96.02719611 | S30: 100 | T30: 104.7346555 | U30: 113.1061791 | V30: 119.930281 | W30: 125.5395565 | X30: 112.0158135 | Y30: 121.9584954
A31: K | B31: 64-66 | C31: Actividades financieras y de seguros | D31: 86.62172675 | E31: 96.38640565 | F31: 96.90295233 | G31: 102.1727111 | H31: 107.5271372 | I31: 116.7366459 | J31: 131.9920305 | K31: 147.1407455 | L31: 154.0608419 | M31: 142.426641 | N31: 138.4521711 | O31: 131.5176749 | P31: 124.9861928 | Q31: 110.594219 | R31: 105.7848361 | S31: 100 | T31: 108.9846185 | U31: 107.5050884 | V31: 109.2212867 | W31: 105.9892587 | X31: 109.471946 | Y31: 107.2149073
A32: L | B32: 1900-03-08 | C32: Actividades inmobiliarias | D32: 63.48786126 | E32: 66.97338306 | F32: 68.3159285 | G32: 73.2740593 | H32: 76.5526505 | I32: 76.19272047 | J32: 82.27700144 | K32: 83.90956811 | L32: 86.71252429 | M32: 87.75615902 | N32: 88.3004525 | O32: 94.2100608 | P32: 96.27897451 | Q32: 97.55025543 | R32: 97.78509355 | S32: 100 | T32: 100.8957798 | U32: 102.5521755 | V32: 106.6384684 | W32: 111.4004093 | X32: 109.4893379 | Y32: 112.0978494
A33: M_N | B33: 69-82 | C33: Actividades profesionales, científicas y técnicas; actividades administrativas y servicios auxiliares | D33: 54.08163923 | E33: 57.80435929 | F33: 61.69724374 | G33: 61.22759416 | H33: 65.9268824 | I33: 72.66436476 | J33: 78.91287697 | K33: 84.75818178 | L33: 91.64852859 | M33: 87.72559126 | N33: 88.19583784 | O33: 94.01080805 | P33: 94.71872097 | Q33: 92.34525264 | R33: 95.9627236 | S33: 100 | T33: 109.1128928 | U33: 119.2870369 | V33: 125.2315396 | W33: 133.9122701 | X33: 119.8986933 | Y33: 133.563158
A34: M | B34: 69-75 | C34: Actividades profesionales, científicas y técnicas | D34: 50.56076804 | E34: 53.52118083 | F34: 58.60252543 | G34: 57.84621953 | H34: 63.40635915 | I34: 66.96051109 | J34: 74.46252038 | K34: 80.50616281 | L34: 86.54716589 | M34: 84.0569084 | N34: 83.87532279 | O34: 91.20647069 | P34: 94.76103406 | Q34: 93.96690596 | R34: 95.0978025 | S34: 100 | T34: 112.28315 | U34: 124.2650638 | V34: 129.5289635 | W34: 139.8963539 | X34: 125.6086055 | Y34: 141.2042466
A35: N | B35: 77-82 | C35: Actividades administrativas y servicios auxiliares | D35: 63.02820364 | E35: 68.65385597 | F35: 69.51218952 | G35: 69.76154802 | H35: 72.27475805 | I35: 87.04433927 | J35: 90.15285743 | K35: 95.50512806 | L35: 104.5314774 | M35: 97.03536366 | N35: 99.14587406 | O35: 101.0890747 | P35: 94.66806208 | Q35: 88.4821257 | R35: 98.01668773 | S35: 100 | T35: 101.4927382 | U35: 107.3980929 | V35: 114.9070682 | W35: 119.5990015 | X35: 106.2558492 | Y35: 115.3138639
A36: O_Q | B36: 84-88 | C36: Administración pública y defensa; seguridad social obligatoria; educación; actividades sanitarias y de servicios sociales | D36: 69.74369128 | E36: 71.74048418 | F36: 76.1177322 | G36: 76.36995751 | H36: 78.8257144 | I36: 81.88166198 | J36: 83.60881261 | K36: 89.1323994 | L36: 95.7023645 | M36: 97.89425312 | N36: 97.38625152 | O36: 98.88605205 | P36: 97.4095116 | Q36: 99.37070713 | R36: 98.06412742 | S36: 100 | T36: 101.0100402 | U36: 104.7340762 | V36: 105.3234875 | W36: 107.2031707 | X36: 109.0341762 | Y36: 110.6760137
A37: O | B37: 84 | C37: Administración pública y defensa; seguridad social obligatoria | D37: 77.92145753 | E37: 79.09426702 | F37: 86.82848133 | G37: 83.96399303 | H37: 84.19214578 | I37: 85.16882647 | J37: 83.56250056 | K37: 87.80961379 | L37: 94.75402589 | M37: 98.7890896 | N37: 97.16021672 | O37: 99.4628148 | P37: 98.35136086 | Q37: 104.7225024 | R37: 101.2200547 | S37: 100 | T37: 102.4270997 | U37: 106.8602296 | V37: 105.0235823 | W37: 106.472856 | X37: 109.9279153 | Y37: 110.6667839
A38: P | B38: 85 | C38: Educación | D38: 81.23414981 | E38: 82.61326244 | F38: 84.04465935 | G38: 84.93078367 | H38: 88.74104978 | I38: 93.08550195 | J38: 92.96858043 | K38: 98.11144261 | L38: 100.766304 | M38: 101.8775367 | N38: 99.72206234 | O38: 97.56218781 | P38: 94.95031635 | Q38: 92.76908416 | R38: 94.21837067 | S38: 100 | T38: 102.0503897 | U38: 104.9831666 | V38: 106.2982075 | W38: 106.1820396 | X38: 106.0109117 | Y38: 108.6447353
A39: Q | B39: 86-88 | C39: Actividades sanitarias y de servicios sociales | D39: 50.61913086 | E39: 54.11058558 | F39: 56.03928475 | G39: 60.00684184 | H39: 64.5147821 | I39: 69.4890093 | J39: 77.12527949 | K39: 84.77090829 | L39: 93.61343943 | M39: 93.86716939 | N39: 96.27411417 | O39: 99.33239977 | P39: 98.19603548 | Q39: 96.9016531 | R39: 96.61394025 | S39: 100 | T39: 98.17709178 | U39: 101.5528733 | V39: 104.8929954 | W39: 108.9374356 | X39: 110.1393624 | Y39: 112.2260351
A40: R_T | B40: 90-98 | C40: Actividades artísticas, recreativas y de entretenimiento; reparación de artículos de uso doméstico y otros servicios | D40: 78.2256454 | E40: 84.90502343 | F40: 89.05582087 | G40: 89.09511149 | H40: 91.12719358 | I40: 89.28991686 | J40: 96.81680155 | K40: 90.94997885 | L40: 94.24593752 | M40: 96.35366262 | N40: 98.48001922 | O40: 98.83641693 | P40: 96.60043052 | Q40: 95.6185975 | R40: 94.82344123 | S40: 100 | T40: 102.0947832 | U40: 104.8299949 | V40: 107.974918 | W40: 111.7822343 | X40: 93.43554033 | Y40: 94.45118982
A41: R | B41: 90-93 | C41: Actividades artísticas, recreativas y de entretenimiento | D41: 74.8953402 | E41: 80.62048003 | F41: 80.20490586 | G41: 78.59343547 | H41: 79.74315592 | I41: 75.26399486 | J41: 82.0866021 | K41: 85.94433601 | L41: 86.89664513 | M41: 85.71211031 | N41: 91.37636593 | O41: 91.41767248 | P41: 85.14468045 | Q41: 93.79194707 | R41: 88.24098441 | S41: 100 | T41: 102.3787367 | U41: 109.5454801 | V41: 113.1082553 | W41: 122.5634676 | X41: 82.428186 | Y41: 93.0174026
A42: S | B42: 94-96 | C42: Reparación de artículos de uso doméstico y otros servicios | D42: 89.41727017 | E42: 95.41041515 | F42: 100.1776566 | G42: 98.73055237 | H42: 101.8094774 | I42: 98.74004326 | J42: 106.2437251 | K42: 91.58644037 | L42: 98.3811235 | M42: 98.43872787 | N42: 97.68679609 | O42: 96.5446265 | P42: 106.8268524 | Q42: 96.71749118 | R42: 97.24404251 | S42: 100 | T42: 100.8049572 | U42: 102.6316611 | V42: 107.4964077 | W42: 112.3766951 | X42: 97.86036237 | Y42: 89.16305585
A43: T | B43: 97-98 | C43: Actividades de los hogares como empleadores de personal doméstico; Actividades de los hogares como productores de bienes y servicios para uso propio | D43: 67.64720254 | E43: 76.13334981 | F43: 84.78664788 | G43: 88.5040374 | H43: 90.25571825 | I43: 92.83400553 | J43: 101.1098486 | K43: 95.12540323 | L43: 96.6180197 | M43: 104.7094532 | N43: 106.6425731 | O43: 109.1512709 | P43: 95.72390168 | Q43: 95.90654319 | R43: 97.95018914 | S43: 100 | T43: 103.3520028 | U43: 103.1799939 | V43: 103.9342071 | W43: 101.3842134 | X43: 98.07945308 | Y43: 101.7924138
A44: Valor Añadido Bruto | D44: 73.68730816 | E44: 78.27383471 | F44: 80.58869651 | G44: 82.95495376 | H44: 85.80888876 | I44: 90.34001528 | J44: 95.00498641 | K44: 98.99672183 | L44: 101.3767751 | M44: 99.28019953 | N44: 98.69367572 | O44: 99.88433127 | P44: 97.82236727 | Q44: 95.72239329 | R44: 96.99598587 | S44: 100 | T44: 104.4173094 | U44: 108.6160407 | V44: 112.4709323 | W44: 115.7960712 | X44: 102.6516731 | Y44: 109.0465288
A45: Impuestos netos sobre los productos | D45: 88.6362897 | E45: 93.04200886 | F45: 97.07272679 | G45: 101.8837223 | H45: 104.2137923 | I45: 109.9099428 | J45: 107.7738816 | K45: 108.2336994 | L45: 107.7960943 | M45: 98.53611218 | N45: 99.25003161 | O45: 95.04475699 | P45: 91.84790682 | Q45: 90.42963487 | R45: 92.72576767 | S45: 100 | T45: 104.9570686 | U45: 108.8313003 | V45: 110.1836351 | W45: 111.3696443 | X45: 100.5236567 | Y45: 106.5436458
A46: Producto Interior Bruto (precios de mercado) | D46: 74.9967012 | E46: 79.5676834 | F46: 82.03150993 | G46: 84.60956048 | H46: 87.4167503 | I46: 92.05023257 | J46: 96.08033597 | K46: 99.72297806 | L46: 101.8345477 | M46: 99.17241531 | N46: 98.67532531 | O46: 99.41284741 | P46: 97.25626331 | Q46: 95.21679726 | R46: 96.585895 | S46: 100 | T46: 104.4685287 | U46: 108.6366177 | V46: 112.2513201 | W46: 115.3665025 | X46: 102.4471697 | Y46: 108.8068413

Sheet 6
A1: Contabilidad Municipal de la Ciudad de Madrid. Serie 2000 - 2021(a) | Y1: Indice
A2: Remuneración de Asalariados (precios corrientes)
A3: Unidad: miles de euros
A5: CÓDIGOS | C5: RAMAS | D5: 2000 | E5: 2001 | F5: 2002 | G5: 2003 | H5: 2004 | I5: 2005 | J5: 2006 | K5: 2007 | L5: 2008 | M5: 2009 | N5: 2010 | O5: 2011 | P5: 2012 | Q5: 2013 | R5: 2014 | S5: 2015 | T5: 2016 | U5: 2017 | V5: 2018 | W5: 2019 | X5: 2020p | Y5: 2021a
A6: (A11) | B6: (A17)
A8: A | B8: 2024-01-03 | C8: Agricultura, ganadería, silvicultura y pesca | D8: 25082.79455 | E8: 27643.97106 | F8: 28506.08081 | G8: 29464.82507 | H8: 32748.77526 | I8: 35338.62816 | J8: 37634.84395 | K8: 35974.45028 | L8: 37659.78594 | M8: 29634.25891 | N8: 28684.84229 | O8: 29499.74601 | P8: 18847.94782 | Q8: 14053.2036 | R8: 11241.69912 | S8: 10136.76264 | T8: 8282.5387 | U8: 8645.428673 | V8: 9822.723791 | W8: 10742.20281 | X8: 10955.51669 | Y8: 12202.45386
A9: B_E | B9: 1939-05-01 | C9: Industrias extractivas; industria manufacturera; suministro de energía eléctrica, gas, vapor y aire acondicionado; suministro de agua, actividades de saneamiento, gestión de residuos y descontaminación | D9: 3853075.305 | E9: 4063590.947 | F9: 4068725.469 | G9: 4106742.101 | H9: 4157284.324 | I9: 4163327.97 | J9: 4254103.538 | K9: 4429505.774 | L9: 4490708.765 | M9: 4280062.655 | N9: 4252471.716 | O9: 4318479.848 | P9: 4151096.535 | Q9: 4035453.786 | R9: 3967575.196 | S9: 4000012.05 | T9: 4141818.328 | U9: 4303125.461 | V9: 4424606.483 | W9: 4580152.389 | X9: 4418039.962 | Y9: 4559478.811
A10: C | B10: 1933-10-01 | C10: Industria Manufacturera | D10: 3210930.617 | E10: 3381347.964 | F10: 3367262.777 | G10: 3410575.075 | H10: 3439914.887 | I10: 3409140.136 | J10: 3496382.968 | K10: 3542699.335 | L10: 3540700.584 | M10: 3313669.623 | N10: 3221767.904 | O10: 3247873.552 | P10: 3071834.782 | Q10: 2956955.911 | R10: 2922781.084 | S10: 2958539.396 | T10: 3029061.989 | U10: 3122693.89 | V10: 3176279.136 | W10: 3273266.799 | X10: 3189282.556 | Y10: 3248394.792
B11: 2024-10-12 | C11: Industria de la alimentación, fabricación de bebidas e industria del tabaco | D11: 297504.9308 | E11: 293273.5725 | F11: 294389.4623 | G11: 304137.0449 | H11: 309031.9527 | I11: 306416.5446 | J11: 326402.5978 | K11: 329920.8219 | L11: 341641.5481 | M11: 349956.9611 | N11: 338671.0656 | O11: 327569.2043 | P11: 303935.5804 | Q11: 303968.8942 | R11: 309575.7009 | S11: 313493.7872 | T11: 322183.0722 | U11: 324473.9144 | V11: 348306.0952 | W11: 370779.8411 | X11: 356633.0431 | Y11: 367369.2862
B12: 13-15 | C12: Industria textil, confección de prendas de vestir e industria del cuero y del calzado | D12: 250556.6176 | E12: 256635.6664 | F12: 253318.8106 | G12: 254070.936 | H12: 251201.5478 | I12: 253219.7622 | J12: 257288.0817 | K12: 251812.8722 | L12: 236157.1915 | M12: 204278.6041 | N12: 182117.2196 | O12: 159860.6537 | P12: 148546.7971 | Q12: 134886.005 | R12: 127789.3145 | S12: 125497.6323 | T12: 120951.8947 | U12: 130980.4849 | V12: 133216.0477 | W12: 135097.3589 | X12: 124055.1052 | Y12: 119831.6433
B13: 16-18 | C13: Industria de la madera y del corcho, industria del papel y artes gráficas | D13: 549267.4561 | E13: 591639.1391 | F13: 622087.1364 | G13: 594705.0275 | H13: 579617.4766 | I13: 553333.1484 | J13: 570954.239 | K13: 526448.7202 | L13: 484431.0566 | M13: 416934.9195 | N13: 379507.1782 | O13: 402116.918 | P13: 401142.3837 | Q13: 356218.4397 | R13: 339550.7877 | S13: 338157.9647 | T13: 330085.9669 | U13: 344765.2331 | V13: 341807.3009 | W13: 345547.9665 | X13: 319227.6887 | Y13: 320772.8082
B14: 19-21 | C14: Coquerías y refino de petróleo; industria química; fabricación de productos farmacéuticos | D14: 470293.1893 | E14: 487567.9245 | F14: 491178.3705 | G14: 514459.0673 | H14: 535059.8536 | I14: 501142.2169 | J14: 490964.6767 | K14: 526153.3104 | L14: 535107.0025 | M14: 502077.4991 | N14: 547318.6159 | O14: 601779.9647 | P14: 561993.2471 | Q14: 554694.3034 | R14: 575445.2732 | S14: 579403.76 | T14: 587941.6582 | U14: 601878.6695 | V14: 637525.3485 | W14: 671211.7052 | X14: 618314.9884 | Y14: 654476.4461
B15: 22-23 | C15: Fabricación de productos de caucho y plásticos y de otros productos minerales no metálicos | D15: 204004.5446 | E15: 236928.0423 | F15: 219589.992 | G15: 227134.1572 | H15: 218716.0747 | I15: 222076.1881 | J15: 226517.7771 | K15: 207397.9242 | L15: 196039.0634 | M15: 175601.3039 | N15: 155828.6892 | O15: 141935.1897 | P15: 133327.4869 | Q15: 116939.4384 | R15: 115644.3138 | S15: 118088.9664 | T15: 128923.0369 | U15: 119860.6009 | V15: 109596.9361 | W15: 108297.8334 | X15: 108321.9339 | Y15: 111785.3035
B16: 24-25 | C16: Metalurgia y fabricación de productos metálicos, excepto maquinaria y equipo | D16: 188716.0362 | E16: 196846.2439 | F16: 198271.8403 | G16: 207949.3204 | H16: 220294.6614 | I16: 217165.7301 | J16: 221990.9261 | K16: 234778.4779 | L16: 245687.4503 | M16: 203649.4548 | N16: 194720.8196 | O16: 193911.5056 | P16: 167596.4289 | Q16: 132580.0312 | R16: 125985.6322 | S16: 129209.6845 | T16: 138484.9273 | U16: 138759.6183 | V16: 140116.7245 | W16: 146793.9152 | X16: 141268.8552 | Y16: 145360.2376
B17: 26-28 | C17: Fabricación de productos informáticos, electrónicos y ópticos; fabricación de material y equipo eléctrico; fabricación de maquinaria y equipo n.c.o.p. | D17: 514968.9083 | E17: 533349.3265 | F17: 538304.6782 | G17: 549153.5954 | H17: 549671.5564 | I17: 552424.3463 | J17: 562091.7973 | K17: 570502.1462 | L17: 597778.8456 | M17: 535716.9812 | N17: 512180.4821 | O17: 485988.273 | P17: 450404.8631 | Q17: 422614.8556 | R17: 398395.2491 | S17: 406309.4542 | T17: 400745.052 | U17: 413378.4618 | V17: 419510.2792 | W17: 431313.388 | X17: 427943.7801 | Y17: 437978.1403
B18: 26-27 | C18: - Fabricación de productos informáticos, electrónicos y ópticos; fabricación de material y equipo eléctrico; | D18: 276635.4042 | E18: 278908.6162 | F18: 278093.4424 | G18: 273133.54 | H18: 267012.9718 | I18: 263821.7016 | J18: 264044.7303 | K18: 260625.2413 | L18: 265655.5486 | M18: 245609.9985 | N18: 238287.5945 | O18: 236307.9729 | P18: 223329.8898 | Q18: 217884.8113 | R18: 197522.7626 | S18: 206356.073 | T18: 190718.1411 | U18: 189652.9129 | V18: 197522.7192 | W18: 209705.7506 | X18: 206687.2663 | Y18: 214771.2332
B19: 1900-01-28 | C19: - Fabricación de maquinaria y equipo n.c.o.p. | D19: 238333.5041 | E19: 254440.7103 | F19: 260211.2358 | G19: 276020.0555 | H19: 282658.5846 | I19: 288602.6447 | J19: 298047.067 | K19: 309876.9049 | L19: 332123.2969 | M19: 290106.9827 | N19: 273892.8876 | O19: 249680.3 | P19: 227074.9732 | Q19: 204730.0443 | R19: 200872.4865 | S19: 199953.3813 | T19: 210026.9109 | U19: 223725.549 | V19: 221987.56 | W19: 221607.6374 | X19: 221256.5139 | Y19: 223206.9071
B20: 29-30 | C20: Fabricación de material de transporte | D20: 422543.0566 | E20: 449921.1243 | F20: 404654.9524 | G20: 406918.1262 | H20: 420676.201 | I20: 449936.2949 | J20: 483725.7175 | K20: 536451.4151 | L20: 542027.1118 | M20: 551504.6718 | N20: 552950.6015 | O20: 568213.3559 | P20: 564408.8455 | Q20: 604489.0046 | R20: 586515.9829 | S20: 582509.2535 | T20: 614428.8573 | U20: 637327.8666 | V20: 611514.0868 | W20: 588175.5168 | X20: 590227.0809 | Y20: 581521.9918
B21: 31-33 | C21: Fabricación de muebles; otras industrias manufactureras y reparación e instalación de maquinaria y equipo | D21: 313075.8772 | E21: 335186.9251 | F21: 345467.5343 | G21: 352047.7996 | H21: 355645.5626 | I21: 353425.9048 | J21: 356447.1546 | K21: 359233.6472 | L21: 361831.3148 | M21: 373949.2274 | N21: 358473.2325 | O21: 366498.4869 | P21: 340479.1495 | Q21: 330564.9386 | R21: 343878.8298 | S21: 365868.8936 | T21: 385317.5236 | U21: 411269.0404 | V21: 434686.317 | W21: 476049.2739 | X21: 503290.0802 | Y21: 509298.9348
A22: F | B22: 41-43 | C22: Construcción | D22: 3171218.159 | E22: 3553036.896 | F22: 3891592.892 | G22: 4486819.536 | H22: 5036978.268 | I22: 5822470.55 | J22: 6074633.022 | K22: 6394855.589 | L22: 6074594.197 | M22: 5136341.481 | N22: 4154689.204 | O22: 3868566.681 | P22: 3149383.722 | Q22: 2676434.806 | R22: 2649610.719 | S22: 2817549.202 | T22: 2826001.887 | U22: 2996097.104 | V22: 3218088.105 | W22: 3595379.933 | X22: 3556911.868 | Y22: 3809558.05
A23: G_T | B23: 45-98 | C23: Servicios | D23: 31362935.43 | E23: 34651822.13 | F23: 37371573.88 | G23: 39581091.19 | H23: 41773168.55 | I23: 44698821.77 | J23: 48612317.16 | K23: 51999811.69 | L23: 57108119.01 | M23: 58094966.29 | N23: 57750485.23 | O23: 58055724.05 | P23: 56500890.33 | Q23: 55420547.35 | R23: 56410820.71 | S23: 58423071.36 | T23: 60279289.49 | U23: 62371303.39 | V23: 65061705.12 | W23: 69158968.42 | X23: 67341506.93 | Y23: 71786363
A24: G_I | B24: 45-56 | C24: Comercio al por mayor y al por menor; reparación de vehículos de motor y motocicletas; transporte y almacenamiento; hostelería | D24: 9414593.291 | E24: 10269085.22 | F24: 10745987.87 | G24: 11431911.08 | H24: 11591824.86 | I24: 12643027.58 | J24: 13688599.72 | K24: 14336372 | L24: 15320326.85 | M24: 15345269.79 | N24: 15268870.37 | O24: 15328413.08 | P24: 15047490.51 | Q24: 14377725.53 | R24: 14536057.76 | S24: 14938132.34 | T24: 15278234.94 | U24: 16183792.75 | V24: 16993165.69 | W24: 17851912.2 | X24: 16221683.31 | Y24: 17108934.57
A25: G | B25: 45-47 | C25: Comercio al por mayor y al por menor; reparación de vehículos de motor y motocicletas | D25: 5080630.687 | E25: 5583400.158 | F25: 5933904.598 | G25: 6390702.691 | H25: 6713631.071 | I25: 7216945.903 | J25: 7781634.494 | K25: 8140489.704 | L25: 8802955.352 | M25: 8689168.005 | N25: 8593886.916 | O25: 8668338.928 | P25: 8619330.701 | Q25: 7927805.601 | R25: 8038984.414 | S25: 8328071.836 | T25: 8522565.703 | U25: 8796641.251 | V25: 9263182.786 | W25: 9647226.787 | X25: 9407520.157 | Y25: 10071791.62
B26: 46 | C26: - Comercio al por mayor e intermediarios del comercio, excepto de vehículos de motor y motocicletas | D26: 2510585.435 | E26: 2726828.261 | F26: 2824544.417 | G26: 2993376.812 | H26: 3062064.897 | I26: 3199088.109 | J26: 3345428.335 | K26: 3426752.663 | L26: 3611557.224 | M26: 3429005.623 | N26: 3376855.217 | O26: 3387768.033 | P26: 3423901.037 | Q26: 3215028.686 | R26: 3270063.143 | S26: 3594414.083 | T26: 3797853.257 | U26: 3874513.281 | V26: 4054266.922 | W26: 4175213.408 | X26: 4263577.413 | Y26: 4583267.033
B27: 45 y 47 | C27: - Comercio minorista; venta y reparación de vehículos de motor y motocicletas | D27: 2570045.252 | E27: 2856571.897 | F27: 3109360.181 | G27: 3397325.879 | H27: 3651566.174 | I27: 4017857.795 | J27: 4436206.158 | K27: 4713737.041 | L27: 5191398.128 | M27: 5260162.381 | N27: 5217031.699 | O27: 5280570.895 | P27: 5195429.665 | Q27: 4712776.915 | R27: 4768921.271 | S27: 4733657.754 | T27: 4724712.446 | U27: 4922127.969 | V27: 5208915.864 | W27: 5472013.379 | X27: 5143942.744 | Y27: 5488524.586
A28: H | B28: 49-53 | C28: Transporte y almacenamiento | D28: 3072289.709 | E28: 3264455.89 | F28: 3332700.866 | G28: 3436236.514 | H28: 3130431.149 | I28: 3564990.726 | J28: 3968600.791 | K28: 4100610.826 | L28: 4274452.778 | M28: 4325603.232 | N28: 4235041.417 | O28: 4297519.721 | P28: 4085615.811 | Q28: 4142364.233 | R28: 4143994.068 | S28: 4092008.88 | T28: 4138781.732 | U28: 4561912.105 | V28: 4680604.402 | W28: 4930350.103 | X28: 4845772.468 | Y28: 5121419.509
A29: I | B29: 55-56 | C29: Hostelería | D29: 1261672.895 | E29: 1421229.174 | F29: 1479382.409 | G29: 1604971.876 | H29: 1747762.638 | I29: 1861090.954 | J29: 1938364.436 | K29: 2095271.465 | L29: 2242918.72 | M29: 2330498.555 | N29: 2439942.033 | O29: 2362554.43 | P29: 2342543.999 | Q29: 2307555.691 | R29: 2353079.277 | S29: 2518051.623 | T29: 2616887.504 | U29: 2825239.392 | V29: 3049378.506 | W29: 3274335.306 | X29: 1968390.684 | Y29: 1915723.439
A30: J | B30: 58-63 | C30: Información y comunicaciones | D30: 3225955.357 | E30: 3596452.97 | F30: 3909867.336 | G30: 4221034.573 | H30: 4637123.923 | I30: 4781270.535 | J30: 5010632.372 | K30: 5583744.752 | L30: 5908588.064 | M30: 6230221.213 | N30: 6226057.375 | O30: 6393627.798 | P30: 6340451.296 | Q30: 6405607.063 | R30: 6612681.489 | S30: 7127625.979 | T30: 7341414.985 | U30: 7490159.076 | V30: 7953166.563 | W30: 8621981.73 | X30: 8570659.58 | Y30: 9531639.765
A31: K | B31: 64-66 | C31: Actividades financieras y de seguros | D31: 3257293.909 | E31: 3687753.35 | F31: 3817884.945 | G31: 4026408.437 | H31: 4158593.462 | I31: 4252783.19 | J31: 4636688.713 | K31: 4917148.239 | L31: 5357009.565 | M31: 5481857.573 | N31: 5268650.831 | O31: 5180423.427 | P31: 5208093.341 | Q31: 5007044.873 | R31: 4894028.487 | S31: 4685168.502 | T31: 4833678.747 | U31: 4662084.751 | V31: 4597546.884 | W31: 4729065.58 | X31: 4696294.983 | Y31: 4526852.483
A32: L | B32: 1900-03-08 | C32: Actividades inmobiliarias | D32: 395395.9006 | E32: 452643.277 | F32: 491169.4605 | G32: 531510.2522 | H32: 604437.5589 | I32: 692622.5811 | J32: 785655.0234 | K32: 847608.564 | L32: 898652.6632 | M32: 704303.323 | N32: 733703.5957 | O32: 749005.5881 | P32: 747093.533 | Q32: 674525.4697 | R32: 724759.2928 | S32: 789778.2951 | T32: 836894.6592 | U32: 912886.8567 | V32: 1002690.569 | W32: 1118121.549 | X32: 1015059.521 | Y32: 1059029.86
A33: M_N | B33: 69-82 | C33: Actividades profesionales, científicas y técnicas; actividades administrativas y servicios auxiliares | D33: 4761856.059 | E33: 5538730.613 | F33: 6234854.359 | G33: 6628772.769 | H33: 7253632.445 | I33: 7978487.091 | J33: 9094739.512 | K33: 9946645.398 | L33: 11596528.3 | M33: 11513034.95 | N33: 11289401.37 | O33: 11462562.34 | P33: 11230763.16 | Q33: 10831036.04 | R33: 11369867.78 | S33: 11931908.73 | T33: 12525071.31 | U33: 12978082.09 | V33: 13820430.17 | W33: 15029857.71 | X33: 14912911.83 | Y33: 16109650.86
A34: M | B34: 69-75 | C34: Actividades profesionales, científicas y técnicas | D34: 2873936.84 | E34: 3352528.308 | F34: 3859787.773 | G34: 4101968.547 | H34: 4476014.228 | I34: 5073028.749 | J34: 5686455.481 | K34: 6177527.125 | L34: 7459659.385 | M34: 7474459.348 | N34: 7224753.525 | O34: 7238248.594 | P34: 7121972.376 | Q34: 7068359.851 | R34: 7242609.941 | S34: 7677703.758 | T34: 8321197.28 | U34: 8544565.892 | V34: 9183323.855 | W34: 9850147.83 | X34: 9884101.373 | Y34: 10821092.17
A35: N | B35: 77-82 | C35: Actividades administrativas y servicios auxiliares | D35: 1887919.219 | E35: 2186202.304 | F35: 2375066.586 | G35: 2526804.222 | H35: 2777618.216 | I35: 2905458.342 | J35: 3408284.031 | K35: 3769118.272 | L35: 4136868.915 | M35: 4038575.599 | N35: 4064647.843 | O35: 4224313.748 | P35: 4108790.781 | Q35: 3762676.193 | R35: 4127257.844 | S35: 4254204.97 | T35: 4203874.033 | U35: 4433516.193 | V35: 4637106.315 | W35: 5179709.876 | X35: 5028810.458 | Y35: 5288558.694
A36: O_Q | B36: 84-88 | C36: Administración pública y defensa; seguridad social obligatoria; educación; actividades sanitarias y de servicios sociales | D36: 7533194.469 | E36: 8043608.284 | F36: 8872563.756 | G36: 9239253.531 | H36: 9899926.791 | I36: 10604672.91 | J36: 11141203.03 | K36: 12272360.76 | L36: 13597413.55 | M36: 14172912.7 | N36: 14197903.54 | O36: 14078720.34 | P36: 13303409.31 | Q36: 13544249.46 | R36: 13581804.74 | S36: 14121190.7 | T36: 14565970.6 | U36: 15086395.03 | V36: 15362633.68 | W36: 16235040.97 | X36: 16615645.19 | Y36: 17875695.7
A37: O | B37: 84 | C37: Administración pública y defensa; seguridad social obligatoria | D37: 3417262.434 | E37: 3581088.379 | F37: 4158804.583 | G37: 4148297.981 | H37: 4333405.216 | I37: 4487156.982 | J37: 4612803.719 | K37: 5085710.326 | L37: 5864107.841 | M37: 6325878.339 | N37: 6209168.593 | O37: 6164876.012 | P37: 5721485.961 | Q37: 6096776.019 | R37: 5860624.856 | S37: 5823588.53 | T37: 6015074.067 | U37: 6259533.903 | V37: 6158149.084 | W37: 6556387.309 | X37: 6819228.162 | Y37: 7184185.807
A38: P | B38: 85 | C38: Educación | D38: 2104954.705 | E38: 2250867.43 | F38: 2371326.696 | G38: 2532241.834 | H38: 2709255.694 | I38: 2926192.631 | J38: 2972894.1 | K38: 3187431.141 | L38: 3279838.526 | M38: 3410369.825 | N38: 3459682.556 | O38: 3391193.417 | P38: 3276389.035 | Q38: 3290597.667 | R38: 3390818.649 | S38: 3727928.192 | T38: 3830850.698 | U38: 3965127.786 | V38: 4088353.369 | W38: 4303378.876 | X38: 4228539.581 | Y38: 4687089.768
A39: Q | B39: 86-88 | C39: Actividades sanitarias y de servicios sociales | D39: 2010977.33 | E39: 2211652.475 | F39: 2342432.477 | G39: 2558713.716 | H39: 2857265.882 | I39: 3191323.297 | J39: 3555505.208 | K39: 3999219.289 | L39: 4453467.179 | M39: 4436664.533 | N39: 4529052.386 | O39: 4522650.916 | P39: 4305534.309 | Q39: 4156875.772 | R39: 4330361.234 | S39: 4569673.975 | T39: 4720045.835 | U39: 4861733.338 | V39: 5116131.223 | W39: 5375274.783 | X39: 5567877.445 | Y39: 6004420.124
A40: R_T | B40: 90-98 | C40: Actividades artísticas, recreativas y de entretenimiento; reparación de artículos de uso doméstico y otros servicios | D40: 2774646.448 | E40: 3063548.413 | F40: 3299246.151 | G40: 3502200.55 | H40: 3627629.508 | I40: 3745957.883 | J40: 4254798.791 | K40: 4095931.986 | L40: 4429600.017 | M40: 4647366.745 | N40: 4765898.162 | O40: 4862971.475 | P40: 4623589.188 | Q40: 4580358.922 | R40: 4691621.16 | S40: 4829266.822 | T40: 4898024.246 | U40: 5057902.843 | V40: 5332071.563 | W40: 5572988.694 | X40: 5309252.522 | Y40: 5574559.768
A41: R | B41: 90-93 | C41: Actividades artísticas, recreativas y de entretenimiento | D41: 911239.5676 | E41: 980324.2001 | F41: 1015685.431 | G41: 1062504.486 | H41: 1039442.875 | I41: 1023145.588 | J41: 1173948.133 | K41: 1177369.286 | L41: 1263088.442 | M41: 1241873.289 | N41: 1268371.745 | O41: 1280852.64 | P41: 1249253.716 | Q41: 1290630.682 | R41: 1356549.704 | S41: 1425324.009 | T41: 1461220.324 | U41: 1584180.95 | V41: 1721942.633 | W41: 1911415.966 | X41: 1716005.316 | Y41: 1839713.164
A42: S | B42: 94-96 | C42: Reparación de artículos de uso doméstico y otros servicios | D42: 946711.5 | E42: 1039195.7 | F42: 1064087.946 | G42: 1110992.116 | H42: 1173713.074 | I42: 1198599.432 | J42: 1339008.883 | K42: 1206692.37 | L42: 1344274.634 | M42: 1377493.199 | N42: 1379851.95 | O42: 1375678.447 | P42: 1410637.26 | Q42: 1290443.25 | R42: 1272383.402 | S42: 1285663.59 | T42: 1233980.085 | U42: 1251185.83 | V42: 1342264.975 | W42: 1407570.769 | X42: 1380525.196 | Y42: 1421045.17
A43: T | B43: 97-98 | C43: Actividades de los hogares como empleadores de personal doméstico; Actividades de los hogares como productores de bienes y servicios para uso propio | D43: 916695.3805 | E43: 1044028.513 | F43: 1219472.774 | G43: 1328703.948 | H43: 1414473.56 | I43: 1524212.863 | J43: 1741841.775 | K43: 1711870.331 | L43: 1822236.941 | M43: 2028000.257 | N43: 2117674.467 | O43: 2206440.388 | P43: 1963698.211 | Q43: 1999284.989 | R43: 2062688.053 | S43: 2118279.223 | T43: 2202823.838 | U43: 2222536.063 | V43: 2267863.954 | W43: 2254001.959 | X43: 2212722.01 | Y43: 2313801.434
A44: Total Remuneración de Asalariados | D44: 38412311.69 | E44: 42296093.94 | F44: 45360398.32 | G44: 48204117.65 | H44: 51000179.91 | I44: 54719958.92 | J44: 58978688.56 | K44: 62860147.5 | L44: 67711081.75 | M44: 67541004.69 | N44: 66186331 | O44: 66272270.33 | P44: 63820218.54 | Q44: 62146489.15 | R44: 63039248.33 | S44: 65250769.38 | T44: 67255392.24 | U44: 69679171.38 | V44: 72714222.43 | W44: 77345242.95 | X44: 75327414.28 | Y44: 80167602.32

Sheet 6ratio
A1: Contabilidad Municipal de la Ciudad de Madrid. Serie 2000 - 2021(a) | Y1: Indice
A2: Remuneración de Asalariados por asalariado (precios corrientes)
A3: Unidad: euros
A5: CÓDIGOS | C5: RAMAS | D5: 2000 | E5: 2001 | F5: 2002 | G5: 2003 | H5: 2004 | I5: 2005 | J5: 2006 | K5: 2007 | L5: 2008 | M5: 2009 | N5: 2010 | O5: 2011 | P5: 2012 | Q5: 2013 | R5: 2014 | S5: 2015 | T5: 2016 | U5: 2017 | V5: 2018 | W5: 2019 | X5: 2020p | Y5: 2021a
A6: (A11) | B6: (A17)
A8: A | B8: 2024-01-03 | C8: Agricultura, ganadería, silvicultura y pesca | D8: 8557.654852 | E8: 8964.641473 | F8: 8917.992498 | G8: 9612.546389 | H8: 9809.947516 | I8: 10113.07489 | J8: 10698.76614 | K8: 11007.96048 | L8: 11475.40363 | M8: 11683.44425 | N8: 11825.15583 | O8: 12449.15772 | P8: 11453.12795 | Q8: 12018.75303 | R8: 11434.61658 | S8: 11283.61375 | T8: 10320.40863 | U8: 10196.08831 | V8: 10932.56799 | W8: 11415.32476 | X8: 12275.63239 | Y8: 12529.95763
A9: B_E | B9: 1939-05-01 | C9: Industrias extractivas; industria manufacturera; suministro de energía eléctrica, gas, vapor y aire acondicionado; suministro de agua, actividades de saneamiento, gestión de residuos y descontaminación | D9: 33293.64448 | E9: 34206.05196 | F9: 34465.42276 | G9: 34970.31037 | H9: 35572.71054 | I9: 36098.50046 | J9: 37480.05676 | K9: 38600.95888 | L9: 39841.58943 | M9: 40711.22293 | N9: 42168.70251 | O9: 43760.77206 | P9: 44512.14846 | Q9: 45504.04978 | R9: 46129.3166 | S9: 46184.66285 | T9: 46570.40008 | U9: 47480.55825 | V9: 48537.86754 | W9: 49236.69308 | X9: 48979.85525 | Y9: 50592.85759
A10: C | B10: 1933-10-01 | C10: Industria Manufacturera | D10: 33007.3492 | E10: 33858.64681 | F10: 33949.12756 | G10: 34673.00983 | H10: 35344.13589 | I10: 35791.96222 | J10: 37277.4167 | K10: 38449.3608 | L10: 39588.64787 | M10: 40520.84939 | N10: 42041.53992 | O10: 43684.91596 | P10: 44541.61283 | Q10: 45796.85635 | R10: 46491.93238 | S10: 46368.22954 | T10: 46477.52594 | U10: 46758.49915 | V10: 47759.31822 | W10: 48547.75003 | X10: 49629.3964 | Y10: 51428.92037
B11: 2024-10-12 | C11: Industria de la alimentación, fabricación de bebidas e industria del tabaco | D11: 28995.59972 | E11: 29330.14912 | F11: 28710.79827 | G11: 30076.81018 | H11: 31048.39543 | I11: 30851.42795 | J11: 32209.3325 | K11: 32932.79347 | L11: 33921.36442 | M11: 34533.38405 | N11: 36698.6098 | O11: 37750.12245 | P11: 36951.62764 | Q11: 39192.22613 | R11: 40355.96836 | S11: 40222.59582 | T11: 40627.63954 | U11: 40554.95372 | V11: 41601.10456 | W11: 42160.50822 | X11: 41928.68224 | Y11: 43385.20149
B12: 13-15 | C12: Industria textil, confección de prendas de vestir e industria del cuero y del calzado | D12: 25071.31822 | E12: 25761.70028 | F12: 26150.65152 | G12: 26465.37002 | H12: 27116.07045 | I12: 28344.98666 | J12: 29562.28768 | K12: 30320.76753 | L12: 31149.50466 | M12: 31704.35521 | N12: 32114.00156 | O12: 32694.901 | P12: 35889.39562 | Q12: 36440.92342 | R12: 36135.09398 | S12: 35891.52051 | T12: 35283.55198 | U12: 37901.20646 | V12: 38653.52164 | W12: 40584.24014 | X12: 41225.09997 | Y12: 41928.77299
B13: 16-18 | C13: Industria de la madera y del corcho, industria del papel y artes gráficas | D13: 32257.32047 | E13: 32405.73202 | F13: 33062.71417 | G13: 32399.91802 | H13: 32350.0247 | I13: 31919.92239 | J13: 34997.95108 | K13: 35888.94229 | L13: 35400.31349 | M13: 35482.70907 | N13: 36364.94468 | O13: 36127.02426 | P13: 39285.92955 | Q13: 39873.16592 | R13: 39796.28478 | S13: 39978.85834 | T13: 39425.80934 | U13: 40298.2504 | V13: 40760.59918 | W13: 41454.58398 | X13: 41135.9767 | Y13: 43868.41791
B14: 19-21 | C14: Coquerías y refino de petróleo; industria química; fabricación de productos farmacéuticos | D14: 48179.74871 | E14: 50485.09237 | F14: 48647.52619 | G14: 49333.30309 | H14: 50611.59099 | I14: 52281.73121 | J14: 51879.80296 | K14: 53271.09586 | L14: 54248.60116 | M14: 54797.07771 | N14: 58189.64862 | O14: 58585.12662 | P14: 59213.14919 | Q14: 59723.92372 | R14: 61020.93121 | S14: 60014.82769 | T14: 59554.86582 | U14: 58002.85771 | V14: 59309.3822 | W14: 59397.53629 | X14: 61786.53958 | Y14: 63009.8108
B15: 22-23 | C15: Fabricación de productos de caucho y plásticos y de otros productos minerales no metálicos | D15: 37374.64616 | E15: 38849.24319 | F15: 36939.18212 | G15: 37915.57371 | H15: 37894.81298 | I15: 39570.07605 | J15: 40489.59374 | K15: 41456.8799 | L15: 43344.11172 | M15: 44147.97535 | N15: 45225.10161 | O15: 46078.37026 | P15: 48406.75977 | Q15: 48163.17092 | R15: 46739.25416 | S15: 47042.36687 | T15: 48862.92651 | U15: 43100.41989 | V15: 43589.17268 | W15: 43745.29487 | X15: 44718.77752 | Y15: 45433.7654
B16: 24-25 | C16: Metalurgia y fabricación de productos metálicos, excepto maquinaria y equipo | D16: 30388.43639 | E16: 30432.8359 | F16: 30490.52421 | G16: 31721.97458 | H16: 32725.9281 | I16: 33502.42797 | J16: 34705.31496 | K16: 35215.2724 | L16: 36963.69153 | M16: 37071.23941 | N16: 37664.9532 | O16: 39732.43946 | P16: 40091.13027 | Q16: 40166.36037 | R16: 39841.91978 | S16: 40187.59564 | T16: 40704.5314 | U16: 40907.61059 | V16: 42858.35556 | W16: 44643.5027 | X16: 45254.72447 | Y16: 47419.67175
B17: 26-28 | C17: Fabricación de productos informáticos, electrónicos y ópticos; fabricación de material y equipo eléctrico; fabricación de maquinaria y equipo n.c.o.p. | D17: 32527.51614 | E17: 33102.48057 | F17: 34054.17026 | G17: 35133.81667 | H17: 36015.1805 | I17: 36324.08959 | J17: 38211.01286 | K17: 39581.04722 | L17: 42123.19915 | M17: 43015.44482 | N17: 43727.70025 | O17: 48079.07115 | P17: 48455.56319 | Q17: 49014.97115 | R17: 49201.79517 | S17: 49269.17969 | T17: 49061.98382 | U17: 48438.48726 | V17: 49301.1893 | W17: 50289.10604 | X17: 51285.21758 | Y17: 52222.33299
B18: 26-27 | C18: - Fabricación de productos informáticos, electrónicos y ópticos; fabricación de material y equipo eléctrico; | D18: 34591.00291 | E18: 35077.16595 | F18: 36213.93466 | G18: 37046.99353 | H18: 37590.87366 | I18: 36864.93434 | J18: 38718.58132 | K18: 40010.08218 | L18: 42215.2863 | M18: 43010.33519 | N18: 43946.58198 | O18: 49241.55253 | P18: 50430.01167 | Q18: 52081.4308 | R18: 50255.7007 | S18: 50573.31188 | T18: 49623.38296 | U18: 47224.17342 | V18: 48313.50122 | W18: 50830.26595 | X18: 51632.91927 | Y18: 52218.74088
B19: 1900-01-28 | C19: - Fabricación de maquinaria y equipo n.c.o.p. | D19: 30421.13658 | E19: 31178.48631 | F19: 32013.69572 | G19: 33425.70178 | H19: 34643.41429 | I19: 35843.38488 | J19: 37772.33904 | K19: 39227.26297 | L19: 42049.83007 | M19: 43019.77168 | N19: 43539.03848 | O19: 47028.30118 | P19: 46658.89146 | Q19: 46124.73325 | R19: 48207.69666 | S19: 47991.98405 | T19: 48563.0893 | U19: 49517.86237 | V19: 50214.60778 | W19: 49787.51553 | X19: 50964.61537 | Y19: 52225.7898
B20: 29-30 | C20: Fabricación de material de transporte | D20: 33755.70313 | E20: 35569.96733 | F20: 35731.6046 | G20: 36755.45091 | H20: 37138.73135 | I20: 38033.40241 | J20: 39266.15432 | K20: 40353.46548 | L20: 40654.96736 | M20: 41469.61565 | N20: 42945.79702 | O20: 43951.92654 | P20: 44430.76369 | Q20: 46803.87819 | R20: 47230.82073 | S20: 46794.12698 | T20: 47341.34698 | U20: 48376.53485 | V20: 49471.97658 | W20: 50758.26284 | X20: 53620.36838 | Y20: 54936.21416
B21: 31-33 | C21: Fabricación de muebles; otras industrias manufactureras y reparación e instalación de maquinaria y equipo | D21: 30638.7757 | E21: 31434.85864 | F21: 32126.17669 | G21: 33145.55518 | H21: 33781.98937 | I21: 34212.70754 | J21: 35087.39246 | K21: 36309.54977 | L21: 37916.74578 | M21: 41261.77617 | N21: 41261.77617 | O21: 43727.02029 | P21: 42739.55531 | Q21: 43371.33868 | R21: 45578.78698 | S21: 45839.63522 | T21: 45967.55804 | U21: 48308.87419 | V21: 48848.93513 | W21: 48894.6925 | X21: 49911.59066 | Y21: 52831.03274
A22: F | B22: 41-43 | C22: Construcción | D22: 25398.10551 | E22: 26668.17656 | F22: 28074.06107 | G22: 29363.47649 | H22: 30315.96092 | I22: 32392.63364 | J22: 30892.86774 | K22: 32885.98363 | L22: 35809.48144 | M22: 37062.67871 | N22: 37617.28963 | O22: 39113.93545 | P22: 39857.10022 | Q22: 38405.35294 | R22: 39908.81898 | S22: 39211.51239 | T22: 39489.68698 | U22: 39180.32095 | V22: 38985.13741 | W22: 40807.18059 | X22: 41855.61515 | Y22: 42882.31323
A23: G_T | B23: 45-98 | C23: Servicios | D23: 25699.206 | E23: 26546.64877 | F23: 27386.98484 | G23: 28354.27287 | H23: 29078.50164 | I23: 30104.68014 | J23: 30917.86098 | K23: 32578.30685 | L23: 34950.06621 | M23: 36274.0481 | N23: 36306.47821 | O23: 36572.49822 | P23: 36537.76706 | Q23: 36663.53194 | R23: 36968.97465 | S23: 37308.76508 | T23: 37543.14038 | U23: 37698.00041 | V23: 38262.18965 | W23: 39423.75595 | X23: 39416.87217 | Y23: 40955.21985
A24: G_I | B24: 45-56 | C24: Comercio al por mayor y al por menor; reparación de vehículos de motor y motocicletas; transporte y almacenamiento; hostelería | D24: 26576.80482 | E24: 27208.70267 | F24: 27732.17797 | G24: 28467.36477 | H24: 28569.38025 | I24: 29461.57512 | J24: 30621.91627 | K24: 31507.41552 | L24: 33534.29933 | M24: 34706.47116 | N24: 34844.81168 | O24: 35521.25946 | P24: 35786.86314 | Q24: 35345.8452 | R24: 35740.92251 | S24: 35523.53081 | T24: 35484.78244 | U24: 36364.17216 | V24: 36822.40957 | W24: 37457.24018 | X24: 36353.21832 | Y24: 38198.76261
A25: G | B25: 45-47 | C25: Comercio al por mayor y al por menor; reparación de vehículos de motor y motocicletas | D25: 27328.69517 | E25: 28168.39412 | F25: 28546.84206 | G25: 29481.41633 | H25: 30168.50023 | I25: 30956.01229 | J25: 32467.95949 | K25: 33521.79763 | L25: 35826.55473 | M25: 36679.65392 | N25: 36712.33022 | O25: 37875.4418 | P25: 38091.77101 | Q25: 37208.26402 | R25: 38215.45539 | S25: 38451.04527 | T25: 38721.39692 | U25: 39220.18214 | V25: 40263.07657 | W25: 41158.41649 | X25: 40915.31041 | Y25: 43737.13474
B26: 46 | C26: - Comercio al por mayor e intermediarios del comercio, excepto de vehículos de motor y motocicletas | D26: 37522.60083 | E26: 38684.92033 | F26: 39280.71877 | G26: 40831.96863 | H26: 42348.51696 | I26: 43940.17385 | J26: 45185.58316 | K26: 46802.85496 | L26: 49101.37875 | M26: 49178.53415 | N26: 49654.33786 | O26: 50844.48419 | P26: 52096.26895 | Q26: 51051.70948 | R26: 52786.69294 | S26: 55036.90304 | T26: 56820.37942 | U26: 56326.86996 | V26: 57389.54915 | W26: 58264.53305 | X26: 59749.63241 | Y26: 62658.35087
B27: 45 y 47 | C27: - Comercio minorista; venta y reparación de vehículos de motor y motocicletas | D27: 21597.08079 | E27: 22364.681 | F27: 22869.85438 | G27: 23681.19601 | H27: 24306.26628 | I27: 25059.92894 | J27: 26783.23825 | K27: 27789.17485 | L27: 30154.97302 | M27: 31466.37165 | N27: 31412.77183 | O27: 32549.02829 | P27: 32359.09919 | Q27: 31399.71587 | R27: 32133.23185 | S27: 31290.74676 | T27: 30828.08339 | U27: 31653.06672 | V27: 32673.80889 | W27: 33625.72272 | X27: 32439.72129 | Y27: 34929.13223
A28: H | B28: 49-53 | C28: Transporte y almacenamiento | D28: 32577.89937 | E28: 33139.40924 | F28: 34248.74693 | G28: 34655.16352 | H28: 32977.30238 | I28: 34350.68923 | J28: 35625.63791 | K28: 36120.3955 | L28: 38571.84351 | M28: 40800.47041 | N28: 40570.90259 | O28: 42026.11151 | P28: 41723.5017 | Q28: 41221.28046 | R28: 41361.43282 | S28: 40275.30519 | T28: 40179.83794 | U28: 42459.73886 | V28: 41729.66037 | W28: 41433.42535 | X28: 42193.4053 | Y28: 43028.37113
A29: I | B29: 55-56 | C29: Hostelería | D29: 17043.47304 | E29: 17611.85263 | F29: 17971.67721 | G29: 18737.87709 | H29: 19798.3186 | I29: 20181.33239 | J29: 20201.56942 | K29: 21239.89208 | L29: 22356.05429 | M29: 23485.24102 | N29: 24467.19574 | O29: 23530.20665 | P29: 24331.54114 | Q29: 24754.90995 | R29: 24471.23059 | S29: 24608.65333 | T29: 24354.17185 | U29: 24931.90865 | V29: 25569.50529 | W29: 26575.80909 | X29: 19402.41543 | Y29: 19431.60239
A30: J | B30: 58-63 | C30: Información y comunicaciones | D30: 39982.39257 | E30: 40995.01399 | F30: 42482.65152 | G30: 44671.8602 | H30: 46713.86857 | I30: 46181.51469 | J30: 46003.91535 | K30: 47667.88499 | L30: 49208.26621 | M30: 52984.8933 | N30: 54135.78642 | O30: 54981.31317 | P30: 55193.20479 | Q30: 56361.509 | R30: 58257.06729 | S30: 59661.80827 | T30: 58878.68559 | U30: 57331.63371 | V30: 58019.35431 | W30: 60562.50554 | X30: 59483.58558 | Y30: 62174.70014
A31: K | B31: 64-66 | C31: Actividades financieras y de seguros | D31: 41702.68064 | E31: 45995.88257 | F31: 47283.57128 | G31: 49755.68392 | H31: 54074.56518 | I31: 56943.38334 | J31: 58919.67478 | K31: 61295.85523 | L31: 65274.98691 | M31: 67481.16794 | N31: 65994.91146 | O31: 66473.67293 | P31: 67232.39002 | Q31: 66929.85735 | R31: 66873.13671 | S31: 67440.60413 | T31: 65241.48713 | U31: 62709.46314 | V31: 62923.38409 | W31: 63919.33444 | X31: 62429.29122 | Y31: 62924.51331
A32: L | B32: 1900-03-08 | C32: Actividades inmobiliarias | D32: 24157.24998 | E32: 24811.06886 | F32: 25192.77382 | G32: 26432.05329 | H32: 27803.18032 | I32: 29999.57218 | J32: 31785.24725 | K32: 32805.6516 | L32: 34235.09356 | M32: 33947.17917 | N32: 36387.95053 | O32: 36195.28251 | P32: 35494.60782 | Q32: 36467.06225 | R32: 36954.51478 | S32: 38759.98288 | T32: 40231.61115 | U32: 41760.92022 | V32: 42335.99889 | W32: 45749.2398 | X32: 44689.58748 | Y32: 48582.03562
A33: M_N | B33: 69-82 | C33: Actividades profesionales, científicas y técnicas; actividades administrativas y servicios auxiliares | D33: 22392.14134 | E33: 23085.36509 | F33: 24005.11461 | G33: 24809.21045 | H33: 25195.05887 | I33: 26797.33403 | J33: 28479.81844 | K33: 29542.38911 | L33: 32600.94522 | M33: 33857.08207 | N33: 34019.56385 | O33: 34738.05518 | P33: 34807.26704 | Q33: 34319.3747 | R33: 34553.9306 | S33: 34767.70703 | T33: 35882.34153 | U33: 35435.30451 | V33: 36617.3621 | W33: 37447.74704 | X33: 37714.76988 | Y33: 39823.37049
A34: M | B34: 69-75 | C34: Actividades profesionales, científicas y técnicas | D34: 29304.06183 | E34: 30200.61807 | F34: 31180.21916 | G34: 32193.06847 | H34: 32403.63081 | I34: 36473.57371 | J34: 37614.31084 | K34: 38284.6658 | L34: 41847.52482 | M34: 44006.20324 | N34: 43239.39727 | O34: 43603.57169 | P34: 43138.30926 | Q34: 43693.04681 | R34: 44382.25733 | S34: 45466.65629 | T34: 46861.18042 | U34: 45825.33395 | V34: 47250.77114 | W34: 48563.16012 | X34: 49126.32301 | Y34: 52044.03034
A35: N | B35: 77-82 | C35: Actividades administrativas y servicios auxiliares | D35: 16476.22085 | E35: 16958.44053 | F35: 17471.35343 | G35: 18078.01232 | H35: 18546.39956 | I35: 18314.03188 | J35: 20267.88252 | K35: 21496.92739 | L35: 23312.43271 | M35: 23728.70042 | N35: 24669.66667 | O35: 25762.71473 | P35: 26077.71425 | Q35: 24461.1922 | R35: 24883.99152 | S35: 24403.88375 | T35: 24514.0647 | U35: 24659.71746 | V35: 25328.93566 | W35: 26091.13203 | X35: 25892.95718 | Y35: 26899.31684
A36: O_Q | B36: 84-88 | C36: Administración pública y defensa; seguridad social obligatoria; educación; actividades sanitarias y de servicios sociales | D36: 26258.41755 | E36: 27122.10291 | F36: 28953.16799 | G36: 30321.43319 | H36: 31658.94417 | I36: 33370.62278 | J36: 34054.54722 | K36: 35464.56225 | L36: 37469.6891 | M36: 38890.54339 | N36: 38680.0324 | O36: 38065.15897 | P36: 36554.99922 | Q36: 37800.81106 | R36: 37972.20097 | S36: 38429.86141 | T36: 38809.94231 | U36: 39587.79855 | V36: 39488.67091 | W36: 41083.80859 | X36: 41491.43947 | Y36: 42468.32532
A37: O | B37: 84 | C37: Administración pública y defensa; seguridad social obligatoria | D37: 24789.50873 | E37: 25374.10272 | F37: 28767.23733 | G37: 30169.81525 | H37: 31538.57621 | I37: 33203.8778 | J37: 33535.17308 | K37: 36292.84031 | L37: 39501.49881 | M37: 41821.54401 | N37: 40632.33205 | O37: 40656.70449 | P37: 38391.54181 | Q37: 40350.81403 | R37: 40739.63464 | S37: 40773.53585 | T37: 41389.30103 | U37: 43358.85887 | V37: 42817.65644 | W37: 44839.27286 | X37: 45487.27872 | Y37: 46243.77584
A38: P | B38: 85 | C38: Educación | D38: 30463.26358 | E38: 31311.80356 | F38: 31707.73909 | G38: 32788.41765 | H38: 34471.61058 | I38: 36115.19035 | J38: 35897.8556 | K38: 36079.8678 | L38: 35917.26907 | M38: 37145.35156 | N38: 36611.50008 | O38: 36005.17923 | P38: 35430.17292 | Q38: 36585.30358 | R38: 36967.5679 | S38: 37784.97274 | T38: 38191.11025 | U38: 38222.28609 | V38: 38414.40756 | W38: 39683.32739 | X38: 39205.00848 | Y38: 40057.28126
A39: Q | B39: 86-88 | C39: Actividades sanitarias y de servicios sociales | D39: 25156.85463 | E39: 26470.04996 | F39: 26896.39187 | G39: 28435.75679 | H39: 29544.2057 | I39: 31404.08898 | J39: 33294.055 | K39: 34015.02752 | L39: 36171.24829 | M39: 36557.73229 | N39: 37821.01256 | O39: 36461.31288 | P39: 35168.98326 | Q39: 35447.54069 | R39: 35466.3271 | S39: 36277.53898 | T39: 36397.96286 | U39: 36559.16554 | V39: 36862.72139 | W39: 38256.52429 | X39: 39021.50462 | Y39: 40419.11515
A40: R_T | B40: 90-98 | C40: Actividades artísticas, recreativas y de entretenimiento; reparación de artículos de uso doméstico y otros servicios | D40: 14493.51324 | E40: 14925.46276 | F40: 15090.43244 | G40: 15431.8499 | H40: 15615.69201 | I40: 15685.2563 | J40: 15967.98785 | K40: 17414.63831 | L40: 19247.1647 | M40: 19745.2084 | N40: 19980.6291 | O40: 20166.21865 | P40: 20465.5609 | Q40: 20451.18193 | R40: 20744.62844 | S40: 21419.31565 | T40: 21195.28895 | U40: 21498.58262 | V40: 22344.24733 | W40: 23188.20757 | X40: 23667.88167 | Y40: 23984.94537
A41: R | B41: 90-93 | C41: Actividades artísticas, recreativas y de entretenimiento | D41: 30459.70591 | E41: 30570.63047 | F41: 31160.0181 | G41: 33195.63165 | H41: 32878.23975 | I41: 34298.61625 | J41: 34910.3072 | K41: 32213.10324 | L41: 33944.64462 | M41: 34290.8952 | N41: 34542.24985 | O41: 34410.8112 | P41: 33415.27068 | Q41: 34911.63166 | R41: 34936.89092 | S41: 35025.96085 | T41: 33994.84884 | U41: 34078.80057 | V41: 34933.59862 | W41: 36350.62875 | X41: 37736.86081 | Y41: 40756.5565
A42: S | B42: 94-96 | C42: Reparación de artículos de uso doméstico y otros servicios | D42: 17334.17315 | E42: 17487.51519 | F42: 17641.4847 | G42: 17420.73992 | H42: 17999.12181 | I42: 17514.89399 | J42: 18902.86549 | K42: 19801.99406 | L42: 22742.69119 | M42: 23590.99159 | N42: 25017.17591 | O42: 25914.38719 | P42: 25982.1534 | Q42: 25234.94629 | R42: 25061.17702 | S42: 24754.92215 | T42: 23713.56246 | U42: 23735.31025 | V42: 24398.41101 | W42: 24824.57639 | X42: 26055.81576 | Y42: 27029.30142
A43: T | B43: 97-98 | C43: Actividades de los hogares como empleadores de personal doméstico; Actividades de los hogares como productores de bienes y servicios para uso propio | D43: 8574.53764 | E43: 9177.144103 | F43: 9700.027175 | G43: 10130.0352 | H43: 10440.28349 | I43: 10844.11832 | J43: 10752.49464 | K43: 12430.691 | L43: 13616.5901 | M43: 14407.4696 | N43: 14440.29929 | O43: 14628.02318 | P43: 14628.02318 | Q43: 14715.79132 | R43: 15104.50669 | S43: 15946.7986 | T43: 16188.93015 | U43: 16334.14524 | V43: 16883.21607 | W43: 17199.06533 | X43: 17579.87088 | Y43: 17176.70301
A44: Total Remuneración de Asalariados por asalariado | D44: 26239.5865 | E44: 27105.39945 | F44: 27923.68156 | G44: 28877.69089 | H44: 29601.00908 | I44: 30683.74452 | J44: 31272.47629 | K44: 32934.81682 | L44: 35273.09458 | M44: 36551.89595 | N44: 36681.43793 | O44: 37078.02453 | P44: 37098.52977 | Q44: 37188.06991 | R44: 37539.43133 | S44: 37820.02535 | T44: 38063.99994 | U44: 38233.88385 | V44: 38780.49335 | W44: 39944.519 | X44: 39971.71721 | Y44: 41478.86645

Sheet 6S
A1: Contabilidad Municipal de la Ciudad de Madrid. Serie 2000 - 2021(a) | Y1: Indice
A2: Sueldos y Salarios (precios corrientes)
A3: Unidad: miles de euros
A5: CÓDIGOS | C5: RAMAS | D5: 2000 | E5: 2001 | F5: 2002 | G5: 2003 | H5: 2004 | I5: 2005 | J5: 2006 | K5: 2007 | L5: 2008 | M5: 2009 | N5: 2010 | O5: 2011 | P5: 2012 | Q5: 2013 | R5: 2014 | S5: 2015 | T5: 2016 | U5: 2017 | V5: 2018 | W5: 2019 | X5: 2020p | Y5: 2021a
A6: (A11) | B6: (A17)
A8: A | B8: 2024-01-03 | C8: Agricultura, ganadería, silvicultura y pesca | D8: 21493.19785 | E8: 23638.49012 | F8: 24319.73901 | G8: 25001.27067 | H8: 27779.73244 | I8: 30039.28629 | J8: 31992.39562 | K8: 30913.13266 | L8: 32510.20166 | M8: 25522.87568 | N8: 24664.64045 | O8: 25357.55514 | P8: 16215.25625 | Q8: 12061.96766 | R8: 9644.568362 | S8: 8732.534384 | T8: 7127.537906 | U8: 7430.890555 | V8: 8442.983565 | W8: 9210.796879 | X8: 9388.998139 | Y8: 10488.2132
A9: B_E | B9: 1939-05-01 | C9: Industrias extractivas; industria manufacturera; suministro de energía eléctrica, gas, vapor y aire acondicionado; suministro de agua, actividades de saneamiento, gestión de residuos y descontaminación | D9: 3066191.975 | E9: 3298002.866 | F9: 3240662.563 | G9: 3240116.001 | H9: 3258715.774 | I9: 3238924.984 | J9: 3295573.693 | K9: 3454324.606 | L9: 3407372.792 | M9: 3219889.511 | N9: 3182837.335 | O9: 3233111.713 | P9: 3102666.044 | Q9: 3032422.467 | R9: 2946773.507 | S9: 3014115.882 | T9: 3126507.651 | U9: 3255344.227 | V9: 3343087.83 | W9: 3459237.536 | X9: 3317132.212 | Y9: 3452886.465
A10: C | B10: 1933-10-01 | C10: Industria Manufacturera | D10: 2490847.688 | E10: 2692674.016 | F10: 2616956.381 | G10: 2616755.384 | H10: 2636841.249 | I10: 2587788.949 | J10: 2642650.138 | K10: 2703947.348 | L10: 2678904.172 | M10: 2470799.882 | N10: 2393553.22 | O10: 2410792.894 | P10: 2270649.2 | Q10: 2191687.623 | R10: 2154497.983 | S10: 2215317.143 | T10: 2287719.589 | U10: 2346726.969 | V10: 2380956.322 | W10: 2456356.933 | X10: 2373077.642 | Y10: 2434967.163
B11: 2024-10-12 | C11: Industria de la alimentación, fabricación de bebidas e industria del tabaco | D11: 242258.0257 | E11: 232813.8273 | F11: 233963.9434 | G11: 240129.097 | H11: 244512.4621 | I11: 242907.2843 | J11: 263166.953 | K11: 270519.6433 | L11: 264835.3555 | M11: 261985.886 | N11: 253699.1321 | O11: 249519.1876 | P11: 235230.7407 | Q11: 229198.7856 | R11: 236619.3651 | S11: 235231.0187 | T11: 251572.1451 | U11: 246662.0558 | V11: 268721.4028 | W11: 287325.4411 | X11: 272820.2793 | Y11: 271545.2943
B12: 13-15 | C12: Industria textil, confección de prendas de vestir e industria del cuero y del calzado | D12: 210767.6418 | E12: 215575.2716 | F12: 213454.0039 | G12: 215605.815 | H12: 211922.4231 | I12: 217364.3462 | J12: 227948.4758 | K12: 224884.3148 | L12: 190845.3421 | M12: 147058.9239 | N12: 109736.866 | O12: 96235.81152 | P12: 71290.15513 | Q12: 104519.7126 | R12: 95961.27589 | S12: 95550.27345 | T12: 93327.77646 | U12: 101879.5689 | V12: 103782.9164 | W12: 106341.5928 | X12: 94451.944 | Y12: 102750.3999
B13: 16-18 | C13: Industria de la madera y del corcho, industria del papel y artes gráficas | D13: 413036.7219 | E13: 451231.0053 | F13: 465569.9476 | G13: 437848.2346 | H13: 429798.6166 | I13: 413815.5083 | J13: 413818.5895 | K13: 386137.8144 | L13: 370052.5227 | M13: 314638.8211 | N13: 292061.7137 | O13: 308018.8369 | P13: 297496.7462 | Q13: 265206.9763 | R13: 252614.519 | S13: 242058.9175 | T13: 245762.6538 | U13: 261194.0177 | V13: 252672.2415 | W13: 254905.4582 | X13: 232852.6739 | Y13: 236206.0789
B14: 19-21 | C14: Coquerías y refino de petróleo; industria química; fabricación de productos farmacéuticos | D14: 363719.7834 | E14: 406693.1486 | F14: 366265.0408 | G14: 387256.0223 | H14: 409076.498 | I14: 377078.4214 | J14: 369752.6477 | K14: 402536.6603 | L14: 399868.0385 | M14: 394215.0239 | N14: 426764.974 | O14: 449199.4658 | P14: 435527.3838 | Q14: 406731.6744 | R14: 422171.0536 | S14: 429584.6264 | T14: 430388.3994 | U14: 430731.0557 | V14: 458953.1303 | W14: 481392.8632 | X14: 439714.178 | Y14: 476445.8171
B15: 22-23 | C15: Fabricación de productos de caucho y plásticos y de otros productos minerales no metálicos | D15: 139889.5685 | E15: 163438.6559 | F15: 152148.5445 | G15: 156772.1141 | H15: 150283.8166 | I15: 152147.312 | J15: 153138.748 | K15: 145506.066 | L15: 139997.7899 | M15: 126613.5971 | N15: 113203.4167 | O15: 99782.2911 | P15: 91140.87151 | Q15: 85157.81946 | R15: 85623.49595 | S15: 89048.94929 | T15: 100837.9626 | U15: 90321.44715 | V15: 80942.68397 | W15: 80100.91339 | X15: 79723.96664 | Y15: 80397.01204
B16: 24-25 | C16: Metalurgia y fabricación de productos metálicos, excepto maquinaria y equipo | D16: 143951.5862 | E16: 150576.8571 | F16: 153461.5964 | G16: 158821.9311 | H16: 171136.637 | I16: 167794.6045 | J16: 170004.3149 | K16: 181455.5607 | L16: 187921.225 | M16: 153028.6209 | N16: 147601.7735 | O16: 141958.5749 | P16: 126981.9807 | Q16: 99128.65499 | R16: 95354.96936 | S16: 99190.08107 | T16: 105427.3203 | U16: 105736.2646 | V16: 106932.3767 | W16: 113343.6359 | X16: 108087.0866 | Y16: 111676.6627
B17: 26-28 | C17: Fabricación de productos informáticos, electrónicos y ópticos; fabricación de material y equipo eléctrico; fabricación de maquinaria y equipo n.c.o.p. | D17: 424819.2472 | E17: 464916.9588 | F17: 452771.3398 | G17: 444689.9872 | H17: 438433.7381 | I17: 425983.4115 | J17: 430276.949 | K17: 438929.2835 | L17: 456684.0221 | M17: 409651.7471 | N17: 389192.7416 | O17: 372989.8684 | P17: 332051.4269 | Q17: 312214.8672 | R17: 289603.8939 | S17: 304626.6491 | T17: 302113.6821 | U17: 307012.9674 | V17: 313258.0783 | W17: 323440.5226 | X17: 319680.3883 | Y17: 330952.6132
B18: 26-27 | C18: - Fabricación de productos informáticos, electrónicos y ópticos; fabricación de material y equipo eléctrico; | D18: 237773.4472 | E18: 259254.0568 | F18: 245133.3698 | G18: 230548.0669 | H18: 221968.6545 | I18: 207845.9505 | J18: 205672.2381 | K18: 203960.6263 | L18: 205719.0067 | M18: 191322.3021 | N18: 185261.5786 | O18: 186747.8196 | P18: 170014.497 | Q18: 164633.861 | R18: 147434.8631 | S18: 157839.1219 | T18: 145576.9517 | U18: 140591.2816 | V18: 148378.3101 | W18: 157134.0462 | X18: 154848.8891 | Y18: 163799.8469
B19: 1900-01-28 | C19: - Fabricación de maquinaria y equipo n.c.o.p. | D19: 187045.8 | E19: 205662.902 | F19: 207637.9701 | G19: 214141.9203 | H19: 216465.0836 | I19: 218137.4611 | J19: 224604.711 | K19: 234968.6572 | L19: 250965.0154 | M19: 218329.4451 | N19: 203931.1631 | O19: 186242.0488 | P19: 162036.9299 | Q19: 147581.0062 | R19: 142169.0308 | S19: 146787.5273 | T19: 156536.7305 | U19: 166421.6858 | V19: 164879.7682 | W19: 166306.4764 | X19: 164831.4992 | Y19: 167152.7663
B20: 29-30 | C20: Fabricación de material de transporte | D20: 298991.2141 | E20: 327698.173 | F20: 293415.3797 | G20: 289915.5388 | H20: 302959.6305 | I20: 320321.6317 | J20: 341830.5228 | K20: 378754.0188 | L20: 391498.2906 | M20: 376706.1953 | N20: 390319.5543 | O20: 409971.1928 | P20: 421701.6726 | Q20: 448092.6767 | R20: 425331.7356 | S20: 442355.7683 | T20: 465665.9636 | U20: 488183.97 | V20: 458902.7746 | W20: 443824.7602 | X20: 441875.7105 | Y20: 436053.6123
B21: 31-33 | C21: Fabricación de muebles; otras industrias manufactureras y reparación e instalación de maquinaria y equipo | D21: 253413.8996 | E21: 279730.118 | F21: 285906.5852 | G21: 285716.6437 | H21: 278717.4267 | I21: 270376.4289 | J21: 272712.9373 | K21: 275223.9862 | L21: 277201.5854 | M21: 286901.0668 | N21: 270973.0478 | O21: 283117.6653 | P21: 259228.2229 | Q21: 241436.4559 | R21: 251217.6746 | S21: 277670.8591 | T21: 292623.6859 | U21: 315005.6219 | V21: 336790.7172 | W21: 365681.7461 | X21: 383871.4146 | Y21: 388939.6722
A22: F | B22: 41-43 | C22: Construcción | D22: 2418480.98 | E22: 2764176.384 | F22: 3029092.034 | G22: 3596107.037 | H22: 3942477.797 | I22: 4715552.628 | J22: 4918029.217 | K22: 5010770.752 | L22: 4852705.497 | M22: 4122059.52 | N22: 3355608.527 | O22: 3110268.751 | P22: 2521036.37 | Q22: 2126672.835 | R22: 2102777.791 | S22: 2228089.885 | T22: 2239573.246 | U22: 2374529.998 | V22: 2534267.345 | W22: 2840584.227 | X22: 2774529.4 | Y22: 2963725.113
A23: G_T | B23: 45-98 | C23: Servicios | D23: 24202436.78 | E23: 26238523.91 | F23: 28204279.06 | G23: 30364317.43 | H23: 32323620.29 | I23: 34998159.61 | J23: 38086115.69 | K23: 40551210.26 | L23: 44556548.73 | M23: 45245124.23 | N23: 45083823.44 | O23: 45162658.87 | P23: 44070833.75 | Q23: 43479713.42 | R23: 43994252.09 | S23: 46909183.46 | T23: 48386386.78 | U23: 50083421.13 | V23: 52201033.33 | W23: 55250079.36 | X23: 53365459.56 | Y23: 57422076.08
A24: G_I | B24: 45-56 | C24: Comercio al por mayor y al por menor; reparación de vehículos de motor y motocicletas; transporte y almacenamiento; hostelería | D24: 7225306.242 | E24: 7932359.636 | F24: 8283943.771 | G24: 8842263.862 | H24: 9003307.725 | I24: 9840914.941 | J24: 10697517.34 | K24: 11192725.91 | L24: 12058747.92 | M24: 12112865.66 | N24: 12104272.38 | O24: 12068672.31 | P24: 11526645.7 | Q24: 11198666.33 | R24: 11382294.93 | S24: 11989212.31 | T24: 12211365.16 | U24: 12941125.63 | V24: 13525625.86 | W24: 14117692.65 | X24: 12584502.17 | Y24: 13405338.69
A25: G | B25: 45-47 | C25: Comercio al por mayor y al por menor; reparación de vehículos de motor y motocicletas | D25: 3907763.162 | E25: 4282679.454 | F25: 4505238.423 | G25: 4867729.401 | H25: 5113025.707 | I25: 5468511.417 | J25: 5925822.175 | K25: 6182848.063 | L25: 6754950.115 | M25: 6701650.188 | N25: 6662312.28 | O25: 6662519.541 | P25: 6515895.674 | Q25: 6002798.975 | R25: 6106862.831 | S25: 6594600.641 | T25: 6749268.538 | U25: 6900670.032 | V25: 7299768.011 | W25: 7559443.623 | X25: 7288109.771 | Y25: 7840895.147
B26: 46 | C26: - Comercio al por mayor e intermediarios del comercio, excepto de vehículos de motor y motocicletas | D26: 1941687.398 | E26: 2093097.471 | F26: 2113643.326 | G26: 2254825.647 | H26: 2307197.032 | I26: 2385791.504 | J26: 2511141.989 | K26: 2605688.553 | L26: 2755669.589 | M26: 2635506.512 | N26: 2619812.933 | O26: 2624562.885 | P26: 2601916.9 | Q26: 2470599.943 | R26: 2479991.317 | S26: 2899519.274 | T26: 3073106.317 | U26: 3114456.06 | V26: 3259253.097 | W26: 3310252.517 | X26: 3393708.986 | Y26: 3619365.541
B27: 45 y 47 | C27: - Comercio minorista; venta y reparación de vehículos de motor y motocicletas | D27: 1966075.764 | E27: 2189581.983 | F27: 2391595.097 | G27: 2612903.754 | H27: 2805828.676 | I27: 3082719.913 | J27: 3414680.186 | K27: 3577159.509 | L27: 3999280.526 | M27: 4066143.676 | N27: 4042499.347 | O27: 4037956.656 | P27: 3913978.775 | Q27: 3532199.033 | R27: 3626871.513 | S27: 3695081.367 | T27: 3676162.221 | U27: 3786213.972 | V27: 4040514.914 | W27: 4249191.106 | X27: 3894400.786 | Y27: 4221529.606
A28: H | B28: 49-53 | C28: Transporte y almacenamiento | D28: 2329820.585 | E28: 2535167.623 | F28: 2631466.638 | G28: 2717755.877 | H28: 2517672.463 | I28: 2902645.007 | J28: 3262436.503 | K28: 3383346.018 | L28: 3554275.259 | M28: 3599743.097 | N28: 3529936.863 | O28: 3576076.846 | P28: 3199918.942 | Q28: 3431253.188 | R28: 3485555.449 | S28: 3446345.623 | T28: 3434706.686 | U28: 3865396.335 | V28: 3878496.223 | W28: 4047949.773 | X28: 3867325.282 | Y28: 4134667.79
A29: I | B29: 55-56 | C29: Hostelería | D29: 987722.4953 | E29: 1114512.558 | F29: 1147238.71 | G29: 1256778.583 | H29: 1372609.554 | I29: 1469758.517 | J29: 1509258.661 | K29: 1626531.831 | L29: 1749522.55 | M29: 1811472.38 | N29: 1912023.242 | O29: 1830075.921 | P29: 1810831.086 | Q29: 1764614.167 | R29: 1789876.646 | S29: 1948266.043 | T29: 2027389.938 | U29: 2175059.259 | V29: 2347361.622 | W29: 2510299.255 | X29: 1429067.115 | Y29: 1429775.748
A30: J | B30: 58-63 | C30: Información y comunicaciones | D30: 2418191.046 | E30: 2733444.11 | F30: 2972276.114 | G30: 3196886.907 | H30: 3524727.221 | I30: 3626036.452 | J30: 3842647.289 | K30: 4283897.803 | L30: 4539470.459 | M30: 4714559.588 | N30: 4806663.89 | O30: 4925236.823 | P30: 5554591.935 | Q30: 5604177.848 | R30: 5574234.113 | S30: 6705250.96 | T30: 6885089.874 | U30: 7047938.327 | V30: 7457294.974 | W30: 7995991.553 | X30: 7831509.042 | Y30: 8901535.731
A31: K | B31: 64-66 | C31: Actividades financieras y de seguros | D31: 2558105.461 | E31: 2740544.157 | F31: 2815617.063 | G31: 3080093.764 | H31: 3175659.826 | I31: 3240565.293 | J31: 3540916.579 | K31: 3757755.263 | L31: 4076489.212 | M31: 4183277.268 | N31: 4024011.127 | O31: 3965037.818 | P31: 3973472.607 | Q31: 3804168.133 | R31: 3714947.628 | S31: 3580385.48 | T31: 3683749.139 | U31: 3562935.757 | V31: 3515308.38 | W31: 3586462.003 | X31: 3548470.831 | Y31: 3443017.796
A32: L | B32: 1900-03-08 | C32: Actividades inmobiliarias | D32: 311965.2307 | E32: 360889.9235 | F32: 398318.5789 | G32: 428433.2522 | H32: 479330.7716 | I32: 555475.1626 | J32: 635394.2079 | K32: 681729.3276 | L32: 725411.7349 | M32: 569241.8324 | N32: 600977.4774 | O32: 559557.2124 | P32: 545311.2429 | Q32: 495826.9074 | R32: 531560.3566 | S32: 593853.361 | T32: 625715.1853 | U32: 692398.3058 | V32: 761906.887 | W32: 859304.4112 | X32: 808745.4409 | Y32: 826135.9274
A33: M_N | B33: 69-82 | C33: Actividades profesionales, científicas y técnicas; actividades administrativas y servicios auxiliares | D33: 3726831.217 | E33: 4341590.316 | F33: 4900447.629 | G33: 5217382.975 | H33: 5707760.807 | I33: 6298471.049 | J33: 7084359.982 | K33: 7742332.789 | L33: 9051069.681 | M33: 8943634.278 | N33: 8776951.607 | O33: 8882957.904 | P33: 8605509.006 | Q33: 8319357.859 | R33: 8629103.74 | S33: 9331298.172 | T33: 9913908.799 | U33: 10285841.11 | V33: 10946619.02 | W33: 11905132.44 | X33: 11747933.38 | Y33: 12807870.47
A34: M | B34: 69-75 | C34: Actividades profesionales, científicas y técnicas | D34: 2281229.415 | E34: 2664038.207 | F34: 3072893.34 | G34: 3271377.201 | H34: 3577051.447 | I34: 4056097.06 | J34: 4506169.859 | K34: 4877337.246 | L34: 5898141.083 | M34: 5863777.153 | N34: 5684904.591 | O34: 5684551.951 | P34: 5513794.375 | Q34: 5455441.316 | R34: 5520151.674 | S34: 6104693.029 | T34: 6690028.409 | U34: 6891061.175 | V34: 7394293.087 | W34: 7946702.398 | X34: 7937897.944 | Y34: 8742846.331
A35: N | B35: 77-82 | C35: Actividades administrativas y servicios auxiliares | D35: 1445601.802 | E35: 1677552.109 | F35: 1827554.289 | G35: 1946005.774 | H35: 2130709.36 | I35: 2242373.988 | J35: 2578190.123 | K35: 2864995.542 | L35: 3152928.598 | M35: 3079857.126 | N35: 3092047.016 | O35: 3198405.953 | P35: 3091714.631 | Q35: 2863916.543 | R35: 3108952.067 | S35: 3226605.144 | T35: 3223880.39 | U35: 3394779.937 | V35: 3552325.929 | W35: 3958430.044 | X35: 3810035.435 | Y35: 4065024.14
A36: O_Q | B36: 84-88 | C36: Administración pública y defensa; seguridad social obligatoria; educación; actividades sanitarias y de servicios sociales | D36: 5681244.082 | E36: 5778901.034 | F36: 6321383.196 | G36: 6913835.537 | H36: 7400452.833 | I36: 8272113.833 | J36: 8696068.739 | K36: 9494761.647 | L36: 10424835.36 | M36: 10864392.84 | N36: 10834876.66 | O36: 10777160.04 | P36: 10155640.59 | Q36: 10347702.65 | R36: 10355565.92 | S36: 10779483.47 | T36: 11097674.32 | U36: 11484595.1 | V36: 11700304.46 | W36: 12376368.97 | X36: 12678839.58 | Y36: 13634271.22
A37: O | B37: 84 | C37: Administración pública y defensa; seguridad social obligatoria | D37: 2268230.196 | E37: 2290036.056 | F37: 2629579.712 | G37: 2852467.052 | H37: 2895058.932 | I37: 3315302.892 | J37: 3385191.832 | K37: 3872715.838 | L37: 4439511.766 | M37: 4815614.512 | N37: 4703439.463 | O37: 4686190.624 | P37: 4339785.875 | Q37: 4651390.862 | R37: 4468708.943 | S37: 4441392.27 | T37: 4590268.195 | U37: 4772984.316 | V37: 4705902.117 | W37: 5021467.733 | X37: 5231070.901 | Y37: 5504831.6
A38: P | B38: 85 | C38: Educación | D38: 1697665.913 | E38: 1636288.656 | F38: 1725260.693 | G38: 1877383.443 | H38: 2082612.774 | I38: 2258813.312 | J38: 2307012.622 | K38: 2292940.533 | L38: 2528584.159 | M38: 2625463.708 | N38: 2638908.435 | O38: 2597744.784 | P38: 2500228.8 | Q38: 2509991.79 | R38: 2577473.356 | S38: 2825629.418 | T38: 2893108.148 | U38: 2988086.352 | V38: 3077173.023 | W38: 3231424.008 | X38: 3178694.425 | Y38: 3523880.587
A39: Q | B39: 86-88 | C39: Actividades sanitarias y de servicios sociales | D39: 1715347.973 | E39: 1852576.322 | F39: 1966542.79 | G39: 2183985.042 | H39: 2422781.126 | I39: 2697997.629 | J39: 3003864.285 | K39: 3329105.277 | L39: 3456739.431 | M39: 3423314.622 | N39: 3492528.759 | O39: 3493224.631 | P39: 3315625.914 | Q39: 3186319.993 | R39: 3309383.619 | S39: 3512461.78 | T39: 3614297.978 | U39: 3723524.432 | V39: 3917229.323 | W39: 4123477.226 | X39: 4269074.254 | Y39: 4605559.029
A40: R_T | B40: 90-98 | C40: Actividades artísticas, recreativas y de entretenimiento; reparación de artículos de uso doméstico y otros servicios | D40: 2280793.498 | E40: 2350794.732 | F40: 2512292.711 | G40: 2685421.132 | H40: 3032381.111 | I40: 3164582.876 | J40: 3589211.551 | K40: 3398007.52 | L40: 3680524.365 | M40: 3857152.76 | N40: 3936070.3 | O40: 3984036.763 | P40: 3709662.671 | Q40: 3709813.694 | R40: 3806545.407 | S40: 3929699.709 | T40: 3968884.302 | U40: 4068586.906 | V40: 4293973.757 | W40: 4409127.331 | X40: 4165459.115 | Y40: 4403906.253
A41: R | B41: 90-93 | C41: Actividades artísticas, recreativas y de entretenimiento | D41: 738531.5148 | E41: 793480.1819 | F41: 811049.5991 | G41: 865571.7681 | H41: 830829.6425 | I41: 835136.884 | J41: 958138.3368 | K41: 948758.1639 | L41: 1034412.869 | M41: 1004577.231 | N41: 1003278.984 | O41: 969323.6018 | P41: 935310.8573 | Q41: 986445.2463 | R41: 1036150.282 | S41: 1074928.741 | T41: 1109512.759 | U41: 1205424.554 | V41: 1308818.805 | W41: 1443054.147 | X41: 1292728.343 | Y41: 1400500.805
A42: S | B42: 94-96 | C42: Reparación de artículos de uso doméstico y otros servicios | D42: 720271.1072 | E42: 786169.3529 | F42: 800510.5236 | G42: 838436.0138 | H42: 910702.5255 | I42: 945039.5876 | J42: 1059422.572 | K42: 911239.0191 | L42: 1015080.282 | M42: 1032174.591 | N42: 1042036.702 | O42: 1043372.377 | P42: 1025716.705 | Q42: 938194.1597 | R42: 932986.5269 | S42: 949361.0347 | T42: 908462.2779 | U42: 923036.074 | V42: 995934.2766 | W42: 1042194.068 | X42: 1023829.151 | Y42: 1057283.482
A43: T | B43: 97-98 | C43: Actividades de los hogares como empleadores de personal doméstico; Actividades de los hogares como productores de bienes y servicios para uso propio | D43: 821990.8765 | E43: 771145.1975 | F43: 900732.5884 | G43: 981413.3498 | H43: 1290848.943 | I43: 1384406.404 | J43: 1571650.642 | K43: 1538010.337 | L43: 1631031.215 | M43: 1820400.938 | N43: 1890754.615 | O43: 1971340.785 | P43: 1748635.109 | Q43: 1785174.288 | R43: 1837408.599 | S43: 1905409.933 | T43: 1950909.265 | U43: 1940126.278 | V43: 1989220.676 | W43: 1923879.116 | X43: 1848901.62 | Y43: 1946121.966
A44: Total Sueldos y Salarios | D44: 29708602.93 | E44: 32324341.65 | F44: 34498353.4 | G44: 37225541.74 | H44: 39552593.6 | I44: 42982676.5 | J44: 46331710.99 | K44: 49047218.75 | L44: 52849137.22 | M44: 52612596.14 | N44: 51646933.95 | O44: 51531396.89 | P44: 49710751.42 | Q44: 48650870.69 | R44: 49053447.96 | S44: 52160121.76 | T44: 53759595.22 | U44: 55720726.25 | V44: 58086831.49 | W44: 61559111.92 | X44: 59466510.17 | Y44: 63849175.87

Sheet 6C
A1: Contabilidad Municipal de la Ciudad de Madrid. Serie 2000 - 2021(a) | Y1: Indice
A2: Cotizaciones Sociales (precios corrientes)
A3: Unidad: miles de euros
A5: CÓDIGOS | C5: RAMAS | D5: 2000 | E5: 2001 | F5: 2002 | G5: 2003 | H5: 2004 | I5: 2005 | J5: 2006 | K5: 2007 | L5: 2008 | M5: 2009 | N5: 2010 | O5: 2011 | P5: 2012 | Q5: 2013 | R5: 2014 | S5: 2015 | T5: 2016 | U5: 2017 | V5: 2018 | W5: 2019 | X5: 2020p | Y5: 2021a
A6: (A11) | B6: (A17)
A8: A | B8: 2024-01-03 | C8: Agricultura, ganadería, silvicultura y pesca | D8: 3589.596697 | E8: 4005.480934 | F8: 4186.341792 | G8: 4463.554395 | H8: 4969.042824 | I8: 5299.341869 | J8: 5642.448333 | K8: 5061.317628 | L8: 5149.584283 | M8: 4111.383232 | N8: 4020.201846 | O8: 4142.190872 | P8: 2632.691576 | Q8: 1991.23594 | R8: 1597.13076 | S8: 1404.228259 | T8: 1155.000794 | U8: 1214.538118 | V8: 1379.740226 | W8: 1531.405935 | X8: 1566.518556 | Y8: 1714.24066
A9: B_E | B9: 1939-05-01 | C9: Industrias extractivas; industria manufacturera; suministro de energía eléctrica, gas, vapor y aire acondicionado; suministro de agua, actividades de saneamiento, gestión de residuos y descontaminación | D9: 786883.3297 | E9: 765588.0809 | F9: 828062.9055 | G9: 866626.0994 | H9: 898568.5505 | I9: 924402.9857 | J9: 958529.8446 | K9: 975181.1675 | L9: 1083335.973 | M9: 1060173.144 | N9: 1069634.38 | O9: 1085368.135 | P9: 1048430.491 | Q9: 1003031.318 | R9: 1020801.69 | S9: 985896.1678 | T9: 1015310.677 | U9: 1047781.234 | V9: 1081518.652 | W9: 1120914.853 | X9: 1100907.751 | Y9: 1106592.346
A10: C | B10: 1933-10-01 | C10: Industria Manufacturera | D10: 720082.9284 | E10: 688673.9488 | F10: 750306.3956 | G10: 793819.6909 | H10: 803073.6381 | I10: 821351.1875 | J10: 853732.8299 | K10: 838751.9873 | L10: 861796.4127 | M10: 842869.7407 | N10: 828214.6843 | O10: 837080.6576 | P10: 801185.5818 | Q10: 765268.2877 | R10: 768283.1012 | S10: 743222.2536 | T10: 741342.3999 | U10: 775966.9206 | V10: 795322.8141 | W10: 816909.8657 | X10: 816204.9138 | Y10: 813427.6291
B11: 2024-10-12 | C11: Industria de la alimentación, fabricación de bebidas e industria del tabaco | D11: 55246.90514 | E11: 60459.74518 | F11: 60425.5189 | G11: 64007.94799 | H11: 64519.49057 | I11: 63509.26039 | J11: 63235.6448 | K11: 59401.17857 | L11: 76806.19259 | M11: 87971.07502 | N11: 84971.93348 | O11: 78050.01674 | P11: 68704.83969 | Q11: 74770.1086 | R11: 72956.33577 | S11: 78262.76851 | T11: 70610.92711 | U11: 77811.85859 | V11: 79584.69241 | W11: 83454.40009 | X11: 83812.76378 | Y11: 95823.9919
B12: 13-15 | C12: Industria textil, confección de prendas de vestir e industria del cuero y del calzado | D12: 39788.97579 | E12: 41060.3948 | F12: 39864.80665 | G12: 38465.12101 | H12: 39279.12472 | I12: 35855.416 | J12: 29339.60594 | K12: 26928.55742 | L12: 45311.84931 | M12: 57219.68016 | N12: 72380.35357 | O12: 63624.84216 | P12: 77256.64199 | Q12: 30366.29237 | R12: 31828.0386 | S12: 29947.3588 | T12: 27624.11825 | U12: 29100.91594 | V12: 29433.13136 | W12: 28755.76611 | X12: 29603.16122 | Y12: 17081.24342
B13: 16-18 | C13: Industria de la madera y del corcho, industria del papel y artes gráficas | D13: 136230.7342 | E13: 140408.1337 | F13: 156517.1887 | G13: 156856.793 | H13: 149818.86 | I13: 139517.6401 | J13: 157135.6496 | K13: 140310.9058 | L13: 114378.5339 | M13: 102296.0984 | N13: 87445.46448 | O13: 94098.0811 | P13: 103645.6375 | Q13: 91011.46336 | R13: 86936.26875 | S13: 96099.04721 | T13: 84323.3131 | U13: 83571.21538 | V13: 89135.05939 | W13: 90642.50827 | X13: 86375.01474 | Y13: 84566.72928
B14: 19-21 | C14: Coquerías y refino de petróleo; industria química; fabricación de productos farmacéuticos | D14: 106573.4059 | E14: 80874.77586 | F14: 124913.3297 | G14: 127203.045 | H14: 125983.3556 | I14: 124063.7955 | J14: 121212.029 | K14: 123616.65 | L14: 135238.9641 | M14: 107862.4752 | N14: 120553.6419 | O14: 152580.4989 | P14: 126465.8633 | Q14: 147962.629 | R14: 153274.2197 | S14: 149819.1336 | T14: 157553.2588 | U14: 171147.6138 | V14: 178572.2181 | W14: 189818.842 | X14: 178600.8104 | Y14: 178030.6291
B15: 22-23 | C15: Fabricación de productos de caucho y plásticos y de otros productos minerales no metálicos | D15: 64114.9761 | E15: 73489.38638 | F15: 67441.44755 | G15: 70362.04313 | H15: 68432.25805 | I15: 69928.87608 | J15: 73379.02912 | K15: 61891.85822 | L15: 56041.27349 | M15: 48987.70683 | N15: 42625.27246 | O15: 42152.89864 | P15: 42186.61535 | Q15: 31781.61893 | R15: 30020.81789 | S15: 29040.01714 | T15: 28085.07426 | U15: 29539.15372 | V15: 28654.2521 | W15: 28196.92003 | X15: 28597.96729 | Y15: 31388.29143
B16: 24-25 | C16: Metalurgia y fabricación de productos metálicos, excepto maquinaria y equipo | D16: 44764.45002 | E16: 46269.38687 | F16: 44810.24391 | G16: 49127.38934 | H16: 49158.02436 | I16: 49371.12568 | J16: 51986.61121 | K16: 53322.91716 | L16: 57766.22532 | M16: 50620.8339 | N16: 47119.04607 | O16: 51952.93079 | P16: 40614.44826 | Q16: 33451.37625 | R16: 30630.66286 | S16: 30019.60345 | T16: 33057.607 | U16: 33023.35368 | V16: 33184.34782 | W16: 33450.27936 | X16: 33181.76859 | Y16: 33683.57485
B17: 26-28 | C17: Fabricación de productos informáticos, electrónicos y ópticos; fabricación de material y equipo eléctrico; fabricación de maquinaria y equipo n.c.o.p. | D17: 90149.66104 | E17: 68432.36765 | F17: 85533.33833 | G17: 104463.6082 | H17: 111237.8184 | I17: 126440.9347 | J17: 131814.8483 | K17: 131572.8627 | L17: 141094.8235 | M17: 126065.2341 | N17: 122987.7405 | O17: 112998.4046 | P17: 118353.4362 | Q17: 110399.9885 | R17: 108791.3552 | S17: 101682.8051 | T17: 98631.36985 | U17: 106365.4944 | V17: 106252.2009 | W17: 107872.8654 | X17: 108263.3918 | Y17: 107025.5271
B18: 26-27 | C18: - Fabricación de productos informáticos, electrónicos y ópticos; fabricación de material y equipo eléctrico; | D18: 38861.95698 | E18: 19654.55942 | F18: 32960.0726 | G18: 42585.473 | H18: 45044.3173 | I18: 55975.75113 | J18: 58372.49221 | K18: 56664.61501 | L18: 59936.54195 | M18: 54287.69641 | N18: 53026.01593 | O18: 49560.15333 | P18: 53315.39287 | Q18: 53250.9503 | R18: 50087.89953 | S18: 48516.95109 | T18: 45141.18938 | U18: 49061.63131 | V18: 49144.40911 | W18: 52571.70441 | X18: 51838.37718 | Y18: 50971.38627
B19: 1900-01-28 | C19: - Fabricación de maquinaria y equipo n.c.o.p. | D19: 51287.70407 | E19: 48777.80823 | F19: 52573.26572 | G19: 61878.1352 | H19: 66193.50109 | I19: 70465.1836 | J19: 73442.35604 | K19: 74908.24769 | L19: 81158.28152 | M19: 71777.53766 | N19: 69961.72457 | O19: 63438.25128 | P19: 65038.04331 | Q19: 57149.03815 | R19: 58703.45567 | S19: 53165.85401 | T19: 53490.18047 | U19: 57303.86313 | V19: 57107.79182 | W19: 55301.16101 | X19: 56425.01463 | Y19: 56054.14079
B20: 29-30 | C20: Fabricación de material de transporte | D20: 123551.8426 | E20: 122222.9513 | F20: 111239.5727 | G20: 117002.5873 | H20: 117716.5704 | I20: 129614.6631 | J20: 141895.1948 | K20: 157697.3963 | L20: 150528.8212 | M20: 174798.4764 | N20: 162631.0473 | O20: 158242.1631 | P20: 142707.1729 | Q20: 156396.3279 | R20: 161184.2473 | S20: 140153.4852 | T20: 148762.8937 | U20: 149143.8966 | V20: 152611.3122 | W20: 144350.7566 | X20: 148351.3704 | Y20: 145468.3795
B21: 31-33 | C21: Fabricación de muebles; otras industrias manufactureras y reparación e instalación de maquinaria y equipo | D21: 59661.97757 | E21: 55456.80706 | F21: 59560.94911 | G21: 66331.15591 | H21: 76928.13594 | I21: 83049.47589 | J21: 83734.21721 | K21: 84009.66103 | L21: 84629.72942 | M21: 87048.16068 | N21: 87500.18462 | O21: 83380.82158 | P21: 81250.92662 | Q21: 89128.48273 | R21: 92661.15513 | S21: 88198.03449 | T21: 92693.83773 | U21: 96263.41847 | V21: 97895.59977 | W21: 110367.5278 | X21: 119418.6656 | Y21: 120359.2626
A22: F | B22: 41-43 | C22: Construcción | D22: 752737.1789 | E22: 788860.5123 | F22: 862500.8579 | G22: 890712.4988 | H22: 1094500.471 | I22: 1106917.922 | J22: 1156603.805 | K22: 1384084.837 | L22: 1221888.7 | M22: 1014281.96 | N22: 799080.6775 | O22: 758297.9294 | P22: 628347.3518 | Q22: 549761.9701 | R22: 546832.9281 | S22: 589459.3174 | T22: 586428.641 | U22: 621567.1066 | V22: 683820.7597 | W22: 754795.7064 | X22: 782382.4676 | Y22: 845832.9367
A23: G_T | B23: 45-98 | C23: Servicios | D23: 7160498.655 | E23: 8413298.221 | F23: 9167294.819 | G23: 9216773.764 | H23: 9449548.251 | I23: 9700662.169 | J23: 10526201.47 | K23: 11448601.43 | L23: 12551570.27 | M23: 12849842.06 | N23: 12666661.79 | O23: 12893065.19 | P23: 12430056.58 | Q23: 11940833.94 | R23: 12416568.62 | S23: 11513887.91 | T23: 11892902.71 | U23: 12287882.25 | V23: 12860671.79 | W23: 13908889.07 | X23: 13976047.38 | Y23: 14364286.92
A24: G_I | B24: 45-56 | C24: Comercio al por mayor y al por menor; reparación de vehículos de motor y motocicletas; transporte y almacenamiento; hostelería | D24: 2189287.049 | E24: 2336725.587 | F24: 2462044.102 | G24: 2589647.22 | H24: 2588517.133 | I24: 2802112.643 | J24: 2991082.382 | K24: 3143646.084 | L24: 3261578.926 | M24: 3232404.128 | N24: 3164597.982 | O24: 3259740.771 | P24: 3520844.808 | Q24: 3179059.195 | R24: 3153762.832 | S24: 2948920.032 | T24: 3066869.778 | U24: 3242667.122 | V24: 3467539.838 | W24: 3734219.545 | X24: 3637181.141 | Y24: 3703595.881
A25: G | B25: 45-47 | C25: Comercio al por mayor y al por menor; reparación de vehículos de motor y motocicletas | D25: 1172867.525 | E25: 1300720.704 | F25: 1428666.176 | G25: 1522973.29 | H25: 1600605.364 | I25: 1748434.486 | J25: 1855812.319 | K25: 1957641.642 | L25: 2048005.237 | M25: 1987517.817 | N25: 1931574.636 | O25: 2005819.387 | P25: 2103435.027 | Q25: 1925006.626 | R25: 1932121.583 | S25: 1733471.195 | T25: 1773297.166 | U25: 1895971.219 | V25: 1963414.775 | W25: 2087783.164 | X25: 2119410.386 | Y25: 2230896.471
B26: 46 | C26: - Comercio al por mayor e intermediarios del comercio, excepto de vehículos de motor y motocicletas | D26: 568898.037 | E26: 633730.7906 | F26: 710901.0909 | G26: 738551.1655 | H26: 754867.8658 | I26: 813296.6044 | J26: 834286.3468 | K26: 821064.1102 | L26: 855887.6348 | M26: 793499.1109 | N26: 757042.2839 | O26: 763205.1475 | P26: 821984.1367 | Q26: 744428.7439 | R26: 790071.8252 | S26: 694894.8088 | T26: 724746.9404 | U26: 760057.2214 | V26: 795013.8252 | W26: 864960.8906 | X26: 869868.4272 | Y26: 963901.4919
B27: 45 y 47 | C27: - Comercio minorista; venta y reparación de vehículos de motor y motocicletas | D27: 603969.4879 | E27: 666989.9136 | F27: 717765.0846 | G27: 784422.1243 | H27: 845737.498 | I27: 935137.882 | J27: 1021525.972 | K27: 1136577.532 | L27: 1192117.602 | M27: 1194018.706 | N27: 1174532.352 | O27: 1242614.24 | P27: 1281450.89 | Q27: 1180577.882 | R27: 1142049.758 | S27: 1038576.386 | T27: 1048550.225 | U27: 1135913.998 | V27: 1168400.95 | W27: 1222822.273 | X27: 1249541.959 | Y27: 1266994.98
A28: H | B28: 49-53 | C28: Transporte y almacenamiento | D28: 742469.1247 | E28: 729288.2668 | F28: 701234.2277 | G28: 718480.6363 | H28: 612758.6854 | I28: 662345.719 | J28: 706164.2881 | K28: 717264.8075 | L28: 720177.5191 | M28: 725860.1355 | N28: 705104.5548 | O28: 721442.8749 | P28: 885696.8686 | Q28: 711111.0444 | R28: 658438.6188 | S28: 645663.2571 | T28: 704075.046 | U28: 696515.77 | V28: 802108.179 | W28: 882400.3294 | X28: 978447.1866 | Y28: 986751.7189
A29: I | B29: 55-56 | C29: Hostelería | D29: 273950.3994 | E29: 306716.6162 | F29: 332143.6991 | G29: 348193.2936 | H29: 375153.0836 | I29: 391332.4371 | J29: 429105.7748 | K29: 468739.6346 | L29: 493396.1695 | M29: 519026.1758 | N29: 527918.7911 | O29: 532478.509 | P29: 531712.9128 | Q29: 542941.525 | R29: 563202.6302 | S29: 569785.5797 | T29: 589497.5666 | U29: 650180.1327 | V29: 702016.8844 | W29: 764036.0513 | X29: 539323.5689 | Y29: 485947.6909
A30: J | B30: 58-63 | C30: Información y comunicaciones | D30: 807764.3109 | E30: 863008.8602 | F30: 937591.222 | G30: 1024147.666 | H30: 1112396.702 | I30: 1155234.083 | J30: 1167985.083 | K30: 1299846.949 | L30: 1369117.605 | M30: 1515661.625 | N30: 1419393.484 | O30: 1468390.975 | P30: 785859.3613 | Q30: 801429.2146 | R30: 1038447.377 | S30: 422375.0192 | T30: 456325.1112 | U30: 442220.7486 | V30: 495871.5892 | W30: 625990.177 | X30: 739150.5383 | Y30: 630104.0344
A31: K | B31: 64-66 | C31: Actividades financieras y de seguros | D31: 699188.4479 | E31: 947209.1926 | F31: 1002267.882 | G31: 946314.6724 | H31: 982933.6361 | I31: 1012217.898 | J31: 1095772.133 | K31: 1159392.977 | L31: 1280520.352 | M31: 1298580.305 | N31: 1244639.705 | O31: 1215385.609 | P31: 1234620.734 | Q31: 1202876.739 | R31: 1179080.859 | S31: 1104783.022 | T31: 1149929.608 | U31: 1099148.993 | V31: 1082238.505 | W31: 1142603.578 | X31: 1147824.153 | Y31: 1083834.688
A32: L | B32: 1900-03-08 | C32: Actividades inmobiliarias | D32: 83430.66987 | E32: 91753.35348 | F32: 92850.88159 | G32: 103077 | H32: 125106.7874 | I32: 137147.4185 | J32: 150260.8155 | K32: 165879.2364 | L32: 173240.9283 | M32: 135061.4907 | N32: 132726.1182 | O32: 189448.3757 | P32: 201782.29 | Q32: 178698.5623 | R32: 193198.9362 | S32: 195924.9341 | T32: 211179.4739 | U32: 220488.5509 | V32: 240783.682 | W32: 258817.1376 | X32: 206314.0799 | Y32: 232893.9325
A33: M_N | B33: 69-82 | C33: Actividades profesionales, científicas y técnicas; actividades administrativas y servicios auxiliares | D33: 1035024.842 | E33: 1197140.297 | F33: 1334406.73 | G33: 1411389.794 | H33: 1545871.638 | I33: 1680016.043 | J33: 2010379.53 | K33: 2204312.609 | L33: 2545458.619 | M33: 2569400.669 | N33: 2512449.762 | O33: 2579604.437 | P33: 2625254.151 | Q33: 2511678.185 | R33: 2740764.044 | S33: 2600610.556 | T33: 2611162.514 | U33: 2692240.973 | V33: 2873811.154 | W33: 3124725.264 | X33: 3164978.452 | Y33: 3301780.392
A34: M | B34: 69-75 | C34: Actividades profesionales, científicas y técnicas | D34: 592707.4246 | E34: 688490.1016 | F34: 786894.4324 | G34: 830591.3457 | H34: 898962.781 | I34: 1016931.689 | J34: 1180285.622 | K34: 1300189.879 | L34: 1561518.303 | M34: 1610682.195 | N34: 1539848.934 | O34: 1553696.643 | P34: 1608178.001 | Q34: 1612918.535 | R34: 1722458.267 | S34: 1573010.73 | T34: 1631168.871 | U34: 1653504.717 | V34: 1789030.768 | W34: 1903445.432 | X34: 1946203.429 | Y34: 2078245.838
A35: N | B35: 77-82 | C35: Actividades administrativas y servicios auxiliares | D35: 442317.417 | E35: 508650.195 | F35: 547512.2975 | G35: 580798.448 | H35: 646908.8567 | I35: 663084.3538 | J35: 830093.9079 | K35: 904122.7299 | L35: 983940.3166 | M35: 958718.4736 | N35: 972600.8279 | O35: 1025907.794 | P35: 1017076.15 | Q35: 898759.6497 | R35: 1018305.777 | S35: 1027599.826 | T35: 979993.643 | U35: 1038736.257 | V35: 1084780.386 | W35: 1221279.832 | X35: 1218775.024 | Y35: 1223534.554
A36: O_Q | B36: 84-88 | C36: Administración pública y defensa; seguridad social obligatoria; educación; actividades sanitarias y de servicios sociales | D36: 1851950.386 | E36: 2264707.25 | F36: 2551180.561 | G36: 2325417.994 | H36: 2499473.959 | I36: 2332559.078 | J36: 2445134.289 | K36: 2777599.108 | L36: 3172578.191 | M36: 3308519.856 | N36: 3363026.879 | O36: 3301560.305 | P36: 3147768.716 | Q36: 3196546.812 | R36: 3226238.822 | S36: 3341707.23 | T36: 3468296.279 | U36: 3601799.927 | V36: 3662329.213 | W36: 3858672.003 | X36: 3936805.607 | Y36: 4241424.483
A37: O | B37: 84 | C37: Administración pública y defensa; seguridad social obligatoria | D37: 1149032.238 | E37: 1291052.323 | F37: 1529224.871 | G37: 1295830.929 | H37: 1438346.284 | I37: 1171854.09 | J37: 1227611.887 | K37: 1212994.488 | L37: 1424596.076 | M37: 1510263.828 | N37: 1505729.13 | O37: 1478685.388 | P37: 1381700.086 | Q37: 1445385.157 | R37: 1391915.913 | S37: 1382196.261 | T37: 1424805.873 | U37: 1486549.588 | V37: 1452246.966 | W37: 1534919.577 | X37: 1588157.26 | Y37: 1679354.207
A38: P | B38: 85 | C38: Educación | D38: 407288.792 | E38: 614578.7741 | F38: 646066.0032 | G38: 654858.3911 | H38: 626642.9195 | I38: 667379.3195 | J38: 665881.4787 | K38: 894490.6084 | L38: 751254.3669 | M38: 784906.1169 | N38: 820774.1211 | O38: 793448.6322 | P38: 776160.2352 | Q38: 780605.8771 | R38: 813345.293 | S38: 902298.774 | T38: 937742.5495 | U38: 977041.4338 | V38: 1011180.347 | W38: 1071954.869 | X38: 1049845.156 | Y38: 1163209.181
A39: Q | B39: 86-88 | C39: Actividades sanitarias y de servicios sociales | D39: 295629.3562 | E39: 359076.1531 | F39: 375889.6868 | G39: 374728.6738 | H39: 434484.7552 | I39: 493325.6676 | J39: 551640.9232 | K39: 670114.0119 | L39: 996727.7482 | M39: 1013349.912 | N39: 1036523.627 | O39: 1029426.285 | P39: 989908.3949 | Q39: 970555.7785 | R39: 1020977.615 | S39: 1057212.195 | T39: 1105747.857 | U39: 1138208.905 | V39: 1198901.9 | W39: 1251797.558 | X39: 1298803.191 | Y39: 1398861.095
A40: R_T | B40: 90-98 | C40: Actividades artísticas, recreativas y de entretenimiento; reparación de artículos de uso doméstico y otros servicios | D40: 493852.9496 | E40: 712753.6808 | F40: 786953.4398 | G40: 816779.418 | H40: 595248.3969 | I40: 581375.0071 | J40: 665587.2399 | K40: 697924.466 | L40: 749075.6523 | M40: 790213.9852 | N40: 829827.8621 | O40: 878934.7122 | P40: 913926.5163 | Q40: 870545.2281 | R40: 885075.7526 | S40: 899567.1132 | T40: 929139.9447 | U40: 989315.9371 | V40: 1038097.806 | W40: 1163861.363 | X40: 1143793.407 | Y40: 1170653.514
A41: R | B41: 90-93 | C41: Actividades artísticas, recreativas y de entretenimiento | D41: 172708.0528 | E41: 186844.0181 | F41: 204635.8317 | G41: 196932.7178 | H41: 208613.232 | I41: 188008.7041 | J41: 215809.7962 | K41: 228611.1216 | L41: 228675.5731 | M41: 237296.0575 | N41: 265092.7617 | O41: 311529.0381 | P41: 313942.859 | Q41: 304185.4361 | R41: 320399.4226 | S41: 350395.2679 | T41: 351707.5649 | U41: 378756.3955 | V41: 413123.8288 | W41: 468361.8186 | X41: 423276.9732 | Y41: 439212.3585
A42: S | B42: 94-96 | C42: Reparación de artículos de uso doméstico y otros servicios | D42: 226440.3928 | E42: 253026.3468 | F42: 263577.4227 | G42: 272556.102 | H42: 263010.5484 | I42: 253559.8443 | J42: 279586.3108 | K42: 295453.3509 | L42: 329194.3526 | M42: 345318.6085 | N42: 337815.2486 | O42: 332306.071 | P42: 384920.5554 | Q42: 352249.0904 | R42: 339396.8753 | S42: 336302.555 | T42: 325517.8068 | U42: 328149.7563 | V42: 346330.6987 | W42: 365376.7007 | X42: 356696.0446 | Y42: 363761.6874
A43: T | B43: 97-98 | C43: Actividades de los hogares como empleadores de personal doméstico; Actividades de los hogares como productores de bienes y servicios para uso propio | D43: 94704.50403 | E43: 272883.3158 | F43: 318740.1854 | G43: 347290.5982 | H43: 123624.6165 | I43: 139806.4587 | J43: 170191.1329 | K43: 173859.9936 | L43: 191205.7266 | M43: 207599.3191 | N43: 226919.8518 | O43: 235099.6031 | P43: 215063.1019 | Q43: 214110.7016 | R43: 225279.4548 | S43: 212869.2903 | T43: 251914.573 | U43: 282409.7852 | V43: 278643.2787 | W43: 330122.8438 | X43: 363820.3895 | Y43: 367679.4686
A44: Total Cotizaciones Sociales | D44: 8703708.761 | E44: 9971752.295 | F44: 10862044.92 | G44: 10978575.92 | H44: 11447586.32 | I44: 11737282.42 | J44: 12646977.57 | K44: 13812928.75 | L44: 14861944.53 | M44: 14928408.55 | N44: 14539397.05 | O44: 14740873.44 | P44: 14109467.11 | Q44: 13495618.46 | R44: 13985800.37 | S44: 13090647.62 | T44: 13495797.03 | U44: 13958445.13 | V44: 14627390.94 | W44: 15786131.03 | X44: 15860904.12 | Y44: 16318426.45

Sheet 7
A1: Contabilidad Municipal de la Ciudad de Madrid. Serie 2000 - 2021(a) | Y1: Indice
A2: Otros impuestos netos sobre la producción (precios corrientes)
A3: Unidad: miles de euros
A5: CÓDIGOS | C5: RAMAS | D5: 2000 | E5: 2001 | F5: 2002 | G5: 2003 | H5: 2004 | I5: 2005 | J5: 2006 | K5: 2007 | L5: 2008 | M5: 2009 | N5: 2010 | O5: 2011 | P5: 2012 | Q5: 2013 | R5: 2014 | S5: 2015 | T5: 2016 | U5: 2017 | V5: 2018 | W5: 2019 | X5: 2020p | Y5: 2021a
A6: (A11) | B6: (A17)
A8: A | B8: 2024-01-03 | C8: Agricultura, ganadería, silvicultura y pesca | D8: -1540.252859 | E8: -3159.597205 | F8: -2047.320958 | G8: -2472.157192 | H8: -2256.254153 | I8: -2629.466954 | J8: -2375.005006 | K8: -2399.436143 | L8: -2145.444999 | M8: -1589.947251 | N8: -1578.119336 | O8: -1525.797347 | P8: -1429.922138 | Q8: -1846.332008 | R8: -591.8173902 | S8: -1279.511562 | T8: -1029.131715 | U8: -639.9908143 | V8: -4125.148493 | W8: -3046.819521 | X8: -3994.045469 | Y8: -3454.681607
A9: B_E | B9: 1939-05-01 | C9: Industrias extractivas; industria manufacturera; suministro de energía eléctrica, gas, vapor y aire acondicionado; suministro de agua, actividades de saneamiento, gestión de residuos y descontaminación | D9: -15621.46681 | E9: 28614.89594 | F9: 6527.15684 | G9: 6822.995714 | H9: -5688.674545 | I9: -16138.38051 | J9: -21888.05252 | K9: -28278.52528 | L9: -1469.866056 | M9: 9971.756539 | N9: 52458.06506 | O9: 52727.77435 | P9: 132601.6133 | Q9: 64076.30111 | R9: 18256.77939 | S9: -14349.31385 | T9: -15550.25161 | U9: -21629.07084 | V9: -3282.721223 | W9: 13128.38907 | X9: 59637.56116 | Y9: 43692.49968
A10: C | B10: 1933-10-01 | C10: Industria Manufacturera | D10: -3992.316419 | E10: 36648.86021 | F10: 4200.3094 | G10: 4606.723482 | H10: 4721.804183 | I10: 4211.647984 | J10: 8871.216035 | K10: 7372.488869 | L10: 4887.269807 | M10: 11292.71224 | N10: 12623.83998 | O10: 9406.464901 | P10: 15184.01228 | Q10: 10388.36676 | R10: 10012.55296 | S10: -21281.76834 | T10: -25789.44253 | U10: -29954.84192 | V10: -19208.04487 | W10: -18215.04598 | X10: 36671.99776 | Y10: 14753.62131
B11: 2024-10-12 | C11: Industria de la alimentación, fabricación de bebidas e industria del tabaco | D11: -7333.963786 | E11: 7474.28629 | F11: -4220.242313 | G11: -4326.3552 | H11: -4482.757656 | I11: -4024.471393 | J11: -4461.503422 | K11: -5095.54837 | L11: -4838.95707 | M11: -1737.804387 | N11: 151.4425366 | O11: -1827.601335 | P11: 1788.931267 | Q11: 563.7207832 | R11: 169.891861 | S11: 661.0899548 | T11: 265.5192044 | U11: -593.9106112 | V11: 122.9254949 | W11: -398.296341 | X11: -256.8541675 | Y11: -184.7431127
B12: 13-15 | C12: Industria textil, confección de prendas de vestir e industria del cuero y del calzado | D12: 1111.148414 | E12: 1302.97004 | F12: 912.1425353 | G12: 1091.870776 | H12: 1063.263711 | I12: 1002.850704 | J12: 979.8883115 | K12: 1065.639229 | L12: 1067.994439 | M12: 4963.160719 | N12: 1953.928362 | O12: 1049.942766 | P12: 5916.023129 | Q12: 389.1711587 | R12: -80.24237455 | S12: -1385.946306 | T12: 957.6058282 | U12: 1455.472047 | V12: 1756.207299 | W12: 1846.327525 | X12: 2494.334197 | Y12: 4253.988018
B13: 16-18 | C13: Industria de la madera y del corcho, industria del papel y artes gráficas | D13: -29877.54792 | E13: -2304.811756 | F13: -3718.718473 | G13: -3412.569696 | H13: -3664.639967 | I13: -4584.457856 | J13: -492.5057443 | K13: -471.3398232 | L13: -5389.069437 | M13: -6244.256614 | N13: -5649.997918 | O13: -5055.849515 | P13: -7948.811522 | Q13: -7788.733866 | R13: -4644.686739 | S13: -2609.403875 | T13: -2422.479625 | U13: -4347.503634 | V13: -2946.292295 | W13: -1307.499668 | X13: -14.22800265 | Y13: 70.29276938
B14: 19-21 | C14: Coquerías y refino de petróleo; industria química; fabricación de productos farmacéuticos | D14: 2533.267512 | E14: 6526.854648 | F14: 2513.232347 | G14: 2272.46233 | H14: 2817.889593 | I14: 2476.818804 | J14: 2471.040496 | K14: 2878.922909 | L14: 3869.946138 | M14: 3176.443505 | N14: 5785.920388 | O14: 5192.78226 | P14: 16381.75771 | Q14: 9444.324759 | R14: 12922.13092 | S14: -6287.159277 | T14: -12461.69745 | U14: -14712.51956 | V14: -8137.772414 | W14: -7163.548945 | X14: -4608.688349 | Y14: -8943.490609
B15: 22-23 | C15: Fabricación de productos de caucho y plásticos y de otros productos minerales no metálicos | D15: 598.0209741 | E15: 353.7076555 | F15: 2481.977623 | G15: 2510.847611 | H15: 2401.484433 | I15: 2490.676401 | J15: 2370.388579 | K15: 873.327698 | L15: 2572.864313 | M15: 2035.449447 | N15: 1281.084191 | O15: 1807.086921 | P15: -832.285196 | Q15: 3113.003874 | R15: 424.8542411 | S15: 1789.983354 | T15: 1682.142005 | U15: 1009.413066 | V15: -570.8423495 | W15: -2077.416261 | X15: -812.6378744 | Y15: -1984.686767
B16: 24-25 | C16: Metalurgia y fabricación de productos metálicos, excepto maquinaria y equipo | D16: 1339.283745 | E16: 1002.79998 | F16: 1057.219393 | G16: 1093.020333 | H16: 934.5107845 | I16: 1016.463123 | J16: 1345.767853 | K16: 1609.744823 | L16: 854.8287884 | M16: 555.2076639 | N16: 297.7607779 | O16: 199.2165933 | P16: -53.50759399 | Q16: -379.7918241 | R16: -867.3506568 | S16: -56.76216321 | T16: -16.5949782 | U16: -38.77127399 | V16: -28.05879608 | W16: -32.6530177 | X16: -59.49268063 | Y16: -111.7690788
B17: 26-28 | C17: Fabricación de productos informáticos, electrónicos y ópticos; fabricación de material y equipo eléctrico; fabricación de maquinaria y equipo n.c.o.p. | D17: 16684.43993 | E17: 13921.76918 | F17: 1303.777319 | G17: 1387.3248 | H17: 1533.128858 | I17: 1532.157954 | J17: 1614.018437 | K17: 1856.432133 | L17: 1226.394225 | M17: 1319.726524 | N17: 1556.840818 | O17: 945.3577714 | P17: 599.5345317 | Q17: 258.1268673 | R17: 728.0769802 | S17: 473.4459251 | T17: 392.9191041 | U17: 273.583857 | V17: 811.8884321 | W17: 8035.264546 | X17: 49379.55171 | Y17: 33891.7224
B18: 26-27 | C18: - Fabricación de productos informáticos, electrónicos y ópticos; fabricación de material y equipo eléctrico; | D18: 13269.83466 | E18: 11156.96824 | F18: 903.09594 | G18: 950.6189848 | H18: 1059.447132 | I18: 1062.253897 | J18: 1111.290419 | K18: 1344.470203 | L18: 812.0577351 | M18: 1080.30867 | N18: 1468.562085 | O18: 822.1098151 | P18: 627.8395088 | Q18: 206.4314173 | R18: 558.9691204 | S18: 94.28417441 | T18: 168.2834936 | U18: 57.64734174 | V18: 607.5022881 | W18: 7902.398929 | X18: 49281.53333 | Y18: 33084.29936
B19: 1900-01-28 | C19: - Fabricación de maquinaria y equipo n.c.o.p. | D19: 3414.605271 | E19: 2764.800944 | F19: 400.6813789 | G19: 436.7058157 | H19: 473.6817261 | I19: 469.904057 | J19: 502.7280176 | K19: 511.96193 | L19: 414.3364897 | M19: 239.4178535 | N19: 88.2787329 | O19: 123.2479563 | P19: -28.30497706 | Q19: 51.69544994 | R19: 169.1078598 | S19: 379.1617507 | T19: 224.6356105 | U19: 215.9365152 | V19: 204.386144 | W19: 132.8656172 | X19: 98.01838221 | Y19: 807.4230414
B20: 29-30 | C20: Fabricación de material de transporte | D20: 3057.884549 | E20: 2500.130017 | F20: 3267.598252 | G20: 3354.787701 | H20: 3418.301633 | I20: 3595.885099 | J20: 4299.039283 | K20: 3788.731655 | L20: 3171.906381 | M20: 3962.049475 | N20: 1639.891916 | O20: 894.5657533 | P20: 213.9686991 | Q20: -90.46979795 | R20: 28.60625827 | S20: -140.5033605 | T20: -118.7935789 | U20: -58.05666069 | V20: -57.62795471 | W20: -18.34426341 | X20: -30.70221283 | Y20: -140.428829
B21: 31-33 | C21: Fabricación de muebles; otras industrias manufactureras y reparación e instalación de maquinaria y equipo | D21: 7895.150161 | E21: 5871.154147 | F21: 603.3227166 | G21: 635.3348268 | H21: 700.6227928 | I21: 705.7251477 | J21: 745.0822412 | K21: 866.5786147 | L21: 2351.36203 | M21: 3262.735904 | N21: 5606.968909 | O21: 6200.963686 | P21: -881.5987454 | Q21: 4879.014808 | R21: 1331.27247 | S21: -13726.51259 | T21: -14068.06304 | U21: -12942.54914 | V21: -10158.47228 | W21: -17098.87956 | X21: -9419.284863 | Y21: -12097.26348
A22: F | B22: 41-43 | C22: Construcción | D22: 86421.57548 | E22: 119050.1979 | F22: 131936.1939 | G22: 139503.3676 | H22: 154021.3318 | I22: 193374.0689 | J22: 198328.4871 | K22: 197196.9518 | L22: 157130.6711 | M22: 175440.7549 | N22: 111421.8783 | O22: 70065.77412 | P22: 34460.83142 | Q22: 20071.23452 | R22: 19567.74336 | S22: 66115.83727 | T22: 106956.9436 | U22: 109261.3927 | V22: 109015.5085 | W22: 110613.4173 | X22: 112573.3262 | Y22: 128606.8346
A23: G_T | B23: 45-98 | C23: Servicios | D23: -603114.4223 | E23: -488435.0938 | F23: -286419.8642 | G23: -302173.2746 | H23: -224351.5746 | I23: 89676.51191 | J23: 89260.06599 | K23: 457176.3232 | L23: 470058.9181 | M23: 553669.0914 | N23: 790825.9251 | O23: 812179.517 | P23: 1246496.184 | Q23: 1155668.722 | R23: 930287.0494 | S23: 1405077.298 | T23: 1178995.645 | U23: 645485.9555 | V23: 941053.3125 | W23: 870635.6409 | X23: 234376.2611 | Y23: 1366930.258
A24: G_I | B24: 45-56 | C24: Comercio al por mayor y al por menor; reparación de vehículos de motor y motocicletas; transporte y almacenamiento; hostelería | D24: -691040.3047 | E24: -765324.7896 | F24: -576096.8064 | G24: -607161.2655 | H24: -495553.5617 | I24: -247784.5054 | J24: -256877.3732 | K24: -81369.61728 | L24: -88144.80927 | M24: -141614.8291 | N24: -146508.0329 | O24: -185123.5635 | P24: -161983.3917 | Q24: -303454.6245 | R24: -627640.5812 | S24: -239024.3222 | T24: -202325.896 | U24: -718640.5214 | V24: -396139.4756 | W24: -359289.7805 | X24: -735969.8114 | Y24: -470922.0014
A25: G | B25: 45-47 | C25: Comercio al por mayor y al por menor; reparación de vehículos de motor y motocicletas | D25: 68563.558 | E25: 46655.63462 | F25: 44569.34429 | G25: 46604.62606 | H25: 50933.65239 | I25: 61074.37797 | J25: 67954.31571 | K25: 92015.35073 | L25: 88661.56625 | M25: 98947.00466 | N25: 140191.7736 | O25: 163474.6401 | P25: 161773.9398 | Q25: 167175.2807 | R25: 175969.2938 | S25: 288573.1898 | T25: 302628.8507 | U25: 277744.7979 | V25: 328869.0465 | W25: 365305.8773 | X25: 214207.005 | Y25: 531763.2662
B26: 46 | C26: - Comercio al por mayor e intermediarios del comercio, excepto de vehículos de motor y motocicletas | D26: 33282.83603 | E26: 16490.58553 | F26: 13230.98306 | G26: 14443.62025 | H26: 15892.1151 | I26: 23100.89826 | J26: 24385.22392 | K26: 31281.75065 | L26: 32265.90795 | M26: 44296.49878 | N26: 38575.4108 | O26: 37435.27615 | P26: 25899.28466 | Q26: 36373.51751 | R26: 56967.16825 | S26: 106305.3504 | T26: 104600.0308 | U26: 91147.66827 | V26: 126494.4667 | W26: 194259.6257 | X26: 110257.6174 | Y26: 412986.9512
B27: 45 y 47 | C27: - Comercio minorista; venta y reparación de vehículos de motor y motocicletas | D27: 35280.72198 | E27: 30165.04909 | F27: 31338.36123 | G27: 32161.0058 | H27: 35041.53728 | I27: 37973.47971 | J27: 43569.0918 | K27: 60733.60008 | L27: 56395.6583 | M27: 54650.50588 | N27: 101616.3628 | O27: 126039.364 | P27: 135874.6552 | Q27: 130801.7632 | R27: 119002.1256 | S27: 182267.8394 | T27: 198028.8198 | U27: 186597.1296 | V27: 202374.5798 | W27: 171046.2516 | X27: 103949.3876 | Y27: 118776.315
A28: H | B28: 49-53 | C28: Transporte y almacenamiento | D28: -777564.0167 | E28: -832433.2988 | F28: -636512.82 | G28: -670381.6331 | H28: -564181.49 | I28: -327340.9341 | J28: -345039.9609 | K28: -203736.638 | L28: -199961.1247 | M28: -269817.3317 | N28: -328286.5212 | O28: -398547.0517 | P28: -366648.4152 | Q28: -514232.782 | R28: -846533.9582 | S28: -569599.1408 | T28: -558743.8245 | U28: -1048674.571 | V28: -796945.3702 | W28: -763926.2328 | X28: -940647.1523 | Y28: -886319.7497
A29: I | B29: 55-56 | C29: Hostelería | D29: 17960.15403 | E29: 20452.8745 | F29: 15846.66934 | G29: 16615.74147 | H29: 17694.27591 | I29: 18482.05068 | J29: 20208.27199 | K29: 30351.66996 | L29: 23154.74915 | M29: 29255.49793 | N29: 41586.71463 | O29: 49948.84806 | P29: 42891.08368 | Q29: 43602.87685 | R29: 42924.08325 | S29: 42001.62875 | T29: 53789.07783 | U29: 52289.2513 | V29: 71936.8481 | W29: 39330.57502 | X29: -9529.664076 | Y29: -116365.5179
A30: J | B30: 58-63 | C30: Información y comunicaciones | D30: 20324.89345 | E30: 20291.57788 | F30: 20298.83575 | G30: 20310.70564 | H30: 20249.08233 | I30: 20338.70941 | J30: 20225.35267 | K30: 20335.80956 | L30: 20222.76897 | M30: 27942.55409 | N30: 45621.99347 | O30: 98807.52762 | P30: 116988.5838 | Q30: 115024.4196 | R30: 138857.1478 | S30: 158341.539 | T30: 163388.8306 | U30: 116171.4032 | V30: 117305.9721 | W30: 112191.5948 | X30: -49451.7322 | Y30: 196505.3881
A31: K | B31: 64-66 | C31: Actividades financieras y de seguros | D31: 19396.353 | E31: 26450.55266 | F31: 23320.35234 | G31: 24789.91376 | H31: 25125.56127 | I31: 32985.65485 | J31: 41603.7483 | K31: 46957.78885 | L31: 51757.41641 | M31: 72057.3256 | N31: 96913.64159 | O31: 125458.5347 | P31: 539547.6802 | Q31: 418576.3094 | R31: 487137.5116 | S31: 655960.5165 | T31: 510099.6843 | U31: 424750.9541 | V31: 467963.5132 | W31: 415715.6079 | X31: 424298.1583 | Y31: 480020.5906
A32: L | B32: 1900-03-08 | C32: Actividades inmobiliarias | D32: 275166.7943 | E32: 331800.5716 | F32: 350940.0673 | G32: 388576.2165 | H32: 437965.0919 | I32: 508065.3844 | J32: 639120.6804 | K32: 711525.9056 | L32: 819590.6592 | M32: 968455.3683 | N32: 1062534.759 | O32: 1141823.034 | P32: 1251079.805 | Q32: 1332162.802 | R32: 1427342.491 | S32: 1439761.249 | T32: 1435126.646 | U32: 1501221.417 | V32: 1591350.166 | W32: 1658799.044 | X32: 1663768.435 | Y32: 1690633.302
A33: M_N | B33: 69-82 | C33: Actividades profesionales, científicas y técnicas; actividades administrativas y servicios auxiliares | D33: -150230.9625 | E33: -16925.06577 | F33: -31632.59454 | G33: -35985.71193 | H33: -116156.6072 | I33: -75513.56262 | J33: -77685.47573 | K33: -56897.01924 | L33: -118478.3094 | M33: -151017.4101 | N33: -95235.8833 | O33: -219881.9714 | P33: -166863.3321 | Q33: -64974.82305 | R33: -8657.567996 | S33: -120565.5068 | T33: -179821.9076 | U33: -132487.1537 | V33: -148461.784 | W33: -198996.8387 | X33: -211997.2755 | Y33: 117741.7222
A34: M | B34: 69-75 | C34: Actividades profesionales, científicas y técnicas | D34: -85706.02689 | E34: -18691.96014 | F34: -22388.56205 | G34: -23324.70826 | H34: -17440.45776 | I34: -72070.4211 | J34: -9223.430397 | K34: -37133.40487 | L34: -47952.33201 | M34: -52714.62333 | N34: -55445.20586 | O34: -62618.27788 | P34: -35832.42409 | Q34: -23107.79559 | R34: -33935.55772 | S34: -164849.1764 | T34: -188574.9452 | U34: -152938.6651 | V34: -176515.9238 | W34: -229160.3987 | X34: -223559.836 | Y34: 97710.13145
A35: N | B35: 77-82 | C35: Actividades administrativas y servicios auxiliares | D35: -64524.93558 | E35: 1766.894373 | F35: -9244.03249 | G35: -12661.00366 | H35: -98716.14948 | I35: -3443.141525 | J35: -68462.04534 | K35: -19763.61437 | L35: -70525.97742 | M35: -98302.78679 | N35: -39790.67744 | O35: -157263.6936 | P35: -131030.908 | Q35: -41867.02746 | R35: 25277.98972 | S35: 44283.66965 | T35: 8753.037615 | U35: 20451.51142 | V35: 28054.13977 | W35: 30163.55995 | X35: 11562.56054 | Y35: 20031.59073
A36: O_Q | B36: 84-88 | C36: Administración pública y defensa; seguridad social obligatoria; educación; actividades sanitarias y de servicios sociales | D36: 74809.26567 | E36: 84226.42432 | F36: 93876.31387 | G36: 117775.2025 | H36: 100122.8714 | I36: 110550.8993 | J36: 79603.58846 | K36: 99227.23501 | L36: 99483.10166 | M36: 177783.8564 | N36: 167314.4026 | O36: 275581.5879 | P36: 202038.6303 | Q36: 191974.245 | R36: 177139.8321 | S36: 203776.9895 | T36: 61419.29683 | U36: 112144.381 | V36: 106033.7285 | W36: 102639.4335 | X36: 85500.59068 | Y36: 94177.21571
A37: O | B37: 84 | C37: Administración pública y defensa; seguridad social obligatoria | D37: 47928.57249 | E37: 57599.58815 | F37: 68271.16057 | G37: 88405.39218 | H37: 64513.84544 | I37: 70220.26044 | J37: 29052.24478 | K37: 41727.75335 | L37: 38323.09971 | M37: 42229.72911 | N37: 41686.76046 | O37: 43506.34038 | P37: 52129.95875 | Q37: 54413.03775 | R37: 53569.66313 | S37: 56230.81961 | T37: 57546.45713 | U37: 62138.50604 | V37: 60642.09615 | W37: 61095.81333 | X37: 64844.3411 | Y37: 66076.93703
A38: P | B38: 85 | C38: Educación | D38: 10120.19936 | E38: 9104.282414 | F38: 7732.959277 | G38: 5395.798759 | H38: 6321.185407 | I38: 6573.511552 | J38: 6918.614508 | K38: 6528.011258 | L38: 5865.135569 | M38: 49478.89247 | N38: 43390.5301 | O38: 84250.27698 | P38: 54420.83137 | Q38: 11516.00623 | R38: -1394.532739 | S38: 36747.25217 | T38: 24980.21984 | U38: 47603.37756 | V38: 42918.38504 | W38: 37035.22339 | X38: -19599.37641 | Y38: -69714.68409
A39: Q | B39: 86-88 | C39: Actividades sanitarias y de servicios sociales | D39: 16760.49382 | E39: 17522.55375 | F39: 17872.19403 | G39: 23974.01155 | H39: 29287.84053 | I39: 33757.12732 | J39: 43632.72917 | K39: 50971.47041 | L39: 55294.86638 | M39: 86075.23482 | N39: 82237.11207 | O39: 147824.9706 | P39: 95487.84023 | Q39: 126045.201 | R39: 124964.7018 | S39: 110798.9177 | T39: -21107.38014 | U39: 2402.497408 | V39: 2473.247298 | W39: 4508.396795 | X39: 40255.62599 | Y39: 97814.96277
A40: R_T | B40: 90-98 | C40: Actividades artísticas, recreativas y de entretenimiento; reparación de artículos de uso doméstico y otros servicios | D40: -151540.4616 | E40: -168954.3648 | F40: -167126.0326 | G40: -210478.3355 | H40: -196104.0125 | I40: -258966.068 | J40: -356730.4548 | K40: -282603.7792 | L40: -314371.9095 | M40: -399937.7738 | N40: -339814.9552 | O40: -424485.6318 | P40: -534311.7914 | Q40: -533639.6064 | R40: -663891.7835 | S40: -693173.1668 | T40: -608891.0093 | U40: -657674.525 | V40: -796998.808 | W40: -860423.4198 | X40: -941772.1038 | Y40: -741225.9587
A41: R | B41: 90-93 | C41: Actividades artísticas, recreativas y de entretenimiento | D41: -194095.3004 | E41: -212721.9886 | F41: -217940.8111 | G41: -267400.5875 | H41: -249775.0213 | I41: -308343.3285 | J41: -403637.1465 | K41: -322158.4963 | L41: -352726.581 | M41: -436926.6345 | N41: -377606.8872 | O41: -455044.5604 | P41: -563468.1634 | Q41: -551213.6337 | R41: -678744.6261 | S41: -688866.8704 | T41: -604019.5916 | U41: -652781.2552 | V41: -795296.5198 | W41: -862746.6743 | X41: -931859.3729 | Y41: -742880.5906
A42: S | B42: 94-96 | C42: Reparación de artículos de uso doméstico y otros servicios | D42: 42554.83886 | E42: 43767.62375 | F42: 50814.77849 | G42: 56922.25198 | H42: 53671.00884 | I42: 49377.26049 | J42: 46906.69166 | K42: 39554.71706 | L42: 38354.67153 | M42: 36988.86069 | N42: 37791.93203 | O42: 30558.92852 | P42: 29156.37204 | Q42: 17574.02729 | R42: 14852.84267 | S42: -4306.296404 | T42: -4871.417702 | U42: -4893.269826 | V42: -1702.288235 | W42: 2323.254407 | X42: -9912.730947 | Y42: 1654.63185
A43: T | B43: 97-98 | C43: Actividades de los hogares como empleadores de personal doméstico; Actividades de los hogares como productores de bienes y servicios para uso propio | D43: 0 | E43: 0 | F43: 0 | G43: 0 | H43: 0 | I43: 0 | J43: 0 | K43: 0 | L43: 0 | M43: 0 | N43: 0 | O43: 0 | P43: 0 | Q43: 0 | R43: 0 | S43: 0 | T43: 0 | U43: 0 | V43: 0 | W43: 0 | X43: 0 | Y43: 0
A44: Total Otros impuestos | D44: -533854.5665 | E44: -343929.5972 | F44: -150003.8345 | G44: -158319.0685 | H44: -78275.1715 | I44: 264282.7334 | J44: 263325.4956 | K44: 623695.3136 | L44: 623574.2781 | M44: 737491.6556 | N44: 953127.7491 | O44: 933447.2682 | P44: 1412128.706 | Q44: 1237969.925 | R44: 967519.7548 | S44: 1455564.31 | T44: 1269373.205 | U44: 732478.2865 | V44: 1042660.951 | W44: 991330.6277 | X44: 402593.1029 | Y44: 1535774.911

Sheet 8
A1: Contabilidad Municipal de la Ciudad de Madrid. Serie 2000 - 2021(a) | Y1: Indice
A2: Excedente de Explotación Bruto / Renta Mixta Bruta (precios corrientes)
A3: Unidad: miles de euros
A5: CÓDIGOS | C5: RAMAS | D5: 2000 | E5: 2001 | F5: 2002 | G5: 2003 | H5: 2004 | I5: 2005 | J5: 2006 | K5: 2007 | L5: 2008 | M5: 2009 | N5: 2010 | O5: 2011 | P5: 2012 | Q5: 2013 | R5: 2014 | S5: 2015 | T5: 2016 | U5: 2017 | V5: 2018 | W5: 2019 | X5: 2020p | Y5: 2021a
A6: (A11) | B6: (A17)
A8: A | B8: 2024-01-03 | C8: Agricultura, ganadería, silvicultura y pesca | D8: 49696.86874 | E8: 57199.037 | F8: 46825.94597 | G8: 49523.39551 | H8: 36540.03723 | I8: 36294.3739 | J8: 33821.93263 | K8: 35646.40352 | L8: 29572.27749 | M8: 19534.74952 | N8: 16780.70009 | O8: 16331.83341 | P8: 21923.60724 | Q8: 24946.14865 | R8: 29827.94507 | S8: 28733.83118 | T8: 36230.67848 | U8: 38967.77027 | V8: 47083.29284 | W8: 37435.70052 | X8: 38821.17836 | Y8: 37850.53203
A9: B_E | B9: 1939-05-01 | C9: Industrias extractivas; industria manufacturera; suministro de energía eléctrica, gas, vapor y aire acondicionado; suministro de agua, actividades de saneamiento, gestión de residuos y descontaminación | D9: 2862837.562 | E9: 2874661.042 | F9: 2774406.39 | G9: 2942830.601 | H9: 3215882.443 | I9: 3608717.084 | J9: 4045344.214 | K9: 4671106.225 | L9: 4989875.51 | M9: 4577812.71 | N9: 4609751.983 | O9: 5077982.183 | P9: 5092141.444 | Q9: 5070035.242 | R9: 5001770.095 | S9: 5335682.802 | T9: 5394011.777 | U9: 5561583.334 | V9: 5872218.059 | W9: 6169809.831 | X9: 5531885.361 | Y9: 6338339.807
A10: C | B10: 1933-10-01 | C10: Industria Manufacturera | D10: 1604105.63 | E10: 1555839.123 | F10: 1518578.411 | G10: 1576994.845 | H10: 1759611.903 | I10: 1885336.004 | J10: 1975528.316 | K10: 2213693.491 | L10: 2330027.542 | M10: 2102388.489 | N10: 2050412.664 | O10: 2261445.595 | P10: 2269997.986 | Q10: 2390036.586 | R10: 2466172.793 | S10: 2657482.585 | T10: 2618825.159 | U10: 2564425.041 | V10: 2576722.089 | W10: 2662138.15 | X10: 2257718.07 | Y10: 2575403.491
B11: 2024-10-12 | C11: Industria de la alimentación, fabricación de bebidas e industria del tabaco | D11: 153299.6783 | E11: 143244.6939 | F11: 165258.7451 | G11: 184885.7185 | H11: 210505.5262 | I11: 196721.5065 | J11: 215093.8314 | K11: 264088.873 | L11: 259120.8093 | M11: 272902.9791 | N11: 271378.1506 | O11: 272518.8701 | P11: 246101.0605 | Q11: 251928.6959 | R11: 264057.1204 | S11: 253382.8498 | T11: 225923.8284 | U11: 235268.1494 | V11: 228950.4982 | W11: 267524.7094 | X11: 249851.8366 | Y11: 282351.6114
B12: 13-15 | C12: Industria textil, confección de prendas de vestir e industria del cuero y del calzado | D12: 49098.62309 | E12: 36182.2375 | F12: 34602.23563 | G12: 42878.52357 | H12: 46515.08411 | I12: 43294.21472 | J12: 43905.29128 | K12: 43561.61674 | L12: 75268.85274 | M12: 75119.82241 | N12: 71933.10503 | O12: 78114.1114 | P12: 154095.2287 | Q12: 144906.8561 | R12: 139913.2956 | S12: 152069.24 | T12: 149337.9577 | U12: 148834.13 | V12: 141420.3477 | W12: 146313.9494 | X12: 122281.5534 | Y12: 132014.9597
B13: 16-18 | C13: Industria de la madera y del corcho, industria del papel y artes gráficas | D13: 331682.7191 | E13: 330373.3293 | F13: 337422.0785 | G13: 311702.0712 | H13: 352221.9902 | I13: 359302.2558 | J13: 362630.324 | K13: 376825.0249 | L13: 400432.1617 | M13: 352704.7844 | N13: 289764.2308 | O13: 322357.508 | P13: 239167.1956 | Q13: 238391.4743 | R13: 202311.0701 | S13: 178541.0264 | T13: 188187.2886 | U13: 200368.6049 | V13: 221594.5165 | W13: 235464.6253 | X13: 190259.6071 | Y13: 204862.6967
B14: 19-21 | C14: Coquerías y refino de petróleo; industria química; fabricación de productos farmacéuticos | D14: 230263.6891 | E14: 243868.0222 | F14: 299015.6168 | G14: 310387.8565 | H14: 334418.5302 | I14: 370460.7331 | J14: 346056.5595 | K14: 385710.8669 | L14: 488152.4651 | M14: 404518.8666 | N14: 431633.0757 | O14: 594863.2723 | P14: 579606.8625 | Q14: 586722.9923 | R14: 583797.2799 | S14: 699304.2768 | T14: 737218.6299 | U14: 804593.7315 | V14: 764270.4503 | W14: 736762.638 | X14: 585015.8804 | Y14: 684390.1767
B15: 22-23 | C15: Fabricación de productos de caucho y plásticos y de otros productos minerales no metálicos | D15: 96372.66583 | E15: 126853.6605 | F15: 131142.587 | G15: 130484.5759 | H15: 118688.655 | I15: 122707.7691 | J15: 133322.0472 | K15: 118317.0233 | L15: 106304.3215 | M15: 49091.88736 | N15: 53918.95164 | O15: 30134.04336 | P15: 24915.57483 | Q15: 31295.07833 | R15: 41553.32706 | S15: 45976.58258 | T15: 35029.53846 | U15: 49687.74177 | V15: 48584.38421 | W15: 70097.57089 | X15: 73620.69158 | Y15: 80323.73992
B16: 24-25 | C16: Metalurgia y fabricación de productos metálicos, excepto maquinaria y equipo | D16: 80633.07004 | E16: 73925.71846 | F16: 67315.53432 | G16: 67506.8534 | H16: 85047.74506 | I16: 89728.80506 | J16: 104069.0601 | K16: 124331.5793 | L16: 121419.7653 | M16: 112770.4845 | N16: 116451.2182 | O16: 90404.76851 | P16: 77002.78621 | Q16: 89780.53294 | R16: 103560.874 | S16: 99408.00939 | T16: 119309.7746 | U16: 101234.9109 | V16: 109087.9456 | W16: 120505.6885 | X16: 100154.4857 | Y16: 108017.8702
B17: 26-28 | C17: Fabricación de productos informáticos, electrónicos y ópticos; fabricación de material y equipo eléctrico; fabricación de maquinaria y equipo n.c.o.p. | D17: 200185.4978 | E17: 256110.046 | F17: 179281.1739 | G17: 181299.5744 | H17: 205761.487 | I17: 216527.144 | J17: 259555.6789 | K17: 274325.8135 | L17: 294011.9331 | M17: 236511.5797 | N17: 199541.114 | O17: 152361.0091 | P17: 165963.5213 | Q17: 184680.6418 | R17: 201917.5093 | S17: 177688.9564 | T17: 172556.72 | U17: 149831.4076 | V17: 149617.7474 | W17: 124069.0876 | X17: 117558.7333 | Y17: 132079.112
B18: 26-27 | C18: - Fabricación de productos informáticos, electrónicos y ópticos; fabricación de material y equipo eléctrico; | D18: 106318.5457 | E18: 146542.9161 | F18: 74614.61237 | G18: 79845.63321 | H18: 103155.4638 | I18: 123031.7543 | J18: 134323.4583 | K18: 154553.8647 | L18: 175469.5617 | M18: 90061.18092 | N18: 83652.67603 | O18: 59191.379 | P18: 59487.75074 | Q18: 60072.107 | R18: 65971.12119 | S18: 78396.45095 | T18: 70099.42832 | U18: 62703.50867 | V18: 65458.09883 | W18: 75554.4904 | X18: 75113.98583 | Y18: 81723.03588
B19: 1900-01-28 | C19: - Fabricación de maquinaria y equipo n.c.o.p. | D19: 93866.95202 | E19: 109567.13 | F19: 104666.5616 | G19: 101453.9412 | H19: 102606.0232 | I19: 93495.38974 | J19: 125232.2206 | K19: 119771.9487 | L19: 118542.3713 | M19: 146450.3988 | N19: 115888.4379 | O19: 93169.63011 | P19: 106475.7705 | Q19: 124608.5348 | R19: 135946.3881 | S19: 99292.50548 | T19: 102457.2917 | U19: 87127.89893 | V19: 84159.64858 | W19: 48514.59717 | X19: 42444.74744 | Y19: 50356.07609
B20: 29-30 | C20: Fabricación de material de transporte | D20: 324191.2867 | E20: 174161.7012 | F20: 158023.13 | G20: 185400.9483 | H20: 224718.9302 | I20: 289390.2578 | J20: 308534.6061 | K20: 408075.689 | L20: 358405.4112 | M20: 367556.83 | N20: 387465.0047 | O20: 451931.7653 | P20: 555767.2076 | Q20: 631478.2674 | R20: 679226.2553 | S20: 762621.6019 | T20: 753476.1309 | U20: 624650.5273 | V20: 640263.9841 | W20: 653922.6095 | X20: 605470.8226 | Y20: 697326.6678
B21: 31-33 | C21: Fabricación de muebles; otras industrias manufactureras y reparación e instalación de maquinaria y equipo | D21: 138378.4002 | E21: 171119.714 | F21: 146517.3098 | G21: 162448.7233 | H21: 181733.9555 | I21: 197203.318 | J21: 202360.9175 | K21: 218457.0042 | L21: 226911.8221 | M21: 231211.2553 | N21: 228327.8133 | O21: 268760.2468 | P21: 227378.5487 | Q21: 230852.0474 | R21: 249836.0611 | S21: 288490.0421 | T21: 237785.2907 | U21: 249955.8372 | V21: 272932.215 | W21: 307477.2713 | X21: 213504.4594 | Y21: 254036.6566
A22: F | B22: 41-43 | C22: Construcción | D22: 2299176.948 | E22: 2427453.898 | F22: 2935130.19 | G22: 3307805.872 | H22: 3678423.283 | I22: 4492980.567 | J22: 4821823.691 | K22: 4570477.827 | L22: 4282322.666 | M22: 4383645.891 | N22: 3016600.464 | O22: 2705550.945 | P22: 2069314.251 | Q22: 1724963.847 | R22: 1739909.885 | S22: 1780883.001 | T22: 1838990.074 | U22: 1927620.696 | V22: 1900156.122 | W22: 2010858.46 | X22: 1438208.189 | Y22: 1287363.532
A23: G_T | B23: 45-98 | C23: Servicios | D23: 20747776.27 | E23: 23402216.69 | F23: 25064817.75 | G23: 27133090.85 | H23: 29427751.7 | I23: 31753455.78 | J23: 35209612.34 | K23: 38915773.95 | L23: 40908381.4 | M23: 40668451.09 | N23: 39987618 | O23: 41381965.78 | P23: 41811020.42 | Q23: 41003113.34 | R23: 41597244.88 | S23: 42876673.75 | T23: 46255373.48 | U23: 50331916.72 | V23: 52520257.79 | W23: 53648879.06 | X23: 44163427.27 | Y23: 47393974.01
A24: G_I | B24: 45-56 | C24: Comercio al por mayor y al por menor; reparación de vehículos de motor y motocicletas; transporte y almacenamiento; hostelería | D24: 7102971.101 | E24: 7736971.89 | F24: 7915141.584 | G24: 8412017.822 | H24: 8764096.134 | I24: 8937935.997 | J24: 9741297.891 | K24: 10160572.34 | L24: 10194730 | M24: 10228554.78 | N24: 11637891.06 | O24: 11759226.95 | P24: 11593328.81 | Q24: 11803486.74 | R24: 12268313.26 | S24: 12990997.32 | T24: 14117070.46 | U24: 15191372.15 | V24: 15657332.2 | W24: 15472789.48 | X24: 10157590.76 | Y24: 13534682.76
A25: G | B25: 45-47 | C25: Comercio al por mayor y al por menor; reparación de vehículos de motor y motocicletas | D25: 3440414.695 | E25: 3630646.322 | F25: 3686254.465 | G25: 4041509.119 | H25: 4443536.748 | I25: 4609475.635 | J25: 4874307.921 | K25: 4955433.932 | L25: 4865133.818 | M25: 4835270.212 | N25: 5289051.553 | O25: 5165554.88 | P25: 4963507.74 | Q25: 4908646.288 | R25: 5059312.949 | S25: 5318443.886 | T25: 6040046.209 | U25: 6256129.865 | V25: 6804308.18 | W25: 7464347.943 | X25: 6258446.997 | Y25: 8261753.3
B26: 46 | C26: - Comercio al por mayor e intermediarios del comercio, excepto de vehículos de motor y motocicletas | D26: 1858453.323 | E26: 1871385.337 | F26: 1820188.645 | G26: 1992943.769 | H26: 2185041.207 | I26: 2257915.634 | J26: 2236250.339 | K26: 2308971.97 | L26: 2183287.972 | M26: 2104328.869 | N26: 2243355.687 | O26: 1942494.795 | P26: 2167870.958 | Q26: 2264861.097 | R26: 2243144.391 | S26: 2114528.12 | T26: 2347934.847 | U26: 2799081.626 | V26: 2884948.068 | W26: 3377218.748 | X26: 3151401.323 | Y26: 3939813.215
B27: 45 y 47 | C27: - Comercio minorista; venta y reparación de vehículos de motor y motocicletas | D27: 1581961.373 | E27: 1759260.984 | F27: 1866065.82 | G27: 2048565.35 | H27: 2258495.542 | I27: 2351560.001 | J27: 2638057.582 | K27: 2646461.963 | L27: 2681845.847 | M27: 2730941.343 | N27: 3045695.865 | O27: 3223060.085 | P27: 2795636.782 | Q27: 2643785.191 | R27: 2816168.559 | S27: 3203915.766 | T27: 3692111.362 | U27: 3457048.239 | V27: 3919360.112 | W27: 4087129.195 | X27: 3107045.674 | Y27: 4321940.085
A28: H | B28: 49-53 | C28: Transporte y almacenamiento | D28: 1920142.174 | E28: 2151038.756 | F28: 2189145.43 | G28: 2174160.999 | H28: 1971797.643 | I28: 1832835.656 | J28: 1957433.927 | K28: 2126685.793 | L28: 2228101.663 | M28: 2200436.808 | N28: 3167156.857 | O28: 3444206.792 | P28: 3354838.835 | Q28: 3853394.489 | R28: 4185082.308 | S28: 4578963.065 | T28: 4729808.762 | U28: 5348606.923 | V28: 5344576.224 | W28: 4273794.393 | X28: 2172977.551 | Y28: 2477022.017
A29: I | B29: 55-56 | C29: Hostelería | D29: 1742414.231 | E29: 1955286.812 | F29: 2039741.69 | G29: 2196347.704 | H29: 2348761.743 | I29: 2495624.706 | J29: 2909556.043 | K29: 3078452.614 | L29: 3101494.523 | M29: 3192847.764 | N29: 3181682.649 | O29: 3149465.274 | P29: 3274982.233 | Q29: 3041445.958 | R29: 3023918.004 | S29: 3093590.368 | T29: 3347215.487 | U29: 3586635.36 | V29: 3508447.792 | W29: 3734647.146 | X29: 1726166.214 | Y29: 2795907.446
A30: J | B30: 58-63 | C30: Información y comunicaciones | D30: 2444141.458 | E30: 3205043.221 | F30: 3690023.527 | G30: 4055978.91 | H30: 4461813.255 | I30: 5217785.191 | J30: 5656364.738 | K30: 6143527.207 | L30: 6285620.532 | M30: 6193621.686 | N30: 5916250.332 | O30: 5771772.897 | P30: 5901444.23 | Q30: 5873555.329 | R30: 5778671.462 | S30: 5272742.161 | T30: 5492955.939 | U30: 6228876.791 | V30: 6312045.075 | W30: 6408351.037 | X30: 5026901.714 | Y30: 4986572.321
A31: K | B31: 64-66 | C31: Actividades financieras y de seguros | D31: 2425327.895 | E31: 3066926.711 | F31: 3346743.458 | G31: 3502598.347 | H31: 3597826.308 | I31: 3791828.797 | J31: 4326630.236 | K31: 5736553.375 | L31: 6031370.535 | M31: 6407281.006 | N31: 3675181.81 | O31: 3142385.248 | P31: 3117653.605 | Q31: 1898152.746 | R31: 2610801.728 | S31: 2817043.504 | T31: 3714010.787 | U31: 4197464.14 | V31: 4660773.9 | W31: 4497244.573 | X31: 4790801.233 | Y31: 4915589.77
A32: L | B32: 1900-03-08 | C32: Actividades inmobiliarias | D32: 4595037.756 | E32: 4982018.275 | F32: 5250501.457 | G32: 6023827.57 | H32: 6617978.148 | I32: 6962619.675 | J32: 7940828.039 | K32: 8402436.226 | L32: 8940968.33 | M32: 8461128.102 | N32: 9408366.351 | O32: 10371362.52 | P32: 10466996.24 | Q32: 10766470.02 | R32: 10525531.61 | S32: 10590825.38 | T32: 10804831.58 | U32: 10958698.46 | V32: 11477538.34 | W32: 12168452.2 | X32: 12113928.29 | Y32: 12282578.85
A33: M_N | B33: 69-82 | C33: Actividades profesionales, científicas y técnicas; actividades administrativas y servicios auxiliares | D33: 1819982.998 | E33: 1860629.301 | F33: 2132055.455 | G33: 2278520.433 | H33: 2844140.968 | I33: 3371988.508 | J33: 3637155.808 | K33: 4161765.772 | L33: 4464736.154 | M33: 4161137.88 | N33: 4167131.316 | O33: 5106700.086 | P33: 5165142.828 | Q33: 5112053.538 | R33: 5022760.312 | S33: 5487729.366 | T33: 6262354.14 | U33: 7582421.129 | V33: 8105632.006 | W33: 8502445.973 | X33: 6385524.222 | Y33: 6925020.012
A34: M | B34: 69-75 | C34: Actividades profesionales, científicas y técnicas | D34: 1489292.174 | E34: 1577447.343 | F34: 1822614.91 | G34: 1933440.206 | H34: 2417311.469 | I34: 2426543.201 | J34: 2860075.068 | K34: 3396770.956 | L34: 3321513.556 | M34: 3218764.903 | N34: 3327360.984 | O34: 4158027.222 | P34: 4391338.867 | Q34: 4331230.452 | R34: 4216501.925 | S34: 4703695.638 | T34: 5310885.837 | U34: 6496384.931 | V34: 6815354.93 | W34: 7488762.197 | X34: 5902037.616 | Y34: 6258340.25
A35: N | B35: 77-82 | C35: Actividades administrativas y servicios auxiliares | D35: 330690.8234 | E35: 283181.958 | F35: 309440.5458 | G35: 345080.2269 | H35: 426829.4989 | I35: 945445.3069 | J35: 777080.7393 | K35: 764994.8158 | L35: 1143222.598 | M35: 942372.9771 | N35: 839770.332 | O35: 948672.864 | P35: 773803.9607 | Q35: 780823.0862 | R35: 806258.3866 | S35: 784033.7278 | T35: 951468.3031 | U35: 1086036.199 | V35: 1290277.076 | W35: 1013683.776 | X35: 483486.6061 | Y35: 666679.7622
A36: O_Q | B36: 84-88 | C36: Administración pública y defensa; seguridad social obligatoria; educación; actividades sanitarias y de servicios sociales | D36: 1475299.57 | E36: 1551022.959 | F36: 1592585.03 | G36: 1693877.75 | H36: 1874554.991 | I36: 2102753.208 | J36: 2347325.964 | K36: 2749980.918 | L36: 3283147.427 | M36: 3388928.366 | N36: 3261597.462 | O36: 3221939.161 | P36: 3348987.233 | Q36: 3443131.164 | R36: 3279654.191 | S36: 3352204.866 | T36: 3478197.259 | U36: 3623083.683 | V36: 3617669.366 | W36: 3676690.151 | X36: 3615291.185 | Y36: 2999617.989
A37: O | B37: 84 | C37: Administración pública y defensa; seguridad social obligatoria | D37: 1035197.065 | E37: 1065335.142 | F37: 1069208.276 | G37: 1109290.649 | H37: 1209349.273 | I37: 1362924.687 | J37: 1485150.878 | K37: 1698049.679 | L37: 1865202.543 | M37: 1993041.832 | N37: 1918195.883 | O37: 1871058.587 | P37: 1930856.817 | Q37: 2011993.086 | R37: 1901168.743 | S37: 1850751.468 | T37: 1897338.786 | U37: 1998961.425 | V37: 1963410.04 | W37: 2010294.422 | X37: 2002150.004 | Y37: 1932243.903
A38: P | B38: 85 | C38: Educación | D38: 265472.6955 | E38: 292128.1914 | F38: 324165.8715 | G38: 362089.9952 | H38: 407936.2316 | I38: 449801.5968 | J38: 505187.9764 | K38: 567158.6196 | L38: 699429.3988 | M38: 699964.0449 | N38: 663022.4451 | O38: 667443.753 | P38: 666930.0036 | Q38: 673038.5523 | R38: 688184.8162 | S38: 682060.0793 | T38: 738444.9447 | U38: 723520.3281 | V38: 729186.8901 | W38: 702132.805 | X38: 816127.9964 | Y38: 540710.6534
A39: Q | B39: 86-88 | C39: Actividades sanitarias y de servicios sociales | D39: 174629.8092 | E39: 193559.6257 | F39: 199210.8822 | G39: 222497.1058 | H39: 257269.486 | I39: 290026.9242 | J39: 356987.1092 | K39: 484772.6193 | L39: 718515.4851 | M39: 695922.4896 | N39: 680379.1338 | O39: 683436.8207 | P39: 751200.412 | Q39: 758099.5262 | R39: 690300.6319 | S39: 819393.3193 | T39: 842413.5282 | U39: 900601.9303 | V39: 925072.4363 | W39: 964262.9239 | X39: 797013.1846 | Y39: 526663.4324
A40: R_T | B40: 90-98 | C40: Actividades artísticas, recreativas y de entretenimiento; reparación de artículos de uso doméstico y otros servicios | D40: 885015.4918 | E40: 999604.3291 | F40: 1137767.241 | G40: 1166270.014 | H40: 1267341.901 | I40: 1368544.403 | J40: 1560009.667 | K40: 1560938.113 | L40: 1707808.421 | M40: 1827799.266 | N40: 1921199.669 | O40: 2008578.923 | P40: 2217467.474 | Q40: 2106263.812 | R40: 2111512.307 | S40: 2365131.157 | T40: 2385953.325 | U40: 2550000.364 | V40: 2689266.91 | W40: 2922905.649 | X40: 2073389.859 | Y40: 1749912.309
A41: R | B41: 90-93 | C41: Actividades artísticas, recreativas y de entretenimiento | D41: 435915.2465 | E41: 514988.0335 | F41: 533758.9836 | G41: 546199.0038 | H41: 598554.5569 | I41: 668212.7272 | J41: 770820.0543 | K41: 789745.1755 | L41: 828522.2871 | M41: 925095.0515 | N41: 970785.1094 | O41: 1036107.206 | P41: 1063251.742 | Q41: 1061405.151 | R41: 1003983.359 | S41: 1163488.21 | T41: 1098331.324 | U41: 1208208.704 | V41: 1308157.496 | W41: 1395100.65 | X41: 881541.6636 | Y41: 800112.9148
A42: S | B42: 94-96 | C42: Reparación de artículos de uso doméstico y otros servicios | D42: 449099.9876 | E42: 484616.2956 | F42: 604008.2569 | G42: 620071.0105 | H42: 668787.3437 | I42: 700331.6758 | J42: 789189.6129 | K42: 771192.9371 | L42: 879286.1335 | M42: 902704.2144 | N42: 950414.5592 | O42: 972471.7163 | P42: 1154215.732 | Q42: 1044858.661 | R42: 1107528.948 | S42: 1201642.947 | T42: 1287622.001 | U42: 1341791.66 | V42: 1381109.414 | W42: 1527804.999 | X42: 1191848.196 | Y42: 949799.3939
A43: T | B43: 97-98 | C43: Actividades de los hogares como empleadores de personal doméstico; Actividades de los hogares como productores de bienes y servicios para uso propio | D43: 0.2576610419 | E43: 0 | F43: 0 | G43: 0 | H43: 0 | I43: 0 | J43: 0 | K43: 0 | L43: 0 | M43: 0 | N43: 0 | O43: 0 | P43: 0 | Q43: 0 | R43: 0 | S43: 0 | T43: 0 | U43: 0 | V43: 0 | W43: 0 | X43: 0 | Y43: 0
A44: Total Otros impuestos | D44: 25959487.65 | E44: 28761530.66 | F44: 30821180.28 | G44: 33433250.72 | H44: 36358597.47 | I44: 39891447.8 | J44: 44110602.18 | K44: 48193004.41 | L44: 50210151.86 | M44: 49649444.44 | N44: 47630751.14 | O44: 49181830.74 | P44: 48994399.72 | Q44: 47823058.58 | R44: 48368752.8 | S44: 50021973.39 | T44: 53524606.01 | U44: 57860088.52 | V44: 60339715.26 | W44: 61866983.05 | X44: 51172342 | Y44: 55057527.88

Sheet 8ratio
A1: Contabilidad Municipal de la Ciudad de Madrid. Serie 2000 - 2021(a) | Y1: Indice
A2: Excedente de Explotación Bruto / Renta Mixta Bruta por ocupado (precios corrientes)
A3: Unidad: euros
A5: CÓDIGOS | C5: RAMAS | D5: 2000 | E5: 2001 | F5: 2002 | G5: 2003 | H5: 2004 | I5: 2005 | J5: 2006 | K5: 2007 | L5: 2008 | M5: 2009 | N5: 2010 | O5: 2011 | P5: 2012 | Q5: 2013 | R5: 2014 | S5: 2015 | T5: 2016 | U5: 2017 | V5: 2018 | W5: 2019 | X5: 2020p | Y5: 2021a
A6: (A11) | B6: (A17)
A8: A | B8: 2024-01-03 | C8: Agricultura, ganadería, silvicultura y pesca | D8: 11555.00373 | E8: 12827.30956 | F8: 10124.59337 | G8: 10607.23563 | H8: 7257.858927 | I8: 6828.17639 | J8: 6399.013506 | K8: 7269.179704 | L8: 6012.360781 | M8: 4869.235403 | N8: 4376.926893 | O8: 4355.54698 | P8: 8053.110527 | Q8: 12132.19136 | R8: 16437.31989 | S8: 16638.38793 | T8: 22939.62124 | U8: 23469.15449 | V8: 26993.99778 | W8: 21149.0871 | X8: 24078.16203 | Y8: 19121.77671
A9: B_E | B9: 1939-05-01 | C9: Industrias extractivas; industria manufacturera; suministro de energía eléctrica, gas, vapor y aire acondicionado; suministro de agua, actividades de saneamiento, gestión de residuos y descontaminación | D9: 23389.06526 | E9: 22910.5381 | F9: 22087.01013 | G9: 23524.8248 | H9: 25725.31587 | I9: 29138.58543 | J9: 33304.96297 | K9: 38101.64467 | L9: 41335.5433 | M9: 40521.5892 | N9: 42681.64367 | O9: 48060.32502 | P9: 50938.80801 | Q9: 53319.41036 | R9: 54265.83933 | S9: 57477.79 | T9: 56529.2245 | U9: 57265.43816 | V9: 60086.46107 | W9: 61940.35278 | X9: 57176.12295 | Y9: 65495.69955
A10: C | B10: 1933-10-01 | C10: Industria Manufacturera | D10: 15515.43565 | E10: 14676.02461 | F10: 14298.55672 | G10: 14929.14005 | H10: 16726.12854 | I10: 18228.91932 | J10: 19477.16043 | K10: 22211.80806 | L10: 23975.78735 | M10: 23559.20189 | N10: 24521.8194 | O10: 27869.01647 | P10: 30063.95599 | Q10: 33750.38763 | R10: 35788.37824 | S10: 38008.99365 | T10: 36586.84852 | U10: 35038.39293 | V10: 35299.43762 | W10: 36013.59205 | X10: 31940.3327 | Y10: 36980.80938
B11: 2024-10-12 | C11: Industria de la alimentación, fabricación de bebidas e industria del tabaco | D11: 14109.91311 | E11: 13518.14116 | F11: 15184.72147 | G11: 17209.37238 | H11: 19899.03577 | I11: 18658.92964 | J11: 20177.68513 | K11: 24828.13763 | L11: 24472.0386 | M11: 25689.18986 | N11: 27974.56335 | O11: 29826.48498 | P11: 28279.92016 | Q11: 30677.35842 | R11: 32427.52496 | S11: 30652.97454 | T11: 26832.54346 | U11: 27627.26278 | V11: 25675.57916 | W11: 28804.98946 | X11: 27818.56173 | Y11: 31476.58592
B12: 13-15 | C12: Industria textil, confección de prendas de vestir e industria del cuero y del calzado | D12: 4380.366668 | E12: 3230.883661 | F12: 3164.216652 | G12: 3940.13884 | H12: 4416.413854 | I12: 4260.55135 | J12: 4468.926322 | K12: 4680.310748 | L12: 8730.865943 | M12: 10203.26328 | N12: 11211.05963 | O12: 13852.47656 | P12: 31624.8637 | Q12: 32772.73348 | R12: 32536.04846 | S12: 35096.92105 | T12: 34627.0453 | U12: 33876.02039 | V12: 31950.93117 | W12: 33542.28881 | X12: 30249.6087 | Y12: 34115.90003
B13: 16-18 | C13: Industria de la madera y del corcho, industria del papel y artes gráficas | D13: 17863.91217 | E13: 16850.10716 | F13: 16358.7957 | G13: 15578.1371 | H13: 17685.27956 | I13: 18440.81569 | J13: 20498.92129 | K13: 23318.15255 | L13: 25813.30675 | M13: 25330.98946 | N13: 23011.70092 | O13: 24257.44316 | P13: 19549.12278 | Q13: 21936.70819 | R13: 19701.18898 | S13: 17508.40019 | T13: 18612.65547 | U13: 19469.00167 | V13: 21892.45015 | W13: 23377.33329 | X13: 20026.72545 | Y13: 22661.41413
B14: 19-21 | C14: Coquerías y refino de petróleo; industria química; fabricación de productos farmacéuticos | D14: 23189.83294 | E14: 24826.36105 | F14: 29022.56399 | G14: 29231.52303 | H14: 31078.73814 | I14: 37894.55742 | J14: 35410.19384 | K14: 38448.99141 | L14: 48861.58517 | M14: 43482.81679 | N14: 45059.66314 | O14: 56841.20073 | P14: 59897.34989 | Q14: 62020.20874 | R14: 60855.82179 | S14: 71204.70624 | T14: 73410.09174 | U14: 76401.91106 | V14: 70086.45064 | W14: 64028.24517 | X14: 57317.46429 | Y14: 64617.98388
B15: 22-23 | C15: Fabricación de productos de caucho y plásticos y de otros productos minerales no metálicos | D15: 17584.14805 | E15: 20622.50872 | F15: 21713.02752 | G15: 21330.33103 | H15: 19959.53052 | I15: 21157.81031 | J15: 22942.17538 | K15: 22621.13719 | L15: 22089.3329 | M15: 11822.64007 | N15: 14880.5688 | O15: 9269.756789 | P15: 8526.928203 | Q15: 12093.47673 | R15: 15768.41282 | S15: 17134.87337 | T15: 12370.97792 | U15: 16806.03822 | V15: 18216.77556 | W15: 26801.37125 | X15: 28674.86826 | Y15: 30714.06132
B16: 24-25 | C16: Metalurgia y fabricación de productos metálicos, excepto maquinaria y equipo | D16: 11836.39951 | E16: 10413.22131 | F16: 9337.37272 | G16: 9180.58036 | H16: 11150.36862 | I16: 12050.61123 | J16: 13891.66118 | K16: 15888.10193 | L16: 15582.75424 | M16: 17104.5978 | N16: 18963.68891 | O16: 15650.27295 | P16: 15343.44474 | Q16: 22115.22532 | R16: 26569.7963 | S16: 25123.64331 | T16: 28464.73903 | U16: 24026.751 | V16: 26656.5769 | W16: 29394.18714 | X16: 25534.30653 | Y16: 27846.06183
B17: 26-28 | C17: Fabricación de productos informáticos, electrónicos y ópticos; fabricación de material y equipo eléctrico; fabricación de maquinaria y equipo n.c.o.p. | D17: 12146.84496 | E17: 15369.79735 | F17: 10990.71674 | G17: 11205.49477 | H17: 13034.75376 | I17: 13739.79016 | J17: 16894.24638 | K17: 18312.53292 | L17: 20030.40156 | M17: 18332.67415 | N17: 16448.22689 | O17: 14518.32815 | P17: 17195.04282 | Q17: 20617.19068 | R17: 24001.03811 | S17: 20877.45137 | T17: 20285.54886 | U17: 17140.96161 | V17: 17155.60264 | W17: 14146.85142 | X17: 13759.9853 | Y17: 15409.95947
B18: 26-27 | C18: - Fabricación de productos informáticos, electrónicos y ópticos; fabricación de material y equipo eléctrico; | D18: 12691.12802 | E18: 17811.3788 | F18: 9441.498032 | G18: 10483.94489 | H18: 14126.8011 | I18: 16695.97365 | J18: 18982.19471 | K18: 23056.67811 | L18: 27099.50436 | M18: 15213.79662 | N18: 14855.02662 | O18: 11828.15423 | P18: 12836.87286 | Q18: 13698.5124 | R18: 15985.24981 | S18: 18466.41937 | T18: 17343.84975 | U18: 15369.53606 | V18: 15724.3267 | W18: 18003.78698 | X18: 18371.35415 | Y18: 19500.78501
B19: 1900-01-28 | C19: - Fabricación de maquinaria y equipo n.c.o.p. | D19: 11584.13511 | E19: 12988.48336 | F19: 12446.64532 | G19: 11847.20628 | H19: 12094.78148 | I19: 11143.42705 | J19: 15111.40042 | K19: 14470.44097 | L19: 14450.61617 | M19: 20977.25222 | N19: 17828.4533 | O19: 16970.44193 | P19: 21220.06629 | Q19: 27252.90352 | R19: 31719.70134 | S19: 23276.98562 | T19: 22948.60721 | U19: 18691.33797 | V19: 18462.69373 | W19: 10607.77055 | X19: 9527.708873 | Y19: 11496.12165
B20: 29-30 | C20: Fabricación de material de transporte | D20: 25754.22108 | E20: 13688.12905 | F20: 13861.05202 | G20: 16635.66481 | H20: 19708.20182 | I20: 24294.14389 | J20: 24896.36896 | K20: 30501.20351 | L20: 26716.5128 | M20: 27441.70417 | N20: 29860.44596 | O20: 34687.16612 | P20: 43446.4411 | Q20: 48586.30768 | R20: 54331.49054 | S20: 60845.72521 | T20: 57685.10841 | U20: 47111.21176 | V20: 51437.95616 | W20: 56021.24163 | X20: 54681.067 | Y20: 65260.43384
B21: 31-33 | C21: Fabricación de muebles; otras industrias manufactureras y reparación e instalación de maquinaria y equipo | D21: 12078.84989 | E21: 14083.68915 | F21: 11725.64394 | G21: 12909.01835 | H21: 14363.83762 | I21: 15720.91912 | J21: 16291.3562 | K21: 18036.63151 | L21: 19275.36539 | M21: 21046.79211 | N21: 21837.04103 | O21: 26702.98135 | P21: 23598.13789 | Q21: 24952.11701 | R21: 27282.93683 | S21: 30004.17704 | T21: 23540.17046 | U21: 24298.67641 | V21: 25511.56759 | W21: 26658.95636 | X21: 18019.31052 | Y21: 22245.48567
A22: F | B22: 41-43 | C22: Construcción | D22: 16791.98281 | E22: 16547.56074 | F22: 19166.95339 | G22: 19518.91953 | H22: 19784.92952 | I22: 22501.38513 | J22: 22048.13238 | K22: 21261.09647 | L22: 22390.69233 | M22: 27934.55499 | N22: 23333.35056 | O22: 23216.0577 | P22: 23024.36544 | Q22: 21571.21071 | R22: 22689.3805 | S22: 21473.27945 | T22: 22238.42218 | U22: 22133.88432 | V22: 19950.29398 | W22: 19450.09822 | X22: 14458.16987 | Y22: 12402.17038
A23: G_T | B23: 45-98 | C23: Servicios | D23: 15505.57329 | E23: 16341.2248 | F23: 16715.54006 | G23: 17648.84114 | H23: 18566.24262 | I23: 19378.25534 | J23: 20269.81298 | K23: 22027.43815 | L23: 22555.81546 | M23: 22860.16027 | N23: 22665.09276 | O23: 23515.23196 | P23: 24295.67657 | Q23: 24339.53309 | R23: 24421.00733 | S23: 24498.37113 | T23: 25797.67894 | U23: 27249.11493 | V23: 27666.4836 | W23: 27391.91885 | X23: 23140.97685 | Y23: 24203.76435
A24: G_I | B24: 45-56 | C24: Comercio al por mayor y al por menor; reparación de vehículos de motor y motocicletas; transporte y almacenamiento; hostelería | D24: 17378.9724 | E24: 17760.63767 | F24: 17678.22882 | G24: 18122.89922 | H24: 18609.58129 | I24: 18024.42537 | J24: 18809.12695 | K24: 19256.88529 | L24: 19195.47887 | M24: 19806.20499 | N24: 22960.48123 | O24: 23536.5512 | P24: 23788.39508 | Q24: 24962.07433 | R24: 25923.807 | S24: 26647.83644 | T24: 28358.8644 | U24: 29600.39461 | V24: 29511.73419 | W24: 28363.92724 | X24: 19867.34609 | Y24: 26338.9935
A25: G | B25: 45-47 | C25: Comercio al por mayor y al por menor; reparación de vehículos de motor y motocicletas | D25: 15857.3323 | E25: 15668.33912 | F25: 15189.00794 | G25: 15969.28865 | H25: 17074.0511 | I25: 16891.53248 | J25: 17296.2575 | K25: 17320.10055 | L25: 16795.92228 | M25: 17187.73956 | N25: 19236.95996 | O25: 19146.01794 | P25: 18602.69433 | Q25: 19366.27089 | R25: 20123.68317 | S25: 20600.86337 | T25: 23089.27236 | U25: 23539.71919 | V25: 25068.69878 | W25: 27162.88286 | X25: 23245.30828 | Y25: 30645.567
B26: 46 | C26: - Comercio al por mayor e intermediarios del comercio, excepto de vehículos de motor y motocicletas | D26: 24802.9833 | E26: 23664.04268 | F26: 22546.77225 | G26: 24157.67591 | H26: 26673.57847 | I26: 27298.81512 | J26: 26570.68888 | K26: 27605.44963 | L26: 25918.27877 | M26: 26363.02707 | N26: 29045.24269 | O26: 25637.04205 | P26: 28966.46072 | Q26: 31435.83578 | R26: 31484.9275 | S26: 28227.80455 | T26: 30707.40085 | U26: 35687.74192 | V26: 35898.42582 | W26: 41524.3113 | X26: 38818.41926 | Y26: 47461.05221
B27: 45 y 47 | C27: - Comercio minorista; venta y reparación de vehículos de motor y motocicletas | D27: 11138.07276 | E27: 11525.76383 | F27: 11521.57111 | G27: 12009.21635 | H27: 12664.48019 | I27: 12365.20082 | J27: 13347.07834 | K27: 13071.08106 | L27: 13055.15877 | M27: 13553.0806 | N27: 15405.20978 | O27: 16611.24555 | P27: 14562.43776 | Q27: 14573.0083 | R27: 15630.97785 | S27: 17483.21599 | T27: 19942.93331 | U27: 18453.68061 | V27: 20513.52258 | W27: 21125.56157 | X27: 16522.29488 | Y27: 23164.13128
A28: H | B28: 49-53 | C28: Transporte y almacenamiento | D28: 17771.8707 | E28: 19050.76873 | F28: 19550.16093 | G28: 18985.59362 | H28: 17733.18456 | I28: 15341.43495 | J28: 15278.482 | K28: 16250.67016 | L28: 17234.16719 | M28: 17747.06957 | N28: 26283.66638 | O28: 29241.36596 | P28: 29734.60637 | Q28: 33564.76513 | R28: 36647.79995 | S28: 39655.81332 | T28: 40348.86747 | U28: 43637.77083 | V28: 41639.46093 | W28: 31406.50081 | X28: 16548.68006 | Y28: 18157.05941
A29: I | B29: 55-56 | C29: Hostelería | D29: 20815.81865 | E29: 21487.8115 | F29: 21917.2031 | G29: 22743.89413 | H29: 23605.17961 | I29: 24107.02672 | J29: 26947.11938 | K29: 27819.82341 | L29: 27653.64471 | M29: 28732.76159 | N29: 28554.4924 | O29: 28112.13082 | P29: 30405.66336 | Q29: 29080.15305 | R29: 28093.71997 | S29: 27167.03705 | T29: 28131.92879 | U29: 28721.15937 | V29: 26829.99168 | W29: 27740.0932 | X29: 15589.30608 | Y29: 25923.46639
A30: J | B30: 58-63 | C30: Información y comunicaciones | D30: 29559.4711 | E30: 35344.25847 | F30: 38675.21511 | G30: 41000.11161 | H30: 42479.65334 | I30: 47948.94302 | J30: 48567.65329 | K30: 48720.83649 | L30: 47702.97956 | M30: 47924.09174 | N30: 46223.09097 | O30: 44533.46774 | P30: 46015.48394 | Q30: 46082.72986 | R30: 45482.67347 | S30: 39570.44388 | T30: 39512.76001 | U30: 42759.15477 | V30: 41305.05401 | W30: 40427.66088 | X30: 31398.42857 | Y30: 29311.47767
A31: K | B31: 64-66 | C31: Actividades financieras y de seguros | D31: 29488.92697 | E31: 36324.1718 | F31: 39343.94165 | G31: 41055.97135 | H31: 44217.79966 | I31: 47840.49372 | J31: 51696.10142 | K31: 67128.8492 | L31: 68900.02668 | M31: 73938.38554 | N31: 43110.15129 | O31: 37728.7192 | P31: 37651.19554 | Q31: 23698.52628 | R31: 33185.63299 | S31: 37584.32117 | T31: 46440.40548 | U31: 52205.20705 | V31: 58820.56403 | W31: 55997.31308 | X31: 58741.88707 | Y31: 62801.40417
A32: L | B32: 1900-03-08 | C32: Actividades inmobiliarias | D32: 228991.7729 | E32: 222909.0118 | F32: 218301.4951 | G32: 241139.872 | H32: 249347.7135 | I32: 245555.9149 | J32: 260445.1287 | K32: 262727.6906 | L32: 274132.7645 | M32: 293718.926 | N32: 336363.9206 | O32: 378073.7603 | P32: 375843.6891 | Q32: 440695.4713 | R32: 408716.3908 | S32: 368103.6795 | T32: 364675.0115 | U32: 350537.0013 | V32: 349305.3065 | W32: 360296.5718 | X32: 358369.2457 | Y32: 356588.2607
A33: M_N | B33: 69-82 | C33: Actividades profesionales, científicas y técnicas; actividades administrativas y servicios auxiliares | D33: 7697.874412 | E33: 6992.508827 | F33: 7368.083776 | G33: 7626.621958 | H33: 8870.871809 | I33: 10125.30693 | J33: 10220.54213 | K33: 11087.19064 | L33: 11218.83252 | M33: 11023.54447 | N33: 11242.9677 | O33: 13847.4022 | P33: 14209.19064 | Q33: 14317.57884 | R33: 13466.30603 | S33: 14105.87388 | T33: 15860.40245 | U33: 18342.05114 | V33: 19041.79853 | W33: 18769.06844 | X33: 14294.25263 | Y33: 15170.24921
A34: M | B34: 69-75 | C34: Actividades profesionales, científicas y técnicas | D34: 13521.12395 | E34: 12681.1254 | F34: 13105.58298 | G34: 13460.84102 | H34: 15591.74148 | I34: 15293.0273 | J34: 16845.55768 | K34: 18785.89428 | L34: 16460.35025 | M34: 16721.91668 | N34: 17401.5291 | O34: 21793.05606 | P34: 23076.80558 | Q34: 23075.58715 | R34: 22092.46183 | S34: 23746.20932 | T34: 25583.33973 | U34: 29845.88889 | V34: 30054.47858 | W34: 31704.08586 | X34: 25145.86821 | Y34: 25820.22043
A35: N | B35: 77-82 | C35: Actividades administrativas y servicios auxiliares | D35: 2618.688092 | E35: 1998.522997 | F35: 2058.929075 | G35: 2224.539064 | H35: 2577.818669 | I35: 5422.50249 | J35: 4175.94383 | K35: 3932.082974 | L35: 5827.439521 | M35: 5094.196839 | N35: 4680.145672 | O35: 5329.981811 | P35: 4467.307005 | Q35: 4610.710826 | R35: 4426.824327 | S35: 4105.820761 | T35: 5081.259259 | U35: 5548.765911 | V35: 6486.768854 | W35: 4675.771466 | X35: 2280.514643 | Y35: 3113.79042
A36: O_Q | B36: 84-88 | C36: Administración pública y defensa; seguridad social obligatoria; educación; actividades sanitarias y de servicios sociales | D36: 5012.196205 | E36: 5091.141371 | F36: 5051.19635 | G36: 5382.64586 | H36: 5796.363033 | I36: 6383.936974 | J36: 6908.389133 | K36: 7693.252761 | L36: 8763.060793 | M36: 8997.588525 | N36: 8588.286612 | O36: 8412.130814 | P36: 8877.4564 | Q36: 9267.835212 | R36: 8829.584615 | S36: 8770.442331 | T36: 8899.387379 | U36: 9123.268871 | V36: 8918.990317 | W36: 8897.567576 | X36: 8634.226281 | Y36: 6813.013515
A37: O | B37: 84 | C37: Administración pública y defensa; seguridad social obligatoria | D37: 7509.527632 | E37: 7548.521695 | F37: 7395.915727 | G37: 8067.668742 | H37: 8801.658813 | I37: 10085.31347 | J37: 10797.07588 | K37: 12117.68699 | L37: 12564.28054 | M37: 13176.36575 | N37: 12552.52952 | O37: 12339.43325 | P37: 12956.17445 | Q37: 13316.14587 | R37: 13215.81263 | S37: 12957.93495 | T37: 13055.45456 | U37: 13846.50801 | V37: 13651.60463 | W37: 13748.44649 | X37: 13355.22923 | Y37: 12437.63126
A38: P | B38: 85 | C38: Educación | D38: 3649.912654 | E38: 3857.33464 | F38: 4110.641038 | G38: 4437.156384 | H38: 4896.752451 | I38: 5223.692917 | J38: 5718.992117 | K38: 6079.240186 | L38: 7232.864216 | M38: 7163.433006 | N38: 6562.46681 | O38: 6611.783321 | P38: 6708.287064 | Q38: 6947.962672 | R38: 6956.088938 | S38: 6396.889121 | T38: 6785.34836 | U38: 6420.548276 | V38: 6303.19393 | W38: 5960.659124 | X38: 6959.804788 | Y38: 4268.102421
A39: Q | B39: 86-88 | C39: Actividades sanitarias y de servicios sociales | D39: 2084.962736 | E39: 2204.889944 | F39: 2168.609587 | G39: 2327.617897 | H39: 2505.198043 | I39: 2682.097505 | J39: 3134.415905 | K39: 3908.529125 | L39: 5548.243397 | M39: 5450.683708 | N39: 5402.974041 | O39: 5239.83462 | P39: 5832.410848 | Q39: 6135.90686 | R39: 5365.687904 | S39: 6171.766359 | T39: 6163.533246 | U39: 6429.581918 | V39: 6331.50404 | W39: 6462.457339 | X39: 5259.488011 | Y39: 3328.328228
A40: R_T | B40: 90-98 | C40: Actividades artísticas, recreativas y de entretenimiento; reparación de artículos de uso doméstico y otros servicios | D40: 4143.166717 | E40: 4379.061772 | F40: 4690.278838 | G40: 4654.825157 | H40: 4929.190818 | I40: 5186.002294 | J40: 5326.971665 | K40: 5941.730386 | L40: 6619.26485 | M40: 6930.04086 | N40: 7228.406575 | O40: 7493.100081 | P40: 8733.055296 | Q40: 8383.846706 | R40: 8306.83866 | S40: 9295.078725 | T40: 9144.842654 | U40: 9585.289813 | V40: 9901.991011 | W40: 10658.5923 | X40: 8090.188092 | Y40: 6612.065403
A41: R | B41: 90-93 | C41: Actividades artísticas, recreativas y de entretenimiento | D41: 12433.57435 | E41: 13684.15205 | F41: 13908.1797 | G41: 14396.99101 | H41: 15352.21887 | I41: 17536.76904 | J41: 18302.11045 | K41: 17094.00267 | L41: 17904.30278 | M41: 19985.38259 | N41: 20988.18428 | O41: 22094.69093 | P41: 22592.45211 | Q41: 22843.31025 | R41: 20432.70943 | S41: 22473.66694 | T41: 20085.57787 | U41: 20518.22337 | V41: 20614.47523 | W41: 20756.47534 | X41: 14964.62643 | Y41: 13643.12487
A42: S | B42: 94-96 | C42: Reparación de artículos de uso doméstico y otros servicios | D42: 6268.850745 | E42: 6304.265617 | F42: 7695.937515 | G42: 7613.131584 | H42: 8092.869904 | I42: 8216.787577 | J42: 8893.232181 | K42: 9787.417258 | L42: 11286.50753 | M42: 11769.09797 | N42: 13040.73082 | O42: 13827.92618 | P42: 15895.63804 | Q42: 15163.89379 | R42: 16170.0877 | S42: 17204.54385 | T42: 18354.05331 | U42: 18876.89986 | V42: 18713.26506 | W42: 20112.36978 | X42: 16667.02679 | Y42: 13320.65546
A43: T | B43: 97-98 | C43: Actividades de los hogares como empleadores de personal doméstico; Actividades de los hogares como productores de bienes y servicios para uso propio | D43: 0.002410096472 | E43: 0 | F43: 0 | G43: 0 | H43: 0 | I43: 0 | J43: 0 | K43: 0 | L43: 0 | M43: 0 | N43: 0 | O43: 0 | P43: 0 | Q43: 0 | R43: 0 | S43: 0 | T43: 0 | U43: 0 | V43: 0 | W43: 0 | X43: 0 | Y43: 0
A44: Total Excedente de Explotación Bruto / Renta Mixta Bruta por ocupado | D44: 16207.38073 | E44: 16832.15985 | F44: 17287.45024 | G44: 18203.71695 | H44: 19126.26563 | I44: 20275.70573 | J44: 21181.65055 | K44: 22849.33779 | L44: 23566.85888 | M44: 24184.79832 | N44: 23751.22404 | O44: 24767.50577 | P44: 25604.76582 | Q44: 25687.2858 | R44: 25810.31296 | S44: 25949.35673 | T44: 27132.68064 | U44: 28460.8432 | V44: 28828.56079 | W44: 28598.02753 | X44: 24295.02407 | Y44: 25481.57537

Sheet 9
A1: Contabilidad Municipal de la Ciudad de Madrid. Serie 2000 - 2021(a) | Y1: Indice
A2: Ocupados
A3: Unidad: personas
A5: CÓDIGOS | C5: RAMAS | D5: 2000 | E5: 2001 | F5: 2002 | G5: 2003 | H5: 2004 | I5: 2005 | J5: 2006 | K5: 2007 | L5: 2008 | M5: 2009 | N5: 2010 | O5: 2011 | P5: 2012 | Q5: 2013 | R5: 2014 | S5: 2015 | T5: 2016 | U5: 2017 | V5: 2018 | W5: 2019 | X5: 2020p | Y5: 2021a
A6: (A11) | B6: (A17)
A8: A | B8: 2024-01-03 | C8: Agricultura, ganadería, silvicultura y pesca | D8: 4300.895951 | E8: 4459.160881 | F8: 4624.97053 | G8: 4668.831469 | H8: 5034.547737 | I8: 5315.383174 | J8: 5285.491677 | K8: 4903.772499 | L8: 4918.58 | M8: 4011.872071 | N8: 3833.900016 | O8: 3749.663014 | P8: 2722.377542 | Q8: 2056.194789 | R8: 1814.647721 | S8: 1726.960045 | T8: 1579.393055 | U8: 1660.382366 | V8: 1744.213407 | W8: 1770.085883 | X8: 1612.298244 | Y8: 1979.446398
A9: B_E | B9: 1939-05-01 | C9: Industrias extractivas; industria manufacturera; suministro de energía eléctrica, gas, vapor y aire acondicionado; suministro de agua, actividades de saneamiento, gestión de residuos y descontaminación | D9: 122400.683 | E9: 125473.3097 | F9: 125612.5828 | G9: 125094.6873 | H9: 125008.4725 | I9: 123846.6806 | J9: 121463.7055 | K9: 122595.9211 | L9: 120716.3403 | M9: 112972.1909 | N9: 108003.1505 | O9: 105658.5069 | P9: 99965.85398 | Q9: 95087.98407 | R9: 92171.61582 | S9: 92830.34025 | T9: 95419.87928 | U9: 97119.371 | V9: 97729.47108 | W9: 99608.89072 | X9: 96751.66967 | Y9: 96774.90051
A10: C | B10: 1933-10-01 | C10: Industria Manufacturera | D10: 103387.7273 | E10: 106012.3 | F10: 106205.0136 | G10: 105631.9948 | H10: 105201.3859 | I10: 103425.5498 | J10: 101427.9429 | K10: 99662.91283 | L10: 97182.52451 | M10: 89238.52767 | N10: 83615.84557 | O10: 81145.51145 | P10: 75505.63162 | Q10: 70815.08553 | R10: 68909.8784 | S10: 69917.2046 | T10: 71578.32023 | U10: 73189.00286 | V10: 72996.12297 | W10: 73920.3728 | X10: 70685.49009 | Y10: 69641.62045
B11: 2024-10-12 | C11: Industria de la alimentación, fabricación de bebidas e industria del tabaco | D11: 10864.67912 | E11: 10596.47863 | F11: 10883.22531 | G11: 10743.31558 | H11: 10578.67972 | I11: 10543.02204 | J11: 10659.98552 | K11: 10636.6767 | L11: 10588.44396 | M11: 10623.2614 | N11: 9700.889596 | O11: 9136.808119 | P11: 8702.325152 | Q11: 8212.203035 | R11: 8142.993359 | S11: 8266.174934 | T11: 8419.7694 | U11: 8515.796563 | V11: 8917.052921 | W11: 9287.443405 | X11: 8981.479308 | Y11: 8970.210814
B12: 13-15 | C12: Industria textil, confección de prendas de vestir e industria del cuero y del calzado | D12: 11208.79296 | E12: 11198.86734 | F12: 10935.48244 | G12: 10882.49052 | H12: 10532.32003 | I12: 10161.64603 | J12: 9824.572642 | K12: 9307.41976 | L12: 8621.00658 | M12: 7362.333042 | N12: 6416.262815 | O12: 5638.999717 | P12: 4872.597401 | Q12: 4421.567589 | R12: 4300.254709 | S12: 4332.837053 | T12: 4312.754853 | U12: 4393.495114 | V12: 4426.172964 | W12: 4362.074103 | X12: 4042.417693 | Y12: 3869.602138
B13: 16-18 | C13: Industria de la madera y del corcho, industria del papel y artes gráficas | D13: 18567.19379 | E13: 19606.60108 | F13: 20626.33979 | G13: 20008.9439 | H13: 19916.11096 | I13: 19484.07608 | J13: 17690.21496 | K13: 16160.15781 | L13: 15512.62555 | M13: 13923.84553 | N13: 12592.0388 | O13: 13289.01426 | P13: 12234.16509 | Q13: 10867.24007 | R13: 10268.97769 | S13: 10197.44948 | T13: 10110.71681 | U13: 10291.67332 | V13: 10121.96054 | W13: 10072.34753 | X13: 9500.285385 | Y13: 9040.155017
B14: 19-21 | C14: Coquerías y refino de petróleo; industria química; fabricación de productos farmacéuticos | D14: 9929.510475 | E14: 9822.946736 | F14: 10302.867 | G14: 10618.25811 | H14: 10760.36384 | I14: 9776.093409 | J14: 9772.794836 | K14: 10031.75513 | L14: 9990.516343 | M14: 9302.95911 | N14: 9579.14564 | O14: 10465.35373 | P14: 9676.669563 | Q14: 9460.190544 | R14: 9593.121294 | S14: 9821.04012 | T14: 10042.46981 | U14: 10531.06814 | V14: 10904.68191 | W14: 11506.8379 | X14: 10206.59039 | Y14: 10591.32668
B15: 22-23 | C15: Fabricación de productos de caucho y plásticos y de otros productos minerales no metálicos | D15: 5480.65596 | E15: 6151.223514 | F15: 6039.811208 | G15: 6117.325406 | H15: 5946.465266 | I15: 5799.644071 | J15: 5811.220819 | K15: 5230.374686 | L15: 4812.473152 | M15: 4152.362506 | N15: 3623.446951 | O15: 3250.791152 | P15: 2921.987172 | Q15: 2587.765207 | R15: 2635.225722 | S15: 2683.216945 | T15: 2831.590088 | U15: 2956.541043 | V15: 2667.013382 | W15: 2615.447181 | X15: 2567.429113 | Y15: 2615.210639
B16: 24-25 | C16: Metalurgia y fabricación de productos metálicos, excepto maquinaria y equipo | D16: 6812.297097 | E16: 7099.217067 | F16: 7209.258572 | G16: 7353.222863 | H16: 7627.348291 | I16: 7445.996168 | J16: 7491.476992 | K16: 7825.452021 | L16: 7791.932248 | M16: 6592.992467 | N16: 6140.747126 | O16: 5776.561776 | P16: 5018.61137 | Q16: 4059.670731 | R16: 3897.691681 | S16: 3956.751343 | T16: 4191.493711 | U16: 4213.424899 | V16: 4092.346364 | W16: 4099.643508 | X16: 3922.34994 | Y16: 3879.107606
B17: 26-28 | C17: Fabricación de productos informáticos, electrónicos y ópticos; fabricación de material y equipo eléctrico; fabricación de maquinaria y equipo n.c.o.p. | D17: 16480.4522 | E17: 16663.20253 | F17: 16312.05481 | G17: 16179.52426 | H17: 15785.60599 | I17: 15759.13034 | J17: 15363.55473 | K17: 14980.22227 | L17: 14678.28451 | M17: 12901.09549 | N17: 12131.46653 | O17: 10494.39078 | P17: 9651.823667 | Q17: 8957.604585 | R17: 8412.865657 | S17: 8511.046356 | T17: 8506.386552 | U17: 8741.131974 | V17: 8721.217816 | W17: 8770.084871 | X17: 8543.521721 | Y17: 8571.022673
B18: 26-27 | C18: - Fabricación de productos informáticos, electrónicos y ópticos; fabricación de material y equipo eléctrico; | D18: 8377.391324 | E18: 8227.488604 | F18: 7902.836193 | G18: 7615.991317 | H18: 7302.110581 | I18: 7368.947559 | J18: 7076.287035 | K18: 6703.214749 | L18: 6475.01 | M18: 5919.704539 | N18: 5631.270692 | O18: 5004.278594 | P18: 4634.131022 | Q18: 4385.301502 | R18: 4126.999702 | S18: 4245.35203 | T18: 4041.745594 | U18: 4079.726833 | V18: 4162.855433 | W18: 4196.588779 | X18: 4088.647206 | Y18: 4190.75621
B19: 1900-01-28 | C19: - Fabricación de maquinaria y equipo n.c.o.p. | D19: 8103.060881 | E19: 8435.713924 | F19: 8409.218617 | G19: 8563.532939 | H19: 8483.495406 | I19: 8390.182782 | J19: 8287.267696 | K19: 8277.007518 | L19: 8203.274512 | M19: 6981.390951 | N19: 6500.195839 | O19: 5490.11219 | P19: 5017.692645 | Q19: 4572.303083 | R19: 4285.865955 | S19: 4265.694326 | T19: 4464.640958 | U19: 4661.405141 | V19: 4558.362383 | W19: 4573.496092 | X19: 4454.874515 | Y19: 4380.266462
B20: 29-30 | C20: Fabricación de material de transporte | D20: 12587.88941 | E20: 12723.5578 | F20: 11400.51489 | G20: 11144.78744 | H20: 11402.3051 | I20: 11911.93479 | J20: 12392.75521 | K20: 13379.00286 | L20: 13415.12696 | M20: 13394.09637 | N20: 12975.86128 | O20: 13028.78891 | P20: 12792.00767 | Q20: 12997.04171 | R20: 12501.52073 | S20: 12533.69237 | T20: 13061.8829 | U20: 13259.06305 | V20: 12447.30607 | W20: 11672.7618 | X20: 11072.76898 | Y20: 10685.2901
B21: 31-33 | C21: Fabricación de muebles; otras industrias manufactureras y reparación e instalación de maquinaria y equipo | D21: 11456.2563 | E21: 12150.20526 | F21: 12495.45957 | G21: 12584.12676 | H21: 12652.18671 | I21: 12544.00691 | J21: 12421.3672 | K21: 12111.8516 | L21: 11772.11521 | M21: 10985.58175 | N21: 10455.98682 | O21: 10064.803 | P21: 9635.444532 | Q21: 9251.802056 | R21: 9157.227563 | S21: 9614.995993 | T21: 10101.25611 | U21: 10286.80875 | V21: 10698.37101 | W21: 11533.7325 | X21: 11848.64755 | Y21: 11419.69478
A22: F | B22: 41-43 | C22: Construcción | D22: 136921.1114 | E22: 146695.5726 | F22: 153134.9365 | G22: 169466.6484 | H22: 185920.4643 | I22: 199675.7329 | J22: 218695.3347 | K22: 214969.0555 | L22: 191254.5893 | M22: 156925.5674 | N22: 129282.7816 | O22: 116537.9144 | P22: 89874.97428 | Q22: 79966.01904 | R22: 76683.88675 | S22: 82934.84026 | T22: 82694.26937 | U22: 87089.12851 | V22: 95244.5174 | W22: 103385.517 | X22: 99473.73714 | Y22: 103801.4712
A23: G_T | B23: 45-98 | C23: Servicios | D23: 1338085.079 | E23: 1432096.858 | F23: 1499491.949 | G23: 1537386.542 | H23: 1585013.851 | I23: 1638612.725 | J23: 1737046.73 | K23: 1766695.413 | L23: 1813651.184 | M23: 1779009.885 | N23: 1764282.124 | O23: 1759794.071 | P23: 1720924.309 | Q23: 1684630.235 | R23: 1703338.618 | S23: 1750184.677 | T23: 1793005.239 | U23: 1847102.808 | V23: 1898335.132 | W23: 1958565.932 | X23: 1908451.296 | Y23: 1958124.088
A24: G_I | B24: 45-56 | C24: Comercio al por mayor y al por menor; reparación de vehículos de motor y motocicletas; transporte y almacenamiento; hostelería | D24: 408710.6496 | E24: 435624.668 | F24: 447733.8575 | G24: 464165.1273 | H24: 470945.3693 | I24: 495879.1091 | J24: 517902.7139 | K24: 527633.2173 | L24: 531100.5822 | M24: 516431.8349 | N24: 506866.1646 | O24: 499615.5489 | P24: 487352.2896 | Q24: 472856.8058 | R24: 473245.047 | S24: 487506.6443 | T24: 497800.9788 | U24: 513215.1901 | V24: 530545.9888 | W24: 545509.4195 | X24: 511270.6407 | Y24: 513864.8432
A25: G | B25: 45-47 | C25: Comercio al por mayor y al por menor; reparación de vehículos de motor y motocicletas | D25: 216960.4969 | E25: 231718.6457 | F25: 242692.2469 | G25: 253080.097 | H25: 260250.8755 | I25: 272886.7639 | J25: 281812.8673 | K25: 286108.8432 | L25: 289661.6058 | M25: 281320.8912 | N25: 274942.1719 | O25: 269797.8711 | P25: 266816.6048 | Q25: 253463.68 | R25: 251410.8827 | S25: 258166.0676 | T25: 261595.3467 | U25: 265769.095 | V25: 271426.4606 | W25: 274799.5484 | X25: 269234.8461 | Y25: 269590.4859
B26: 46 | C26: - Comercio al por mayor e intermediarios del comercio, excepto de vehículos de motor y motocicletas | D26: 74928.62047 | E26: 79081.38786 | F26: 80729.4554 | G26: 82497.33032 | H26: 81917.81276 | I26: 82711.12223 | J26: 84162.30188 | K26: 83641.88959 | L26: 84237.38286 | M26: 79821.21565 | N26: 77236.59641 | O26: 75769.06852 | P26: 74840.72627 | Q26: 72047.10933 | R26: 71245.02323 | S26: 74909.40772 | T26: 76461.52988 | U26: 78432.57868 | V26: 80364.19431 | W26: 81331.12007 | X26: 81183.14404 | Y26: 83011.50167
B27: 45 y 47 | C27: - Comercio minorista; venta y reparación de vehículos de motor y motocicletas | D27: 142031.8764 | E27: 152637.2578 | F27: 161962.7915 | G27: 170582.7666 | H27: 178333.0628 | I27: 190175.6417 | J27: 197650.5654 | K27: 202466.9536 | L27: 205424.223 | M27: 201499.6756 | N27: 197705.5755 | O27: 194028.8026 | P27: 191975.8785 | Q27: 181416.5707 | R27: 180165.8595 | S27: 183256.6598 | T27: 185133.8168 | U27: 187336.5163 | V27: 191062.2663 | W27: 193468.4283 | X27: 188051.702 | Y27: 186578.9843
A28: H | B28: 49-53 | C28: Transporte y almacenamiento | D28: 108043.8974 | E28: 112910.8639 | F28: 111975.8266 | G28: 114516.3561 | H28: 111192.5293 | I28: 119469.6365 | J28: 128117.0424 | K28: 130867.5748 | L28: 129283.9764 | M28: 123988.7407 | N28: 120499.051 | O28: 117785.4276 | P28: 112826.0719 | Q28: 114804.7506 | R28: 114197.3683 | S28: 115467.6372 | T28: 117222.8382 | U28: 122568.2894 | V28: 128353.6363 | W28: 136079.9288 | X28: 131308.2096 | Y28: 136421.9812
A29: I | B29: 55-56 | C29: Hostelería | D29: 83706.25534 | E29: 90995.15846 | F29: 93065.78402 | G29: 96568.67425 | H29: 99501.96448 | I29: 103522.7087 | J29: 107972.8041 | K29: 110656.7993 | L29: 112155 | M29: 111122.2029 | N29: 111424.9417 | O29: 112032.2502 | P29: 107709.613 | Q29: 104588.3752 | R29: 107636.796 | S29: 113872.9395 | T29: 118982.794 | U29: 124877.8057 | V29: 130765.8919 | W29: 134629.9423 | X29: 110727.585 | Y29: 107852.376
A30: J | B30: 58-63 | C30: Información y comunicaciones | D30: 82685.56123 | E30: 90680.73176 | F30: 95410.54953 | G30: 98926.04558 | H30: 105034.1259 | I30: 108819.6082 | J30: 116463.6204 | K30: 126096.5051 | L30: 131765.7847 | M30: 129238.1652 | N30: 127993.3948 | O30: 129605.2877 | P30: 128249.0963 | Q30: 127456.7576 | R30: 127052.1502 | S30: 133249.5076 | T30: 139017.2678 | U30: 145673.5248 | V30: 152815.3207 | W30: 158514.0198 | X30: 160100.4236 | Y30: 170123.5392
A31: K | B31: 64-66 | C31: Actividades financieras y de seguros | D31: 82245.3763 | E31: 84432.11665 | F31: 85063.75613 | G31: 85312.76284 | H31: 81366.01858 | I31: 79259.81741 | J31: 83693.54975 | K31: 85455.85755 | L31: 87538 | M31: 86657.03152 | N31: 85250.96062 | O31: 83288.9458 | P31: 82803.5753 | Q31: 80095.81369 | R31: 78672.65118 | S31: 74952.6243 | T31: 79973.69422 | U31: 80403.17006 | V31: 79237.15076 | W31: 80311.79222 | X31: 81556.81528 | Y31: 78271.97234
A32: L | B32: 1900-03-08 | C32: Actividades inmobiliarias | D32: 20066.38797 | E32: 22350.00835 | F32: 24051.60557 | G32: 24980.63685 | H32: 26541.16236 | I32: 28354.51827 | J32: 30489.44735 | K32: 31981.5403 | L32: 32615.46772 | M32: 28806.88765 | N32: 27970.79525 | O32: 27432.11407 | P32: 27849.33351 | Q32: 24430.63458 | R32: 25752.65355 | S32: 28771.31083 | T32: 29628.65904 | U32: 31262.60116 | V32: 32858.18486 | W32: 33773.43319 | X32: 33802.92377 | Y32: 34444.70893
A33: M_N | B33: 69-82 | C33: Actividades profesionales, científicas y técnicas; actividades administrativas y servicios auxiliares | D33: 236426.694 | E33: 266088.9457 | F33: 289363.6283 | G33: 298758.8011 | H33: 320615.7218 | I33: 333025.8067 | J33: 355867.2095 | K33: 375367.0256 | L33: 397967.9833 | M33: 377477.3069 | N33: 370643.3593 | O33: 368783.9793 | P33: 363507.1805 | Q33: 357047.3469 | R33: 372987.2394 | S33: 389038.5958 | T33: 394842.0702 | U33: 413390.0332 | V33: 425675.7571 | W33: 453003.0887 | X33: 446719.6982 | Y33: 456486.8986
A34: M | B34: 69-75 | C34: Actividades profesionales, científicas y técnicas | D34: 110145.59 | E34: 124393.3242 | F34: 139071.6394 | G34: 143634.4284 | H34: 155037.9393 | I34: 158669.9058 | J34: 169782.154 | K34: 180814.9724 | L34: 201788.7533 | M34: 192487.7969 | N34: 191210.8393 | O34: 190795.9678 | P34: 190292.3198 | Q34: 187697.5187 | R34: 190857.0424 | S34: 198081.958 | T34: 207591.5769 | U34: 217664.314 | V34: 226766.7001 | W34: 236208.1099 | X34: 234712.0237 | Y34: 242381.3641
A35: N | B35: 77-82 | C35: Actividades administrativas y servicios auxiliares | D35: 126281.104 | E35: 141695.6214 | F35: 150291.989 | G35: 155124.3727 | H35: 165577.7825 | I35: 174355.9009 | J35: 186085.0555 | K35: 194552.0532 | L35: 196179.23 | M35: 184989.51 | N35: 179432.52 | O35: 177988.0115 | P35: 173214.8607 | Q35: 169349.8282 | R35: 182130.197 | S35: 190956.6378 | T35: 187250.4934 | U35: 195725.7192 | V35: 198909.057 | W35: 216794.9788 | X35: 212007.6745 | Y35: 214105.5345
A36: O_Q | B36: 84-88 | C36: Administración pública y defensa; seguridad social obligatoria; educación; actividades sanitarias y de servicios sociales | D36: 294341.943 | E36: 304651.3239 | F36: 315288.68 | G36: 314692.4012 | H36: 323401.9298 | I36: 329381.8871 | J36: 339779.0597 | K36: 357453.603 | L36: 374657.6116 | M36: 376648.5161 | N36: 379772.7776 | O36: 383011.0625 | P36: 377246.2608 | Q36: 371514.0683 | R36: 371439.2392 | S36: 382216.1688 | T36: 390835.5835 | U36: 397125.6064 | V36: 405614.2274 | W36: 413224.1896 | X36: 418716.2888 | Y36: 440277.7101
A37: O | B37: 84 | C37: Administración pública y defensa; seguridad social obligatoria | D37: 137851.156 | E37: 141131.6261 | F37: 144567.3957 | G37: 137498.2891 | H37: 137400.1536 | I37: 135139.5463 | J37: 137551.2125 | K37: 140129.8516 | L37: 148452.7934 | M37: 151258.8425 | N37: 152813.4931 | O37: 151632.4574 | P37: 149029.8564 | Q37: 151094.2509 | R37: 143855.6067 | S37: 142827.6555 | T37: 145329.2015 | U37: 144365.7436 | V37: 143822.6562 | W37: 146219.7509 | X37: 149915.061 | Y37: 155354.6542
A38: P | B38: 85 | C38: Educación | D38: 72733.98591 | E38: 75733.17294 | F38: 78860.17499 | G38: 81604.06437 | H38: 83307.50547 | I38: 86107.97074 | J38: 88335.14123 | K38: 93294.32663 | L38: 96701.58016 | M38: 97713.49077 | N38: 101032.5026 | O38: 100947.6144 | P38: 99418.8229 | Q38: 96868.47555 | R38: 98932.72244 | S38: 106623.7145 | T38: 108829.3343 | U38: 112688.2467 | V38: 115685.3015 | W38: 117794.4906 | X38: 117263.0586 | Y38: 126686.4288
A39: Q | B39: 86-88 | C39: Actividades sanitarias y de servicios sociales | D39: 83756.8011 | E39: 87786.52479 | F39: 91861.10925 | G39: 95590.04768 | H39: 102694.2707 | I39: 108134.3701 | J39: 113892.706 | K39: 124029.4248 | L39: 129503.238 | M39: 127676.1828 | N39: 125926.7819 | O39: 130430.9907 | P39: 128797.5816 | Q39: 123551.3419 | R39: 128650.9101 | S39: 132764.7989 | T39: 136677.0478 | U39: 140071.6161 | V39: 146106.2696 | W39: 149209.9481 | X39: 151538.1693 | Y39: 158236.627
A40: R_T | B40: 90-98 | C40: Actividades artísticas, recreativas y de entretenimiento; reparación de artículos de uso doméstico y otros servicios | D40: 213608.4672 | E40: 228269.0634 | F40: 242579.8721 | G40: 250550.7672 | H40: 257109.5231 | I40: 263891.9779 | J40: 292851.1292 | K40: 262707.6645 | L40: 258005.7543 | M40: 263750.1427 | N40: 265784.6717 | O40: 268057.1327 | P40: 253916.5731 | Q40: 251228.8077 | R40: 254189.6374 | S40: 254449.8252 | T40: 260906.985 | U40: 266032.6828 | V40: 271588.5024 | W40: 274229.9889 | X40: 256284.5061 | Y40: 264654.4161
A41: R | B41: 90-93 | C41: Actividades artísticas, recreativas y de entretenimiento | D41: 35059.52789 | E41: 37633.90174 | F41: 38377.34305 | G41: 37938.41389 | H41: 38988.14639 | I41: 38103.52555 | J41: 42116.45735 | K41: 46200.13176 | L41: 46275.03774 | M41: 46288.58355 | N41: 46253.88726 | O41: 46893.94433 | P41: 47062.255 | Q41: 46464.59463 | R41: 49136.08556 | S41: 51771.17792 | T41: 54682.58523 | U41: 58884.66474 | V41: 63458.20021 | W41: 67212.79152 | X41: 58908.36418 | Y41: 58645.86907
A42: S | B42: 94-96 | C42: Reparación de artículos de uso doméstico y otros servicios | D42: 71639.92347 | E42: 76871.17343 | F42: 78484.03859 | G42: 81447.56249 | H42: 82639.08252 | I42: 85231.80978 | J42: 88740.47105 | K42: 78794.32509 | L42: 77905.95375 | M42: 76701.22355 | N42: 72880.46755 | O42: 70326.6494 | P42: 72612.10459 | Q42: 68904.37746 | R42: 68492.45154 | S42: 69844.51071 | T42: 70154.63994 | U42: 71081.14521 | V42: 73803.76483 | W42: 75963.45016 | X42: 71509.34663 | Y42: 71302.75209
A43: T | B43: 97-98 | C43: Actividades de los hogares como empleadores de personal doméstico; Actividades de los hogares como productores de bienes y servicios para uso propio | D43: 106909.0159 | E43: 113763.9882 | F43: 125718.4905 | G43: 131164.7908 | H43: 135482.2942 | I43: 140556.6426 | J43: 161994.2008 | K43: 137713.2076 | L43: 133824.7628 | M43: 140760.3356 | N43: 146650.3169 | O43: 150836.539 | P43: 134242.2135 | Q43: 135859.8356 | R43: 136561.1003 | S43: 132834.1366 | T43: 136069.7599 | U43: 136066.8729 | V43: 134326.5374 | W43: 131053.7472 | X43: 125866.7953 | Y43: 134705.795
A44: Total Ocupados | D44: 1601707.77 | E44: 1708724.901 | F44: 1782864.439 | G44: 1836616.709 | H44: 1900977.335 | I44: 1967450.521 | J44: 2082491.262 | K44: 2109164.162 | L44: 2130540.693 | M44: 2052919.515 | N44: 2005401.956 | O44: 1985740.155 | P44: 1913487.515 | Q44: 1861740.433 | R44: 1874008.768 | S44: 1927676.817 | T44: 1972698.78 | U44: 2032971.69 | V44: 2093053.334 | W44: 2163330.425 | X44: 2106289.001 | Y44: 2160679.907

Sheet 10
A1: Contabilidad Municipal de la Ciudad de Madrid. Serie 2000 - 2021(a) | Y1: Indice
A2: Asalariados
A3: Unidad: personas
A5: CÓDIGOS | C5: RAMAS | D5: 2000 | E5: 2001 | F5: 2002 | G5: 2003 | H5: 2004 | I5: 2005 | J5: 2006 | K5: 2007 | L5: 2008 | M5: 2009 | N5: 2010 | O5: 2011 | P5: 2012 | Q5: 2013 | R5: 2014 | S5: 2015 | T5: 2016 | U5: 2017 | V5: 2018 | W5: 2019 | X5: 2020p | Y5: 2021a
A6: (A11) | B6: (A17)
A8: A | B8: 2024-01-03 | C8: Agricultura, ganadería, silvicultura y pesca | D8: 2931.036012 | E8: 3083.667221 | F8: 3196.468355 | G8: 3065.246593 | H8: 3338.323187 | I8: 3494.350485 | J8: 3517.680773 | K8: 3268.039556 | L8: 3281.783122 | M8: 2536.431747 | N8: 2425.74751 | O8: 2369.617823 | P8: 1645.659414 | Q8: 1169.273016 | R8: 983.1286465 | S8: 898.3613644 | T8: 802.5398025 | U8: 847.9162215 | V8: 898.4827537 | W8: 941.033483 | X8: 892.4604732 | Y8: 973.8623405
A9: B_E | B9: 1939-05-01 | C9: Industrias extractivas; industria manufacturera; suministro de energía eléctrica, gas, vapor y aire acondicionado; suministro de agua, actividades de saneamiento, gestión de residuos y descontaminación | D9: 115730.0549 | E9: 118797.4266 | F9: 118052.3882 | G9: 117435.1059 | H9: 116867.2351 | I9: 115332.4353 | J9: 113503.1242 | K9: 114751.185 | L9: 112714.0967 | M9: 105132.2546 | N9: 100844.2628 | O9: 98683.81304 | P9: 93257.60896 | Q9: 88683.39862 | R9: 86009.84122 | S9: 86609.09927 | T9: 88936.71346 | U9: 90629.20952 | V9: 91157.82598 | W9: 93023.1521 | X9: 90201.16412 | Y9: 90120.99786
A10: C | B10: 1933-10-01 | C10: Industria Manufacturera | D10: 97279.26339 | E10: 99866.6008 | F10: 99185.5467 | G10: 98363.97507 | H10: 97326.32586 | I10: 95248.76326 | J10: 93793.59615 | K10: 92139.35582 | L10: 89437.26989 | M10: 81776.9043 | N10: 76632.96611 | O10: 74347.71203 | P10: 68965.5041 | Q10: 64566.78791 | R10: 62866.41434 | S10: 63805.31295 | T10: 65172.61682 | U10: 66783.45 | V10: 66505.95641 | W10: 67423.65603 | X10: 64261.96543 | Y10: 63162.8035
B11: 2024-10-12 | C11: Industria de la alimentación, fabricación de bebidas e industria del tabaco | D11: 10260.34756 | E11: 9999.048122 | F11: 10253.61467 | G11: 10112.01132 | H11: 9953.234248 | I11: 9932.005258 | J11: 10133.78957 | K11: 10018.00294 | L11: 10071.57448 | M11: 10133.87395 | N11: 9228.444003 | O11: 8677.301768 | P11: 8225.228489 | Q11: 7755.846611 | R11: 7671.125573 | S11: 7793.97204 | T11: 7930.14499 | U11: 8000.845387 | V11: 8372.520367 | W11: 8794.482249 | X11: 8505.705976 | Y11: 8467.617381
B12: 13-15 | C12: Industria textil, confección de prendas de vestir e industria del cuero y del calzado | D12: 9993.755228 | E12: 9961.907155 | F12: 9686.902461 | G12: 9600.127857 | H12: 9263.936243 | I12: 8933.493788 | J12: 8703.253431 | K12: 8304.963651 | L12: 7581.410813 | M12: 6443.234776 | N12: 5670.960041 | O12: 4889.467434 | P12: 4139.016401 | Q12: 3701.497996 | R12: 3536.432327 | S12: 3496.581657 | T12: 3427.996557 | U12: 3455.83946 | V12: 3446.414248 | W12: 3328.813315 | X12: 3009.212963 | Y12: 2857.981161
B13: 16-18 | C13: Industria de la madera y del corcho, industria del papel y artes gráficas | D13: 17027.68389 | E13: 18257.23729 | F13: 18815.36807 | G13: 18355.13989 | H13: 17917.06442 | I13: 17335.04053 | J13: 16313.93329 | K13: 14668.82796 | L13: 13684.37194 | M13: 11750.36886 | N13: 10436.07192 | O13: 11130.64046 | P13: 10210.84109 | Q13: 8933.788714 | R13: 8532.223287 | S13: 8458.419744 | T13: 8372.332043 | U13: 8555.339989 | V13: 8385.728074 | W13: 8335.579165 | X13: 7760.3041 | Y13: 7312.158118
B14: 19-21 | C14: Coquerías y refino de petróleo; industria química; fabricación de productos farmacéuticos | D14: 9761.221299 | E14: 9657.661332 | F14: 10096.67724 | G14: 10428.23073 | H14: 10571.88369 | I14: 9585.417415 | J14: 9463.503111 | K14: 9876.900445 | L14: 9863.977892 | M14: 9162.486762 | N14: 9405.77283 | O14: 10271.8898 | P14: 9491.021079 | Q14: 9287.640009 | R14: 9430.29321 | S14: 9654.343474 | T14: 9872.269042 | U14: 10376.70717 | V14: 10749.14836 | W14: 11300.32906 | X14: 10007.27655 | Y14: 10386.8975
B15: 22-23 | C15: Fabricación de productos de caucho y plásticos y de otros productos minerales no metálicos | D15: 5458.36725 | E15: 6098.65271 | F15: 5944.636006 | G15: 5990.524078 | H15: 5771.662598 | I15: 5612.225455 | J15: 5594.469002 | K15: 5002.73838 | L15: 4522.853408 | M15: 3977.561881 | N15: 3445.62386 | O15: 3080.299692 | P15: 2754.315461 | Q15: 2427.984623 | R15: 2474.243886 | S15: 2510.268387 | T15: 2638.463271 | U15: 2780.961326 | V15: 2514.315582 | W15: 2475.645295 | X15: 2422.29193 | Y15: 2460.401477
B16: 24-25 | C16: Metalurgia y fabricación de productos metálicos, excepto maquinaria y equipo | D16: 6210.126568 | E16: 6468.218887 | F16: 6502.736355 | G16: 6555.371259 | H16: 6731.502333 | I16: 6482.089308 | J16: 6396.45329 | K16: 6666.950499 | L16: 6646.723856 | M16: 5493.462264 | N16: 5169.814458 | O16: 4880.432923 | P16: 4180.386729 | Q16: 3300.772836 | R16: 3162.13759 | S16: 3215.163347 | T16: 3402.199277 | U16: 3392.024523 | V16: 3269.297729 | W16: 3288.136154 | X16: 3121.637727 | Y16: 3065.39949
B17: 26-28 | C17: Fabricación de productos informáticos, electrónicos y ópticos; fabricación de material y equipo eléctrico; fabricación de maquinaria y equipo n.c.o.p. | D17: 15831.79318 | E17: 16112.06524 | F17: 15807.30566 | G17: 15630.34272 | H17: 15262.21857 | I17: 15208.209 | J17: 14710.20408 | K17: 14413.51824 | L17: 14191.20242 | M17: 12454.06117 | N17: 11712.95264 | O17: 10108.10445 | P17: 9295.214696 | Q17: 8622.158613 | R17: 8097.168969 | S17: 8246.72659 | T17: 8168.13795 | U17: 8534.091076 | V17: 8509.131021 | W17: 8576.676381 | X17: 8344.388506 | Y17: 8386.797664
B18: 26-27 | C18: - Fabricación de productos informáticos, electrónicos y ópticos; fabricación de material y equipo eléctrico; | D18: 7997.32245 | E18: 7951.287075 | F18: 7679.183304 | G18: 7372.623632 | H18: 7103.13291 | I18: 7156.440295 | J18: 6819.586909 | K18: 6513.989154 | L18: 6292.875683 | M18: 5710.487896 | N18: 5422.209959 | O18: 4798.954558 | P18: 4428.511564 | Q18: 4183.541196 | R18: 3930.355359 | S18: 4080.335364 | T18: 3843.311957 | U18: 4016.013392 | V18: 4088.354481 | W18: 4125.607976 | X18: 4003.013372 | Y18: 4112.914819
B19: 1900-01-28 | C19: - Fabricación de maquinaria y equipo n.c.o.p. | D19: 7834.470731 | E19: 8160.778162 | F19: 8128.122354 | G19: 8257.719084 | H19: 8159.085657 | I19: 8051.768704 | J19: 7890.61717 | K19: 7899.529088 | L19: 7898.326733 | M19: 6743.573277 | N19: 6290.742681 | O19: 5309.14989 | P19: 4866.703133 | Q19: 4438.617416 | R19: 4166.813609 | S19: 4166.391226 | T19: 4324.825994 | U19: 4518.077685 | V19: 4420.77654 | W19: 4451.068406 | X19: 4341.375134 | Y19: 4273.882846
B20: 29-30 | C20: Fabricación de material de transporte | D20: 12517.67901 | E20: 12648.90463 | F20: 11324.84692 | G20: 11070.95998 | H20: 11327.15593 | I20: 11830.03009 | J20: 12319.15185 | K20: 13293.81278 | L20: 13332.3711 | M20: 13299.00611 | N20: 12875.54638 | O20: 12928.06484 | P20: 12703.10926 | Q20: 12915.36146 | R20: 12418.0773 | S20: 12448.34109 | T20: 12978.69403 | U20: 13174.31826 | V20: 12360.81776 | W20: 11587.7787 | X20: 11007.51633 | Y20: 10585.40347
B21: 31-33 | C21: Fabricación de muebles; otras industrias manufactureras y reparación e instalación de maquinaria y equipo | D21: 10218.28941 | E21: 10662.90544 | F21: 10753.45933 | G21: 10621.26725 | H21: 10527.66783 | I21: 10330.25242 | J21: 10158.83853 | K21: 9893.640917 | L21: 9542.783995 | M21: 9062.848529 | N21: 8687.779968 | O21: 8381.510663 | P21: 7966.370895 | Q21: 7621.737043 | R21: 7544.712191 | S21: 7981.496621 | T21: 8382.379661 | U21: 8513.322806 | V21: 8898.583273 | W21: 9736.215722 | X21: 10083.63135 | Y21: 9640.147247
A22: F | B22: 41-43 | C22: Construcción | D22: 124860.4215 | E22: 133231.3399 | F22: 138618.8084 | G22: 152802.7356 | H22: 166149.3852 | I22: 179746.7478 | J22: 196635.4523 | K22: 194455.354 | L22: 169636.4748 | M22: 138585.2739 | N22: 110446.2667 | O22: 98905.07401 | P22: 79016.88041 | Q22: 69689.10843 | R22: 66391.60934 | S22: 71855.1525 | T22: 71563.03591 | U22: 76469.43751 | V22: 82546.53745 | W22: 88106.5509 | X22: 84980.51825 | Y22: 88837.51278
A23: G_T | B23: 45-98 | C23: Servicios | D23: 1220385.386 | E23: 1305318.137 | F23: 1364574.235 | G23: 1395948.024 | H23: 1436565.372 | I23: 1484779.827 | J23: 1572305.315 | K23: 1596148.38 | L23: 1633991.726 | M23: 1601557.293 | N23: 1590638.588 | O23: 1587414.775 | P23: 1546369.548 | Q23: 1511598.704 | R23: 1525896.275 | S23: 1565934.204 | T23: 1605600.621 | U23: 1654498.984 | V23: 1700417.716 | W23: 1754246.057 | X23: 1708443.7 | Y23: 1752801.31
A24: G_I | B24: 45-56 | C24: Comercio al por mayor y al por menor; reparación de vehículos de motor y motocicletas; transporte y almacenamiento; hostelería | D24: 354240.9764 | E24: 377419.1423 | F24: 387491.667 | G24: 401579.5341 | H24: 405742.9583 | I24: 429136.1726 | J24: 447019.6966 | K24: 455015.8037 | L24: 456855.4333 | M24: 442144.3402 | N24: 438196.3807 | O24: 431527.86 | P24: 420475.258 | Q24: 406772.7181 | R24: 406706.2834 | S24: 420513.727 | T24: 430557.3796 | U24: 445047.743 | V24: 461489.7801 | W24: 476594.4344 | X24: 446224.1325 | Y24: 447892.3766
A25: G | B25: 45-47 | C25: Comercio al por mayor y al por menor; reparación de vehículos de motor y motocicletas | D25: 185908.279 | E25: 198215.0681 | F25: 207865.535 | G25: 216770.5452 | H25: 222537.7802 | I25: 233135.5161 | J25: 239671.1902 | K25: 242841.6816 | L25: 245710.3514 | M25: 236893.4021 | N25: 234087.209 | O25: 228864.3648 | P25: 226278.0247 | Q25: 213065.721 | R25: 210359.5085 | S25: 216588.9582 | T25: 220099.6446 | U25: 224288.6384 | V25: 230066.4424 | W25: 234392.5644 | X25: 229926.6476 | Y25: 230280.0968
B26: 46 | C26: - Comercio al por mayor e intermediarios del comercio, excepto de vehículos de motor y motocicletas | D26: 66908.61985 | E26: 70488.14469 | F26: 71906.63779 | G26: 73309.63734 | H26: 72306.30769 | I26: 72805.54054 | J26: 74037.51599 | K26: 73216.74428 | L26: 73553.07154 | M26: 69725.6574 | N26: 68007.255 | O26: 66630.00101 | P26: 65722.57678 | Q26: 62975.92615 | R26: 61948.62684 | S26: 65309.1632 | T26: 66839.63211 | U26: 68786.23442 | V26: 70644.69024 | W26: 71659.60473 | X26: 71357.38314 | Y26: 73146.9464
B27: 45 y 47 | C27: - Comercio minorista; venta y reparación de vehículos de motor y motocicletas | D27: 118999.6591 | E27: 127726.9234 | F27: 135958.8972 | G27: 143460.9078 | H27: 150231.4725 | I27: 160329.9756 | J27: 165633.6742 | K27: 169624.9373 | L27: 172157.2798 | M27: 167167.7447 | N27: 166079.954 | O27: 162234.3638 | P27: 160555.4479 | Q27: 150089.7949 | R27: 148410.8817 | S27: 151279.795 | T27: 153260.0125 | U27: 155502.404 | V27: 159421.7522 | W27: 162732.9596 | X27: 158569.2645 | Y27: 157133.1504
A28: H | B28: 49-53 | C28: Transporte y almacenamiento | D28: 94305.94878 | E28: 98506.76174 | F28: 97308.6949 | G28: 99155.10893 | H28: 94926.84127 | I28: 103782.2182 | J28: 111397.3257 | K28: 113526.1884 | L28: 110817.9539 | M28: 106018.4647 | N28: 104386.177 | O28: 102258.3238 | P28: 97921.21094 | Q28: 100490.916 | R28: 100189.8093 | S28: 101600.9403 | T28: 103006.4317 | U28: 107440.8893 | V28: 112164.9292 | W28: 118994.5089 | X28: 114846.6789 | Y28: 119024.2478
A29: I | B29: 55-56 | C29: Hostelería | D29: 74026.74865 | E29: 80697.31244 | F29: 82317.43715 | G29: 85653.88003 | H29: 88278.33684 | I29: 92218.4382 | J29: 95951.18064 | K29: 98647.93368 | L29: 100327.128 | M29: 99232.47341 | N29: 99722.99478 | O29: 100405.1713 | P29: 96276.02237 | Q29: 93216.08101 | R29: 96156.96553 | S29: 102323.8285 | T29: 107451.3032 | U29: 113318.2153 | V29: 119258.4085 | W29: 123207.3611 | X29: 101450.806 | Y29: 98588.03202
A30: J | B30: 58-63 | C30: Información y comunicaciones | D30: 80684.40003 | E30: 87729.03386 | F30: 92034.44691 | G30: 94489.78741 | H30: 99266.53615 | I30: 103532.129 | J30: 108917.52 | K30: 117138.5043 | L30: 120073.0796 | M30: 117584.8591 | N30: 115008.1635 | O30: 116287.288 | P30: 114877.3897 | Q30: 113652.1569 | R30: 113508.6573 | S30: 119467.1463 | T30: 124687.1412 | U30: 130646.1824 | V30: 137077.8192 | W30: 142365.0104 | X30: 144084.4478 | Y30: 153304.1534
A31: K | B31: 64-66 | C31: Actividades financieras y de seguros | D31: 78107.5427 | E31: 80175.72757 | F31: 80744.4286 | G31: 80923.58741 | H31: 76904.79707 | I31: 74684.41356 | J31: 78695.08326 | K31: 80219.91407 | L31: 82068.3361 | M31: 81235.36891 | N31: 79834.19804 | O31: 77931.95709 | P31: 77464.05178 | Q31: 74810.33236 | R31: 73183.77346 | S31: 69471.034 | T31: 74089.03383 | U31: 74344.19811 | V31: 73065.79185 | W31: 73984.90022 | X31: 75225.82576 | Y31: 71941.00113
A32: L | B32: 1900-03-08 | C32: Actividades inmobiliarias | D32: 16367.58741 | E32: 18243.60246 | F32: 19496.44227 | G32: 20108.54951 | H32: 21739.8712 | I32: 23087.74861 | J32: 24717.59987 | K32: 25837.27262 | L32: 26249.45837 | M32: 20747.03525 | N32: 20163.36685 | O32: 20693.45882 | P32: 21048.08529 | Q32: 18496.84148 | R32: 19612.19887 | S32: 20376.126 | T32: 20801.91758 | U32: 21859.83575 | V32: 23684.1127 | W32: 24440.22138 | X32: 22713.55763 | Y32: 21798.79551
A33: M_N | B33: 69-82 | C33: Actividades profesionales, científicas y técnicas; actividades administrativas y servicios auxiliares | D33: 212657.4671 | E33: 239923.8908 | F33: 259730.2475 | G33: 267189.9931 | H33: 287899.0075 | I33: 297734.3597 | J33: 319339.7996 | K33: 336690.6231 | L33: 355711.4133 | M33: 340048.0562 | N33: 331850.2676 | O33: 329971.3321 | P33: 322655.7013 | Q33: 315595.3784 | R33: 329047.0169 | S33: 343189.4061 | T33: 349059.4755 | U33: 366247.229 | V33: 377428.3394 | W33: 401355.4591 | X33: 395413.0405 | Y33: 404527.5591
A34: M | B34: 69-75 | C34: Actividades profesionales, científicas y técnicas | D34: 98072.98581 | E34: 111008.5992 | F34: 123789.6293 | G34: 127417.7561 | H34: 138133.1078 | I34: 139087.7897 | J34: 151177.9786 | K34: 161357.7393 | L34: 178258.079 | M34: 169850.1302 | N34: 167087.2857 | O34: 166001.2773 | P34: 165096.2334 | Q34: 161773.105 | R34: 163187.0567 | S34: 168864.4907 | T34: 177571.2265 | U34: 186459.4353 | V34: 194352.8885 | W34: 202831.6898 | X34: 201197.6628 | Y34: 207921.8711
A35: N | B35: 77-82 | C35: Actividades administrativas y servicios auxiliares | D35: 114584.4812 | E35: 128915.2915 | F35: 135940.6182 | G35: 139772.237 | H35: 149765.8997 | I35: 158646.5701 | J35: 168161.8209 | K35: 175332.8838 | L35: 177453.3343 | M35: 170197.926 | N35: 164762.9819 | O35: 163970.0548 | P35: 157559.4679 | Q35: 153822.2733 | R35: 165859.9602 | S35: 174324.9154 | T35: 171488.249 | U35: 179787.7937 | V35: 183075.4509 | W35: 198523.7693 | X35: 194215.3777 | Y35: 196605.688
A36: O_Q | B36: 84-88 | C36: Administración pública y defensa; seguridad social obligatoria; educación; actividades sanitarias y de servicios sociales | D36: 286886.8414 | E36: 296570.2295 | F36: 306445.352 | G36: 304710.3174 | H36: 312705.526 | I36: 317784.6869 | J36: 327157.5733 | K36: 346045.742 | L36: 362891.016 | M36: 364430.8221 | N36: 367060.2803 | O36: 369858.4408 | P36: 363928.5896 | Q36: 358305.7897 | R36: 357677.5745 | S36: 367453.5942 | T36: 375315.4407 | U36: 381086.9909 | V36: 389039.016 | W36: 395168.8397 | X36: 400459.5985 | Y36: 420918.3095
A37: O | B37: 84 | C37: Administración pública y defensa; seguridad social obligatoria | D37: 137851.156 | E37: 141131.6261 | F37: 144567.3957 | G37: 137498.2891 | H37: 137400.1536 | I37: 135139.5463 | J37: 137551.2125 | K37: 140129.8516 | L37: 148452.7934 | M37: 151258.8425 | N37: 152813.4931 | O37: 151632.4574 | P37: 149029.8564 | Q37: 151094.2509 | R37: 143855.6067 | S37: 142827.6555 | T37: 145329.2015 | U37: 144365.7436 | V37: 143822.6562 | W37: 146219.7509 | X37: 149915.061 | Y37: 155354.6542
A38: P | B38: 85 | C38: Educación | D38: 69098.13517 | E38: 71885.58862 | F38: 74787.00039 | G38: 77229.76634 | H38: 78593.82397 | I38: 81023.87396 | J38: 82815.3674 | K38: 88343.75888 | L38: 91316.47843 | M38: 91811.48332 | N38: 94497.15386 | O38: 94186.26678 | P38: 92474.54261 | Q38: 89943.156 | R38: 91724.14747 | S38: 98661.66155 | T38: 100307.3928 | U38: 103738.635 | V38: 106427.6043 | W38: 108442.9951 | X38: 107857.1271 | Y38: 117009.6827
A39: Q | B39: 86-88 | C39: Actividades sanitarias y de servicios sociales | D39: 79937.5502 | E39: 83553.01477 | F39: 87090.95586 | G39: 89982.26193 | H39: 96711.54847 | I39: 101621.2666 | J39: 106790.9934 | K39: 117572.1315 | L39: 123121.7442 | M39: 121360.4963 | N39: 119749.6333 | O39: 124039.7166 | P39: 122424.1906 | Q39: 117268.3828 | R39: 122097.8203 | S39: 125964.2772 | T39: 129678.8464 | U39: 132982.6123 | V39: 138788.7554 | W39: 140506.0936 | X39: 142687.4104 | Y39: 148553.9726
A40: R_T | B40: 90-98 | C40: Actividades artísticas, recreativas y de entretenimiento; reparación de artículos de uso doméstico y otros servicios | D40: 191440.5708 | E40: 205256.5111 | F40: 218631.6505 | G40: 226946.2555 | H40: 232306.6762 | I40: 238820.3171 | J40: 266458.0428 | K40: 235200.52 | L40: 230142.9892 | M40: 235366.8116 | N40: 238525.9312 | O40: 241144.4386 | P40: 225920.4725 | Q40: 223965.4871 | R40: 226160.7708 | S40: 225463.1708 | T40: 231090.2323 | U40: 235266.8048 | V40: 238632.8563 | W40: 240337.192 | X40: 224323.0973 | Y40: 232419.1146
A41: R | B41: 90-93 | C41: Actividades artísticas, recreativas y de entretenimiento | D41: 29916.22999 | E41: 32067.5166 | F41: 32595.79078 | G41: 32007.3586 | H41: 31614.91863 | I41: 29830.52088 | J41: 33627.55092 | K41: 36549.39038 | L41: 37210.24202 | M41: 36215.83169 | N41: 36719.43058 | O41: 37222.39015 | P41: 37385.71291 | Q41: 36968.50078 | R41: 38828.57543 | S41: 40693.35927 | T41: 42983.58056 | U41: 46485.81885 | V41: 49291.87663 | W41: 52582.7484 | X41: 45472.92168 | Y41: 45139.07262
A42: S | B42: 94-96 | C42: Reparación de artículos de uso doméstico y otros servicios | D42: 54615.32499 | E42: 59425.00627 | F42: 60317.36923 | G42: 63774.10609 | H42: 65209.46335 | I42: 68433.15366 | J42: 70836.29112 | K42: 60937.92202 | L42: 59107.98431 | M42: 58390.64432 | N42: 55156.1837 | O42: 53085.5095 | P42: 54292.54606 | Q42: 51137.15066 | R42: 50771.09511 | S42: 51935.67492 | T42: 52036.89184 | U42: 52714.11315 | V42: 55014.44233 | W42: 56700.69639 | X42: 52983.38031 | Y42: 52574.24702
A43: T | B43: 97-98 | C43: Actividades de los hogares como empleadores de personal doméstico; Actividades de los hogares como productores de bienes y servicios para uso propio | D43: 106909.0159 | E43: 113763.9882 | F43: 125718.4905 | G43: 131164.7908 | H43: 135482.2942 | I43: 140556.6426 | J43: 161994.2008 | K43: 137713.2076 | L43: 133824.7628 | M43: 140760.3356 | N43: 146650.3169 | O43: 150836.539 | P43: 134242.2135 | Q43: 135859.8356 | R43: 136561.1003 | S43: 132834.1366 | T43: 136069.7599 | U43: 136066.8729 | V43: 134326.5374 | W43: 131053.7472 | X43: 125866.7953 | Y43: 134705.795
A44: Total Asalariados | D44: 1463906.898 | E44: 1560430.571 | F44: 1624441.9 | G44: 1669251.113 | H44: 1722920.316 | I44: 1783353.361 | J44: 1885961.573 | K44: 1908622.958 | L44: 1919624.081 | M44: 1847811.254 | N44: 1804354.865 | O44: 1787373.28 | P44: 1720289.697 | Q44: 1671140.484 | R44: 1679280.854 | S44: 1725296.818 | T44: 1766902.91 | U44: 1822445.547 | V44: 1875020.562 | W44: 1936316.794 | X44: 1884517.843 | Y44: 1932733.683

Sheet 11
A1: Contabilidad Municipal de la Ciudad de Madrid. Serie 2000 - 2021(a) | W1: Indice
A2: Valor Añadido Bruto a precios básicos (precios corrientes)
A3: Unidad: miles de euros
B5: 2000 | C5: 2001 | D5: 2002 | E5: 2003 | F5: 2004 | G5: 2005 | H5: 2006 | I5: 2007 | J5: 2008 | K5: 2009 | L5: 2010 | M5: 2011 | N5: 2012 | O5: 2013 | P5: 2014 | Q5: 2015 | R5: 2016 | S5: 2017 | T5: 2018 | U5: 2019 | V5: 2020p | W5: 2021a
A8: Ciudad de Madrid | B8: 63837944.77 | C8: 70713695.01 | D8: 76031574.76 | E8: 81479049.3 | F8: 87280502.21 | G8: 94875689.46 | H8: 103352616.2 | I8: 111676847.2 | J8: 118544807.9 | K8: 117927940.8 | L8: 114770209.9 | M8: 116387548.3 | N8: 114226747 | O8: 111207517.7 | P8: 112375520.9 | Q8: 116728307.1 | R8: 122049371.5 | S8: 128271738.2 | T8: 134096598.6 | U8: 140203556.6 | V8: 126902349.4 | W8: 136760905.1
A9: 01. Centro | B9: 4105444.223 | C9: 4495398.051 | D9: 4839255.172 | E9: 5708878.838 | F9: 5888562.317 | G9: 6347073.91 | H9: 6770134.857 | I9: 7237596.316 | J9: 7781294.656 | K9: 7566580.839 | L9: 7503185.442 | M9: 7455056.787 | N9: 7288526.386 | O9: 7111440.993 | P9: 7066284.582 | Q9: 7173704.96 | R9: 7478045.586 | S9: 7767849.233 | T9: 8130157.456 | U9: 8395863.142 | V9: 7458494.209 | W9: 7916034.437
A10: 02. Arganzuela | B10: 3065510.433 | C10: 3267856.825 | D10: 3368069.007 | E10: 3374897.838 | F10: 3956455.301 | G10: 4209930.352 | H10: 4713145.462 | I10: 5327813.184 | J10: 5600725.666 | K10: 5315818.689 | L10: 5149094.063 | M10: 5239386.705 | N10: 5297434.004 | O10: 5152087.233 | P10: 5187976.425 | Q10: 5413958.083 | R10: 5683347.825 | S10: 6016849.236 | T10: 6232779.327 | U10: 6486065.25 | V10: 5977718.575 | W10: 6384967.413
A11: 03. Retiro | B11: 3026584.341 | C11: 3442023.689 | D11: 3733373.29 | E11: 4171234.376 | F11: 4256287.596 | G11: 4418040.487 | H11: 4667743.623 | I11: 5046619.848 | J11: 5418835.62 | K11: 5529509.344 | L11: 5398887.537 | M11: 5501171.715 | N11: 5380922.483 | O11: 5135457.56 | P11: 5189682.35 | Q11: 5449260.262 | R11: 5680360.88 | S11: 5989447.761 | T11: 6263812.163 | U11: 6617215.292 | V11: 5989631.056 | W11: 6430877.607
A12: 04. Salamanca | B12: 6850377.753 | C12: 7882822.686 | D12: 8535355.702 | E12: 8945073.694 | F12: 9249978.84 | G12: 10577082.58 | H12: 11491590.66 | I12: 12370821.17 | J12: 12926016.48 | K12: 12755743.22 | L12: 12232987.52 | M12: 12403916.02 | N12: 12186704.59 | O12: 11762296.41 | P12: 11839379.99 | Q12: 12311567.88 | R12: 12828480.38 | S12: 13398851.03 | T12: 13957156.82 | U12: 14420460.98 | V12: 12776654.5 | W12: 13807562.09
A13: 05. Chamartín | B13: 7411879.485 | C13: 8116135.26 | D13: 8708180.831 | E13: 8345504.536 | F13: 8628827.715 | G13: 9472423.612 | H13: 9861247.658 | I13: 10528087.71 | J13: 10949524.82 | K13: 10217113.83 | L13: 9867864.519 | M13: 10133410.76 | N13: 9762073.225 | O13: 9443501.734 | P13: 9815435.455 | Q13: 10154292.69 | R13: 10621665.02 | S13: 11167263.96 | T13: 11752799.45 | U13: 12482341.11 | V13: 11401791.16 | W13: 12228269.4
A14: 06. Tetuán | B14: 5696566.062 | C14: 6228821.259 | D14: 6692104.509 | E14: 6703065.812 | F14: 7041487.506 | G14: 7969932.419 | H14: 8428373.217 | I14: 9066390.732 | J14: 9216043.247 | K14: 9045644.9 | L14: 8534234.646 | M14: 8693715.584 | N14: 8516548.831 | O14: 8053794.452 | P14: 8090097.917 | Q14: 8327807.692 | R14: 8630215.103 | S14: 9037977.973 | T14: 9516809.17 | U14: 10135869.71 | V14: 9057712.959 | W14: 9419089.488
A15: 07. Chamberí | B15: 4701089.166 | C15: 5287344.634 | D15: 5702587.638 | E15: 6227097.509 | F15: 6559547.953 | G15: 6624572.359 | H15: 7281557.943 | I15: 7923085.838 | J15: 8504479.706 | K15: 9010642.172 | L15: 8844716.769 | M15: 8933286.969 | N15: 8817208.832 | O15: 8505277.009 | P15: 8578047.473 | Q15: 8911669.034 | R15: 9365468.144 | S15: 9660324.066 | T15: 10009062.2 | U15: 10630486.94 | V15: 9559247.566 | W15: 10281836.7
A16: 08. Fuencarral-El Pardo | B16: 3499708.06 | C16: 4170853.229 | D16: 4481608.942 | E16: 5217242.258 | F16: 5868590.563 | G16: 6012487.576 | H16: 7106316.728 | I16: 7680254.254 | J16: 7908437.338 | K16: 8733252.635 | L16: 8695008.523 | M16: 8925812.544 | N16: 8763106.709 | O16: 8649093.826 | P16: 8792388.735 | Q16: 9197769.102 | R16: 9557480.986 | S16: 10105184.17 | T16: 10550485.69 | U16: 10939033.48 | V16: 9779751.858 | W16: 10809929.21
A17: 09. Moncloa-Aravaca | B17: 2925691.874 | C17: 3365904.993 | D17: 3442510.453 | E17: 4392178.261 | F17: 5101165.151 | G17: 5559912.325 | H17: 5864703.811 | I17: 6227412.39 | J17: 6688257.105 | K17: 6631939.024 | L17: 6549326.468 | M17: 6600102.282 | N17: 6461471.21 | O17: 6326567.978 | P17: 6371770.261 | Q17: 6610911.473 | R17: 6894589.822 | S17: 7176256.963 | T17: 7415102.21 | U17: 7687768.319 | V17: 6941147.308 | W17: 7468192.775
A18: 10. Latina | B18: 832095.7554 | C18: 922906.9175 | D18: 974966.205 | E18: 1675900.192 | F18: 1761473.891 | G18: 1916224.297 | H18: 2010185.315 | I18: 2171170.09 | J18: 2351467.711 | K18: 2250147.003 | L18: 2169455.474 | M18: 2134915.175 | N18: 2100790.457 | O18: 2094117.276 | P18: 2093468.943 | Q18: 2155913.51 | R18: 2239182.033 | S18: 2289602.771 | T18: 2356844.406 | U18: 2491713.646 | V18: 2347780.122 | W18: 2507533.594
A19: 11. Carabanchel | B19: 1206400.885 | C19: 1299226.719 | D19: 1401027.714 | E19: 1959437.489 | F19: 2025427.929 | G19: 2211839.17 | H19: 2356026.094 | I19: 2578109.882 | J19: 2749591.632 | K19: 2635845.961 | L19: 2528184.56 | M19: 2525595.719 | N19: 2454169.439 | O19: 2414329.746 | P19: 2436092.744 | Q19: 2537322.162 | R19: 2651156.077 | S19: 2715578.621 | T19: 2807130.165 | U19: 2938745.167 | V19: 2741562.775 | W19: 2924990.314
A20: 12. Usera | B20: 840382.0156 | C20: 921812.2006 | D20: 984795.0803 | E20: 1362619.898 | F20: 1529207.311 | G20: 1679539.458 | H20: 1852676.478 | I20: 2007742.206 | J20: 2103312.546 | K20: 1994900.426 | L20: 1925616.083 | M20: 1868019.393 | N20: 1808518.425 | O20: 1763118.894 | P20: 1789841.482 | Q20: 1868002.249 | R20: 1924326.605 | S20: 1989709.352 | T20: 2072213.786 | U20: 2177774.869 | V20: 2078406.249 | W20: 2227773.508
A21: 13. Puente de Vallecas | B21: 964288.3974 | C21: 1081669.395 | D21: 1154577.057 | E21: 1788125.428 | F21: 1912177.261 | G21: 1999892.416 | H21: 2176728.365 | I21: 2368827.282 | J21: 2511234.648 | K21: 2533531.263 | L21: 2399634.428 | M21: 2363414.858 | N21: 2290937.564 | O21: 2246009.207 | P21: 2246768.584 | Q21: 2282033.446 | R21: 2339138.743 | S21: 2434160.271 | T21: 2536340.8 | U21: 2662134.502 | V21: 2510304.836 | W21: 2659822.969
A22: 14. Moratalaz | B22: 237992.9403 | C22: 265726.935 | D22: 292201.4904 | E22: 613008.6824 | F22: 661901.2768 | G22: 706185.5608 | H22: 808084.9844 | I22: 855546.4204 | J22: 906763.0674 | K22: 869444.2675 | L22: 842154.0542 | M22: 835438.206 | N22: 832461.6132 | O22: 828402.1493 | P22: 828858.1288 | Q22: 849203.3179 | R22: 877567.466 | S22: 901818.5565 | T22: 919963.3897 | U22: 959097.8768 | V22: 910975.8841 | W22: 962186.8981
A23: 15. Ciudad Lineal | B23: 4493336.264 | C23: 5424708.527 | D23: 6030678.952 | E23: 6077960.442 | F23: 6340409.468 | G23: 7017617.794 | H23: 7757534.635 | I23: 8313558.76 | J23: 8800978.78 | K23: 8352649.387 | L23: 7959688.16 | M23: 8038942.902 | N23: 7770576.354 | O23: 7597748.415 | P23: 7641002.894 | Q23: 8004086.376 | R23: 8522818.126 | S23: 9145690.365 | T23: 9608829.978 | U23: 9990724.237 | V23: 8889943.014 | W23: 9550764.793
A24: 16. Hortaleza | B24: 2621232.609 | C24: 2660714.603 | D24: 2864703.51 | E24: 2891943.992 | F24: 3229065.174 | G24: 3985087.416 | H24: 4653903.227 | I24: 5093561.435 | J24: 5792195.697 | K24: 5856202.9 | L24: 5837033.223 | M24: 6033596.187 | N24: 6080995.041 | O24: 5901021.164 | P24: 5787887.184 | Q24: 6027389.447 | R24: 6338434.872 | S24: 6767789.461 | T24: 7210651.546 | U24: 7602569.976 | V24: 6966572.394 | W24: 7722841.978
A25: 17. Villaverde | B25: 1669717.28 | C25: 1697391.415 | D25: 1716332.675 | E25: 1816668.169 | F25: 1958995.589 | G25: 2112631.271 | H25: 2440390.104 | I25: 2664745.572 | J25: 2760816.625 | K25: 2760323.827 | L25: 2614993.965 | M25: 2624688.116 | N25: 2559685.606 | O25: 2533096.442 | P25: 2584876.985 | Q25: 2712434.573 | R25: 2903429.395 | S25: 2994773.769 | T25: 3059884.622 | U25: 3204471.062 | V25: 3045193.469 | W25: 3286780.824
A26: 18. Villa de Vallecas | B26: 978615.0799 | C26: 1264546.213 | D26: 1456022.025 | E26: 1509401.487 | F26: 1657177.335 | G26: 1761418.904 | H26: 1920411.878 | I26: 2023374.928 | J26: 2225768.999 | K26: 2205243.904 | L26: 2192311.648 | M26: 2218617.512 | N26: 2201272.951 | O26: 2173614.732 | P26: 2213026.423 | Q26: 2335861.333 | R26: 2510750.114 | S26: 2746370.915 | T26: 2920676.623 | U26: 3022432.315 | V26: 2730695.187 | W26: 2974332.562
A27: 19. Vicálvaro | B27: 261285.9582 | C27: 290223.9907 | D27: 317405.5289 | E27: 469128.8623 | F27: 505498.2501 | G27: 545435.0641 | H27: 618273.4049 | I27: 679054.6801 | J27: 707913.9925 | K27: 696782.849 | L27: 669900.2022 | M27: 678855.3342 | N27: 673702.2975 | O27: 672770.2205 | P27: 691209.4947 | Q27: 722360.4675 | R27: 724206.6203 | S27: 730672.4082 | T27: 756109.4847 | U27: 791914.1004 | V27: 747890.9079 | W27: 806603.3835
A28: 20. San Blas | B28: 4009492.129 | C28: 4431467.449 | D28: 4899611.58 | E28: 4491471.222 | F28: 5006733.979 | G28: 5266382.231 | H28: 5932884.25 | I28: 6486116.511 | J28: 7065342.88 | K28: 7153284.949 | L28: 6995241.197 | M28: 7090722.179 | N28: 6927111.924 | O28: 6823858.476 | P28: 7031221.239 | Q28: 7329533.74 | R28: 7561526.207 | S28: 8013375.071 | T28: 8386323.895 | U28: 8779954.622 | V28: 7998352.129 | W28: 8749274.855
A29: 21. Barajas | B29: 4440254.061 | C29: 4196140.021 | D29: 4436207.402 | E29: 3738210.315 | F29: 4141531.803 | G29: 4481980.261 | H29: 4640703.54 | I29: 5026958.014 | J29: 5575806.674 | K29: 5813339.393 | L29: 5860691.406 | M29: 6088883.395 | N29: 6052529.02 | O29: 6019913.739 | P29: 6100203.586 | Q29: 6353225.277 | R29: 6717181.463 | S29: 7222192.223 | T29: 7633465.456 | U29: 7786920.04 | V29: 6992523.228 | W29: 7641240.317

Sheet 12
A1: Contabilidad Municipal de la Ciudad de Madrid. Serie 2000 - 2021(a) | W1: Indice
A2: Remuneración de Asalariados (precios corrientes)
A3: Unidad: miles de euros
B5: 2000 | C5: 2001 | D5: 2002 | E5: 2003 | F5: 2004 | G5: 2005 | H5: 2006 | I5: 2007 | J5: 2008 | K5: 2009 | L5: 2010 | M5: 2011 | N5: 2012 | O5: 2013 | P5: 2014 | Q5: 2015 | R5: 2016 | S5: 2017 | T5: 2018 | U5: 2019 | V5: 2020p | W5: 2021a
A8: Ciudad de Madrid | B8: 38412311.69 | C8: 42296093.94 | D8: 45360398.32 | E8: 48204117.65 | F8: 51000179.91 | G8: 54719958.92 | H8: 58978688.56 | I8: 62860147.5 | J8: 67711081.75 | K8: 67541004.69 | L8: 66186331 | M8: 66272270.33 | N8: 63820218.54 | O8: 62146489.15 | P8: 63039248.33 | Q8: 65250769.38 | R8: 67255392.24 | S8: 69679171.38 | T8: 72714222.43 | U8: 77345242.95 | V8: 75327414.28 | W8: 80167602.32
A9: 01. Centro | B9: 2587038.349 | C9: 2815037.466 | D9: 3057904.434 | E9: 3380278.49 | F9: 3434327.32 | G9: 3643125.505 | H9: 3860151.292 | I9: 3986091.714 | J9: 4366457.328 | K9: 4415613.614 | L9: 4400258.341 | M9: 4308936.501 | N9: 4118641.624 | O9: 4015067.919 | P9: 4006588.032 | Q9: 4025099.199 | R9: 4095975.106 | S9: 4207574.537 | T9: 4432792.189 | U9: 4692504.717 | V9: 4412990.442 | W9: 4552677.799
A10: 02. Arganzuela | B10: 1972679.891 | C10: 2099769.686 | D10: 2236636.696 | E10: 2061542.218 | F10: 2318179.225 | G10: 2478502.576 | H10: 2685780.248 | I10: 2937380.979 | J10: 3161446.931 | K10: 3059217.491 | L10: 2984270.072 | M10: 3011648.082 | N10: 2984584.99 | O10: 2922869.051 | P10: 2972846.548 | Q10: 3102676.775 | R10: 3226817.537 | S10: 3377723.584 | T10: 3482974.188 | U10: 3684298.118 | V10: 3613849.304 | W10: 3771329.683
A11: 03. Retiro | B11: 2005370.168 | C11: 2218645.194 | D11: 2388660.752 | E11: 2620305.429 | F11: 2559058.946 | G11: 2655126.699 | H11: 2837641.56 | I11: 3062168.126 | J11: 3362548.782 | K11: 3419728.082 | L11: 3363347.317 | M11: 3386956.026 | N11: 3245605.507 | O11: 3086414.326 | P11: 3124618.228 | Q11: 3270628.086 | R11: 3356572.264 | S11: 3498779.679 | T11: 3656632.806 | U11: 3945232.585 | V11: 3840537.319 | W11: 4070888.194
A12: 04. Salamanca | B12: 3960229.738 | C12: 4420273.907 | D12: 4728345.033 | E12: 4845319.029 | F12: 5002332.708 | G12: 5352379.779 | H12: 5698826.617 | I12: 6054706.737 | J12: 6492478.553 | K12: 6520380.652 | L12: 6375706.048 | M12: 6367521.447 | N12: 6195197.574 | O12: 5999337.057 | P12: 6037816.485 | Q12: 6248851.34 | R12: 6357886.616 | S12: 6512913.765 | T12: 6750491.679 | U12: 7036614.589 | V12: 6757931.249 | W12: 7194633.305
A13: 05. Chamartín | B13: 4458341.24 | C13: 4942072.698 | D13: 5267018.813 | E13: 4960893.994 | F13: 5106576.146 | G13: 5383284.117 | H13: 5758250.525 | I13: 6161672.269 | J13: 6625183.623 | K13: 6219909.595 | L13: 6120489.383 | M13: 6213522.367 | N13: 5935614.508 | O13: 5763719.764 | P13: 6055410.52 | Q13: 6308689.493 | R13: 6516010.201 | S13: 6701822.799 | T13: 7050621.276 | U13: 7580501.628 | V13: 7412206.487 | W13: 7929708.002
A14: 06. Tetuán | B14: 3407603.024 | C14: 3762568.007 | D14: 4012016.844 | E14: 3823016.516 | F14: 4059030.053 | G14: 4614111.844 | H14: 4895981.528 | I14: 5170599.103 | J14: 5292243.917 | K14: 5181548.597 | L14: 4992779.543 | M14: 5059674.774 | N14: 4978522.423 | O14: 4731342.738 | P14: 4732952.433 | Q14: 4860965.562 | R14: 4969989.665 | S14: 5129456.197 | T14: 5393128.096 | U14: 5789578.268 | V14: 5588066.226 | W14: 5742980.152
A15: 07. Chamberí | B15: 2847724.333 | C15: 3133715.803 | D15: 3394287.523 | E15: 3623875.623 | F15: 3798248.633 | G15: 3838058.709 | H15: 4151828.94 | I15: 4435258.095 | J15: 4879094.805 | K15: 5115192 | L15: 5051911.175 | M15: 5008237.762 | N15: 4818961.352 | O15: 4652319.34 | P15: 4696208.157 | Q15: 4889208.933 | R15: 5093625.08 | S15: 5127722.803 | T15: 5286678.943 | U15: 5686690.024 | V15: 5500021.856 | W15: 5861117.282
A16: 08. Fuencarral-El Pardo | B16: 1905874.081 | C16: 2096741.759 | D16: 2228656.425 | E16: 2860537.782 | F16: 3104130.836 | G16: 3361683.925 | H16: 3768467.168 | I16: 4060396.423 | J16: 4187153.498 | K16: 4446678.004 | L16: 4361940.146 | M16: 4427343.265 | N16: 4270782.567 | O16: 4188438.883 | P16: 4274680.229 | Q16: 4437626.829 | R16: 4542066.866 | S16: 4710190.841 | T16: 4904127.482 | U16: 5200018.691 | V16: 5133411.359 | W16: 5743837.866
A17: 09. Moncloa-Aravaca | B17: 1622190.738 | C17: 1825151.573 | D17: 1953791.804 | E17: 2769481.264 | F17: 3090526.652 | G17: 3334902.015 | H17: 3521376.865 | I17: 3662626.593 | J17: 3948597.511 | K17: 3847834.548 | L17: 3841560.514 | M17: 3806782.054 | N17: 3635859.961 | O17: 3552699.635 | P17: 3602053.283 | Q17: 3728889.068 | R17: 3823206.5 | S17: 3907679.776 | T17: 4034216.319 | U17: 4260867.343 | V17: 4144093.341 | W17: 4420424.221
A18: 10. Latina | B18: 564746.3762 | C18: 621795.7849 | D18: 659131.2261 | E18: 1167422.39 | F18: 1221650.291 | G18: 1304407.702 | H18: 1359534.624 | I18: 1438369.929 | J18: 1557096.919 | K18: 1519802.304 | L18: 1479844.607 | M18: 1447506.668 | N18: 1362853.174 | O18: 1368206.386 | P18: 1369433.559 | Q18: 1394624.615 | R18: 1434697.817 | S18: 1470385.192 | T18: 1511185.433 | U18: 1621373.49 | V18: 1597453.079 | W18: 1691674.763
A19: 11. Carabanchel | B19: 860090.8505 | C19: 942139.5968 | D19: 1017316.213 | E19: 1400412.807 | F19: 1472540.072 | G19: 1612041.849 | H19: 1703355.834 | I19: 1820506.986 | J19: 1939619.37 | K19: 1893569.312 | L19: 1835282.85 | M19: 1828778.282 | N19: 1717293.485 | O19: 1692105.453 | P19: 1705952.935 | Q19: 1763159.534 | R19: 1822069.254 | S19: 1861817.492 | T19: 1923234.726 | U19: 2034850.019 | V19: 1971789.872 | W19: 2085423.942
A20: 12. Usera | B20: 571158.6376 | C20: 620299.8877 | D20: 671545.6645 | E20: 1008461.533 | F20: 1110681.269 | G20: 1211021.143 | H20: 1338254.159 | I20: 1425610.564 | J20: 1548401.419 | K20: 1479918.275 | L20: 1442317.84 | M20: 1388157.843 | N20: 1299128.528 | O20: 1265760.899 | P20: 1287357.927 | Q20: 1340966.848 | R20: 1368739.498 | S20: 1416682.012 | T20: 1475823.791 | U20: 1570958.308 | V20: 1558266.279 | W20: 1650495.999
A21: 13. Puente de Vallecas | B21: 678722.5478 | C21: 748827.7902 | D21: 808240.5576 | E21: 1278668.827 | F21: 1371367.175 | G21: 1437262.325 | H21: 1551355.796 | I21: 1655293.931 | J21: 1772675.121 | K21: 1813076.78 | L21: 1746941.187 | M21: 1713645.759 | N21: 1604013.635 | O21: 1583378.816 | P21: 1580589.343 | Q21: 1584339.778 | R21: 1605830.39 | S21: 1675173.948 | T21: 1741612.566 | U21: 1853822.942 | V21: 1823060.706 | W21: 1935553.733
A22: 14. Moratalaz | B22: 174560.6093 | C22: 192827.0328 | D22: 213007.4403 | E22: 452071.6864 | F22: 486770.0004 | G22: 508153.3903 | H22: 548079.6554 | I22: 574992.6677 | J22: 611469.4662 | K22: 615105.8126 | L22: 598256.5576 | M22: 589491.6158 | N22: 558619.7815 | O22: 559510.2575 | P22: 560369.5216 | Q22: 569232.6635 | R22: 583046.5873 | S22: 597568.6885 | T22: 608653.5734 | U22: 645359.0012 | V22: 639121.2104 | W22: 672744.5936
A23: 15. Ciudad Lineal | B23: 2452869.668 | C23: 2752981.742 | D23: 2982849.091 | E23: 2966327.48 | F23: 3072108.516 | G23: 3231445.945 | H23: 3571627.439 | I23: 3783505.551 | J23: 4080123.037 | K23: 3873314.774 | L23: 3704563.246 | M23: 3666545.415 | N23: 3480009.608 | O23: 3402695.784 | P23: 3451954.25 | Q23: 3606502.902 | R23: 3858452.502 | S23: 4144092.312 | T23: 4361604.108 | U23: 4645215.804 | V23: 4569273.829 | W23: 4898307.7
A24: 16. Hortaleza | B24: 1330397.952 | C24: 1480688.998 | D24: 1679397.173 | E24: 1688842.146 | F24: 1812020.468 | G24: 2102548.842 | H24: 2251561.058 | I24: 2445123.279 | J24: 2908904.146 | K24: 3051179.445 | L24: 3060403.344 | M24: 3115838.44 | N24: 3075397.625 | O24: 2981993.648 | P24: 2938034.23 | Q24: 3050319.206 | R24: 3144815.994 | S24: 3297485.213 | T24: 3495056.875 | U24: 3724084.852 | V24: 3671781.682 | W24: 3981073.921
A25: 17. Villaverde | B25: 1038659.472 | C25: 1132464.768 | D25: 1164706.089 | E25: 1225755.973 | F25: 1329220.164 | G25: 1476671.193 | H25: 1635114.719 | I25: 1768985.329 | J25: 1869343.045 | K25: 1852963.436 | L25: 1773553.187 | M25: 1766500.36 | N25: 1671171.452 | O25: 1633556.954 | P25: 1667998.876 | Q25: 1755563.099 | R25: 1877588.087 | S25: 1954008.853 | T25: 1992657.167 | U25: 2103018.238 | V25: 2078740.986 | W25: 2210492.265
A26: 18. Villa de Vallecas | B26: 507277.3756 | C26: 561294.7027 | D26: 604371.6934 | E26: 669081.4255 | F26: 726272.4252 | G26: 781707.1453 | H26: 867833.437 | I26: 920460.6425 | J26: 1014182.041 | K26: 1045919.969 | L26: 1021373.877 | M26: 1027908.374 | N26: 993921.6526 | O26: 969493.9861 | P26: 985443.2224 | Q26: 1038227.207 | R26: 1094763.767 | S26: 1188788.336 | T26: 1286518.076 | U26: 1384791.041 | V26: 1373315.04 | W26: 1453026.05
A27: 19. Vicálvaro | B27: 187558.8141 | C27: 207584.5232 | D27: 224806.6416 | E27: 329224.5837 | F27: 359718.4548 | G27: 389854.7108 | H27: 427141.2231 | I27: 464010.1079 | J27: 493468.7289 | K27: 488221.1525 | L27: 471772.7907 | M27: 482646.5115 | N27: 465687.0108 | O27: 463746.7985 | P27: 476175.3306 | Q27: 495318.4871 | R27: 489792.606 | S27: 490172.2118 | T27: 507218.4302 | U27: 539724.7747 | V27: 536096.8122 | W27: 572760.4953
A28: 20. San Blas | B28: 2515574.491 | C28: 2754428 | D28: 3066801.435 | E28: 2691456.698 | F28: 2950150.979 | G28: 3159618.737 | H28: 3593765.829 | I28: 3907096.403 | J28: 4269947.073 | K28: 4314215.198 | L28: 4230312.904 | M28: 4246501.488 | N28: 4075146.764 | O28: 3995147.703 | P28: 4119201.203 | Q28: 4304686.251 | R28: 4378526.875 | S28: 4568435.745 | T28: 4777114.487 | U28: 5072621.009 | V28: 4979771.364 | W28: 5364248.968
A29: 21. Barajas | B29: 2763643.334 | C29: 2966785.026 | D29: 3000906.774 | E29: 2381141.759 | F29: 2615269.581 | G29: 2844050.771 | H29: 2952760.047 | I29: 3125292.073 | J29: 3330646.438 | K29: 3367615.648 | L29: 3329446.069 | M29: 3408127.292 | N29: 3333205.315 | O29: 3318683.752 | P29: 3393564.013 | Q29: 3475193.503 | R29: 3614919.034 | S29: 3840697.395 | T29: 4041880.221 | U29: 4273117.51 | V29: 4125635.839 | W29: 4364203.384

Sheet 13
A1: Contabilidad Municipal de la Ciudad de Madrid. Serie 2000 - 2021(a) | W1: Indice
A2: Excedente de Explotación Bruto y Otros Impuestos netos sobre la producción (precios corrientes)
A3: Unidad: miles de euros
B5: 2000 | C5: 2001 | D5: 2002 | E5: 2003 | F5: 2004 | G5: 2005 | H5: 2006 | I5: 2007 | J5: 2008 | K5: 2009 | L5: 2010 | M5: 2011 | N5: 2012 | O5: 2013 | P5: 2014 | Q5: 2015 | R5: 2016 | S5: 2017 | T5: 2018 | U5: 2019 | V5: 2020p | W5: 2021a
A8: Ciudad de Madrid | B8: 25425633.08 | C8: 28417601.07 | D8: 30671176.44 | E8: 33274931.65 | F8: 36280322.3 | G8: 40155730.54 | H8: 44373927.68 | I8: 48816699.72 | J8: 50833726.13 | K8: 50386936.1 | L8: 48583878.89 | M8: 50115278.01 | N8: 50406528.43 | O8: 49061028.51 | P8: 49336272.55 | Q8: 51477537.7 | R8: 54793979.22 | S8: 58592566.81 | T8: 61382376.21 | U8: 62858313.68 | V8: 51574935.1 | W8: 56593302.79
A9: 01. Centro | B9: 1518405.874 | C9: 1680360.585 | D9: 1781350.739 | E9: 2328600.348 | F9: 2454234.997 | G9: 2703948.406 | H9: 2909983.564 | I9: 3251504.602 | J9: 3414837.327 | K9: 3150967.225 | L9: 3102927.101 | M9: 3146120.285 | N9: 3169884.763 | O9: 3096373.075 | P9: 3059696.549 | Q9: 3148605.761 | R9: 3382070.479 | S9: 3560274.696 | T9: 3697365.266 | U9: 3703358.426 | V9: 3045503.768 | W9: 3363356.638
A10: 02. Arganzuela | B10: 1092830.542 | C10: 1168087.139 | D10: 1131432.311 | E10: 1313355.62 | F10: 1638276.075 | G10: 1731427.776 | H10: 2027365.214 | I10: 2390432.205 | J10: 2439278.735 | K10: 2256601.198 | L10: 2164823.991 | M10: 2227738.623 | N10: 2312849.014 | O10: 2229218.182 | P10: 2215129.877 | Q10: 2311281.308 | R10: 2456530.288 | S10: 2639125.652 | T10: 2749805.138 | U10: 2801767.132 | V10: 2363869.271 | W10: 2613637.73
A11: 03. Retiro | B11: 1021214.173 | C11: 1223378.495 | D11: 1344712.539 | E11: 1550928.947 | F11: 1697228.65 | G11: 1762913.788 | H11: 1830102.063 | I11: 1984451.722 | J11: 2056286.838 | K11: 2109781.263 | L11: 2035540.22 | M11: 2114215.689 | N11: 2135316.976 | O11: 2049043.234 | P11: 2065064.122 | Q11: 2178632.176 | R11: 2323788.616 | S11: 2490668.081 | T11: 2607179.357 | U11: 2671982.707 | V11: 2149093.737 | W11: 2359989.413
A12: 04. Salamanca | B12: 2890148.015 | C12: 3462548.779 | D12: 3807010.67 | E12: 4099754.665 | F12: 4247646.132 | G12: 5224702.797 | H12: 5792764.047 | I12: 6316114.438 | J12: 6433537.922 | K12: 6235362.566 | L12: 5857281.476 | M12: 6036394.575 | N12: 5991507.021 | O12: 5762959.352 | P12: 5801563.51 | Q12: 6062716.536 | R12: 6470593.763 | S12: 6885937.269 | T12: 7206665.144 | U12: 7383846.394 | V12: 6018723.247 | W12: 6612928.782
A13: 05. Chamartín | B13: 2953538.244 | C13: 3174062.561 | D13: 3441162.017 | E13: 3384610.542 | F13: 3522251.569 | G13: 4089139.495 | H13: 4102997.133 | I13: 4366415.436 | J13: 4324341.2 | K13: 3997204.239 | L13: 3747375.136 | M13: 3919888.389 | N13: 3826458.717 | O13: 3679781.97 | P13: 3760024.935 | Q13: 3845603.202 | R13: 4105654.818 | S13: 4465441.162 | T13: 4702178.171 | U13: 4901839.481 | V13: 3989584.674 | W13: 4298561.402
